Workbook

Sheet ProjectList (hidden)
K1: Encumbrance | O1: Object Codes
A2: =IF(B2="","",MAX(A$1:A1)+1) ->  | B2: =IF(B$1=Programs!$J2,Programs!K2,"") ->  | D2: =IFERROR(INDEX($B$2:$B$199,MATCH(ROW()-ROW($D$1),$A$2:$A$199,0)),"") ->  | K2: Budget | O2: VAL | P2: DESCRIPTION
A3: =IF(B3="","",MAX(A$1:A2)+1) ->  | B3: =IF(B$1=Programs!$J3,Programs!K3,"") ->  | O3: 48891 | P3: Misc Revenue
A4: =IF(B4="","",MAX(A$1:A3)+1) ->  | B4: =IF(B$1=Programs!$J4,Programs!K4,"") ->  | O4: 48860 | P4: Misc Revenue
A5: =IF(B5="","",MAX(A$1:A4)+1) ->  | B5: =IF(B$1=Programs!#REF!,Programs!#REF!,"") ->  | O5: 48861 | P5: Misc Revenue
A6: =IF(B6="","",MAX(A$1:A5)+1) ->  | B6: =IF(B$1=Programs!#REF!,Programs!#REF!,"") ->  | O6: 48885 | P6: Misc Revenue
A7: =IF(B7="","",MAX(A$1:A6)+1) ->  | B7: =IF(B$1=Programs!#REF!,Programs!#REF!,"") ->  | O7: 51110 | P7: Instruc-Regular
A8: =IF(B8="","",MAX(A$1:A7)+1) ->  | B8: =IF(B$1=Programs!#REF!,Programs!#REF!,"") ->  | O8: 51170 | P8: Instruc-Sabb Lv
A9: =IF(B9="","",MAX(A$1:A8)+1) ->  | B9: =IF(B$1=Programs!#REF!,Programs!#REF!,"") ->  | O9: 51210 | P9: NonInstruc-Reg
A10: =IF(B10="","",MAX(A$1:A9)+1) ->  | B10: =IF(B$1=Programs!#REF!,Programs!#REF!,"") ->  | O10: 51270 | P10: NonInstruc-Sabb Lv
A11: =IF(B11="","",MAX(A$1:A10)+1) ->  | B11: =IF(B$1=Programs!#REF!,Programs!#REF!,"") ->  | O11: 51310 | P11: Instruc-Overload
A12: =IF(B12="","",MAX(A$1:A11)+1) ->  | B12: =IF(B$1=Programs!#REF!,Programs!#REF!,"") ->  | O12: 51330 | P12: Instruc-Hourly/Daily
A13: =IF(B13="","",MAX(A$1:A12)+1) ->  | B13: =IF(B$1=Programs!#REF!,Programs!#REF!,"") ->  | O13: 51340 | P13: Instruc-Subs
A14: =IF(B14="","",MAX(A$1:A13)+1) ->  | B14: =IF(B$1=Programs!#REF!,Programs!#REF!,"") ->  | O14: 51360 | P14: Instruc-Pro Rata
A15: =IF(B15="","",MAX(A$1:A14)+1) ->  | B15: =IF(B$1=Programs!$J5,Programs!K5,"") -> 0 | O15: 51420 | P15: NonInstruc-Mgmt
A16: =IF(B16="","",MAX(A$1:A15)+1) ->  | B16: =IF(B$1=Programs!$J6,Programs!K6,"") -> 0 | O16: 51430 | P16: NonInstruc-Hourly/Daily
A17: =IF(B17="","",MAX(A$1:A16)+1) ->  | B17: =IF(B$1=Programs!$J7,Programs!K7,"") -> 0 | O17: 51440 | P17: NonInstruc-Subs
A18: =IF(B18="","",MAX(A$1:A17)+1) ->  | B18: =IF(B$1=Programs!$J8,Programs!K8,"") -> 0 | O18: 51450 | P18: NonInstruc-Vac PO
A19: =IF(B19="","",MAX(A$1:A18)+1) ->  | B19: =IF(B$1=Programs!$J9,Programs!K9,"") -> 0 | O19: 51460 | P19: NonInstruct-Pro Rata
A20: =IF(B20="","",MAX(A$1:A19)+1) ->  | B20: =IF(B$1=Programs!$J10,Programs!K10,"") -> 0 | O20: 51480 | P20: Vol Retirement Incentive
A21: =IF(B21="","",MAX(A$1:A20)+1) ->  | B21: =IF(B$1=Programs!$J11,Programs!K11,"") -> 0 | O21: 51999 | P21: Instruc Sal Clearing
A22: =IF(B22="","",MAX(A$1:A21)+1) ->  | B22: =IF(B$1=Programs!$J12,Programs!K12,"") -> 0 | O22: 52110 | P22: NonInstuc-Reg
A23: =IF(B23="","",MAX(A$1:A22)+1) ->  | B23: =IF(B$1=Programs!$J13,Programs!K13,"") -> 0 | O23: 52120 | P23: NonInstruc-Mgmt
A24: =IF(B24="","",MAX(A$1:A23)+1) ->  | B24: =IF(B$1=Programs!$J14,Programs!K14,"") -> 0 | O24: 52150 | P24: NonInstruc-Vac PO
A25: =IF(B25="","",MAX(A$1:A24)+1) ->  | B25: =IF(B$1=Programs!$J15,Programs!K15,"") -> 0 | O25: 52210 | P25: Instruc Aides-Reg
A26: =IF(B26="","",MAX(A$1:A25)+1) ->  | B26: =IF(B$1=Programs!$J16,Programs!K16,"") -> 0 | O26: 52250 | P26: Instruc Aides-Vac PO
A27: =IF(B27="","",MAX(A$1:A26)+1) ->  | B27: =IF(B$1=Programs!$J17,Programs!K17,"") -> 0 | O27: 52330 | P27: NonInstruc-Hourly
A28: =IF(B28="","",MAX(A$1:A27)+1) ->  | B28: =IF(B$1=Programs!$J18,Programs!K18,"") -> 0 | O28: 52331 | P28: Stu-NonInstruc-Hourly
A29: =IF(B29="","",MAX(A$1:A28)+1) ->  | B29: =IF(B$1=Programs!$J19,Programs!K19,"") -> 0 | O29: 52332 | P29: Stu-NonInstruc-Fed WS
A30: =IF(B30="","",MAX(A$1:A29)+1) ->  | B30: =IF(B$1=Programs!$J20,Programs!K20,"") -> 0 | O30: 52333 | P30: Stu-NonInstruc-Fire/Security
A31: =IF(B31="","",MAX(A$1:A30)+1) ->  | B31: =IF(B$1=Programs!$J21,Programs!K21,"") -> 0 | O31: 52334 | P31: Stu-NonInstruc-Cal WS
A32: =IF(B32="","",MAX(A$1:A31)+1) ->  | B32: =IF(B$1=Programs!$J22,Programs!K22,"") -> 0 | O32: 52340 | P32: NonInstruc-Subs
A33: =IF(B33="","",MAX(A$1:A32)+1) ->  | B33: =IF(B$1=Programs!$J23,Programs!K23,"") -> 0 | O33: 52360 | P33: NonInstruc-OT
A34: =IF(B34="","",MAX(A$1:A33)+1) ->  | B34: =IF(B$1=Programs!$J24,Programs!K24,"") -> 0 | D34: =IFERROR(INDEX($B$2:$B$199,MATCH(ROW()-ROW($D$1),$A$2:$A$199,0)),"") ->  | O34: 52430 | P34: Instruc Aides-Hourly
A35: =IF(B35="","",MAX(A$1:A34)+1) ->  | B35: =IF(B$1=Programs!$J25,Programs!K25,"") -> 0 | O35: 52431 | P35: Stu-Instruc Aides-Hourly
A36: =IF(B36="","",MAX(A$1:A35)+1) ->  | B36: =IF(B$1=Programs!$J26,Programs!K26,"") -> 0 | O36: 52432 | P36: Stu-Instruc Aides-Fed WS
A37: =IF(B37="","",MAX(A$1:A36)+1) ->  | B37: =IF(B$1=Programs!$J27,Programs!K27,"") -> 0 | O37: 52434 | P37: Stu-Instruc Aides-CAL WS
A38: =IF(B38="","",MAX(A$1:A37)+1) ->  | B38: =IF(B$1=Programs!$J28,Programs!K28,"") -> 0 | O38: 52440 | P38: Instruc Aides-Subs
A39: =IF(B39="","",MAX(A$1:A38)+1) ->  | B39: =IF(B$1=Programs!$J29,Programs!K29,"") -> 0 | O39: 52480 | P39: Vol Retirement Incentive
A40: =IF(B40="","",MAX(A$1:A39)+1) ->  | B40: =IF(B$1=Programs!$J30,Programs!K30,"") -> 0 | O40: 52999 | P40: Class Salaries Clearing
A41: =IF(B41="","",MAX(A$1:A40)+1) ->  | B41: =IF(B$1=Programs!$J31,Programs!K31,"") -> 0 | O41: 53000 | P41: Benefit Budget Pool
A42: =IF(B42="","",MAX(A$1:A41)+1) ->  | B42: =IF(B$1=Programs!$J32,Programs!K32,"") -> 0 | O42: 53100 | P42: STRS-Acad Class
A43: =IF(B43="","",MAX(A$1:A42)+1) ->  | B43: =IF(B$1=Programs!$J33,Programs!K33,"") -> 0 | O43: 53101 | P43: STRS-Classif Class
A44: =IF(B44="","",MAX(A$1:A43)+1) ->  | B44: =IF(B$1=Programs!$J34,Programs!K34,"") -> 0 | O44: 53102 | P44: STRS-Acad Non Class
A45: =IF(B45="","",MAX(A$1:A44)+1) ->  | B45: =IF(B$1=Programs!$J35,Programs!K35,"") -> 0 | O45: 53103 | P45: STRS-Classif Non Class
A46: =IF(B46="","",MAX(A$1:A45)+1) ->  | B46: =IF(B$1=Programs!$J36,Programs!K36,"") -> 0 | O46: 53104 | P46: STRS-Mgmt
A47: =IF(B47="","",MAX(A$1:A46)+1) ->  | B47: =IF(B$1=Programs!$J37,Programs!K37,"") -> 0 | O47: 53200 | P47: PERS-Acad Class
A48: =IF(B48="","",MAX(A$1:A47)+1) ->  | B48: =IF(B$1=Programs!$J38,Programs!K38,"") -> 0 | O48: 53201 | P48: PERS-Classif Class
A49: =IF(B49="","",MAX(A$1:A48)+1) ->  | B49: =IF(B$1=Programs!$J39,Programs!K39,"") -> 0 | O49: 53202 | P49: PERS-Acad Non Class
A50: =IF(B50="","",MAX(A$1:A49)+1) ->  | B50: =IF(B$1=Programs!$J40,Programs!K40,"") -> 0 | O50: 53203 | P50: PERS-Classif Non Class
A51: =IF(B51="","",MAX(A$1:A50)+1) ->  | B51: =IF(B$1=Programs!$J41,Programs!K41,"") -> 0 | O51: 53204 | P51: PERS-Mgmt
A52: =IF(B52="","",MAX(A$1:A51)+1) ->  | B52: =IF(B$1=Programs!$J42,Programs!K42,"") -> 0 | O52: 53209 | P52: PERS-Admin
A53: =IF(B53="","",MAX(A$1:A52)+1) ->  | B53: =IF(B$1=Programs!$J43,Programs!K43,"") -> 0 | O53: 53300 | P53: OASDI-Acad Class
A54: =IF(B54="","",MAX(A$1:A53)+1) ->  | B54: =IF(B$1=Programs!$J44,Programs!K44,"") -> 0 | O54: 53301 | P54: OASDI-Classif Class
A55: =IF(B55="","",MAX(A$1:A54)+1) ->  | B55: =IF(B$1=Programs!$J45,Programs!K45,"") -> 0 | O55: 53302 | P55: OASDI-Acad Non Class
A56: =IF(B56="","",MAX(A$1:A55)+1) ->  | B56: =IF(B$1=Programs!$J46,Programs!K46,"") -> 0 | O56: 53303 | P56: OASDI-Classif Non Class
A57: =IF(B57="","",MAX(A$1:A56)+1) ->  | B57: =IF(B$1=Programs!$J47,Programs!K47,"") -> 0 | O57: 53304 | P57: OASDI-Mgmt
A58: =IF(B58="","",MAX(A$1:A57)+1) ->  | B58: =IF(B$1=Programs!$J48,Programs!K48,"") -> 0 | O58: 53310 | P58: Medicare-Acad Class
A59: =IF(B59="","",MAX(A$1:A58)+1) ->  | B59: =IF(B$1=Programs!$J49,Programs!K49,"") -> 0 | O59: 53311 | P59: Medicare-Classif Class
A60: =IF(B60="","",MAX(A$1:A59)+1) ->  | B60: =IF(B$1=Programs!$J50,Programs!K50,"") -> 0 | O60: 53312 | P60: Medicare-Acad Non Class
A61: =IF(B61="","",MAX(A$1:A60)+1) ->  | B61: =IF(B$1=Programs!$J51,Programs!K51,"") -> 0 | O61: 53313 | P61: Medicare-Classif Non Class
A62: =IF(B62="","",MAX(A$1:A61)+1) ->  | B62: =IF(B$1=Programs!$J52,Programs!K52,"") -> 0 | O62: 53314 | P62: Medicare-Mgmt
A63: =IF(B63="","",MAX(A$1:A62)+1) ->  | B63: =IF(B$1=Programs!$J53,Programs!K53,"") -> 0 | O63: 53400 | P63: Health-Acad Class
A64: =IF(B64="","",MAX(A$1:A63)+1) ->  | B64: =IF(B$1=Programs!$J54,Programs!K54,"") -> 0 | O64: 53401 | P64: Health-Classif Class
A65: =IF(B65="","",MAX(A$1:A64)+1) ->  | B65: =IF(B$1=Programs!$J55,Programs!K55,"") -> 0 | O65: 53402 | P65: Health-Acad Non Class
A66: =IF(B66="","",MAX(A$1:A65)+1) ->  | B66: =IF(B$1=Programs!$J56,Programs!K56,"") -> 0 | D66: =IFERROR(INDEX($B$2:$B$199,MATCH(ROW()-ROW($D$1),$A$2:$A$199,0)),"") ->  | O66: 53403 | P66: Health-Classif Non Class
A67: =IF(B67="","",MAX(A$1:A66)+1) ->  | B67: =IF(B$1=Programs!$J57,Programs!K57,"") -> 0 | O67: 53404 | P67: Health-Mgmt
A68: =IF(B68="","",MAX(A$1:A67)+1) ->  | B68: =IF(B$1=Programs!$J58,Programs!K58,"") -> 0 | O68: 53405 | P68: Health-Acad Retirees
A69: =IF(B69="","",MAX(A$1:A68)+1) ->  | B69: =IF(B$1=Programs!$J59,Programs!K59,"") -> 0 | O69: 53406 | P69: Health-Classif Retirees
A70: =IF(B70="","",MAX(A$1:A69)+1) ->  | B70: =IF(B$1=Programs!$J60,Programs!K60,"") -> 0 | O70: 53407 | P70: Health-Mgmt Retirees
A71: =IF(B71="","",MAX(A$1:A70)+1) ->  | B71: =IF(B$1=Programs!$J61,Programs!K61,"") -> 0 | O71: 53408 | P71: Health-Trustees
A72: =IF(B72="","",MAX(A$1:A71)+1) ->  | B72: =IF(B$1=Programs!$J62,Programs!K62,"") -> 0 | O72: 53409 | P72: Health-Admin
A73: =IF(B73="","",MAX(A$1:A72)+1) ->  | B73: =IF(B$1=Programs!$J63,Programs!K63,"") -> 0 | O73: 53410 | P73: Health-COBRA
A74: =IF(B74="","",MAX(A$1:A73)+1) ->  | B74: =IF(B$1=Programs!$J64,Programs!K64,"") -> 0 | O74: 53411 | P74: DNU
A75: =IF(B75="","",MAX(A$1:A74)+1) ->  | B75: =IF(B$1=Programs!$J65,Programs!K65,"") -> 0 | O75: 53412 | P75: DNU
A76: =IF(B76="","",MAX(A$1:A75)+1) ->  | B76: =IF(B$1=Programs!$J66,Programs!K66,"") -> 0 | O76: 53413 | P76: DNU
A77: =IF(B77="","",MAX(A$1:A76)+1) ->  | B77: =IF(B$1=Programs!$J67,Programs!K67,"") -> 0 | O77: 53414 | P77: DNU
A78: =IF(B78="","",MAX(A$1:A77)+1) ->  | B78: =IF(B$1=Programs!$J68,Programs!K68,"") -> 0 | O78: 53420 | P78: DNU
A79: =IF(B79="","",MAX(A$1:A78)+1) ->  | B79: =IF(B$1=Programs!$J69,Programs!K69,"") -> 0 | O79: 53421 | P79: DNU
A80: =IF(B80="","",MAX(A$1:A79)+1) ->  | B80: =IF(B$1=Programs!$J70,Programs!K70,"") -> 0 | O80: 53422 | P80: DNU
A81: =IF(B81="","",MAX(A$1:A80)+1) ->  | B81: =IF(B$1=Programs!$J71,Programs!K71,"") -> 0 | O81: 53423 | P81: DNU
A82: =IF(B82="","",MAX(A$1:A81)+1) ->  | B82: =IF(B$1=Programs!$J72,Programs!K72,"") -> 0 | O82: 53430 | P82: DNU
A83: =IF(B83="","",MAX(A$1:A82)+1) ->  | B83: =IF(B$1=Programs!$J73,Programs!K73,"") -> 0 | O83: 53431 | P83: DNU
A84: =IF(B84="","",MAX(A$1:A83)+1) ->  | B84: =IF(B$1=Programs!$J74,Programs!K74,"") -> 0 | O84: 53440 | P84: DNU
A85: =IF(B85="","",MAX(A$1:A84)+1) ->  | B85: =IF(B$1=Programs!$J75,Programs!K75,"") -> 0 | O85: 53441 | P85: DNU
A86: =IF(B86="","",MAX(A$1:A85)+1) ->  | B86: =IF(B$1=Programs!$J76,Programs!K76,"") -> 0 | O86: 53442 | P86: DNU
A87: =IF(B87="","",MAX(A$1:A86)+1) ->  | B87: =IF(B$1=Programs!$J77,Programs!K77,"") -> 0 | O87: 53443 | P87: DNU
A88: =IF(B88="","",MAX(A$1:A87)+1) ->  | B88: =IF(B$1=Programs!$J78,Programs!K78,"") -> 0 | O88: 53450 | P88: Dental-Acad Class
A89: =IF(B89="","",MAX(A$1:A88)+1) ->  | B89: =IF(B$1=Programs!$J79,Programs!K79,"") -> 0 | O89: 53451 | P89: Dental-Classif Class
A90: =IF(B90="","",MAX(A$1:A89)+1) ->  | B90: =IF(B$1=Programs!$J80,Programs!K80,"") -> 0 | O90: 53452 | P90: Dental-Acad Non Class
A91: =IF(B91="","",MAX(A$1:A90)+1) ->  | B91: =IF(B$1=Programs!$J81,Programs!K81,"") -> 0 | O91: 53453 | P91: Dental-Classif Non Class
A92: =IF(B92="","",MAX(A$1:A91)+1) ->  | B92: =IF(B$1=Programs!$J82,Programs!K82,"") -> 0 | O92: 53454 | P92: Dental-Mgmt
A93: =IF(B93="","",MAX(A$1:A92)+1) ->  | B93: =IF(B$1=Programs!$J83,Programs!K83,"") -> 0 | O93: 53455 | P93: Dental-Acad Retirees
A94: =IF(B94="","",MAX(A$1:A93)+1) ->  | B94: =IF(B$1=Programs!$J84,Programs!K84,"") -> 0 | O94: 53456 | P94: Dental-Classif Retirees
A95: =IF(B95="","",MAX(A$1:A94)+1) ->  | B95: =IF(B$1=Programs!$J85,Programs!K85,"") -> 0 | O95: 53457 | P95: Dental-Mgmt Retirees
A96: =IF(B96="","",MAX(A$1:A95)+1) ->  | B96: =IF(B$1=Programs!$J86,Programs!K86,"") -> 0 | O96: 53458 | P96: Dental-Trustees
A97: =IF(B97="","",MAX(A$1:A96)+1) ->  | B97: =IF(B$1=Programs!$J87,Programs!K87,"") -> 0 | O97: 53459 | P97: Dental-Admin Fees
A98: =IF(B98="","",MAX(A$1:A97)+1) ->  | B98: =IF(B$1=Programs!$J88,Programs!K88,"") -> 0 | D98: =IFERROR(INDEX($B$2:$B$199,MATCH(ROW()-ROW($D$1),$A$2:$A$199,0)),"") ->  | O98: 53460 | P98: Vision-Acad Class
A99: =IF(B99="","",MAX(A$1:A98)+1) ->  | B99: =IF(B$1=Programs!$J89,Programs!K89,"") -> 0 | O99: 53461 | P99: Vision-Classif Class
A100: =IF(B100="","",MAX(A$1:A99)+1) ->  | B100: =IF(B$1=Programs!$J90,Programs!K90,"") -> 0 | O100: 53462 | P100: Vision-Acad Non Class
A101: =IF(B101="","",MAX(A$1:A100)+1) ->  | B101: =IF(B$1=Programs!$J91,Programs!K91,"") -> 0 | O101: 53463 | P101: Vision-Classif Non Class
A102: =IF(B102="","",MAX(A$1:A101)+1) ->  | B102: =IF(B$1=Programs!$J92,Programs!K92,"") -> 0 | O102: 53464 | P102: Vision-Mgmt
A103: =IF(B103="","",MAX(A$1:A102)+1) ->  | B103: =IF(B$1=Programs!$J93,Programs!K93,"") -> 0 | O103: 53465 | P103: Vision-Acad Retirees
A104: =IF(B104="","",MAX(A$1:A103)+1) ->  | B104: =IF(B$1=Programs!$J94,Programs!K94,"") -> 0 | O104: 53466 | P104: Vision-Class Retirees
A105: =IF(B105="","",MAX(A$1:A104)+1) ->  | B105: =IF(B$1=Programs!$J95,Programs!K95,"") -> 0 | O105: 53467 | P105: Vision-Mgmt Retirees
A106: =IF(B106="","",MAX(A$1:A105)+1) ->  | B106: =IF(B$1=Programs!$J96,Programs!K96,"") -> 0 | O106: 53468 | P106: Vision-Trustees
A107: =IF(B107="","",MAX(A$1:A106)+1) ->  | B107: =IF(B$1=Programs!$J97,Programs!K97,"") -> 0 | O107: 53469 | P107: Vision-Admin Fees
A108: =IF(B108="","",MAX(A$1:A107)+1) ->  | B108: =IF(B$1=Programs!$J98,Programs!K98,"") -> 0 | O108: 53470 | P108: LTD-Acad Class
A109: =IF(B109="","",MAX(A$1:A108)+1) ->  | B109: =IF(B$1=Programs!$J99,Programs!K99,"") -> 0 | O109: 53471 | P109: LTD-Classif Class
A110: =IF(B110="","",MAX(A$1:A109)+1) ->  | B110: =IF(B$1=Programs!$J100,Programs!K100,"") -> 0 | O110: 53472 | P110: LTD-Acad Non Class
A111: =IF(B111="","",MAX(A$1:A110)+1) ->  | B111: =IF(B$1=Programs!$J101,Programs!K101,"") -> 0 | O111: 53473 | P111: LTD-Classif Non Class
A112: =IF(B112="","",MAX(A$1:A111)+1) ->  | B112: =IF(B$1=Programs!$J102,Programs!K102,"") -> 0 | O112: 53474 | P112: LTD-Mgmt
A113: =IF(B113="","",MAX(A$1:A112)+1) ->  | B113: =IF(B$1=Programs!$J103,Programs!K103,"") -> 0 | O113: 53479 | P113: LTD-Admin
A114: =IF(B114="","",MAX(A$1:A113)+1) ->  | B114: =IF(B$1=Programs!$J104,Programs!K104,"") -> 0 | O114: 53480 | P114: STD-Acad Class
A115: =IF(B115="","",MAX(A$1:A114)+1) ->  | B115: =IF(B$1=Programs!$J105,Programs!K105,"") -> 0 | O115: 53481 | P115: STD-Classif Class
A116: =IF(B116="","",MAX(A$1:A115)+1) ->  | B116: =IF(B$1=Programs!$J106,Programs!K106,"") -> 0 | O116: 53482 | P116: STD-Acad Non Class
A117: =IF(B117="","",MAX(A$1:A116)+1) ->  | B117: =IF(B$1=Programs!$J107,Programs!K107,"") -> 0 | O117: 53483 | P117: STD-Classif Non Class
A118: =IF(B118="","",MAX(A$1:A117)+1) ->  | B118: =IF(B$1=Programs!$J108,Programs!K108,"") -> 0 | O118: 53484 | P118: STD-Mgmt
A119: =IF(B119="","",MAX(A$1:A118)+1) ->  | B119: =IF(B$1=Programs!$J109,Programs!K109,"") -> 0 | O119: 53485 | P119: Do Not Use
A120: =IF(B120="","",MAX(A$1:A119)+1) ->  | B120: =IF(B$1=Programs!$J110,Programs!K110,"") -> 0 | O120: 53489 | P120: STD-Admin Fees
A121: =IF(B121="","",MAX(A$1:A120)+1) ->  | B121: =IF(B$1=Programs!$J111,Programs!K111,"") -> 0 | O121: 53490 | P121: Ret Hlth Liab-Acad Class
A122: =IF(B122="","",MAX(A$1:A121)+1) ->  | B122: =IF(B$1=Programs!$J112,Programs!K112,"") -> 0 | O122: 53491 | P122: Ret Hlth Liab-Classif Class
A123: =IF(B123="","",MAX(A$1:A122)+1) ->  | B123: =IF(B$1=Programs!$J113,Programs!K113,"") -> 0 | O123: 53492 | P123: Ret Hlth Liab-Acad Non Class
A124: =IF(B124="","",MAX(A$1:A123)+1) ->  | B124: =IF(B$1=Programs!$J114,Programs!K114,"") -> 0 | O124: 53493 | P124: Ret Hlth Liab-Class Non Class
A125: =IF(B125="","",MAX(A$1:A124)+1) ->  | B125: =IF(B$1=Programs!$J115,Programs!K115,"") -> 0 | O125: 53494 | P125: Ret Hlth Liab-Mgmt
A126: =IF(B126="","",MAX(A$1:A125)+1) ->  | B126: =IF(B$1=Programs!$J116,Programs!K116,"") -> 0 | O126: 53499 | P126: Health Benefit Assessment
A127: =IF(B127="","",MAX(A$1:A126)+1) ->  | B127: =IF(B$1=Programs!$J117,Programs!K117,"") -> 0 | O127: 53500 | P127: St Unempl-Acad Class
A128: =IF(B128="","",MAX(A$1:A127)+1) ->  | B128: =IF(B$1=Programs!$J118,Programs!K118,"") -> 0 | O128: 53501 | P128: St Unempl-Classif Class
A129: =IF(B129="","",MAX(A$1:A128)+1) ->  | B129: =IF(B$1=Programs!$J119,Programs!K119,"") -> 0 | O129: 53502 | P129: St Unempl-Acad Non Class
A130: =IF(B130="","",MAX(A$1:A129)+1) ->  | B130: =IF(B$1=Programs!$J120,Programs!K120,"") -> 0 | D130: =IFERROR(INDEX($B$2:$B$199,MATCH(ROW()-ROW($D$1),$A$2:$A$199,0)),"") ->  | O130: 53503 | P130: St Unempl-Classif Non Class
A131: =IF(B131="","",MAX(A$1:A130)+1) ->  | B131: =IF(B$1=Programs!$J121,Programs!K121,"") -> 0 | O131: 53504 | P131: St Unempl-Mgmt
A132: =IF(B132="","",MAX(A$1:A131)+1) ->  | B132: =IF(B$1=Programs!$J122,Programs!K122,"") -> 0 | O132: 53509 | P132: St Unempl-LEC
A133: =IF(B133="","",MAX(A$1:A132)+1) ->  | B133: =IF(B$1=Programs!$J123,Programs!K123,"") -> 0 | O133: 53600 | P133: WC-Acad Class
A134: =IF(B134="","",MAX(A$1:A133)+1) ->  | B134: =IF(B$1=Programs!$J124,Programs!K124,"") -> 0 | O134: 53601 | P134: WC-Classif Class
A135: =IF(B135="","",MAX(A$1:A134)+1) ->  | B135: =IF(B$1=Programs!$J125,Programs!K125,"") -> 0 | O135: 53602 | P135: WC-Acad Non Class
A136: =IF(B136="","",MAX(A$1:A135)+1) ->  | B136: =IF(B$1=Programs!$J126,Programs!K126,"") -> 0 | O136: 53603 | P136: WC-Classif Non Class
A137: =IF(B137="","",MAX(A$1:A136)+1) ->  | B137: =IF(B$1=Programs!$J127,Programs!K127,"") -> 0 | O137: 53604 | P137: WC-Mgmt
A138: =IF(B138="","",MAX(A$1:A137)+1) ->  | B138: =IF(B$1=Programs!$J128,Programs!K128,"") -> 0 | O138: 53609 | P138: WC-Admin
A139: =IF(B139="","",MAX(A$1:A138)+1) ->  | B139: =IF(B$1=Programs!$J129,Programs!K129,"") -> 0 | O139: 53700 | P139: Apple-Acad Class
A140: =IF(B140="","",MAX(A$1:A139)+1) ->  | B140: =IF(B$1=Programs!$J130,Programs!K130,"") -> 0 | O140: 53701 | P140: Apple-Classif Class
A141: =IF(B141="","",MAX(A$1:A140)+1) ->  | B141: =IF(B$1=Programs!$J131,Programs!K131,"") -> 0 | O141: 53702 | P141: Apple-Acad Non Class
A142: =IF(B142="","",MAX(A$1:A141)+1) ->  | B142: =IF(B$1=Programs!$J132,Programs!K132,"") -> 0 | O142: 53703 | P142: Apple-Classif Non Class
A143: =IF(B143="","",MAX(A$1:A142)+1) ->  | B143: =IF(B$1=Programs!$J133,Programs!K133,"") -> 0 | O143: 53704 | P143: Apple-Mgmt
A144: =IF(B144="","",MAX(A$1:A143)+1) ->  | B144: =IF(B$1=Programs!$J134,Programs!K134,"") -> 0 | O144: 53709 | P144: Apple-Admin Fees
A145: =IF(B145="","",MAX(A$1:A144)+1) ->  | B145: =IF(B$1=Programs!$J135,Programs!K135,"") -> 0 | O145: 53800 | P145: DNU
A146: =IF(B146="","",MAX(A$1:A145)+1) ->  | B146: =IF(B$1=Programs!$J136,Programs!K136,"") -> 0 | O146: 53801 | P146: DNU
A147: =IF(B147="","",MAX(A$1:A146)+1) ->  | B147: =IF(B$1=Programs!$J137,Programs!K137,"") -> 0 | O147: 53802 | P147: DNU
A148: =IF(B148="","",MAX(A$1:A147)+1) ->  | B148: =IF(B$1=Programs!$J138,Programs!K138,"") -> 0 | O148: 53803 | P148: DNU
A149: =IF(B149="","",MAX(A$1:A148)+1) ->  | B149: =IF(B$1=Programs!$J139,Programs!K139,"") -> 0 | O149: 53804 | P149: DNU
A150: =IF(B150="","",MAX(A$1:A149)+1) ->  | B150: =IF(B$1=Programs!$J140,Programs!K140,"") -> 0 | O150: 53805 | P150: DNU
A151: =IF(B151="","",MAX(A$1:A150)+1) ->  | B151: =IF(B$1=Programs!$J141,Programs!K141,"") -> 0 | O151: 53806 | P151: DNU
A152: =IF(B152="","",MAX(A$1:A151)+1) ->  | B152: =IF(B$1=Programs!$J142,Programs!K142,"") -> 0 | O152: 53807 | P152: DNU
A153: =IF(B153="","",MAX(A$1:A152)+1) ->  | B153: =IF(B$1=Programs!$J143,Programs!K143,"") -> 0 | O153: 53808 | P153: DNU
A154: =IF(B154="","",MAX(A$1:A153)+1) ->  | B154: =IF(B$1=Programs!$J144,Programs!K144,"") -> 0 | O154: 53809 | P154: DNU
A155: =IF(B155="","",MAX(A$1:A154)+1) ->  | B155: =IF(B$1=Programs!$J145,Programs!K145,"") -> 0 | O155: 53810 | P155: DNU
A156: =IF(B156="","",MAX(A$1:A155)+1) ->  | B156: =IF(B$1=Programs!$J146,Programs!K146,"") -> 0 | O156: 53900 | P156: Life-Acad Class
A157: =IF(B157="","",MAX(A$1:A156)+1) ->  | B157: =IF(B$1=Programs!$J147,Programs!K147,"") -> 0 | O157: 53901 | P157: Life-Classif Class
A158: =IF(B158="","",MAX(A$1:A157)+1) ->  | B158: =IF(B$1=Programs!$J148,Programs!K148,"") -> 0 | O158: 53902 | P158: Life-Acad Non Class
A159: =IF(B159="","",MAX(A$1:A158)+1) ->  | B159: =IF(B$1=Programs!$J149,Programs!K149,"") -> 0 | O159: 53903 | P159: Life-Class Non Class
A160: =IF(B160="","",MAX(A$1:A159)+1) ->  | B160: =IF(B$1=Programs!$J150,Programs!K150,"") -> 0 | O160: 53904 | P160: Life-Mgmt
A161: =IF(B161="","",MAX(A$1:A160)+1) ->  | B161: =IF(B$1=Programs!$J151,Programs!K151,"") -> 0 | O161: 53908 | P161: Life-Trustees
A162: =IF(B162="","",MAX(A$1:A161)+1) ->  | B162: =IF(B$1=Programs!$J152,Programs!K152,"") -> 0 | D162: =IFERROR(INDEX($B$2:$B$199,MATCH(ROW()-ROW($D$1),$A$2:$A$199,0)),"") ->  | O162: 53999 | P162: Empl Benefits Clearing
A163: =IF(B163="","",MAX(A$1:A162)+1) ->  | B163: =IF(B$1=Programs!$J153,Programs!K153,"") -> 0 | O163: 54000 | P163: Supplies & Materials Pool
A164: =IF(B164="","",MAX(A$1:A163)+1) ->  | B164: =IF(B$1=Programs!$J154,Programs!K154,"") -> 0 | O164: 54101 | P164: Books-Text
A165: =IF(B165="","",MAX(A$1:A164)+1) ->  | B165: =IF(B$1=Programs!$J155,Programs!K155,"") -> 0 | O165: 54102 | P165: Books-Library
A166: =IF(B166="","",MAX(A$1:A165)+1) ->  | B166: =IF(B$1=Programs!$J156,Programs!K156,"") -> 0 | O166: 54103 | P166: Books-Other
A167: =IF(B167="","",MAX(A$1:A166)+1) ->  | B167: =IF(B$1=Programs!$J157,Programs!K157,"") -> 0 | O167: 54208 | P167: Library-Elec Subscriptions
A168: =IF(B168="","",MAX(A$1:A167)+1) ->  | B168: =IF(B$1=Programs!$J158,Programs!K158,"") -> 0 | O168: 54209 | P168: Library-Reg Subscriptions
A169: =IF(B169="","",MAX(A$1:A168)+1) ->  | B169: =IF(B$1=Programs!$J159,Programs!K159,"") -> 0 | O169: 54301 | P169: Instruc-Supplies
A170: =IF(B170="","",MAX(A$1:A169)+1) ->  | B170: =IF(B$1=Programs!$J160,Programs!K160,"") -> 0 | O170: 54302 | P170: Instruc-Subscriptions
A171: =IF(B171="","",MAX(A$1:A170)+1) ->  | B171: =IF(B$1=Programs!$J161,Programs!K161,"") -> 0 | O171: 54303 | P171: Instruc-Food
A172: =IF(B172="","",MAX(A$1:A171)+1) ->  | B172: =IF(B$1=Programs!$J162,Programs!K162,"") -> 0 | O172: 54304 | P172: Instruc-Records/Tapes
A173: =IF(B173="","",MAX(A$1:A172)+1) ->  | B173: =IF(B$1=Programs!$J163,Programs!K163,"") -> 0 | O173: 54305 | P173: Instruc-Audio/Visual
A174: =IF(B174="","",MAX(A$1:A173)+1) ->  | B174: =IF(B$1=Programs!$J164,Programs!K164,"") -> 0 | O174: 54306 | P174: Instruc-Musical Scores
A175: =IF(B175="","",MAX(A$1:A174)+1) ->  | B175: =IF(B$1=Programs!$J165,Programs!K165,"") -> 0 | O175: 54307 | P175: Instruc-Films
A176: =IF(B176="","",MAX(A$1:A175)+1) ->  | B176: =IF(B$1=Programs!$J166,Programs!K166,"") -> 0 | O176: 54308 | P176: Instruc-Perf
A177: =IF(B177="","",MAX(A$1:A176)+1) ->  | B177: =IF(B$1=Programs!$J167,Programs!K167,"") -> 0 | O177: 54309 | P177: Instruc-Supply Credits
A178: =IF(B178="","",MAX(A$1:A177)+1) ->  | B178: =IF(B$1=Programs!$J168,Programs!K168,"") -> 0 | O178: 54310 | P178: DNU
A179: =IF(B179="","",MAX(A$1:A178)+1) ->  | B179: =IF(B$1=Programs!$J169,Programs!K169,"") -> 0 | O179: 54311 | P179: Instruc-Copier Use
A180: =IF(B180="","",MAX(A$1:A179)+1) ->  | B180: =IF(B$1=Programs!$J170,Programs!K170,"") -> 0 | O180: 54312 | P180: Instruc-Dup Use
A181: =IF(B181="","",MAX(A$1:A180)+1) ->  | B181: =IF(B$1=Programs!$J171,Programs!K171,"") -> 0 | O181: 54313 | P181: Instruc - Incentives
A182: =IF(B182="","",MAX(A$1:A181)+1) ->  | B182: =IF(B$1=Programs!$J172,Programs!K172,"") -> 0 | O182: 54431 | P182: NonInstruc-Supplies
A183: =IF(B183="","",MAX(A$1:A182)+1) ->  | B183: =IF(B$1=Programs!$J173,Programs!K173,"") -> 0 | O183: 54432 | P183: DNU
A184: =IF(B184="","",MAX(A$1:A183)+1) ->  | B184: =IF(B$1=Programs!$J174,Programs!K174,"") -> 0 | O184: 54433 | P184: NonInstruc-First Aid
A185: =IF(B185="","",MAX(A$1:A184)+1) ->  | B185: =IF(B$1=Programs!$J175,Programs!K175,"") -> 0 | O185: 54434 | P185: NonInstruc-Swimming Pool
A186: =IF(B186="","",MAX(A$1:A185)+1) ->  | B186: =IF(B$1=Programs!$J176,Programs!K176,"") -> 0 | O186: 54450 | P186: NonInstruc-Gas/Oil
A187: =IF(B187="","",MAX(A$1:A186)+1) ->  | B187: =IF(B$1=Programs!$J177,Programs!K177,"") -> 0 | O187: 54451 | P187: NonInstruc-Tires
A188: =IF(B188="","",MAX(A$1:A187)+1) ->  | B188: =IF(B$1=Programs!$J178,Programs!K178,"") -> 0 | O188: 54452 | P188: NonInstruc-Repair Parts
A189: =IF(B189="","",MAX(A$1:A188)+1) ->  | B189: =IF(B$1=Programs!$J179,Programs!K179,"") -> 0 | O189: 54453 | P189: NonInstruc-Small Tools
A190: =IF(B190="","",MAX(A$1:A189)+1) ->  | B190: =IF(B$1=Programs!$J180,Programs!K180,"") -> 0 | O190: 54454 | P190: NonInstruc-Other Auto
A191: =IF(B191="","",MAX(A$1:A190)+1) ->  | B191: =IF(B$1=Programs!$J181,Programs!K181,"") -> 0 | O191: 54455 | P191: NonInstruc-Painting
A192: =IF(B192="","",MAX(A$1:A191)+1) ->  | B192: =IF(B$1=Programs!$J182,Programs!K182,"") -> 0 | O192: 54456 | P192: NonInstruc-Electrical
A193: =IF(B193="","",MAX(A$1:A192)+1) ->  | B193: =IF(B$1=Programs!$J183,Programs!K183,"") -> 0 | O193: 54457 | P193: NonInstruc-Plumbing
A194: =IF(B194="","",MAX(A$1:A193)+1) ->  | B194: =IF(B$1=Programs!$J184,Programs!K184,"") -> 0 | D194: =IFERROR(INDEX($B$2:$B$199,MATCH(ROW()-ROW($D$1),$A$2:$A$199,0)),"") ->  | O194: 54458 | P194: NonInstruc-Carpentry
A195: =IF(B195="","",MAX(A$1:A194)+1) ->  | B195: =IF(B$1=Programs!$J185,Programs!K185,"") -> 0 | O195: 54459 | P195: NonInstruc-Welding
A196: =IF(B196="","",MAX(A$1:A195)+1) ->  | B196: =IF(B$1=Programs!$J186,Programs!K186,"") -> 0 | O196: 54460 | P196: NonInstruc-Locksmith
A197: =IF(B197="","",MAX(A$1:A196)+1) ->  | B197: =IF(B$1=Programs!$J187,Programs!K187,"") -> 0 | O197: 54461 | P197: NonInstruc-Heat/Air
A198: =IF(B198="","",MAX(A$1:A197)+1) ->  | B198: =IF(B$1=Programs!$J188,Programs!K188,"") -> 0 | O198: 54462 | P198: NonInstruc-Roofing
A199: =IF(B199="","",MAX(A$1:A198)+1) ->  | B199: =IF(B$1=Programs!$J189,Programs!K189,"") -> 0 | O199: 54463 | P199: NonInstruc-Subscriptions/Per
A200: =IF(B200="","",MAX(A$1:A199)+1) ->  | B200: =IF(B$1=Programs!$J190,Programs!K190,"") -> 0 | O200: 54464 | P200: NonInstruc-Food/Hospitality
... 172 more rows

Sheet Instructions
L2: An Encumbrance Needs to have a Project
F3: Ctrl m will bring up the Main Menu | L3: Projects have encumbrances not budget
L4: The description can be changed at any time
A5: In Datatel | L5: To change the budget for Operating Activity
M6: First Change the main Budget
A7: Run General Ledger Trial Balance report | M7: Then change the Encumberance of the Object Code
L8: Use Accounting Forms to verify Budget amounts
B9: GLTB | C9: Fiscal Year | D9: Current Fiscal Year
C10: Detail or Summary Trial Balance | D10: Detail | K10: To do
C11: Detial TB Transaction Starting | D11: 07/01 of current fiscal year
C12: thru | D12: Current Date | L12: Review how budget is handled for Operating Activity
C14: GL Account Definition | D14: Drill Down
C16: Select/List | D16: Drill Down
C18: Fund.Group,Fund | D18: Include 71
C19: GL.Class | D19: Include 2, 4 & 5
C21: Prompt for additional selection criteria | D21: No
C23: Sort | D23: Drill Down
C25: GLA.FUND | D25: Y
C27: Verify Criteria | D27: N
C29: Generate Spreadsheet | D29: Yes
B31: The information is generated in an Excel file
B33: Select all information and copy | D33: Shift Ctrl End will select all information
B35: Paste the information in cell A1 on the GLTB Tab
B37: Choose the expenditures that need to be posted and click on the Post button

Sheet Detail
A1: Program | B1: Account Number | C1: Amount | D1: Date | E1: Type | F1: Project | G1: Description
A2: 696546 FLOW | B2: 71-0000-1960-696546-55991 | C2: 100000 | D2: 2021-07-01 | E2: Budget | F2: FLOW
A3: 696546 FLOW | B3: 71-0000-1960-696546-55991 | C3: 30078.06 | D3: 2021-08-20 | E3: Encumbered | F3: FLOW - Fall
A4: 696546 FLOW | B4: 71-0000-1960-696546-55991 | C4: 30078.06 | D4: 2021-07-01 | E4: Activity | F4: FLOW - Fall | G4: Winco Foods, Llc
A5: 696503 ASMJC Presents | B5: 71-0000-1960-696503-55669 | C5: 50000 | D5: 2021-07-01 | E5: Budget
A6: 696504 Project LEAD | B6: 71-0000-1960-696504-55669 | C6: 5500 | D6: 2021-07-01 | E6: Budget
A7: 696505 Cult Div & Ethnic Prog | B7: 71-0000-1960-696505-55669 | C7: 40000 | D7: 2021-07-01 | E7: Budget
A8: 696530 Oper Activities | B8: 71-0000-1960-696530-52110 | C8: 50000 | D8: 2021-07-01 | E8: Budget | F8: NonInstruc-Reg | G8: NonInstruc-Reg
A9: 696530 Oper Activities | B9: 71-0000-1960-696530-53000 | C9: 40000 | D9: 2021-07-01 | E9: Budget | F9: Fringe Benefits | G9: Fringe Benefits
A10: 696530 Oper Activities | B10: 71-0000-1960-696530-54431 | C10: 28000 | D10: 2021-07-01 | E10: Budget | F10: NonInstruc-Supplies | G10: NonInstruc-Supplies
A11: 696530 Oper Activities | B11: 71-0000-1960-696530-54464 | C11: 2000 | D11: 2021-07-01 | E11: Budget | F11: NonInstruc-Food/Hospitality | G11: NonInstruc-Food/Hospitality
A12: 696530 Oper Activities | B12: 71-0000-1960-696530-54501 | C12: 4000 | D12: 2021-07-01 | E12: Budget | F12: NonInstruc-Dup Use | G12: NonInstruc-Dup Use
A13: 696530 Oper Activities | B13: 71-0000-1960-696530-55446 | C13: 5000 | D13: 2021-07-01 | E13: Budget | F13: Services-Repair/Maintenance | G13: Services-Repair/Maintenance
A14: 696530 Oper Activities | B14: 71-0000-1960-696530-55669 | C14: 1000 | D14: 2021-07-01 | E14: Budget | F14: Activ Events | G14: Activ Events
A15: 696530 Oper Activities | B15: 71-0000-1960-696530-55771 | C15: 8000 | D15: 2021-07-01 | E15: Budget | F15: Rentals-Equipment | G15: Rentals-Equipment
A16: 696530 Oper Activities | B16: 71-0000-1960-696530-56400 | C16: 2000 | D16: 2021-07-01 | E16: Budget | F16: Equipment<$5K | G16: Equipment<$5K
A17: 696532 Club Development | B17: 71-0000-1960-696532-55991 | C17: 20000 | D17: 2021-07-01 | E17: Budget
A18: 696534 Leadership | B18: 71-0000-1960-696534-55991 | C18: 5000 | D18: 2021-07-01 | E18: Budget
A19: 696536 Awards & Recognition | B19: 71-0000-1960-696536-55991 | C19: 10000 | D19: 2021-07-01 | E19: Budget
A20: 696540 Activity Fee Expense | B20: 71-0000-1960-696540-55991 | C20: 8000 | D20: 2021-07-01 | E20: Budget
A21: 696553 Raza Graduation | B21: 71-0000-1960-696553-55991 | C21: 3000 | D21: 2021-07-01 | E21: Budget
A22: 696554 African American Conf | B22: 71-0000-1960-696554-55991 | C22: 3000 | D22: 2021-07-01 | E22: Budget
A23: 696555 Hispanic Education Conf | B23: 71-0000-1960-696555-55991 | C23: 3000 | D23: 2021-07-01 | E23: Budget
A24: 696556 Pride Education Week | B24: 71-0000-1960-696556-55991 | C24: 3000 | D24: 2021-07-01 | E24: Budget
A25: 696557 Vet Education Week | B25: 71-0000-1960-696557-55991 | C25: 3000 | D25: 2021-07-01 | E25: Budget
A26: 696513 Senator Projects | B26: 71-0000-1960-696513-55669 | C26: 10000 | D26: 2021-07-01 | E26: Budget
A27: 696514 Graduation Supplies | B27: 71-0000-1960-696514-55669 | C27: 30000 | D27: 2021-07-01 | E27: Budget
A28: 696503 ASMJC Presents | B28: 71-0000-1960-696503-55669 | C28: 5000 | D28: 2021-08-23 | E28: Encumbered | F28: Welcome Week | G28: E00384
A29: 696530 Operating Activity | B29: 71-0000-1960-696530-52110 | C29: 2814 | D29: 2021-07-29 | E29: Activity | F29: NonInstuc-Reg | G29: PRD END: 07/31/21 RC Earnings
A30: 696530 Operating Activity | B30: 71-0000-1960-696530-53203 | C30: 644.68 | D30: 2021-07-29 | E30: Activity | F30: Fringe Benefits | G30: PRD END: 07/31/21 RC Employer Cont
A31: 696530 Operating Activity | B31: 71-0000-1960-696530-53303 | C31: 174.47 | D31: 2021-07-29 | E31: Activity | F31: Fringe Benefits | G31: PRD END: 07/31/21 RC Employer Cont
A32: 696530 Operating Activity | B32: 71-0000-1960-696530-53313 | C32: 40.8 | D32: 2021-07-29 | E32: Activity | F32: Fringe Benefits | G32: PRD END: 07/31/21 RC Employer Cont
A33: 696530 Operating Activity | B33: 71-0000-1960-696530-53403 | C33: 768.5 | D33: 2021-07-29 | E33: Activity | F33: Fringe Benefits | G33: PRD END: 07/31/21 RC Employer Cont
A34: 696530 Operating Activity | B34: 71-0000-1960-696530-53453 | C34: 55.15 | D34: 2021-07-29 | E34: Activity | F34: Fringe Benefits | G34: PRD END: 07/31/21 RC Employer Cont
A35: 696530 Operating Activity | B35: 71-0000-1960-696530-53463 | C35: 11.05 | D35: 2021-07-29 | E35: Activity | F35: Fringe Benefits | G35: PRD END: 07/31/21 RC Employer Cont
A36: 696530 Operating Activity | B36: 71-0000-1960-696530-53473 | C36: 2.3 | D36: 2021-07-29 | E36: Activity | F36: Fringe Benefits | G36: PRD END: 07/31/21 RC Employer Cont
A37: 696530 Operating Activity | B37: 71-0000-1960-696530-53473 | C37: 3.6 | D37: 2021-07-29 | E37: Activity | F37: Fringe Benefits | G37: PRD END: 07/31/21 RC Employer Cont
A38: 696530 Operating Activity | B38: 71-0000-1960-696530-53493 | C38: 64.87 | D38: 2021-07-29 | E38: Activity | F38: Fringe Benefits | G38: PRD END: 07/31/21 RC Employer Cont
A39: 696530 Operating Activity | B39: 71-0000-1960-696530-53503 | C39: 16.18 | D39: 2021-07-29 | E39: Activity | F39: Fringe Benefits | G39: PRD END: 07/31/21 RC Employer Cont
A40: 696530 Operating Activity | B40: 71-0000-1960-696530-53603 | C40: 41.22 | D40: 2021-07-29 | E40: Activity | F40: Fringe Benefits | G40: PRD END: 07/31/21 RC Employer Cont
A41: 696530 Operating Activity | B41: 71-0000-1960-696530-53903 | C41: 2.92 | D41: 2021-07-29 | E41: Activity | F41: Fringe Benefits | G41: PRD END: 07/31/21 RC Employer Cont
A42: 696530 Operating Activity | B42: 71-0000-1960-696530-55446 | C42: 80.13 | D42: 2021-08-18 | E42: Activity | F42: Services-Repair/Maintenance | G42: US Bank Equipment Finance
A43: 696530 Operating Activity | B43: 71-0000-1960-696530-55771 | C43: 125 | D43: 2021-07-13 | E43: Activity | F43: Rentals-Equipment | G43: Redwood Real Est #2-July 21
A44: 696530 Operating Activity | B44: 71-0000-1960-696530-55771 | C44: 137.8 | D44: 2021-07-13 | E44: Activity | F44: Rentals-Equipment | G44: United Site Services
A45: 696530 Operating Activity | B45: 71-0000-1960-696530-55771 | C45: 125 | D45: 2021-08-03 | E45: Activity | F45: Rentals-Equipment | G45: Redwood Real Est #2 Aug 21
A46: 696530 Operating Activity | B46: 71-0000-1960-696530-55771 | C46: 137.8 | D46: 2021-08-10 | E46: Activity | F46: Rentals-Equipment | G46: United Site Services
A47: 696503 ASMJC Presents | B47: 71-0000-1960-696503-55669 | C47: 738.4 | D47: 2021-08-17 | E47: Activity | F47: Welcome Week | G47: Ward Promotional Marketing
A48: 696503 ASMJC Presents | B48: 71-0000-1960-696503-55669 | C48: 278.9 | D48: 2021-08-12 | E48: Activity | F48: Welcome Week | G48: Cloud 9 Balloon Company
A49: 696503 ASMJC Presents | B49: 71-0000-1960-696503-55669 | C49: 1000 | D49: 2021-08-02 | E49: Activity | F49: Welcome Week | G49: John I. Griffin, III
A50: 696504 Project LEAD | C50: 5500 | E50: Budget | F50: Budget
J1076: 07/20/2020

Sheet Programs
A1: Program | B1: Activity Code | C1: Description | J1: Programs | K1: Projects | L1: Orignial Encumberance | M1: Description
A2: =+Table3[[#This Row],[Activity Code]]&" "&Table3[[#This Row],[Description]] -> 696264 AS-Synergy Club | B2: 696264 | C2: AS-Synergy Club | J2: 696546 FLOW | K2: FLOW - Fall | L2: 50000
A3: =+Table3[[#This Row],[Activity Code]]&" "&Table3[[#This Row],[Description]] -> 696503 ASMJC Presents | B3: 696503 | C3: ASMJC Presents | J3: 696530 Operating Activity | K3: Leadership Retreat | L3: 5000 | M3: E00383
A4: =+Table3[[#This Row],[Activity Code]]&" "&Table3[[#This Row],[Description]] -> 696504 Project LEAD | B4: 696504 | C4: Project LEAD | J4: 696503 ASMJC Presents | K4: Welcome Week | L4: 5000 | M4: E00384
A5: =+Table3[[#This Row],[Activity Code]]&" "&Table3[[#This Row],[Description]] -> 696505 Diversity | B5: 696505 | C5: Diversity
A6: =+Table3[[#This Row],[Activity Code]]&" "&Table3[[#This Row],[Description]] -> 696512 Marketing | B6: 696512 | C6: Marketing
A7: =+Table3[[#This Row],[Activity Code]]&" "&Table3[[#This Row],[Description]] -> 696513 Senator Projects | B7: 696513 | C7: Senator Projects
A8: =+Table3[[#This Row],[Activity Code]]&" "&Table3[[#This Row],[Description]] -> 696530 Operating Activity | B8: 696530 | C8: Operating Activity
A9: =+Table3[[#This Row],[Activity Code]]&" "&Table3[[#This Row],[Description]] -> 696532 Club Development | B9: 696532 | C9: Club Development
A10: =+Table3[[#This Row],[Activity Code]]&" "&Table3[[#This Row],[Description]] -> 696534 Leadership | B10: 696534 | C10: Leadership
A11: =+Table3[[#This Row],[Activity Code]]&" "&Table3[[#This Row],[Description]] -> 696536 End of the Year | B11: 696536 | C11: End of the Year
A12: =+Table3[[#This Row],[Activity Code]]&" "&Table3[[#This Row],[Description]] -> 696540 Benefits | B12: 696540 | C12: Benefits
A13: =+Table3[[#This Row],[Activity Code]]&" "&Table3[[#This Row],[Description]] -> 696546 FLOW | B13: 696546 | C13: FLOW
A14: =+Table3[[#This Row],[Activity Code]]&" "&Table3[[#This Row],[Description]] -> 696553 Raza Graduation | B14: 696553 | C14: Raza Graduation
A15: =+Table3[[#This Row],[Activity Code]]&" "&Table3[[#This Row],[Description]] -> 696554 African American Conf | B15: 696554 | C15: African American Conf
A16: =+Table3[[#This Row],[Activity Code]]&" "&Table3[[#This Row],[Description]] -> 696555 Hispanic Education Conf | B16: 696555 | C16: Hispanic Education Conf
A17: =+Table3[[#This Row],[Activity Code]]&" "&Table3[[#This Row],[Description]] -> 696556 Pride Education Conf | B17: 696556 | C17: Pride Education Conf
A18: =+Table3[[#This Row],[Activity Code]]&" "&Table3[[#This Row],[Description]] -> 696557 Vet Education Week | B18: 696557 | C18: Vet Education Week

Sheet SummaryPivot
A1: ASMJC Program Report
A2: As of: | B2: =MAX(Table5[[ Date]]) -> 2021-08-18
A6: Sum of Amount | C6: Type | F6: Budget | G6: Budget | H6: Encumbrance
A7: Program | B7: Project | C7: Budget | D7: Encumbered | E7: Activity | F7: Less Encumbrance | G7: Less Activity | H7: Less Activity
A8: 696530 Operating Activity | E8: 5245.47 | F8: =IF(RIGHT(A8,5)="Total",C8-D8,IF(AND(C8>0,RIGHT(A8,5)<>"Total"),C8-IFERROR(GETPIVOTDATA("Amount",$A$6,"Program",A8,"Type","Encumbered"),0),"")) ->  | G8: =IF(RIGHT(A8,5)="Total",C8-E8,IF(C8>0,C8-IFERROR(GETPIVOTDATA("Amount",$A$6,"Program",A8,"Type","Activity"),0),"")) ->  | H8: =IF(AND(CELL("type",D8)="b",CELL("type",E8)="b"),"",ROUND(D8-E8,2)) -> -5245.47
G9: =IF(RIGHT(A9,5)="Total",C9-E9,IF(C9>0,C9-IFERROR(GETPIVOTDATA("Amount",$A$6,"Program",A9,"Type","Activity"),0),"")) ->  | H9: =IF(AND(CELL("type",D9)="b",CELL("type",E9)="b"),"",ROUND(D9-E9,2)) -> 
A10: 696503 ASMJC Presents | C10: 50000 | D10: 5000 | E10: 2017.3 | F10: 45000 | G10: 47982.7 | H10: 2982.7
A12: 696546 FLOW | C12: 100000 | D12: 30078.06 | E12: 30078.06 | F12: 69921.94 | G12: 69921.94 | H12: 0
A14: 696504 Project LEAD | C14: 11000 | F14: 11000 | G14: 11000
A16: 696554 African American Conf | C16: 3000 | F16: 3000 | G16: 3000
A18: 696553 Raza Graduation | C18: 3000 | F18: 3000 | G18: 3000
A20: 696557 Vet Education Week | C20: 3000 | F20: 3000 | G20: 3000
A22: 696540 Activity Fee Expense | C22: 8000 | F22: 8000 | G22: 8000
A24: 696505 Cult Div & Ethnic Prog | C24: 40000 | F24: 40000 | G24: 40000
A26: 696530 Oper Activities | C26: 140000 | F26: 140000 | G26: 140000
A28: 696532 Club Development | C28: 20000 | F28: 20000 | G28: 20000
A30: 696534 Leadership | C30: 5000 | F30: 5000 | G30: 5000
A32: 696536 Awards & Recognition | C32: 10000 | F32: 10000 | G32: 10000
A34: 696555 Hispanic Education Conf | C34: 3000 | F34: 3000 | G34: 3000
A36: 696556 Pride Education Week | C36: 3000 | F36: 3000 | G36: 3000
A38: 696513 Senator Projects | C38: 10000 | F38: 10000 | G38: 10000
A40: 696514 Graduation Supplies | C40: 30000 | F40: 30000 | G40: 30000
A42: Grand Total | C42: 439000 | D42: 35078.06 | E42: 37340.83 | F42: 403921.94 | G42: 401659.17 | H42: -2262.77
F73: =IF(RIGHT(A73,5)="Total",C73-D73,IF(AND(C73>0,RIGHT(A73,5)<>"Total"),C73-IFERROR(GETPIVOTDATA("Amount",$A$6,"Program",A73,"Type","Encumbered"),0),"")) ->  | G73: =IF(RIGHT(A73,5)="Total",C73-E73,IF(C73>0,C73-IFERROR(GETPIVOTDATA("Amount",$A$6,"Program",A73,"Type","Activity"),0),"")) ->  | H73: =IF(AND(CELL("type",D73)="b",CELL("type",E73)="b"),"",ROUND(D73-E73,2)) -> 
F137: =IF(RIGHT(A137,5)="Total",C137-D137,IF(AND(C137>0,RIGHT(A137,5)<>"Total"),C137-IFERROR(GETPIVOTDATA("Amount",$A$6,"Program",A137,"Type","Encumbered"),0),"")) ->  | G137: =IF(RIGHT(A137,5)="Total",C137-E137,IF(C137>0,C137-IFERROR(GETPIVOTDATA("Amount",$A$6,"Program",A137,"Type","Activity"),0),"")) ->  | H137: =IF(AND(CELL("type",D137)="b",CELL("type",E137)="b"),"",ROUND(D137-E137,2)) -> 

Sheet Project Detail
A1: =+SummaryPivot!A2 -> As of: | B1: =MAX(Table5[[ Date]]) -> 2021-08-18 | F1: Budget Less Activity | G1: =+GETPIVOTDATA("Amount",$A$4,"Type","Budget")-IFERROR(GETPIVOTDATA("Amount",$A$4,"Type","Activity"),0) -> 401659.17
A2: Program | B2: (All)
A4: Sum of Amount | D4: Type | G4: Encumbrance
A5: Project | B5: Date | C5: Description | D5: Budget | E5: Encumbered | F5: Activity | G5: less Activity
A6: NonInstuc-Reg | F6: 2814 | G6: =IF(CELL("type",B6)="b",IF(AND(CELL("type",E6)="b",CELL("type",F6)="b"),"",IF(CELL("type",C6)="l","",ROUND(E6-F6,2))),"") -> -2814
G7: =IF(CELL("type",B7)="b",IF(AND(CELL("type",E7)="b",CELL("type",F7)="b"),"",IF(CELL("type",C7)="l","",ROUND(E7-F7,2))),"") -> 
A8: Services-Repair/Maintenance | D8: 5000 | F8: 80.13 | G8: =IF(CELL("type",B8)="b",IF(AND(CELL("type",E8)="b",CELL("type",F8)="b"),"",IF(CELL("type",C8)="l","",ROUND(E8-F8,2))),"") -> -80.13
G9: =IF(CELL("type",B9)="b",IF(AND(CELL("type",E9)="b",CELL("type",F9)="b"),"",IF(CELL("type",C9)="l","",ROUND(E9-F9,2))),"") -> 
A10: Rentals-Equipment | D10: 8000 | F10: 525.6 | G10: -525.6
A12: FLOW - Fall | E12: 30078.06 | F12: 30078.06 | G12: 0
A14: Fringe Benefits | D14: 40000 | F14: 1825.74 | G14: -1825.74
A16: FLOW | D16: 100000
A18: Welcome Week | E18: 5000 | F18: 2017.3 | G18: 2982.7
A20: (blank) | D20: 193500
A22: NonInstruc-Reg | D22: 50000
A24: NonInstruc-Supplies | D24: 28000
A26: NonInstruc-Food/Hospitality | D26: 2000
A28: NonInstruc-Dup Use | D28: 4000
A30: Activ Events | D30: 1000
A32: Equipment<$5K | D32: 2000
A34: Budget | D34: 5500
A36: Grand Total | D36: 439000 | E36: 35078.06 | F36: 37340.83 | G36: -2262.77
G73: =IF(CELL("type",B73)="b",IF(AND(CELL("type",E73)="b",CELL("type",F73)="b"),"",IF(CELL("type",C73)="l","",ROUND(E73-F73,2))),"") -> 
G137: =IF(CELL("type",B137)="b",IF(AND(CELL("type",E137)="b",CELL("type",F137)="b"),"",IF(CELL("type",C137)="l","",ROUND(E137-F137,2))),"") -> 
G201: =IF(CELL("type",B201)="b",IF(AND(CELL("type",E201)="b",CELL("type",F201)="b"),"",IF(CELL("type",C201)="l","",ROUND(E201-F201,2))),"") -> 
G265: =IF(CELL("type",B265)="b",IF(AND(CELL("type",E265)="b",CELL("type",F265)="b"),"",IF(CELL("type",C265)="l","",ROUND(E265-F265,2))),"") -> 
G329: =IF(CELL("type",B329)="b",IF(AND(CELL("type",E329)="b",CELL("type",F329)="b"),"",IF(CELL("type",C329)="l","",ROUND(E329-F329,2))),"") -> 
G393: =IF(CELL("type",B393)="b",IF(AND(CELL("type",E393)="b",CELL("type",F393)="b"),"",IF(CELL("type",C393)="l","",ROUND(E393-F393,2))),"") -> 

Sheet Program Detail
A1: Total Budget | B1: =IFERROR(GETPIVOTDATA("Amount",$A$7,"Type","Budget"),"") -> 439000 | D1: Total Budget | F1: =IFERROR(GETPIVOTDATA("Amount",$A$7,"Type","Budget"),"") -> 439000
A2: Total Encumbered | B2: =IFERROR(GETPIVOTDATA("Amount",$A$7,"Type","Encumbrance"),"") ->  | D2: Total Activity | F2: =IFERROR(GETPIVOTDATA("Amount",$A$7,"Type","Activity"),0) -> 37340.83
A3: Available | B3: =IFERROR(B1-B2,"") ->  | D3: Balance | F3: =IFERROR(IFERROR(F1-F2,B2-F2),"") -> 401659.17
A4: =+SummaryPivot!A2&MONTH(SummaryPivot!B2)&"/"&DAY(SummaryPivot!B2)&"/"&YEAR(SummaryPivot!B2) -> As of: 8/18/2021
A7: Sum of Amount | C7: Type | F7: Budget less | G7: Budget less | H7: Encumbrance
A8: Program | B8: Project | C8: Budget | D8: Encumbered | E8: Activity | F8: Encumbrance | G8: Activity | H8: Less Activity
A9: 696503 ASMJC Presents | C9: 50000 | D9: 5000 | E9: 2017.3 | F9: =IF(RIGHT(A9,5)="Total",C9-D9,IF(AND(CELL("type",A9)="l",CELL("type",B9)="b"),C9-D9,"")) -> 45000 | G9: =IF(RIGHT(A9,5)="Total",C9-E9,IF(AND(CELL("type",A9)="l",CELL("type",B9)="b"),C9-E9,"")) -> 47982.7 | H9: =IF(A9="Grand Total",ROUND(D9-E9,2),IF(D9>0,ROUND(D9-E9,2),"")) -> 2982.7
A10: 696546 FLOW | C10: 100000 | D10: 30078.06 | E10: 30078.06 | F10: 69921.94 | G10: =IF(RIGHT(A10,5)="Total",C10-E10,IF(AND(CELL("type",A10)="l",CELL("type",B10)="b"),C10-E10,"")) -> 69921.94 | H10: =IF(A10="Grand Total",ROUND(D10-E10,2),IF(D10>0,ROUND(D10-E10,2),"")) -> 0
A11: 696530 Operating Activity | E11: 5245.47 | F11: 0 | G11: -5245.47
A12: 696504 Project LEAD | C12: 11000 | F12: 11000 | G12: 11000
A13: 696554 African American Conf | C13: 3000 | F13: 3000 | G13: 3000
A14: 696553 Raza Graduation | C14: 3000 | F14: 3000 | G14: 3000
A15: 696557 Vet Education Week | C15: 3000 | F15: 3000 | G15: 3000
A16: 696540 Activity Fee Expense | C16: 8000 | F16: 8000 | G16: 8000
A17: 696505 Cult Div & Ethnic Prog | C17: 40000 | F17: 40000 | G17: 40000
A18: 696530 Oper Activities | C18: 140000 | F18: 140000 | G18: 140000
A19: 696532 Club Development | C19: 20000 | F19: 20000 | G19: 20000
A20: 696534 Leadership | C20: 5000 | F20: 5000 | G20: 5000
A21: 696536 Awards & Recognition | C21: 10000 | F21: 10000 | G21: 10000
A22: 696555 Hispanic Education Conf | C22: 3000 | F22: 3000 | G22: 3000
A23: 696556 Pride Education Week | C23: 3000 | F23: 3000 | G23: 3000
A24: 696513 Senator Projects | C24: 10000 | F24: 10000 | G24: 10000
A25: 696514 Graduation Supplies | C25: 30000 | F25: 30000 | G25: 30000
A26: Grand Total | C26: 439000 | D26: 35078.06 | E26: 37340.83 | F26: 403921.94 | G26: 401659.17 | H26: -2262.77
F74: =IF(RIGHT(A74,5)="Total",C74-D74,IF(AND(CELL("type",A74)="l",CELL("type",B74)="b"),C74-D74,"")) ->  | G74: =IF(RIGHT(A74,5)="Total",C74-E74,IF(AND(CELL("type",A74)="l",CELL("type",B74)="b"),C74-E74,"")) ->  | H74: =IF(A74="Grand Total",ROUND(D74-E74,2),IF(D74>0,ROUND(D74-E74,2),"")) -> 
F138: =IF(RIGHT(A138,5)="Total",C138-D138,IF(AND(CELL("type",A138)="l",CELL("type",B138)="b"),C138-D138,"")) ->  | G138: =IF(RIGHT(A138,5)="Total",C138-E138,IF(AND(CELL("type",A138)="l",CELL("type",B138)="b"),C138-E138,"")) ->  | H138: =IF(A138="Grand Total",ROUND(D138-E138,2),IF(D138>0,ROUND(D138-E138,2),"")) -> 
F202: =IF(RIGHT(A202,5)="Total",C202-D202,IF(AND(CELL("type",A202)="l",CELL("type",B202)="b"),C202-D202,"")) ->  | G202: =IF(RIGHT(A202,5)="Total",C202-E202,IF(AND(CELL("type",A202)="l",CELL("type",B202)="b"),C202-E202,"")) ->  | H202: =IF(A202="Grand Total",ROUND(D202-E202,2),IF(D202>0,ROUND(D202-E202,2),"")) -> 
F266: =IF(RIGHT(A266,5)="Total",C266-D266,IF(AND(CELL("type",A266)="l",CELL("type",B266)="b"),C266-D266,"")) ->  | G266: =IF(RIGHT(A266,5)="Total",C266-E266,IF(AND(CELL("type",A266)="l",CELL("type",B266)="b"),C266-E266,"")) ->  | H266: =IF(A266="Grand Total",ROUND(D266-E266,2),IF(D266>0,ROUND(D266-E266,2),"")) -> 

Sheet GLTB
A1: GL Account | B1: GL Description | C1: Date | D1: Source | E1: Reference Number | F1: Description | G1: Opening Balance | H1: YTD Debits | I1: YTD Credits | J1: Amount | K1: 0 | L1: Object | M1: Difference | N1: Project Needed
A2: 71-0000-1960-696200-29512 | B2: Gen : A/P-Current : AS-A/P : Stdnt Development/Campus Life : Assoc Students | C2: 2021-07-01 | D2: PJ | E2: 'V1266758' | F2: Winco Foods, Llc | I2: 30078.06 | J2: =IF(MID(A2,21,1)="2",-G2-H2+I2,IF(SUM(H2:I2)>0,H2-I2,"")) -> 30078.06 | K2: =IF(MID(Table5[[#This Row],[GL Account]],21,1)="2",MID(Table5[[#This Row],[ GL Description]],FIND(":",Table5[[#This Row],[ GL Description]],1)+2,FIND(":",Table5[[#This Row],[ GL Description]],FIND(":",Table5[[#This Row],[ GL Description]],1)+1)-FIND(":",Table5[[#This Row],[ GL Description]],1)-2),VLOOKUP(VALUE(MID(Table5[[#This Row],[GL Account]],14,6)),PgmList,2,FALSE)) -> A/P-Current | L2: =IF(MID(A2,21,1)="2",MID(A2,14,6)&" - "&MID(B2,FIND(":",B2,FIND(K2,B2,1))+2,FIND(":",B2,FIND(":",B2,FIND(K2,B2,1))+1)-FIND(":",B2,FIND(K2,B2,1))-2),IF(AND(MID(Table5[[#This Row],[GL Account]],14,6)<>"696530",MID(Table5[[#This Row],[GL Account]],14,6)<>"696570"),"",IF(MID(Table5[[#This Row],[GL Account]],21,2)="53","Fringe Benefits",VLOOKUP(RIGHT(Table5[[#This Row],[GL Account]],5),Object,2,FALSE))))&IF(RIGHT(Table5[[#This Row],[GL Account]],5)="29599",IF(MID(A2,4,4)="0000",""," "&MID(A2,4,4))&" - "&LEFT(Table5[[#This Row],[ GL Description]],FIND(" : ",Table5[[#This Row],[ GL Description]])),"") -> 696200 - AS-A/P | M2: =IF(MID(A2,21,1)="2",0,IF(OR(MID(Table5[[#This Row],[GL Account]],14,6)="696520",AND(MID(A2,14,6)="696530",MID(Table5[[#This Row],[GL Account]],21,1)="4")),0,ROUND(SUMIF(Table5[GL Account],Table5[[#This Row],[GL Account]],Table5[Amount])-SUMIFS(Table2[Amount],Table2[Type],"Activity",Table2[Account Number],GLTB!A2),2))) -> 0 | N2: =IF(Table5[[#This Row],[Difference]]=0,"",IF(ISNA(VLOOKUP(Table5[[#This Row],[0]],Table1[],1,FALSE)),"","X")) -> 
A3: 71-0000-1960-696200-29512 | B3: Gen : A/P-Current : AS-A/P : Stdnt Development/Campus Life : Assoc Students | C3: 2021-07-06 | D3: CD | E3: 'MF*0103811' | F3: United Site Services | H3: 137.8 | J3: -137.8 | K3: =IF(MID(Table5[[#This Row],[GL Account]],21,1)="2",MID(Table5[[#This Row],[ GL Description]],FIND(":",Table5[[#This Row],[ GL Description]],1)+2,FIND(":",Table5[[#This Row],[ GL Description]],FIND(":",Table5[[#This Row],[ GL Description]],1)+1)-FIND(":",Table5[[#This Row],[ GL Description]],1)-2),VLOOKUP(VALUE(MID(Table5[[#This Row],[GL Account]],14,6)),PgmList,2,FALSE)) -> A/P-Current | L3: =IF(MID(A3,21,1)="2",MID(A3,14,6)&" - "&MID(B3,FIND(":",B3,FIND(K3,B3,1))+2,FIND(":",B3,FIND(":",B3,FIND(K3,B3,1))+1)-FIND(":",B3,FIND(K3,B3,1))-2),IF(AND(MID(Table5[[#This Row],[GL Account]],14,6)<>"696530",MID(Table5[[#This Row],[GL Account]],14,6)<>"696570"),"",IF(MID(Table5[[#This Row],[GL Account]],21,2)="53","Fringe Benefits",VLOOKUP(RIGHT(Table5[[#This Row],[GL Account]],5),Object,2,FALSE))))&IF(RIGHT(Table5[[#This Row],[GL Account]],5)="29599",IF(MID(A3,4,4)="0000",""," "&MID(A3,4,4))&" - "&LEFT(Table5[[#This Row],[ GL Description]],FIND(" : ",Table5[[#This Row],[ GL Description]])),"") -> 696200 - AS-A/P | M3: =IF(MID(A3,21,1)="2",0,IF(OR(MID(Table5[[#This Row],[GL Account]],14,6)="696520",AND(MID(A3,14,6)="696530",MID(Table5[[#This Row],[GL Account]],21,1)="4")),0,ROUND(SUMIF(Table5[GL Account],Table5[[#This Row],[GL Account]],Table5[Amount])-SUMIFS(Table2[Amount],Table2[Type],"Activity",Table2[Account Number],GLTB!A3),2))) -> 0 | N3: =IF(Table5[[#This Row],[Difference]]=0,"",IF(ISNA(VLOOKUP(Table5[[#This Row],[0]],Table1[],1,FALSE)),"","X")) -> 
A4: 71-0000-1960-696200-29512 | B4: Gen : A/P-Current : AS-A/P : Stdnt Development/Campus Life : Assoc Students | C4: 2021-07-13 | D4: PJ | E4: 'V1269413' | F4: United Site Services | I4: 137.8 | J4: 137.8 | K4: =IF(MID(Table5[[#This Row],[GL Account]],21,1)="2",MID(Table5[[#This Row],[ GL Description]],FIND(":",Table5[[#This Row],[ GL Description]],1)+2,FIND(":",Table5[[#This Row],[ GL Description]],FIND(":",Table5[[#This Row],[ GL Description]],1)+1)-FIND(":",Table5[[#This Row],[ GL Description]],1)-2),VLOOKUP(VALUE(MID(Table5[[#This Row],[GL Account]],14,6)),PgmList,2,FALSE)) -> A/P-Current | L4: =IF(MID(A4,21,1)="2",MID(A4,14,6)&" - "&MID(B4,FIND(":",B4,FIND(K4,B4,1))+2,FIND(":",B4,FIND(":",B4,FIND(K4,B4,1))+1)-FIND(":",B4,FIND(K4,B4,1))-2),IF(AND(MID(Table5[[#This Row],[GL Account]],14,6)<>"696530",MID(Table5[[#This Row],[GL Account]],14,6)<>"696570"),"",IF(MID(Table5[[#This Row],[GL Account]],21,2)="53","Fringe Benefits",VLOOKUP(RIGHT(Table5[[#This Row],[GL Account]],5),Object,2,FALSE))))&IF(RIGHT(Table5[[#This Row],[GL Account]],5)="29599",IF(MID(A4,4,4)="0000",""," "&MID(A4,4,4))&" - "&LEFT(Table5[[#This Row],[ GL Description]],FIND(" : ",Table5[[#This Row],[ GL Description]])),"") -> 696200 - AS-A/P | M4: =IF(MID(A4,21,1)="2",0,IF(OR(MID(Table5[[#This Row],[GL Account]],14,6)="696520",AND(MID(A4,14,6)="696530",MID(Table5[[#This Row],[GL Account]],21,1)="4")),0,ROUND(SUMIF(Table5[GL Account],Table5[[#This Row],[GL Account]],Table5[Amount])-SUMIFS(Table2[Amount],Table2[Type],"Activity",Table2[Account Number],GLTB!A4),2))) -> 0 | N4: =IF(Table5[[#This Row],[Difference]]=0,"",IF(ISNA(VLOOKUP(Table5[[#This Row],[0]],Table1[],1,FALSE)),"","X")) -> 
A5: 71-0000-1960-696200-29512 | B5: Gen : A/P-Current : AS-A/P : Stdnt Development/Campus Life : Assoc Students | C5: 2021-07-14 | D5: PJ | E5: 'V1267220' | F5: Maria Delcarmen De la Cruz | I5: 900 | J5: 900 | K5: =IF(MID(Table5[[#This Row],[GL Account]],21,1)="2",MID(Table5[[#This Row],[ GL Description]],FIND(":",Table5[[#This Row],[ GL Description]],1)+2,FIND(":",Table5[[#This Row],[ GL Description]],FIND(":",Table5[[#This Row],[ GL Description]],1)+1)-FIND(":",Table5[[#This Row],[ GL Description]],1)-2),VLOOKUP(VALUE(MID(Table5[[#This Row],[GL Account]],14,6)),PgmList,2,FALSE)) -> A/P-Current | L5: =IF(MID(A5,21,1)="2",MID(A5,14,6)&" - "&MID(B5,FIND(":",B5,FIND(K5,B5,1))+2,FIND(":",B5,FIND(":",B5,FIND(K5,B5,1))+1)-FIND(":",B5,FIND(K5,B5,1))-2),IF(AND(MID(Table5[[#This Row],[GL Account]],14,6)<>"696530",MID(Table5[[#This Row],[GL Account]],14,6)<>"696570"),"",IF(MID(Table5[[#This Row],[GL Account]],21,2)="53","Fringe Benefits",VLOOKUP(RIGHT(Table5[[#This Row],[GL Account]],5),Object,2,FALSE))))&IF(RIGHT(Table5[[#This Row],[GL Account]],5)="29599",IF(MID(A5,4,4)="0000",""," "&MID(A5,4,4))&" - "&LEFT(Table5[[#This Row],[ GL Description]],FIND(" : ",Table5[[#This Row],[ GL Description]])),"") -> 696200 - AS-A/P | M5: =IF(MID(A5,21,1)="2",0,IF(OR(MID(Table5[[#This Row],[GL Account]],14,6)="696520",AND(MID(A5,14,6)="696530",MID(Table5[[#This Row],[GL Account]],21,1)="4")),0,ROUND(SUMIF(Table5[GL Account],Table5[[#This Row],[GL Account]],Table5[Amount])-SUMIFS(Table2[Amount],Table2[Type],"Activity",Table2[Account Number],GLTB!A5),2))) -> 0 | N5: =IF(Table5[[#This Row],[Difference]]=0,"",IF(ISNA(VLOOKUP(Table5[[#This Row],[0]],Table1[],1,FALSE)),"","X")) -> 
A6: 71-0000-1960-696200-29512 | B6: Gen : A/P-Current : AS-A/P : Stdnt Development/Campus Life : Assoc Students | C6: 2021-07-14 | D6: PJ | E6: 'V1267222' | F6: John I. Griffin, III | I6: 500 | J6: 500 | K6: =IF(MID(Table5[[#This Row],[GL Account]],21,1)="2",MID(Table5[[#This Row],[ GL Description]],FIND(":",Table5[[#This Row],[ GL Description]],1)+2,FIND(":",Table5[[#This Row],[ GL Description]],FIND(":",Table5[[#This Row],[ GL Description]],1)+1)-FIND(":",Table5[[#This Row],[ GL Description]],1)-2),VLOOKUP(VALUE(MID(Table5[[#This Row],[GL Account]],14,6)),PgmList,2,FALSE)) -> A/P-Current | L6: =IF(MID(A6,21,1)="2",MID(A6,14,6)&" - "&MID(B6,FIND(":",B6,FIND(K6,B6,1))+2,FIND(":",B6,FIND(":",B6,FIND(K6,B6,1))+1)-FIND(":",B6,FIND(K6,B6,1))-2),IF(AND(MID(Table5[[#This Row],[GL Account]],14,6)<>"696530",MID(Table5[[#This Row],[GL Account]],14,6)<>"696570"),"",IF(MID(Table5[[#This Row],[GL Account]],21,2)="53","Fringe Benefits",VLOOKUP(RIGHT(Table5[[#This Row],[GL Account]],5),Object,2,FALSE))))&IF(RIGHT(Table5[[#This Row],[GL Account]],5)="29599",IF(MID(A6,4,4)="0000",""," "&MID(A6,4,4))&" - "&LEFT(Table5[[#This Row],[ GL Description]],FIND(" : ",Table5[[#This Row],[ GL Description]])),"") -> 696200 - AS-A/P | M6: =IF(MID(A6,21,1)="2",0,IF(OR(MID(Table5[[#This Row],[GL Account]],14,6)="696520",AND(MID(A6,14,6)="696530",MID(Table5[[#This Row],[GL Account]],21,1)="4")),0,ROUND(SUMIF(Table5[GL Account],Table5[[#This Row],[GL Account]],Table5[Amount])-SUMIFS(Table2[Amount],Table2[Type],"Activity",Table2[Account Number],GLTB!A6),2))) -> 0 | N6: =IF(Table5[[#This Row],[Difference]]=0,"",IF(ISNA(VLOOKUP(Table5[[#This Row],[0]],Table1[],1,FALSE)),"","X")) -> 
A7: 71-0000-1960-696200-29512 | B7: Gen : A/P-Current : AS-A/P : Stdnt Development/Campus Life : Assoc Students | C7: 2021-07-14 | D7: PJ | E7: 'V1267223' | F7: Rebecca A. Tilger | I7: 300 | J7: 300 | K7: =IF(MID(Table5[[#This Row],[GL Account]],21,1)="2",MID(Table5[[#This Row],[ GL Description]],FIND(":",Table5[[#This Row],[ GL Description]],1)+2,FIND(":",Table5[[#This Row],[ GL Description]],FIND(":",Table5[[#This Row],[ GL Description]],1)+1)-FIND(":",Table5[[#This Row],[ GL Description]],1)-2),VLOOKUP(VALUE(MID(Table5[[#This Row],[GL Account]],14,6)),PgmList,2,FALSE)) -> A/P-Current | L7: =IF(MID(A7,21,1)="2",MID(A7,14,6)&" - "&MID(B7,FIND(":",B7,FIND(K7,B7,1))+2,FIND(":",B7,FIND(":",B7,FIND(K7,B7,1))+1)-FIND(":",B7,FIND(K7,B7,1))-2),IF(AND(MID(Table5[[#This Row],[GL Account]],14,6)<>"696530",MID(Table5[[#This Row],[GL Account]],14,6)<>"696570"),"",IF(MID(Table5[[#This Row],[GL Account]],21,2)="53","Fringe Benefits",VLOOKUP(RIGHT(Table5[[#This Row],[GL Account]],5),Object,2,FALSE))))&IF(RIGHT(Table5[[#This Row],[GL Account]],5)="29599",IF(MID(A7,4,4)="0000",""," "&MID(A7,4,4))&" - "&LEFT(Table5[[#This Row],[ GL Description]],FIND(" : ",Table5[[#This Row],[ GL Description]])),"") -> 696200 - AS-A/P | M7: =IF(MID(A7,21,1)="2",0,IF(OR(MID(Table5[[#This Row],[GL Account]],14,6)="696520",AND(MID(A7,14,6)="696530",MID(Table5[[#This Row],[GL Account]],21,1)="4")),0,ROUND(SUMIF(Table5[GL Account],Table5[[#This Row],[GL Account]],Table5[Amount])-SUMIFS(Table2[Amount],Table2[Type],"Activity",Table2[Account Number],GLTB!A7),2))) -> 0 | N7: =IF(Table5[[#This Row],[Difference]]=0,"",IF(ISNA(VLOOKUP(Table5[[#This Row],[0]],Table1[],1,FALSE)),"","X")) -> 
A8: 71-0000-1960-696200-29512 | B8: Gen : A/P-Current : AS-A/P : Stdnt Development/Campus Life : Assoc Students | C8: 2021-07-20 | D8: CD | E8: 'MF*0103812' | F8: Maria Delcarmen De la Cruz | H8: 900 | J8: -900 | K8: =IF(MID(Table5[[#This Row],[GL Account]],21,1)="2",MID(Table5[[#This Row],[ GL Description]],FIND(":",Table5[[#This Row],[ GL Description]],1)+2,FIND(":",Table5[[#This Row],[ GL Description]],FIND(":",Table5[[#This Row],[ GL Description]],1)+1)-FIND(":",Table5[[#This Row],[ GL Description]],1)-2),VLOOKUP(VALUE(MID(Table5[[#This Row],[GL Account]],14,6)),PgmList,2,FALSE)) -> A/P-Current | L8: =IF(MID(A8,21,1)="2",MID(A8,14,6)&" - "&MID(B8,FIND(":",B8,FIND(K8,B8,1))+2,FIND(":",B8,FIND(":",B8,FIND(K8,B8,1))+1)-FIND(":",B8,FIND(K8,B8,1))-2),IF(AND(MID(Table5[[#This Row],[GL Account]],14,6)<>"696530",MID(Table5[[#This Row],[GL Account]],14,6)<>"696570"),"",IF(MID(Table5[[#This Row],[GL Account]],21,2)="53","Fringe Benefits",VLOOKUP(RIGHT(Table5[[#This Row],[GL Account]],5),Object,2,FALSE))))&IF(RIGHT(Table5[[#This Row],[GL Account]],5)="29599",IF(MID(A8,4,4)="0000",""," "&MID(A8,4,4))&" - "&LEFT(Table5[[#This Row],[ GL Description]],FIND(" : ",Table5[[#This Row],[ GL Description]])),"") -> 696200 - AS-A/P | M8: =IF(MID(A8,21,1)="2",0,IF(OR(MID(Table5[[#This Row],[GL Account]],14,6)="696520",AND(MID(A8,14,6)="696530",MID(Table5[[#This Row],[GL Account]],21,1)="4")),0,ROUND(SUMIF(Table5[GL Account],Table5[[#This Row],[GL Account]],Table5[Amount])-SUMIFS(Table2[Amount],Table2[Type],"Activity",Table2[Account Number],GLTB!A8),2))) -> 0 | N8: =IF(Table5[[#This Row],[Difference]]=0,"",IF(ISNA(VLOOKUP(Table5[[#This Row],[0]],Table1[],1,FALSE)),"","X")) -> 
A9: 71-0000-1960-696200-29512 | B9: Gen : A/P-Current : AS-A/P : Stdnt Development/Campus Life : Assoc Students | C9: 2021-07-20 | D9: CD | E9: 'MF*0103813' | F9: John I. Griffin, III | H9: 500 | J9: -500 | K9: =IF(MID(Table5[[#This Row],[GL Account]],21,1)="2",MID(Table5[[#This Row],[ GL Description]],FIND(":",Table5[[#This Row],[ GL Description]],1)+2,FIND(":",Table5[[#This Row],[ GL Description]],FIND(":",Table5[[#This Row],[ GL Description]],1)+1)-FIND(":",Table5[[#This Row],[ GL Description]],1)-2),VLOOKUP(VALUE(MID(Table5[[#This Row],[GL Account]],14,6)),PgmList,2,FALSE)) -> A/P-Current | L9: =IF(MID(A9,21,1)="2",MID(A9,14,6)&" - "&MID(B9,FIND(":",B9,FIND(K9,B9,1))+2,FIND(":",B9,FIND(":",B9,FIND(K9,B9,1))+1)-FIND(":",B9,FIND(K9,B9,1))-2),IF(AND(MID(Table5[[#This Row],[GL Account]],14,6)<>"696530",MID(Table5[[#This Row],[GL Account]],14,6)<>"696570"),"",IF(MID(Table5[[#This Row],[GL Account]],21,2)="53","Fringe Benefits",VLOOKUP(RIGHT(Table5[[#This Row],[GL Account]],5),Object,2,FALSE))))&IF(RIGHT(Table5[[#This Row],[GL Account]],5)="29599",IF(MID(A9,4,4)="0000",""," "&MID(A9,4,4))&" - "&LEFT(Table5[[#This Row],[ GL Description]],FIND(" : ",Table5[[#This Row],[ GL Description]])),"") -> 696200 - AS-A/P | M9: =IF(MID(A9,21,1)="2",0,IF(OR(MID(Table5[[#This Row],[GL Account]],14,6)="696520",AND(MID(A9,14,6)="696530",MID(Table5[[#This Row],[GL Account]],21,1)="4")),0,ROUND(SUMIF(Table5[GL Account],Table5[[#This Row],[GL Account]],Table5[Amount])-SUMIFS(Table2[Amount],Table2[Type],"Activity",Table2[Account Number],GLTB!A9),2))) -> 0 | N9: =IF(Table5[[#This Row],[Difference]]=0,"",IF(ISNA(VLOOKUP(Table5[[#This Row],[0]],Table1[],1,FALSE)),"","X")) -> 
A10: 71-0000-1960-696200-29512 | B10: Gen : A/P-Current : AS-A/P : Stdnt Development/Campus Life : Assoc Students | C10: 2021-07-20 | D10: CD | E10: 'MF*0103814' | F10: Rebecca A. Tilger | H10: 300 | J10: -300 | K10: =IF(MID(Table5[[#This Row],[GL Account]],21,1)="2",MID(Table5[[#This Row],[ GL Description]],FIND(":",Table5[[#This Row],[ GL Description]],1)+2,FIND(":",Table5[[#This Row],[ GL Description]],FIND(":",Table5[[#This Row],[ GL Description]],1)+1)-FIND(":",Table5[[#This Row],[ GL Description]],1)-2),VLOOKUP(VALUE(MID(Table5[[#This Row],[GL Account]],14,6)),PgmList,2,FALSE)) -> A/P-Current | L10: =IF(MID(A10,21,1)="2",MID(A10,14,6)&" - "&MID(B10,FIND(":",B10,FIND(K10,B10,1))+2,FIND(":",B10,FIND(":",B10,FIND(K10,B10,1))+1)-FIND(":",B10,FIND(K10,B10,1))-2),IF(AND(MID(Table5[[#This Row],[GL Account]],14,6)<>"696530",MID(Table5[[#This Row],[GL Account]],14,6)<>"696570"),"",IF(MID(Table5[[#This Row],[GL Account]],21,2)="53","Fringe Benefits",VLOOKUP(RIGHT(Table5[[#This Row],[GL Account]],5),Object,2,FALSE))))&IF(RIGHT(Table5[[#This Row],[GL Account]],5)="29599",IF(MID(A10,4,4)="0000",""," "&MID(A10,4,4))&" - "&LEFT(Table5[[#This Row],[ GL Description]],FIND(" : ",Table5[[#This Row],[ GL Description]])),"") -> 696200 - AS-A/P | M10: =IF(MID(A10,21,1)="2",0,IF(OR(MID(Table5[[#This Row],[GL Account]],14,6)="696520",AND(MID(A10,14,6)="696530",MID(Table5[[#This Row],[GL Account]],21,1)="4")),0,ROUND(SUMIF(Table5[GL Account],Table5[[#This Row],[GL Account]],Table5[Amount])-SUMIFS(Table2[Amount],Table2[Type],"Activity",Table2[Account Number],GLTB!A10),2))) -> 0 | N10: =IF(Table5[[#This Row],[Difference]]=0,"",IF(ISNA(VLOOKUP(Table5[[#This Row],[0]],Table1[],1,FALSE)),"","X")) -> 
A11: 71-0000-1960-696200-29512 | B11: Gen : A/P-Current : AS-A/P : Stdnt Development/Campus Life : Assoc Students | C11: 2021-07-20 | D11: CD | E11: 'MF*0103815' | F11: Winco Foods, Llc | H11: 30078.06 | J11: -30078.06 | K11: =IF(MID(Table5[[#This Row],[GL Account]],21,1)="2",MID(Table5[[#This Row],[ GL Description]],FIND(":",Table5[[#This Row],[ GL Description]],1)+2,FIND(":",Table5[[#This Row],[ GL Description]],FIND(":",Table5[[#This Row],[ GL Description]],1)+1)-FIND(":",Table5[[#This Row],[ GL Description]],1)-2),VLOOKUP(VALUE(MID(Table5[[#This Row],[GL Account]],14,6)),PgmList,2,FALSE)) -> A/P-Current | L11: =IF(MID(A11,21,1)="2",MID(A11,14,6)&" - "&MID(B11,FIND(":",B11,FIND(K11,B11,1))+2,FIND(":",B11,FIND(":",B11,FIND(K11,B11,1))+1)-FIND(":",B11,FIND(K11,B11,1))-2),IF(AND(MID(Table5[[#This Row],[GL Account]],14,6)<>"696530",MID(Table5[[#This Row],[GL Account]],14,6)<>"696570"),"",IF(MID(Table5[[#This Row],[GL Account]],21,2)="53","Fringe Benefits",VLOOKUP(RIGHT(Table5[[#This Row],[GL Account]],5),Object,2,FALSE))))&IF(RIGHT(Table5[[#This Row],[GL Account]],5)="29599",IF(MID(A11,4,4)="0000",""," "&MID(A11,4,4))&" - "&LEFT(Table5[[#This Row],[ GL Description]],FIND(" : ",Table5[[#This Row],[ GL Description]])),"") -> 696200 - AS-A/P | M11: =IF(MID(A11,21,1)="2",0,IF(OR(MID(Table5[[#This Row],[GL Account]],14,6)="696520",AND(MID(A11,14,6)="696530",MID(Table5[[#This Row],[GL Account]],21,1)="4")),0,ROUND(SUMIF(Table5[GL Account],Table5[[#This Row],[GL Account]],Table5[Amount])-SUMIFS(Table2[Amount],Table2[Type],"Activity",Table2[Account Number],GLTB!A11),2))) -> 0 | N11: =IF(Table5[[#This Row],[Difference]]=0,"",IF(ISNA(VLOOKUP(Table5[[#This Row],[0]],Table1[],1,FALSE)),"","X")) -> 
A12: 71-0000-1960-696200-29512 | B12: Gen : A/P-Current : AS-A/P : Stdnt Development/Campus Life : Assoc Students | C12: 2021-08-02 | D12: PJ | E12: 'V1269977' | F12: John I. Griffin, III | I12: 1000 | J12: 1000 | K12: =IF(MID(Table5[[#This Row],[GL Account]],21,1)="2",MID(Table5[[#This Row],[ GL Description]],FIND(":",Table5[[#This Row],[ GL Description]],1)+2,FIND(":",Table5[[#This Row],[ GL Description]],FIND(":",Table5[[#This Row],[ GL Description]],1)+1)-FIND(":",Table5[[#This Row],[ GL Description]],1)-2),VLOOKUP(VALUE(MID(Table5[[#This Row],[GL Account]],14,6)),PgmList,2,FALSE)) -> A/P-Current | L12: =IF(MID(A12,21,1)="2",MID(A12,14,6)&" - "&MID(B12,FIND(":",B12,FIND(K12,B12,1))+2,FIND(":",B12,FIND(":",B12,FIND(K12,B12,1))+1)-FIND(":",B12,FIND(K12,B12,1))-2),IF(AND(MID(Table5[[#This Row],[GL Account]],14,6)<>"696530",MID(Table5[[#This Row],[GL Account]],14,6)<>"696570"),"",IF(MID(Table5[[#This Row],[GL Account]],21,2)="53","Fringe Benefits",VLOOKUP(RIGHT(Table5[[#This Row],[GL Account]],5),Object,2,FALSE))))&IF(RIGHT(Table5[[#This Row],[GL Account]],5)="29599",IF(MID(A12,4,4)="0000",""," "&MID(A12,4,4))&" - "&LEFT(Table5[[#This Row],[ GL Description]],FIND(" : ",Table5[[#This Row],[ GL Description]])),"") -> 696200 - AS-A/P | M12: =IF(MID(A12,21,1)="2",0,IF(OR(MID(Table5[[#This Row],[GL Account]],14,6)="696520",AND(MID(A12,14,6)="696530",MID(Table5[[#This Row],[GL Account]],21,1)="4")),0,ROUND(SUMIF(Table5[GL Account],Table5[[#This Row],[GL Account]],Table5[Amount])-SUMIFS(Table2[Amount],Table2[Type],"Activity",Table2[Account Number],GLTB!A12),2))) -> 0 | N12: =IF(Table5[[#This Row],[Difference]]=0,"",IF(ISNA(VLOOKUP(Table5[[#This Row],[0]],Table1[],1,FALSE)),"","X")) -> 
A13: 71-0000-1960-696200-29512 | B13: Gen : A/P-Current : AS-A/P : Stdnt Development/Campus Life : Assoc Students | C13: 2021-08-10 | D13: PJ | E13: 'V1270672' | F13: United Site Services | I13: 137.8 | J13: 137.8 | K13: =IF(MID(Table5[[#This Row],[GL Account]],21,1)="2",MID(Table5[[#This Row],[ GL Description]],FIND(":",Table5[[#This Row],[ GL Description]],1)+2,FIND(":",Table5[[#This Row],[ GL Description]],FIND(":",Table5[[#This Row],[ GL Description]],1)+1)-FIND(":",Table5[[#This Row],[ GL Description]],1)-2),VLOOKUP(VALUE(MID(Table5[[#This Row],[GL Account]],14,6)),PgmList,2,FALSE)) -> A/P-Current | L13: =IF(MID(A13,21,1)="2",MID(A13,14,6)&" - "&MID(B13,FIND(":",B13,FIND(K13,B13,1))+2,FIND(":",B13,FIND(":",B13,FIND(K13,B13,1))+1)-FIND(":",B13,FIND(K13,B13,1))-2),IF(AND(MID(Table5[[#This Row],[GL Account]],14,6)<>"696530",MID(Table5[[#This Row],[GL Account]],14,6)<>"696570"),"",IF(MID(Table5[[#This Row],[GL Account]],21,2)="53","Fringe Benefits",VLOOKUP(RIGHT(Table5[[#This Row],[GL Account]],5),Object,2,FALSE))))&IF(RIGHT(Table5[[#This Row],[GL Account]],5)="29599",IF(MID(A13,4,4)="0000",""," "&MID(A13,4,4))&" - "&LEFT(Table5[[#This Row],[ GL Description]],FIND(" : ",Table5[[#This Row],[ GL Description]])),"") -> 696200 - AS-A/P | M13: =IF(MID(A13,21,1)="2",0,IF(OR(MID(Table5[[#This Row],[GL Account]],14,6)="696520",AND(MID(A13,14,6)="696530",MID(Table5[[#This Row],[GL Account]],21,1)="4")),0,ROUND(SUMIF(Table5[GL Account],Table5[[#This Row],[GL Account]],Table5[Amount])-SUMIFS(Table2[Amount],Table2[Type],"Activity",Table2[Account Number],GLTB!A13),2))) -> 0 | N13: =IF(Table5[[#This Row],[Difference]]=0,"",IF(ISNA(VLOOKUP(Table5[[#This Row],[0]],Table1[],1,FALSE)),"","X")) -> 
A14: 71-0000-1960-696200-29512 | B14: Gen : A/P-Current : AS-A/P : Stdnt Development/Campus Life : Assoc Students | C14: 2021-08-12 | D14: PJ | E14: 'V1270291' | F14: Cloud 9 Balloon Company | I14: 278.9 | J14: 278.9 | K14: =IF(MID(Table5[[#This Row],[GL Account]],21,1)="2",MID(Table5[[#This Row],[ GL Description]],FIND(":",Table5[[#This Row],[ GL Description]],1)+2,FIND(":",Table5[[#This Row],[ GL Description]],FIND(":",Table5[[#This Row],[ GL Description]],1)+1)-FIND(":",Table5[[#This Row],[ GL Description]],1)-2),VLOOKUP(VALUE(MID(Table5[[#This Row],[GL Account]],14,6)),PgmList,2,FALSE)) -> A/P-Current | L14: =IF(MID(A14,21,1)="2",MID(A14,14,6)&" - "&MID(B14,FIND(":",B14,FIND(K14,B14,1))+2,FIND(":",B14,FIND(":",B14,FIND(K14,B14,1))+1)-FIND(":",B14,FIND(K14,B14,1))-2),IF(AND(MID(Table5[[#This Row],[GL Account]],14,6)<>"696530",MID(Table5[[#This Row],[GL Account]],14,6)<>"696570"),"",IF(MID(Table5[[#This Row],[GL Account]],21,2)="53","Fringe Benefits",VLOOKUP(RIGHT(Table5[[#This Row],[GL Account]],5),Object,2,FALSE))))&IF(RIGHT(Table5[[#This Row],[GL Account]],5)="29599",IF(MID(A14,4,4)="0000",""," "&MID(A14,4,4))&" - "&LEFT(Table5[[#This Row],[ GL Description]],FIND(" : ",Table5[[#This Row],[ GL Description]])),"") -> 696200 - AS-A/P | M14: =IF(MID(A14,21,1)="2",0,IF(OR(MID(Table5[[#This Row],[GL Account]],14,6)="696520",AND(MID(A14,14,6)="696530",MID(Table5[[#This Row],[GL Account]],21,1)="4")),0,ROUND(SUMIF(Table5[GL Account],Table5[[#This Row],[GL Account]],Table5[Amount])-SUMIFS(Table2[Amount],Table2[Type],"Activity",Table2[Account Number],GLTB!A14),2))) -> 0 | N14: =IF(Table5[[#This Row],[Difference]]=0,"",IF(ISNA(VLOOKUP(Table5[[#This Row],[0]],Table1[],1,FALSE)),"","X")) -> 
A15: 71-0000-1960-696200-29512 | B15: Gen : A/P-Current : AS-A/P : Stdnt Development/Campus Life : Assoc Students | C15: 2021-08-17 | D15: CD | E15: 'MF*0103816' | F15: Cloud 9 Balloon Company | H15: 278.9 | J15: -278.9 | K15: =IF(MID(Table5[[#This Row],[GL Account]],21,1)="2",MID(Table5[[#This Row],[ GL Description]],FIND(":",Table5[[#This Row],[ GL Description]],1)+2,FIND(":",Table5[[#This Row],[ GL Description]],FIND(":",Table5[[#This Row],[ GL Description]],1)+1)-FIND(":",Table5[[#This Row],[ GL Description]],1)-2),VLOOKUP(VALUE(MID(Table5[[#This Row],[GL Account]],14,6)),PgmList,2,FALSE)) -> A/P-Current | L15: =IF(MID(A15,21,1)="2",MID(A15,14,6)&" - "&MID(B15,FIND(":",B15,FIND(K15,B15,1))+2,FIND(":",B15,FIND(":",B15,FIND(K15,B15,1))+1)-FIND(":",B15,FIND(K15,B15,1))-2),IF(AND(MID(Table5[[#This Row],[GL Account]],14,6)<>"696530",MID(Table5[[#This Row],[GL Account]],14,6)<>"696570"),"",IF(MID(Table5[[#This Row],[GL Account]],21,2)="53","Fringe Benefits",VLOOKUP(RIGHT(Table5[[#This Row],[GL Account]],5),Object,2,FALSE))))&IF(RIGHT(Table5[[#This Row],[GL Account]],5)="29599",IF(MID(A15,4,4)="0000",""," "&MID(A15,4,4))&" - "&LEFT(Table5[[#This Row],[ GL Description]],FIND(" : ",Table5[[#This Row],[ GL Description]])),"") -> 696200 - AS-A/P | M15: =IF(MID(A15,21,1)="2",0,IF(OR(MID(Table5[[#This Row],[GL Account]],14,6)="696520",AND(MID(A15,14,6)="696530",MID(Table5[[#This Row],[GL Account]],21,1)="4")),0,ROUND(SUMIF(Table5[GL Account],Table5[[#This Row],[GL Account]],Table5[Amount])-SUMIFS(Table2[Amount],Table2[Type],"Activity",Table2[Account Number],GLTB!A15),2))) -> 0 | N15: =IF(Table5[[#This Row],[Difference]]=0,"",IF(ISNA(VLOOKUP(Table5[[#This Row],[0]],Table1[],1,FALSE)),"","X")) -> 
A16: 71-0000-1960-696200-29512 | B16: Gen : A/P-Current : AS-A/P : Stdnt Development/Campus Life : Assoc Students | C16: 2021-08-17 | D16: CD | E16: 'MF*0103817' | F16: John I. Griffin, III | H16: 1000 | J16: -1000 | K16: =IF(MID(Table5[[#This Row],[GL Account]],21,1)="2",MID(Table5[[#This Row],[ GL Description]],FIND(":",Table5[[#This Row],[ GL Description]],1)+2,FIND(":",Table5[[#This Row],[ GL Description]],FIND(":",Table5[[#This Row],[ GL Description]],1)+1)-FIND(":",Table5[[#This Row],[ GL Description]],1)-2),VLOOKUP(VALUE(MID(Table5[[#This Row],[GL Account]],14,6)),PgmList,2,FALSE)) -> A/P-Current | L16: =IF(MID(A16,21,1)="2",MID(A16,14,6)&" - "&MID(B16,FIND(":",B16,FIND(K16,B16,1))+2,FIND(":",B16,FIND(":",B16,FIND(K16,B16,1))+1)-FIND(":",B16,FIND(K16,B16,1))-2),IF(AND(MID(Table5[[#This Row],[GL Account]],14,6)<>"696530",MID(Table5[[#This Row],[GL Account]],14,6)<>"696570"),"",IF(MID(Table5[[#This Row],[GL Account]],21,2)="53","Fringe Benefits",VLOOKUP(RIGHT(Table5[[#This Row],[GL Account]],5),Object,2,FALSE))))&IF(RIGHT(Table5[[#This Row],[GL Account]],5)="29599",IF(MID(A16,4,4)="0000",""," "&MID(A16,4,4))&" - "&LEFT(Table5[[#This Row],[ GL Description]],FIND(" : ",Table5[[#This Row],[ GL Description]])),"") -> 696200 - AS-A/P | M16: =IF(MID(A16,21,1)="2",0,IF(OR(MID(Table5[[#This Row],[GL Account]],14,6)="696520",AND(MID(A16,14,6)="696530",MID(Table5[[#This Row],[GL Account]],21,1)="4")),0,ROUND(SUMIF(Table5[GL Account],Table5[[#This Row],[GL Account]],Table5[Amount])-SUMIFS(Table2[Amount],Table2[Type],"Activity",Table2[Account Number],GLTB!A16),2))) -> 0 | N16: =IF(Table5[[#This Row],[Difference]]=0,"",IF(ISNA(VLOOKUP(Table5[[#This Row],[0]],Table1[],1,FALSE)),"","X")) -> 
A17: 71-0000-1960-696200-29512 | B17: Gen : A/P-Current : AS-A/P : Stdnt Development/Campus Life : Assoc Students | C17: 2021-08-17 | D17: CD | E17: 'MF*0103818' | F17: United Site Services | H17: 137.8 | J17: -137.8 | K17: =IF(MID(Table5[[#This Row],[GL Account]],21,1)="2",MID(Table5[[#This Row],[ GL Description]],FIND(":",Table5[[#This Row],[ GL Description]],1)+2,FIND(":",Table5[[#This Row],[ GL Description]],FIND(":",Table5[[#This Row],[ GL Description]],1)+1)-FIND(":",Table5[[#This Row],[ GL Description]],1)-2),VLOOKUP(VALUE(MID(Table5[[#This Row],[GL Account]],14,6)),PgmList,2,FALSE)) -> A/P-Current | L17: =IF(MID(A17,21,1)="2",MID(A17,14,6)&" - "&MID(B17,FIND(":",B17,FIND(K17,B17,1))+2,FIND(":",B17,FIND(":",B17,FIND(K17,B17,1))+1)-FIND(":",B17,FIND(K17,B17,1))-2),IF(AND(MID(Table5[[#This Row],[GL Account]],14,6)<>"696530",MID(Table5[[#This Row],[GL Account]],14,6)<>"696570"),"",IF(MID(Table5[[#This Row],[GL Account]],21,2)="53","Fringe Benefits",VLOOKUP(RIGHT(Table5[[#This Row],[GL Account]],5),Object,2,FALSE))))&IF(RIGHT(Table5[[#This Row],[GL Account]],5)="29599",IF(MID(A17,4,4)="0000",""," "&MID(A17,4,4))&" - "&LEFT(Table5[[#This Row],[ GL Description]],FIND(" : ",Table5[[#This Row],[ GL Description]])),"") -> 696200 - AS-A/P | M17: =IF(MID(A17,21,1)="2",0,IF(OR(MID(Table5[[#This Row],[GL Account]],14,6)="696520",AND(MID(A17,14,6)="696530",MID(Table5[[#This Row],[GL Account]],21,1)="4")),0,ROUND(SUMIF(Table5[GL Account],Table5[[#This Row],[GL Account]],Table5[Amount])-SUMIFS(Table2[Amount],Table2[Type],"Activity",Table2[Account Number],GLTB!A17),2))) -> 0 | N17: =IF(Table5[[#This Row],[Difference]]=0,"",IF(ISNA(VLOOKUP(Table5[[#This Row],[0]],Table1[],1,FALSE)),"","X")) -> 
A18: 71-0000-1960-696200-29512 | B18: Gen : A/P-Current : AS-A/P : Stdnt Development/Campus Life : Assoc Students | C18: 2021-08-17 | D18: PJ | E18: 'V1270674' | F18: Ward Promotional Marketing | I18: 738.4 | J18: 738.4 | K18: =IF(MID(Table5[[#This Row],[GL Account]],21,1)="2",MID(Table5[[#This Row],[ GL Description]],FIND(":",Table5[[#This Row],[ GL Description]],1)+2,FIND(":",Table5[[#This Row],[ GL Description]],FIND(":",Table5[[#This Row],[ GL Description]],1)+1)-FIND(":",Table5[[#This Row],[ GL Description]],1)-2),VLOOKUP(VALUE(MID(Table5[[#This Row],[GL Account]],14,6)),PgmList,2,FALSE)) -> A/P-Current | L18: =IF(MID(A18,21,1)="2",MID(A18,14,6)&" - "&MID(B18,FIND(":",B18,FIND(K18,B18,1))+2,FIND(":",B18,FIND(":",B18,FIND(K18,B18,1))+1)-FIND(":",B18,FIND(K18,B18,1))-2),IF(AND(MID(Table5[[#This Row],[GL Account]],14,6)<>"696530",MID(Table5[[#This Row],[GL Account]],14,6)<>"696570"),"",IF(MID(Table5[[#This Row],[GL Account]],21,2)="53","Fringe Benefits",VLOOKUP(RIGHT(Table5[[#This Row],[GL Account]],5),Object,2,FALSE))))&IF(RIGHT(Table5[[#This Row],[GL Account]],5)="29599",IF(MID(A18,4,4)="0000",""," "&MID(A18,4,4))&" - "&LEFT(Table5[[#This Row],[ GL Description]],FIND(" : ",Table5[[#This Row],[ GL Description]])),"") -> 696200 - AS-A/P | M18: =IF(MID(A18,21,1)="2",0,IF(OR(MID(Table5[[#This Row],[GL Account]],14,6)="696520",AND(MID(A18,14,6)="696530",MID(Table5[[#This Row],[GL Account]],21,1)="4")),0,ROUND(SUMIF(Table5[GL Account],Table5[[#This Row],[GL Account]],Table5[Amount])-SUMIFS(Table2[Amount],Table2[Type],"Activity",Table2[Account Number],GLTB!A18),2))) -> 0 | N18: =IF(Table5[[#This Row],[Difference]]=0,"",IF(ISNA(VLOOKUP(Table5[[#This Row],[0]],Table1[],1,FALSE)),"","X")) -> 
A19: 71-0000-1960-696200-29515 | B19: Gen : Sales Tax Payable : AS-A/P : Stdnt Development/Campus Life : Assoc Students | C19: 2021-07-20 | D19: JE | E19: 'J044266' | F19: Sales Tax Pymt Q4 20/21 | H19: 874 | J19: -874 | K19: =IF(MID(Table5[[#This Row],[GL Account]],21,1)="2",MID(Table5[[#This Row],[ GL Description]],FIND(":",Table5[[#This Row],[ GL Description]],1)+2,FIND(":",Table5[[#This Row],[ GL Description]],FIND(":",Table5[[#This Row],[ GL Description]],1)+1)-FIND(":",Table5[[#This Row],[ GL Description]],1)-2),VLOOKUP(VALUE(MID(Table5[[#This Row],[GL Account]],14,6)),PgmList,2,FALSE)) -> Sales Tax Payable | L19: =IF(MID(A19,21,1)="2",MID(A19,14,6)&" - "&MID(B19,FIND(":",B19,FIND(K19,B19,1))+2,FIND(":",B19,FIND(":",B19,FIND(K19,B19,1))+1)-FIND(":",B19,FIND(K19,B19,1))-2),IF(AND(MID(Table5[[#This Row],[GL Account]],14,6)<>"696530",MID(Table5[[#This Row],[GL Account]],14,6)<>"696570"),"",IF(MID(Table5[[#This Row],[GL Account]],21,2)="53","Fringe Benefits",VLOOKUP(RIGHT(Table5[[#This Row],[GL Account]],5),Object,2,FALSE))))&IF(RIGHT(Table5[[#This Row],[GL Account]],5)="29599",IF(MID(A19,4,4)="0000",""," "&MID(A19,4,4))&" - "&LEFT(Table5[[#This Row],[ GL Description]],FIND(" : ",Table5[[#This Row],[ GL Description]])),"") -> 696200 - AS-A/P | M19: =IF(MID(A19,21,1)="2",0,IF(OR(MID(Table5[[#This Row],[GL Account]],14,6)="696520",AND(MID(A19,14,6)="696530",MID(Table5[[#This Row],[GL Account]],21,1)="4")),0,ROUND(SUMIF(Table5[GL Account],Table5[[#This Row],[GL Account]],Table5[Amount])-SUMIFS(Table2[Amount],Table2[Type],"Activity",Table2[Account Number],GLTB!A19),2))) -> 0 | N19: =IF(Table5[[#This Row],[Difference]]=0,"",IF(ISNA(VLOOKUP(Table5[[#This Row],[0]],Table1[],1,FALSE)),"","X")) -> 
A20: 71-0000-1960-696206-29519 | B20: Gen : Suspense : AS-A/P-Daily Sales : Stdnt Development/Campus Life : Assoc Students | C20: 2021-07-26 | D20: CR | E20: 'C001441520' | F20: 20/21 JAN-JUNE V1266878 | H20: 0 | I20: 124828.62 | J20: 124828.62 | K20: =IF(MID(Table5[[#This Row],[GL Account]],21,1)="2",MID(Table5[[#This Row],[ GL Description]],FIND(":",Table5[[#This Row],[ GL Description]],1)+2,FIND(":",Table5[[#This Row],[ GL Description]],FIND(":",Table5[[#This Row],[ GL Description]],1)+1)-FIND(":",Table5[[#This Row],[ GL Description]],1)-2),VLOOKUP(VALUE(MID(Table5[[#This Row],[GL Account]],14,6)),PgmList,2,FALSE)) -> Suspense | L20: =IF(MID(A20,21,1)="2",MID(A20,14,6)&" - "&MID(B20,FIND(":",B20,FIND(K20,B20,1))+2,FIND(":",B20,FIND(":",B20,FIND(K20,B20,1))+1)-FIND(":",B20,FIND(K20,B20,1))-2),IF(AND(MID(Table5[[#This Row],[GL Account]],14,6)<>"696530",MID(Table5[[#This Row],[GL Account]],14,6)<>"696570"),"",IF(MID(Table5[[#This Row],[GL Account]],21,2)="53","Fringe Benefits",VLOOKUP(RIGHT(Table5[[#This Row],[GL Account]],5),Object,2,FALSE))))&IF(RIGHT(Table5[[#This Row],[GL Account]],5)="29599",IF(MID(A20,4,4)="0000",""," "&MID(A20,4,4))&" - "&LEFT(Table5[[#This Row],[ GL Description]],FIND(" : ",Table5[[#This Row],[ GL Description]])),"") -> 696206 - AS-A/P-Daily Sales | M20: =IF(MID(A20,21,1)="2",0,IF(OR(MID(Table5[[#This Row],[GL Account]],14,6)="696520",AND(MID(A20,14,6)="696530",MID(Table5[[#This Row],[GL Account]],21,1)="4")),0,ROUND(SUMIF(Table5[GL Account],Table5[[#This Row],[GL Account]],Table5[Amount])-SUMIFS(Table2[Amount],Table2[Type],"Activity",Table2[Account Number],GLTB!A20),2))) -> 0 | N20: =IF(Table5[[#This Row],[Difference]]=0,"",IF(ISNA(VLOOKUP(Table5[[#This Row],[0]],Table1[],1,FALSE)),"","X")) -> 
A21: 71-0000-1960-696206-29519 | B21: Gen : Suspense : AS-A/P-Daily Sales : Stdnt Development/Campus Life : Assoc Students | C21: 2021-07-27 | D21: JE | E21: 'J044299' | F21: Trf to Approp Accts 7/26/21 | H21: 124828.62 | J21: -124828.62 | K21: =IF(MID(Table5[[#This Row],[GL Account]],21,1)="2",MID(Table5[[#This Row],[ GL Description]],FIND(":",Table5[[#This Row],[ GL Description]],1)+2,FIND(":",Table5[[#This Row],[ GL Description]],FIND(":",Table5[[#This Row],[ GL Description]],1)+1)-FIND(":",Table5[[#This Row],[ GL Description]],1)-2),VLOOKUP(VALUE(MID(Table5[[#This Row],[GL Account]],14,6)),PgmList,2,FALSE)) -> Suspense | L21: =IF(MID(A21,21,1)="2",MID(A21,14,6)&" - "&MID(B21,FIND(":",B21,FIND(K21,B21,1))+2,FIND(":",B21,FIND(":",B21,FIND(K21,B21,1))+1)-FIND(":",B21,FIND(K21,B21,1))-2),IF(AND(MID(Table5[[#This Row],[GL Account]],14,6)<>"696530",MID(Table5[[#This Row],[GL Account]],14,6)<>"696570"),"",IF(MID(Table5[[#This Row],[GL Account]],21,2)="53","Fringe Benefits",VLOOKUP(RIGHT(Table5[[#This Row],[GL Account]],5),Object,2,FALSE))))&IF(RIGHT(Table5[[#This Row],[GL Account]],5)="29599",IF(MID(A21,4,4)="0000",""," "&MID(A21,4,4))&" - "&LEFT(Table5[[#This Row],[ GL Description]],FIND(" : ",Table5[[#This Row],[ GL Description]])),"") -> 696206 - AS-A/P-Daily Sales | M21: =IF(MID(A21,21,1)="2",0,IF(OR(MID(Table5[[#This Row],[GL Account]],14,6)="696520",AND(MID(A21,14,6)="696530",MID(Table5[[#This Row],[GL Account]],21,1)="4")),0,ROUND(SUMIF(Table5[GL Account],Table5[[#This Row],[GL Account]],Table5[Amount])-SUMIFS(Table2[Amount],Table2[Type],"Activity",Table2[Account Number],GLTB!A21),2))) -> 0 | N21: =IF(Table5[[#This Row],[Difference]]=0,"",IF(ISNA(VLOOKUP(Table5[[#This Row],[0]],Table1[],1,FALSE)),"","X")) -> 
A22: 71-0000-1960-696206-29519 | B22: Gen : Suspense : AS-A/P-Daily Sales : Stdnt Development/Campus Life : Assoc Students | C22: 2021-08-03 | D22: CR | E22: 'C001442582' | F22: FY 20/21 CARES V1267905 | H22: 0 | I22: 35967 | J22: 35967 | K22: =IF(MID(Table5[[#This Row],[GL Account]],21,1)="2",MID(Table5[[#This Row],[ GL Description]],FIND(":",Table5[[#This Row],[ GL Description]],1)+2,FIND(":",Table5[[#This Row],[ GL Description]],FIND(":",Table5[[#This Row],[ GL Description]],1)+1)-FIND(":",Table5[[#This Row],[ GL Description]],1)-2),VLOOKUP(VALUE(MID(Table5[[#This Row],[GL Account]],14,6)),PgmList,2,FALSE)) -> Suspense | L22: =IF(MID(A22,21,1)="2",MID(A22,14,6)&" - "&MID(B22,FIND(":",B22,FIND(K22,B22,1))+2,FIND(":",B22,FIND(":",B22,FIND(K22,B22,1))+1)-FIND(":",B22,FIND(K22,B22,1))-2),IF(AND(MID(Table5[[#This Row],[GL Account]],14,6)<>"696530",MID(Table5[[#This Row],[GL Account]],14,6)<>"696570"),"",IF(MID(Table5[[#This Row],[GL Account]],21,2)="53","Fringe Benefits",VLOOKUP(RIGHT(Table5[[#This Row],[GL Account]],5),Object,2,FALSE))))&IF(RIGHT(Table5[[#This Row],[GL Account]],5)="29599",IF(MID(A22,4,4)="0000",""," "&MID(A22,4,4))&" - "&LEFT(Table5[[#This Row],[ GL Description]],FIND(" : ",Table5[[#This Row],[ GL Description]])),"") -> 696206 - AS-A/P-Daily Sales | M22: =IF(MID(A22,21,1)="2",0,IF(OR(MID(Table5[[#This Row],[GL Account]],14,6)="696520",AND(MID(A22,14,6)="696530",MID(Table5[[#This Row],[GL Account]],21,1)="4")),0,ROUND(SUMIF(Table5[GL Account],Table5[[#This Row],[GL Account]],Table5[Amount])-SUMIFS(Table2[Amount],Table2[Type],"Activity",Table2[Account Number],GLTB!A22),2))) -> 0 | N22: =IF(Table5[[#This Row],[Difference]]=0,"",IF(ISNA(VLOOKUP(Table5[[#This Row],[0]],Table1[],1,FALSE)),"","X")) -> 
A23: 71-0000-1960-696206-29519 | B23: Gen : Suspense : AS-A/P-Daily Sales : Stdnt Development/Campus Life : Assoc Students | C23: 2021-08-04 | D23: JE | E23: 'J044335' | F23: Trf to Approp Acct 8/3/21 | H23: 35967 | J23: -35967 | K23: =IF(MID(Table5[[#This Row],[GL Account]],21,1)="2",MID(Table5[[#This Row],[ GL Description]],FIND(":",Table5[[#This Row],[ GL Description]],1)+2,FIND(":",Table5[[#This Row],[ GL Description]],FIND(":",Table5[[#This Row],[ GL Description]],1)+1)-FIND(":",Table5[[#This Row],[ GL Description]],1)-2),VLOOKUP(VALUE(MID(Table5[[#This Row],[GL Account]],14,6)),PgmList,2,FALSE)) -> Suspense | L23: =IF(MID(A23,21,1)="2",MID(A23,14,6)&" - "&MID(B23,FIND(":",B23,FIND(K23,B23,1))+2,FIND(":",B23,FIND(":",B23,FIND(K23,B23,1))+1)-FIND(":",B23,FIND(K23,B23,1))-2),IF(AND(MID(Table5[[#This Row],[GL Account]],14,6)<>"696530",MID(Table5[[#This Row],[GL Account]],14,6)<>"696570"),"",IF(MID(Table5[[#This Row],[GL Account]],21,2)="53","Fringe Benefits",VLOOKUP(RIGHT(Table5[[#This Row],[GL Account]],5),Object,2,FALSE))))&IF(RIGHT(Table5[[#This Row],[GL Account]],5)="29599",IF(MID(A23,4,4)="0000",""," "&MID(A23,4,4))&" - "&LEFT(Table5[[#This Row],[ GL Description]],FIND(" : ",Table5[[#This Row],[ GL Description]])),"") -> 696206 - AS-A/P-Daily Sales | M23: =IF(MID(A23,21,1)="2",0,IF(OR(MID(Table5[[#This Row],[GL Account]],14,6)="696520",AND(MID(A23,14,6)="696530",MID(Table5[[#This Row],[GL Account]],21,1)="4")),0,ROUND(SUMIF(Table5[GL Account],Table5[[#This Row],[GL Account]],Table5[Amount])-SUMIFS(Table2[Amount],Table2[Type],"Activity",Table2[Account Number],GLTB!A23),2))) -> 0 | N23: =IF(Table5[[#This Row],[Difference]]=0,"",IF(ISNA(VLOOKUP(Table5[[#This Row],[0]],Table1[],1,FALSE)),"","X")) -> 
A24: 71-0000-1960-696206-29519 | B24: Gen : Suspense : AS-A/P-Daily Sales : Stdnt Development/Campus Life : Assoc Students | C24: 2021-08-16 | D24: CR | E24: 'C001444280' | F24: RTRN CSH ADVANCE/C. DELA CRUZ | H24: 0 | I24: 768.54 | J24: 768.54 | K24: =IF(MID(Table5[[#This Row],[GL Account]],21,1)="2",MID(Table5[[#This Row],[ GL Description]],FIND(":",Table5[[#This Row],[ GL Description]],1)+2,FIND(":",Table5[[#This Row],[ GL Description]],FIND(":",Table5[[#This Row],[ GL Description]],1)+1)-FIND(":",Table5[[#This Row],[ GL Description]],1)-2),VLOOKUP(VALUE(MID(Table5[[#This Row],[GL Account]],14,6)),PgmList,2,FALSE)) -> Suspense | L24: =IF(MID(A24,21,1)="2",MID(A24,14,6)&" - "&MID(B24,FIND(":",B24,FIND(K24,B24,1))+2,FIND(":",B24,FIND(":",B24,FIND(K24,B24,1))+1)-FIND(":",B24,FIND(K24,B24,1))-2),IF(AND(MID(Table5[[#This Row],[GL Account]],14,6)<>"696530",MID(Table5[[#This Row],[GL Account]],14,6)<>"696570"),"",IF(MID(Table5[[#This Row],[GL Account]],21,2)="53","Fringe Benefits",VLOOKUP(RIGHT(Table5[[#This Row],[GL Account]],5),Object,2,FALSE))))&IF(RIGHT(Table5[[#This Row],[GL Account]],5)="29599",IF(MID(A24,4,4)="0000",""," "&MID(A24,4,4))&" - "&LEFT(Table5[[#This Row],[ GL Description]],FIND(" : ",Table5[[#This Row],[ GL Description]])),"") -> 696206 - AS-A/P-Daily Sales | M24: =IF(MID(A24,21,1)="2",0,IF(OR(MID(Table5[[#This Row],[GL Account]],14,6)="696520",AND(MID(A24,14,6)="696530",MID(Table5[[#This Row],[GL Account]],21,1)="4")),0,ROUND(SUMIF(Table5[GL Account],Table5[[#This Row],[GL Account]],Table5[Amount])-SUMIFS(Table2[Amount],Table2[Type],"Activity",Table2[Account Number],GLTB!A24),2))) -> 0 | N24: =IF(Table5[[#This Row],[Difference]]=0,"",IF(ISNA(VLOOKUP(Table5[[#This Row],[0]],Table1[],1,FALSE)),"","X")) -> 
A25: 71-0000-1960-696206-29519 | B25: Gen : Suspense : AS-A/P-Daily Sales : Stdnt Development/Campus Life : Assoc Students | C25: 2021-08-16 | D25: CR | E25: 'C001444276' | F25: RTRN CSH ADVANCE/J. GRIFFIN | H25: 0 | I25: 500 | J25: 500 | K25: =IF(MID(Table5[[#This Row],[GL Account]],21,1)="2",MID(Table5[[#This Row],[ GL Description]],FIND(":",Table5[[#This Row],[ GL Description]],1)+2,FIND(":",Table5[[#This Row],[ GL Description]],FIND(":",Table5[[#This Row],[ GL Description]],1)+1)-FIND(":",Table5[[#This Row],[ GL Description]],1)-2),VLOOKUP(VALUE(MID(Table5[[#This Row],[GL Account]],14,6)),PgmList,2,FALSE)) -> Suspense | L25: =IF(MID(A25,21,1)="2",MID(A25,14,6)&" - "&MID(B25,FIND(":",B25,FIND(K25,B25,1))+2,FIND(":",B25,FIND(":",B25,FIND(K25,B25,1))+1)-FIND(":",B25,FIND(K25,B25,1))-2),IF(AND(MID(Table5[[#This Row],[GL Account]],14,6)<>"696530",MID(Table5[[#This Row],[GL Account]],14,6)<>"696570"),"",IF(MID(Table5[[#This Row],[GL Account]],21,2)="53","Fringe Benefits",VLOOKUP(RIGHT(Table5[[#This Row],[GL Account]],5),Object,2,FALSE))))&IF(RIGHT(Table5[[#This Row],[GL Account]],5)="29599",IF(MID(A25,4,4)="0000",""," "&MID(A25,4,4))&" - "&LEFT(Table5[[#This Row],[ GL Description]],FIND(" : ",Table5[[#This Row],[ GL Description]])),"") -> 696206 - AS-A/P-Daily Sales | M25: =IF(MID(A25,21,1)="2",0,IF(OR(MID(Table5[[#This Row],[GL Account]],14,6)="696520",AND(MID(A25,14,6)="696530",MID(Table5[[#This Row],[GL Account]],21,1)="4")),0,ROUND(SUMIF(Table5[GL Account],Table5[[#This Row],[GL Account]],Table5[Amount])-SUMIFS(Table2[Amount],Table2[Type],"Activity",Table2[Account Number],GLTB!A25),2))) -> 0 | N25: =IF(Table5[[#This Row],[Difference]]=0,"",IF(ISNA(VLOOKUP(Table5[[#This Row],[0]],Table1[],1,FALSE)),"","X")) -> 
A26: 71-0000-1960-696206-29519 | B26: Gen : Suspense : AS-A/P-Daily Sales : Stdnt Development/Campus Life : Assoc Students | C26: 2021-08-16 | D26: CR | E26: 'C001444278' | F26: RTRN CSH ADVANCE/R. TILGER | H26: 0 | I26: 4.89 | J26: 4.89 | K26: =IF(MID(Table5[[#This Row],[GL Account]],21,1)="2",MID(Table5[[#This Row],[ GL Description]],FIND(":",Table5[[#This Row],[ GL Description]],1)+2,FIND(":",Table5[[#This Row],[ GL Description]],FIND(":",Table5[[#This Row],[ GL Description]],1)+1)-FIND(":",Table5[[#This Row],[ GL Description]],1)-2),VLOOKUP(VALUE(MID(Table5[[#This Row],[GL Account]],14,6)),PgmList,2,FALSE)) -> Suspense | L26: =IF(MID(A26,21,1)="2",MID(A26,14,6)&" - "&MID(B26,FIND(":",B26,FIND(K26,B26,1))+2,FIND(":",B26,FIND(":",B26,FIND(K26,B26,1))+1)-FIND(":",B26,FIND(K26,B26,1))-2),IF(AND(MID(Table5[[#This Row],[GL Account]],14,6)<>"696530",MID(Table5[[#This Row],[GL Account]],14,6)<>"696570"),"",IF(MID(Table5[[#This Row],[GL Account]],21,2)="53","Fringe Benefits",VLOOKUP(RIGHT(Table5[[#This Row],[GL Account]],5),Object,2,FALSE))))&IF(RIGHT(Table5[[#This Row],[GL Account]],5)="29599",IF(MID(A26,4,4)="0000",""," "&MID(A26,4,4))&" - "&LEFT(Table5[[#This Row],[ GL Description]],FIND(" : ",Table5[[#This Row],[ GL Description]])),"") -> 696206 - AS-A/P-Daily Sales | M26: =IF(MID(A26,21,1)="2",0,IF(OR(MID(Table5[[#This Row],[GL Account]],14,6)="696520",AND(MID(A26,14,6)="696530",MID(Table5[[#This Row],[GL Account]],21,1)="4")),0,ROUND(SUMIF(Table5[GL Account],Table5[[#This Row],[GL Account]],Table5[Amount])-SUMIFS(Table2[Amount],Table2[Type],"Activity",Table2[Account Number],GLTB!A26),2))) -> 0 | N26: =IF(Table5[[#This Row],[Difference]]=0,"",IF(ISNA(VLOOKUP(Table5[[#This Row],[0]],Table1[],1,FALSE)),"","X")) -> 
A27: 71-0000-1960-696206-29519 | B27: Gen : Suspense : AS-A/P-Daily Sales : Stdnt Development/Campus Life : Assoc Students | C27: 2021-08-17 | D27: JE | E27: 'J044373' | F27: Trf to Approp Accts 8/16/21 | H27: 500 | J27: -500 | K27: =IF(MID(Table5[[#This Row],[GL Account]],21,1)="2",MID(Table5[[#This Row],[ GL Description]],FIND(":",Table5[[#This Row],[ GL Description]],1)+2,FIND(":",Table5[[#This Row],[ GL Description]],FIND(":",Table5[[#This Row],[ GL Description]],1)+1)-FIND(":",Table5[[#This Row],[ GL Description]],1)-2),VLOOKUP(VALUE(MID(Table5[[#This Row],[GL Account]],14,6)),PgmList,2,FALSE)) -> Suspense | L27: =IF(MID(A27,21,1)="2",MID(A27,14,6)&" - "&MID(B27,FIND(":",B27,FIND(K27,B27,1))+2,FIND(":",B27,FIND(":",B27,FIND(K27,B27,1))+1)-FIND(":",B27,FIND(K27,B27,1))-2),IF(AND(MID(Table5[[#This Row],[GL Account]],14,6)<>"696530",MID(Table5[[#This Row],[GL Account]],14,6)<>"696570"),"",IF(MID(Table5[[#This Row],[GL Account]],21,2)="53","Fringe Benefits",VLOOKUP(RIGHT(Table5[[#This Row],[GL Account]],5),Object,2,FALSE))))&IF(RIGHT(Table5[[#This Row],[GL Account]],5)="29599",IF(MID(A27,4,4)="0000",""," "&MID(A27,4,4))&" - "&LEFT(Table5[[#This Row],[ GL Description]],FIND(" : ",Table5[[#This Row],[ GL Description]])),"") -> 696206 - AS-A/P-Daily Sales | M27: =IF(MID(A27,21,1)="2",0,IF(OR(MID(Table5[[#This Row],[GL Account]],14,6)="696520",AND(MID(A27,14,6)="696530",MID(Table5[[#This Row],[GL Account]],21,1)="4")),0,ROUND(SUMIF(Table5[GL Account],Table5[[#This Row],[GL Account]],Table5[Amount])-SUMIFS(Table2[Amount],Table2[Type],"Activity",Table2[Account Number],GLTB!A27),2))) -> 0 | N27: =IF(Table5[[#This Row],[Difference]]=0,"",IF(ISNA(VLOOKUP(Table5[[#This Row],[0]],Table1[],1,FALSE)),"","X")) -> 
A28: 71-0000-1960-696206-29519 | B28: Gen : Suspense : AS-A/P-Daily Sales : Stdnt Development/Campus Life : Assoc Students | C28: 2021-08-17 | D28: JE | E28: 'J044374' | F28: Trf to Approp Accts 8/16/21 | H28: 4.89 | J28: -4.89 | K28: =IF(MID(Table5[[#This Row],[GL Account]],21,1)="2",MID(Table5[[#This Row],[ GL Description]],FIND(":",Table5[[#This Row],[ GL Description]],1)+2,FIND(":",Table5[[#This Row],[ GL Description]],FIND(":",Table5[[#This Row],[ GL Description]],1)+1)-FIND(":",Table5[[#This Row],[ GL Description]],1)-2),VLOOKUP(VALUE(MID(Table5[[#This Row],[GL Account]],14,6)),PgmList,2,FALSE)) -> Suspense | L28: =IF(MID(A28,21,1)="2",MID(A28,14,6)&" - "&MID(B28,FIND(":",B28,FIND(K28,B28,1))+2,FIND(":",B28,FIND(":",B28,FIND(K28,B28,1))+1)-FIND(":",B28,FIND(K28,B28,1))-2),IF(AND(MID(Table5[[#This Row],[GL Account]],14,6)<>"696530",MID(Table5[[#This Row],[GL Account]],14,6)<>"696570"),"",IF(MID(Table5[[#This Row],[GL Account]],21,2)="53","Fringe Benefits",VLOOKUP(RIGHT(Table5[[#This Row],[GL Account]],5),Object,2,FALSE))))&IF(RIGHT(Table5[[#This Row],[GL Account]],5)="29599",IF(MID(A28,4,4)="0000",""," "&MID(A28,4,4))&" - "&LEFT(Table5[[#This Row],[ GL Description]],FIND(" : ",Table5[[#This Row],[ GL Description]])),"") -> 696206 - AS-A/P-Daily Sales | M28: =IF(MID(A28,21,1)="2",0,IF(OR(MID(Table5[[#This Row],[GL Account]],14,6)="696520",AND(MID(A28,14,6)="696530",MID(Table5[[#This Row],[GL Account]],21,1)="4")),0,ROUND(SUMIF(Table5[GL Account],Table5[[#This Row],[GL Account]],Table5[Amount])-SUMIFS(Table2[Amount],Table2[Type],"Activity",Table2[Account Number],GLTB!A28),2))) -> 0 | N28: =IF(Table5[[#This Row],[Difference]]=0,"",IF(ISNA(VLOOKUP(Table5[[#This Row],[0]],Table1[],1,FALSE)),"","X")) -> 
A29: 71-0000-1960-696206-29519 | B29: Gen : Suspense : AS-A/P-Daily Sales : Stdnt Development/Campus Life : Assoc Students | C29: 2021-08-17 | D29: JE | E29: 'J044379' | F29: Trf to Approp Accts 8/16/21 | H29: 768.54 | J29: -768.54 | K29: =IF(MID(Table5[[#This Row],[GL Account]],21,1)="2",MID(Table5[[#This Row],[ GL Description]],FIND(":",Table5[[#This Row],[ GL Description]],1)+2,FIND(":",Table5[[#This Row],[ GL Description]],FIND(":",Table5[[#This Row],[ GL Description]],1)+1)-FIND(":",Table5[[#This Row],[ GL Description]],1)-2),VLOOKUP(VALUE(MID(Table5[[#This Row],[GL Account]],14,6)),PgmList,2,FALSE)) -> Suspense | L29: =IF(MID(A29,21,1)="2",MID(A29,14,6)&" - "&MID(B29,FIND(":",B29,FIND(K29,B29,1))+2,FIND(":",B29,FIND(":",B29,FIND(K29,B29,1))+1)-FIND(":",B29,FIND(K29,B29,1))-2),IF(AND(MID(Table5[[#This Row],[GL Account]],14,6)<>"696530",MID(Table5[[#This Row],[GL Account]],14,6)<>"696570"),"",IF(MID(Table5[[#This Row],[GL Account]],21,2)="53","Fringe Benefits",VLOOKUP(RIGHT(Table5[[#This Row],[GL Account]],5),Object,2,FALSE))))&IF(RIGHT(Table5[[#This Row],[GL Account]],5)="29599",IF(MID(A29,4,4)="0000",""," "&MID(A29,4,4))&" - "&LEFT(Table5[[#This Row],[ GL Description]],FIND(" : ",Table5[[#This Row],[ GL Description]])),"") -> 696206 - AS-A/P-Daily Sales | M29: =IF(MID(A29,21,1)="2",0,IF(OR(MID(Table5[[#This Row],[GL Account]],14,6)="696520",AND(MID(A29,14,6)="696530",MID(Table5[[#This Row],[GL Account]],21,1)="4")),0,ROUND(SUMIF(Table5[GL Account],Table5[[#This Row],[GL Account]],Table5[Amount])-SUMIFS(Table2[Amount],Table2[Type],"Activity",Table2[Account Number],GLTB!A29),2))) -> 0 | N29: =IF(Table5[[#This Row],[Difference]]=0,"",IF(ISNA(VLOOKUP(Table5[[#This Row],[0]],Table1[],1,FALSE)),"","X")) -> 
A30: 71-0000-1960-696503-55669 | B30: Gen : Activ Events : AS-ASMJC Presents : Stdnt Development/Campus Life : Assoc Students | C30: 2021-08-02 | D30: PJ | E30: 'V1269977' | F30: John I. Griffin, III | H30: 1000 | J30: 1000 | K30: =IF(MID(Table5[[#This Row],[GL Account]],21,1)="2",MID(Table5[[#This Row],[ GL Description]],FIND(":",Table5[[#This Row],[ GL Description]],1)+2,FIND(":",Table5[[#This Row],[ GL Description]],FIND(":",Table5[[#This Row],[ GL Description]],1)+1)-FIND(":",Table5[[#This Row],[ GL Description]],1)-2),VLOOKUP(VALUE(MID(Table5[[#This Row],[GL Account]],14,6)),PgmList,2,FALSE)) -> ASMJC Presents | L30: =IF(MID(A30,21,1)="2",MID(A30,14,6)&" - "&MID(B30,FIND(":",B30,FIND(K30,B30,1))+2,FIND(":",B30,FIND(":",B30,FIND(K30,B30,1))+1)-FIND(":",B30,FIND(K30,B30,1))-2),IF(AND(MID(Table5[[#This Row],[GL Account]],14,6)<>"696530",MID(Table5[[#This Row],[GL Account]],14,6)<>"696570"),"",IF(MID(Table5[[#This Row],[GL Account]],21,2)="53","Fringe Benefits",VLOOKUP(RIGHT(Table5[[#This Row],[GL Account]],5),Object,2,FALSE))))&IF(RIGHT(Table5[[#This Row],[GL Account]],5)="29599",IF(MID(A30,4,4)="0000",""," "&MID(A30,4,4))&" - "&LEFT(Table5[[#This Row],[ GL Description]],FIND(" : ",Table5[[#This Row],[ GL Description]])),"") ->  | M30: =IF(MID(A30,21,1)="2",0,IF(OR(MID(Table5[[#This Row],[GL Account]],14,6)="696520",AND(MID(A30,14,6)="696530",MID(Table5[[#This Row],[GL Account]],21,1)="4")),0,ROUND(SUMIF(Table5[GL Account],Table5[[#This Row],[GL Account]],Table5[Amount])-SUMIFS(Table2[Amount],Table2[Type],"Activity",Table2[Account Number],GLTB!A30),2))) -> 0 | N30: =IF(Table5[[#This Row],[Difference]]=0,"",IF(ISNA(VLOOKUP(Table5[[#This Row],[0]],Table1[],1,FALSE)),"","X")) -> 
A31: 71-0000-1960-696503-55669 | B31: Gen : Activ Events : AS-ASMJC Presents : Stdnt Development/Campus Life : Assoc Students | C31: 2021-08-12 | D31: PJ | E31: 'V1270291' | F31: Cloud 9 Balloon Company | H31: 278.9 | J31: 278.9 | K31: =IF(MID(Table5[[#This Row],[GL Account]],21,1)="2",MID(Table5[[#This Row],[ GL Description]],FIND(":",Table5[[#This Row],[ GL Description]],1)+2,FIND(":",Table5[[#This Row],[ GL Description]],FIND(":",Table5[[#This Row],[ GL Description]],1)+1)-FIND(":",Table5[[#This Row],[ GL Description]],1)-2),VLOOKUP(VALUE(MID(Table5[[#This Row],[GL Account]],14,6)),PgmList,2,FALSE)) -> ASMJC Presents | L31: =IF(MID(A31,21,1)="2",MID(A31,14,6)&" - "&MID(B31,FIND(":",B31,FIND(K31,B31,1))+2,FIND(":",B31,FIND(":",B31,FIND(K31,B31,1))+1)-FIND(":",B31,FIND(K31,B31,1))-2),IF(AND(MID(Table5[[#This Row],[GL Account]],14,6)<>"696530",MID(Table5[[#This Row],[GL Account]],14,6)<>"696570"),"",IF(MID(Table5[[#This Row],[GL Account]],21,2)="53","Fringe Benefits",VLOOKUP(RIGHT(Table5[[#This Row],[GL Account]],5),Object,2,FALSE))))&IF(RIGHT(Table5[[#This Row],[GL Account]],5)="29599",IF(MID(A31,4,4)="0000",""," "&MID(A31,4,4))&" - "&LEFT(Table5[[#This Row],[ GL Description]],FIND(" : ",Table5[[#This Row],[ GL Description]])),"") ->  | M31: =IF(MID(A31,21,1)="2",0,IF(OR(MID(Table5[[#This Row],[GL Account]],14,6)="696520",AND(MID(A31,14,6)="696530",MID(Table5[[#This Row],[GL Account]],21,1)="4")),0,ROUND(SUMIF(Table5[GL Account],Table5[[#This Row],[GL Account]],Table5[Amount])-SUMIFS(Table2[Amount],Table2[Type],"Activity",Table2[Account Number],GLTB!A31),2))) -> 0 | N31: =IF(Table5[[#This Row],[Difference]]=0,"",IF(ISNA(VLOOKUP(Table5[[#This Row],[0]],Table1[],1,FALSE)),"","X")) -> 
A32: 71-0000-1960-696503-55669 | B32: Gen : Activ Events : AS-ASMJC Presents : Stdnt Development/Campus Life : Assoc Students | C32: 2021-08-17 | D32: PJ | E32: 'V1270674' | F32: Ward Promotional Marketing | H32: 738.4 | J32: 738.4 | K32: =IF(MID(Table5[[#This Row],[GL Account]],21,1)="2",MID(Table5[[#This Row],[ GL Description]],FIND(":",Table5[[#This Row],[ GL Description]],1)+2,FIND(":",Table5[[#This Row],[ GL Description]],FIND(":",Table5[[#This Row],[ GL Description]],1)+1)-FIND(":",Table5[[#This Row],[ GL Description]],1)-2),VLOOKUP(VALUE(MID(Table5[[#This Row],[GL Account]],14,6)),PgmList,2,FALSE)) -> ASMJC Presents | L32: =IF(MID(A32,21,1)="2",MID(A32,14,6)&" - "&MID(B32,FIND(":",B32,FIND(K32,B32,1))+2,FIND(":",B32,FIND(":",B32,FIND(K32,B32,1))+1)-FIND(":",B32,FIND(K32,B32,1))-2),IF(AND(MID(Table5[[#This Row],[GL Account]],14,6)<>"696530",MID(Table5[[#This Row],[GL Account]],14,6)<>"696570"),"",IF(MID(Table5[[#This Row],[GL Account]],21,2)="53","Fringe Benefits",VLOOKUP(RIGHT(Table5[[#This Row],[GL Account]],5),Object,2,FALSE))))&IF(RIGHT(Table5[[#This Row],[GL Account]],5)="29599",IF(MID(A32,4,4)="0000",""," "&MID(A32,4,4))&" - "&LEFT(Table5[[#This Row],[ GL Description]],FIND(" : ",Table5[[#This Row],[ GL Description]])),"") ->  | M32: =IF(MID(A32,21,1)="2",0,IF(OR(MID(Table5[[#This Row],[GL Account]],14,6)="696520",AND(MID(A32,14,6)="696530",MID(Table5[[#This Row],[GL Account]],21,1)="4")),0,ROUND(SUMIF(Table5[GL Account],Table5[[#This Row],[GL Account]],Table5[Amount])-SUMIFS(Table2[Amount],Table2[Type],"Activity",Table2[Account Number],GLTB!A32),2))) -> 0 | N32: =IF(Table5[[#This Row],[Difference]]=0,"",IF(ISNA(VLOOKUP(Table5[[#This Row],[0]],Table1[],1,FALSE)),"","X")) -> 
A33: 71-0000-1960-696530-48860 | B33: Gen : Int Incm : AS-Oper Activities : Stdnt Development/Campus Life : Assoc Students | C33: 2021-07-31 | D33: JE | E33: 'J044360' | F33: Div Ernd MM July 21 | I33: 1.07 | J33: -1.07 | K33: =IF(MID(Table5[[#This Row],[GL Account]],21,1)="2",MID(Table5[[#This Row],[ GL Description]],FIND(":",Table5[[#This Row],[ GL Description]],1)+2,FIND(":",Table5[[#This Row],[ GL Description]],FIND(":",Table5[[#This Row],[ GL Description]],1)+1)-FIND(":",Table5[[#This Row],[ GL Description]],1)-2),VLOOKUP(VALUE(MID(Table5[[#This Row],[GL Account]],14,6)),PgmList,2,FALSE)) -> Operating Activity | L33: =IF(MID(A33,21,1)="2",MID(A33,14,6)&" - "&MID(B33,FIND(":",B33,FIND(K33,B33,1))+2,FIND(":",B33,FIND(":",B33,FIND(K33,B33,1))+1)-FIND(":",B33,FIND(K33,B33,1))-2),IF(AND(MID(Table5[[#This Row],[GL Account]],14,6)<>"696530",MID(Table5[[#This Row],[GL Account]],14,6)<>"696570"),"",IF(MID(Table5[[#This Row],[GL Account]],21,2)="53","Fringe Benefits",VLOOKUP(RIGHT(Table5[[#This Row],[GL Account]],5),Object,2,FALSE))))&IF(RIGHT(Table5[[#This Row],[GL Account]],5)="29599",IF(MID(A33,4,4)="0000",""," "&MID(A33,4,4))&" - "&LEFT(Table5[[#This Row],[ GL Description]],FIND(" : ",Table5[[#This Row],[ GL Description]])),"") -> Misc Revenue | M33: =IF(MID(A33,21,1)="2",0,IF(OR(MID(Table5[[#This Row],[GL Account]],14,6)="696520",AND(MID(A33,14,6)="696530",MID(Table5[[#This Row],[GL Account]],21,1)="4")),0,ROUND(SUMIF(Table5[GL Account],Table5[[#This Row],[GL Account]],Table5[Amount])-SUMIFS(Table2[Amount],Table2[Type],"Activity",Table2[Account Number],GLTB!A33),2))) -> 0 | N33: =IF(Table5[[#This Row],[Difference]]=0,"",IF(ISNA(VLOOKUP(Table5[[#This Row],[0]],Table1[],1,FALSE)),"","X")) -> 
A34: 71-0000-1960-696530-48885 | B34: Gen : Other Stu Fees & Charges : AS-Oper Activities : Stdnt Development/Campus Life : Assoc Students | C34: 2021-07-01 | D34: IV | E34: '0000040017' | F34: MJC Activity Fee | H34: 0 | I34: 1260 | J34: -1260 | K34: =IF(MID(Table5[[#This Row],[GL Account]],21,1)="2",MID(Table5[[#This Row],[ GL Description]],FIND(":",Table5[[#This Row],[ GL Description]],1)+2,FIND(":",Table5[[#This Row],[ GL Description]],FIND(":",Table5[[#This Row],[ GL Description]],1)+1)-FIND(":",Table5[[#This Row],[ GL Description]],1)-2),VLOOKUP(VALUE(MID(Table5[[#This Row],[GL Account]],14,6)),PgmList,2,FALSE)) -> Operating Activity | L34: =IF(MID(A34,21,1)="2",MID(A34,14,6)&" - "&MID(B34,FIND(":",B34,FIND(K34,B34,1))+2,FIND(":",B34,FIND(":",B34,FIND(K34,B34,1))+1)-FIND(":",B34,FIND(K34,B34,1))-2),IF(AND(MID(Table5[[#This Row],[GL Account]],14,6)<>"696530",MID(Table5[[#This Row],[GL Account]],14,6)<>"696570"),"",IF(MID(Table5[[#This Row],[GL Account]],21,2)="53","Fringe Benefits",VLOOKUP(RIGHT(Table5[[#This Row],[GL Account]],5),Object,2,FALSE))))&IF(RIGHT(Table5[[#This Row],[GL Account]],5)="29599",IF(MID(A34,4,4)="0000",""," "&MID(A34,4,4))&" - "&LEFT(Table5[[#This Row],[ GL Description]],FIND(" : ",Table5[[#This Row],[ GL Description]])),"") -> Misc Revenue | M34: =IF(MID(A34,21,1)="2",0,IF(OR(MID(Table5[[#This Row],[GL Account]],14,6)="696520",AND(MID(A34,14,6)="696530",MID(Table5[[#This Row],[GL Account]],21,1)="4")),0,ROUND(SUMIF(Table5[GL Account],Table5[[#This Row],[GL Account]],Table5[Amount])-SUMIFS(Table2[Amount],Table2[Type],"Activity",Table2[Account Number],GLTB!A34),2))) -> 0 | N34: =IF(Table5[[#This Row],[Difference]]=0,"",IF(ISNA(VLOOKUP(Table5[[#This Row],[0]],Table1[],1,FALSE)),"","X")) -> 
A35: 71-0000-1960-696530-48885 | B35: Gen : Other Stu Fees & Charges : AS-Oper Activities : Stdnt Development/Campus Life : Assoc Students | C35: 2021-07-01 | D35: IV | E35: '0000040018' | F35: MJC Activity Fee | H35: 470 | I35: 0 | J35: 470 | K35: =IF(MID(Table5[[#This Row],[GL Account]],21,1)="2",MID(Table5[[#This Row],[ GL Description]],FIND(":",Table5[[#This Row],[ GL Description]],1)+2,FIND(":",Table5[[#This Row],[ GL Description]],FIND(":",Table5[[#This Row],[ GL Description]],1)+1)-FIND(":",Table5[[#This Row],[ GL Description]],1)-2),VLOOKUP(VALUE(MID(Table5[[#This Row],[GL Account]],14,6)),PgmList,2,FALSE)) -> Operating Activity | L35: =IF(MID(A35,21,1)="2",MID(A35,14,6)&" - "&MID(B35,FIND(":",B35,FIND(K35,B35,1))+2,FIND(":",B35,FIND(":",B35,FIND(K35,B35,1))+1)-FIND(":",B35,FIND(K35,B35,1))-2),IF(AND(MID(Table5[[#This Row],[GL Account]],14,6)<>"696530",MID(Table5[[#This Row],[GL Account]],14,6)<>"696570"),"",IF(MID(Table5[[#This Row],[GL Account]],21,2)="53","Fringe Benefits",VLOOKUP(RIGHT(Table5[[#This Row],[GL Account]],5),Object,2,FALSE))))&IF(RIGHT(Table5[[#This Row],[GL Account]],5)="29599",IF(MID(A35,4,4)="0000",""," "&MID(A35,4,4))&" - "&LEFT(Table5[[#This Row],[ GL Description]],FIND(" : ",Table5[[#This Row],[ GL Description]])),"") -> Misc Revenue | M35: =IF(MID(A35,21,1)="2",0,IF(OR(MID(Table5[[#This Row],[GL Account]],14,6)="696520",AND(MID(A35,14,6)="696530",MID(Table5[[#This Row],[GL Account]],21,1)="4")),0,ROUND(SUMIF(Table5[GL Account],Table5[[#This Row],[GL Account]],Table5[Amount])-SUMIFS(Table2[Amount],Table2[Type],"Activity",Table2[Account Number],GLTB!A35),2))) -> 0 | N35: =IF(Table5[[#This Row],[Difference]]=0,"",IF(ISNA(VLOOKUP(Table5[[#This Row],[0]],Table1[],1,FALSE)),"","X")) -> 
A36: 71-0000-1960-696530-48885 | B36: Gen : Other Stu Fees & Charges : AS-Oper Activities : Stdnt Development/Campus Life : Assoc Students | C36: 2021-07-02 | D36: IV | E36: '0000040022' | F36: MJC Activity Fee | H36: 0 | I36: 580 | J36: -580 | K36: =IF(MID(Table5[[#This Row],[GL Account]],21,1)="2",MID(Table5[[#This Row],[ GL Description]],FIND(":",Table5[[#This Row],[ GL Description]],1)+2,FIND(":",Table5[[#This Row],[ GL Description]],FIND(":",Table5[[#This Row],[ GL Description]],1)+1)-FIND(":",Table5[[#This Row],[ GL Description]],1)-2),VLOOKUP(VALUE(MID(Table5[[#This Row],[GL Account]],14,6)),PgmList,2,FALSE)) -> Operating Activity | L36: =IF(MID(A36,21,1)="2",MID(A36,14,6)&" - "&MID(B36,FIND(":",B36,FIND(K36,B36,1))+2,FIND(":",B36,FIND(":",B36,FIND(K36,B36,1))+1)-FIND(":",B36,FIND(K36,B36,1))-2),IF(AND(MID(Table5[[#This Row],[GL Account]],14,6)<>"696530",MID(Table5[[#This Row],[GL Account]],14,6)<>"696570"),"",IF(MID(Table5[[#This Row],[GL Account]],21,2)="53","Fringe Benefits",VLOOKUP(RIGHT(Table5[[#This Row],[GL Account]],5),Object,2,FALSE))))&IF(RIGHT(Table5[[#This Row],[GL Account]],5)="29599",IF(MID(A36,4,4)="0000",""," "&MID(A36,4,4))&" - "&LEFT(Table5[[#This Row],[ GL Description]],FIND(" : ",Table5[[#This Row],[ GL Description]])),"") -> Misc Revenue | M36: =IF(MID(A36,21,1)="2",0,IF(OR(MID(Table5[[#This Row],[GL Account]],14,6)="696520",AND(MID(A36,14,6)="696530",MID(Table5[[#This Row],[GL Account]],21,1)="4")),0,ROUND(SUMIF(Table5[GL Account],Table5[[#This Row],[GL Account]],Table5[Amount])-SUMIFS(Table2[Amount],Table2[Type],"Activity",Table2[Account Number],GLTB!A36),2))) -> 0 | N36: =IF(Table5[[#This Row],[Difference]]=0,"",IF(ISNA(VLOOKUP(Table5[[#This Row],[0]],Table1[],1,FALSE)),"","X")) -> 
A37: 71-0000-1960-696530-48885 | B37: Gen : Other Stu Fees & Charges : AS-Oper Activities : Stdnt Development/Campus Life : Assoc Students | C37: 2021-07-02 | D37: IV | E37: '0000040024' | F37: MJC Activity Fee | H37: 50 | I37: 0 | J37: 50 | K37: =IF(MID(Table5[[#This Row],[GL Account]],21,1)="2",MID(Table5[[#This Row],[ GL Description]],FIND(":",Table5[[#This Row],[ GL Description]],1)+2,FIND(":",Table5[[#This Row],[ GL Description]],FIND(":",Table5[[#This Row],[ GL Description]],1)+1)-FIND(":",Table5[[#This Row],[ GL Description]],1)-2),VLOOKUP(VALUE(MID(Table5[[#This Row],[GL Account]],14,6)),PgmList,2,FALSE)) -> Operating Activity | L37: =IF(MID(A37,21,1)="2",MID(A37,14,6)&" - "&MID(B37,FIND(":",B37,FIND(K37,B37,1))+2,FIND(":",B37,FIND(":",B37,FIND(K37,B37,1))+1)-FIND(":",B37,FIND(K37,B37,1))-2),IF(AND(MID(Table5[[#This Row],[GL Account]],14,6)<>"696530",MID(Table5[[#This Row],[GL Account]],14,6)<>"696570"),"",IF(MID(Table5[[#This Row],[GL Account]],21,2)="53","Fringe Benefits",VLOOKUP(RIGHT(Table5[[#This Row],[GL Account]],5),Object,2,FALSE))))&IF(RIGHT(Table5[[#This Row],[GL Account]],5)="29599",IF(MID(A37,4,4)="0000",""," "&MID(A37,4,4))&" - "&LEFT(Table5[[#This Row],[ GL Description]],FIND(" : ",Table5[[#This Row],[ GL Description]])),"") -> Misc Revenue | M37: =IF(MID(A37,21,1)="2",0,IF(OR(MID(Table5[[#This Row],[GL Account]],14,6)="696520",AND(MID(A37,14,6)="696530",MID(Table5[[#This Row],[GL Account]],21,1)="4")),0,ROUND(SUMIF(Table5[GL Account],Table5[[#This Row],[GL Account]],Table5[Amount])-SUMIFS(Table2[Amount],Table2[Type],"Activity",Table2[Account Number],GLTB!A37),2))) -> 0 | N37: =IF(Table5[[#This Row],[Difference]]=0,"",IF(ISNA(VLOOKUP(Table5[[#This Row],[0]],Table1[],1,FALSE)),"","X")) -> 
A38: 71-0000-1960-696530-48885 | B38: Gen : Other Stu Fees & Charges : AS-Oper Activities : Stdnt Development/Campus Life : Assoc Students | C38: 2021-07-03 | D38: IV | E38: '0000040027' | F38: MJC Activity Fee | H38: 0 | I38: 390 | J38: -390 | K38: =IF(MID(Table5[[#This Row],[GL Account]],21,1)="2",MID(Table5[[#This Row],[ GL Description]],FIND(":",Table5[[#This Row],[ GL Description]],1)+2,FIND(":",Table5[[#This Row],[ GL Description]],FIND(":",Table5[[#This Row],[ GL Description]],1)+1)-FIND(":",Table5[[#This Row],[ GL Description]],1)-2),VLOOKUP(VALUE(MID(Table5[[#This Row],[GL Account]],14,6)),PgmList,2,FALSE)) -> Operating Activity | L38: =IF(MID(A38,21,1)="2",MID(A38,14,6)&" - "&MID(B38,FIND(":",B38,FIND(K38,B38,1))+2,FIND(":",B38,FIND(":",B38,FIND(K38,B38,1))+1)-FIND(":",B38,FIND(K38,B38,1))-2),IF(AND(MID(Table5[[#This Row],[GL Account]],14,6)<>"696530",MID(Table5[[#This Row],[GL Account]],14,6)<>"696570"),"",IF(MID(Table5[[#This Row],[GL Account]],21,2)="53","Fringe Benefits",VLOOKUP(RIGHT(Table5[[#This Row],[GL Account]],5),Object,2,FALSE))))&IF(RIGHT(Table5[[#This Row],[GL Account]],5)="29599",IF(MID(A38,4,4)="0000",""," "&MID(A38,4,4))&" - "&LEFT(Table5[[#This Row],[ GL Description]],FIND(" : ",Table5[[#This Row],[ GL Description]])),"") -> Misc Revenue | M38: =IF(MID(A38,21,1)="2",0,IF(OR(MID(Table5[[#This Row],[GL Account]],14,6)="696520",AND(MID(A38,14,6)="696530",MID(Table5[[#This Row],[GL Account]],21,1)="4")),0,ROUND(SUMIF(Table5[GL Account],Table5[[#This Row],[GL Account]],Table5[Amount])-SUMIFS(Table2[Amount],Table2[Type],"Activity",Table2[Account Number],GLTB!A38),2))) -> 0 | N38: =IF(Table5[[#This Row],[Difference]]=0,"",IF(ISNA(VLOOKUP(Table5[[#This Row],[0]],Table1[],1,FALSE)),"","X")) -> 
A39: 71-0000-1960-696530-48885 | B39: Gen : Other Stu Fees & Charges : AS-Oper Activities : Stdnt Development/Campus Life : Assoc Students | C39: 2021-07-03 | D39: IV | E39: '0000040029' | F39: MJC Activity Fee | H39: 10 | I39: 0 | J39: 10 | K39: =IF(MID(Table5[[#This Row],[GL Account]],21,1)="2",MID(Table5[[#This Row],[ GL Description]],FIND(":",Table5[[#This Row],[ GL Description]],1)+2,FIND(":",Table5[[#This Row],[ GL Description]],FIND(":",Table5[[#This Row],[ GL Description]],1)+1)-FIND(":",Table5[[#This Row],[ GL Description]],1)-2),VLOOKUP(VALUE(MID(Table5[[#This Row],[GL Account]],14,6)),PgmList,2,FALSE)) -> Operating Activity | L39: =IF(MID(A39,21,1)="2",MID(A39,14,6)&" - "&MID(B39,FIND(":",B39,FIND(K39,B39,1))+2,FIND(":",B39,FIND(":",B39,FIND(K39,B39,1))+1)-FIND(":",B39,FIND(K39,B39,1))-2),IF(AND(MID(Table5[[#This Row],[GL Account]],14,6)<>"696530",MID(Table5[[#This Row],[GL Account]],14,6)<>"696570"),"",IF(MID(Table5[[#This Row],[GL Account]],21,2)="53","Fringe Benefits",VLOOKUP(RIGHT(Table5[[#This Row],[GL Account]],5),Object,2,FALSE))))&IF(RIGHT(Table5[[#This Row],[GL Account]],5)="29599",IF(MID(A39,4,4)="0000",""," "&MID(A39,4,4))&" - "&LEFT(Table5[[#This Row],[ GL Description]],FIND(" : ",Table5[[#This Row],[ GL Description]])),"") -> Misc Revenue | M39: =IF(MID(A39,21,1)="2",0,IF(OR(MID(Table5[[#This Row],[GL Account]],14,6)="696520",AND(MID(A39,14,6)="696530",MID(Table5[[#This Row],[GL Account]],21,1)="4")),0,ROUND(SUMIF(Table5[GL Account],Table5[[#This Row],[GL Account]],Table5[Amount])-SUMIFS(Table2[Amount],Table2[Type],"Activity",Table2[Account Number],GLTB!A39),2))) -> 0 | N39: =IF(Table5[[#This Row],[Difference]]=0,"",IF(ISNA(VLOOKUP(Table5[[#This Row],[0]],Table1[],1,FALSE)),"","X")) -> 
A40: 71-0000-1960-696530-48885 | B40: Gen : Other Stu Fees & Charges : AS-Oper Activities : Stdnt Development/Campus Life : Assoc Students | C40: 2021-07-04 | D40: IV | E40: '0000040034' | F40: MJC Activity Fee | H40: 0 | I40: 30 | J40: -30 | K40: =IF(MID(Table5[[#This Row],[GL Account]],21,1)="2",MID(Table5[[#This Row],[ GL Description]],FIND(":",Table5[[#This Row],[ GL Description]],1)+2,FIND(":",Table5[[#This Row],[ GL Description]],FIND(":",Table5[[#This Row],[ GL Description]],1)+1)-FIND(":",Table5[[#This Row],[ GL Description]],1)-2),VLOOKUP(VALUE(MID(Table5[[#This Row],[GL Account]],14,6)),PgmList,2,FALSE)) -> Operating Activity | L40: =IF(MID(A40,21,1)="2",MID(A40,14,6)&" - "&MID(B40,FIND(":",B40,FIND(K40,B40,1))+2,FIND(":",B40,FIND(":",B40,FIND(K40,B40,1))+1)-FIND(":",B40,FIND(K40,B40,1))-2),IF(AND(MID(Table5[[#This Row],[GL Account]],14,6)<>"696530",MID(Table5[[#This Row],[GL Account]],14,6)<>"696570"),"",IF(MID(Table5[[#This Row],[GL Account]],21,2)="53","Fringe Benefits",VLOOKUP(RIGHT(Table5[[#This Row],[GL Account]],5),Object,2,FALSE))))&IF(RIGHT(Table5[[#This Row],[GL Account]],5)="29599",IF(MID(A40,4,4)="0000",""," "&MID(A40,4,4))&" - "&LEFT(Table5[[#This Row],[ GL Description]],FIND(" : ",Table5[[#This Row],[ GL Description]])),"") -> Misc Revenue | M40: =IF(MID(A40,21,1)="2",0,IF(OR(MID(Table5[[#This Row],[GL Account]],14,6)="696520",AND(MID(A40,14,6)="696530",MID(Table5[[#This Row],[GL Account]],21,1)="4")),0,ROUND(SUMIF(Table5[GL Account],Table5[[#This Row],[GL Account]],Table5[Amount])-SUMIFS(Table2[Amount],Table2[Type],"Activity",Table2[Account Number],GLTB!A40),2))) -> 0 | N40: =IF(Table5[[#This Row],[Difference]]=0,"",IF(ISNA(VLOOKUP(Table5[[#This Row],[0]],Table1[],1,FALSE)),"","X")) -> 
A41: 71-0000-1960-696530-48885 | B41: Gen : Other Stu Fees & Charges : AS-Oper Activities : Stdnt Development/Campus Life : Assoc Students | C41: 2021-07-04 | D41: IV | E41: '0000040032' | F41: MJC Activity Fee | H41: 0 | I41: 240 | J41: -240 | K41: =IF(MID(Table5[[#This Row],[GL Account]],21,1)="2",MID(Table5[[#This Row],[ GL Description]],FIND(":",Table5[[#This Row],[ GL Description]],1)+2,FIND(":",Table5[[#This Row],[ GL Description]],FIND(":",Table5[[#This Row],[ GL Description]],1)+1)-FIND(":",Table5[[#This Row],[ GL Description]],1)-2),VLOOKUP(VALUE(MID(Table5[[#This Row],[GL Account]],14,6)),PgmList,2,FALSE)) -> Operating Activity | L41: =IF(MID(A41,21,1)="2",MID(A41,14,6)&" - "&MID(B41,FIND(":",B41,FIND(K41,B41,1))+2,FIND(":",B41,FIND(":",B41,FIND(K41,B41,1))+1)-FIND(":",B41,FIND(K41,B41,1))-2),IF(AND(MID(Table5[[#This Row],[GL Account]],14,6)<>"696530",MID(Table5[[#This Row],[GL Account]],14,6)<>"696570"),"",IF(MID(Table5[[#This Row],[GL Account]],21,2)="53","Fringe Benefits",VLOOKUP(RIGHT(Table5[[#This Row],[GL Account]],5),Object,2,FALSE))))&IF(RIGHT(Table5[[#This Row],[GL Account]],5)="29599",IF(MID(A41,4,4)="0000",""," "&MID(A41,4,4))&" - "&LEFT(Table5[[#This Row],[ GL Description]],FIND(" : ",Table5[[#This Row],[ GL Description]])),"") -> Misc Revenue | M41: =IF(MID(A41,21,1)="2",0,IF(OR(MID(Table5[[#This Row],[GL Account]],14,6)="696520",AND(MID(A41,14,6)="696530",MID(Table5[[#This Row],[GL Account]],21,1)="4")),0,ROUND(SUMIF(Table5[GL Account],Table5[[#This Row],[GL Account]],Table5[Amount])-SUMIFS(Table2[Amount],Table2[Type],"Activity",Table2[Account Number],GLTB!A41),2))) -> 0 | N41: =IF(Table5[[#This Row],[Difference]]=0,"",IF(ISNA(VLOOKUP(Table5[[#This Row],[0]],Table1[],1,FALSE)),"","X")) -> 
A42: 71-0000-1960-696530-48885 | B42: Gen : Other Stu Fees & Charges : AS-Oper Activities : Stdnt Development/Campus Life : Assoc Students | C42: 2021-07-04 | D42: IV | E42: '0000040033' | F42: MJC Activity Fee | H42: 10 | I42: 0 | J42: 10 | K42: =IF(MID(Table5[[#This Row],[GL Account]],21,1)="2",MID(Table5[[#This Row],[ GL Description]],FIND(":",Table5[[#This Row],[ GL Description]],1)+2,FIND(":",Table5[[#This Row],[ GL Description]],FIND(":",Table5[[#This Row],[ GL Description]],1)+1)-FIND(":",Table5[[#This Row],[ GL Description]],1)-2),VLOOKUP(VALUE(MID(Table5[[#This Row],[GL Account]],14,6)),PgmList,2,FALSE)) -> Operating Activity | L42: =IF(MID(A42,21,1)="2",MID(A42,14,6)&" - "&MID(B42,FIND(":",B42,FIND(K42,B42,1))+2,FIND(":",B42,FIND(":",B42,FIND(K42,B42,1))+1)-FIND(":",B42,FIND(K42,B42,1))-2),IF(AND(MID(Table5[[#This Row],[GL Account]],14,6)<>"696530",MID(Table5[[#This Row],[GL Account]],14,6)<>"696570"),"",IF(MID(Table5[[#This Row],[GL Account]],21,2)="53","Fringe Benefits",VLOOKUP(RIGHT(Table5[[#This Row],[GL Account]],5),Object,2,FALSE))))&IF(RIGHT(Table5[[#This Row],[GL Account]],5)="29599",IF(MID(A42,4,4)="0000",""," "&MID(A42,4,4))&" - "&LEFT(Table5[[#This Row],[ GL Description]],FIND(" : ",Table5[[#This Row],[ GL Description]])),"") -> Misc Revenue | M42: =IF(MID(A42,21,1)="2",0,IF(OR(MID(Table5[[#This Row],[GL Account]],14,6)="696520",AND(MID(A42,14,6)="696530",MID(Table5[[#This Row],[GL Account]],21,1)="4")),0,ROUND(SUMIF(Table5[GL Account],Table5[[#This Row],[GL Account]],Table5[Amount])-SUMIFS(Table2[Amount],Table2[Type],"Activity",Table2[Account Number],GLTB!A42),2))) -> 0 | N42: =IF(Table5[[#This Row],[Difference]]=0,"",IF(ISNA(VLOOKUP(Table5[[#This Row],[0]],Table1[],1,FALSE)),"","X")) -> 
A43: 71-0000-1960-696530-48885 | B43: Gen : Other Stu Fees & Charges : AS-Oper Activities : Stdnt Development/Campus Life : Assoc Students | C43: 2021-07-05 | D43: IV | E43: '0000040037' | F43: MJC Activity Fee | H43: 0 | I43: 510 | J43: -510 | K43: =IF(MID(Table5[[#This Row],[GL Account]],21,1)="2",MID(Table5[[#This Row],[ GL Description]],FIND(":",Table5[[#This Row],[ GL Description]],1)+2,FIND(":",Table5[[#This Row],[ GL Description]],FIND(":",Table5[[#This Row],[ GL Description]],1)+1)-FIND(":",Table5[[#This Row],[ GL Description]],1)-2),VLOOKUP(VALUE(MID(Table5[[#This Row],[GL Account]],14,6)),PgmList,2,FALSE)) -> Operating Activity | L43: =IF(MID(A43,21,1)="2",MID(A43,14,6)&" - "&MID(B43,FIND(":",B43,FIND(K43,B43,1))+2,FIND(":",B43,FIND(":",B43,FIND(K43,B43,1))+1)-FIND(":",B43,FIND(K43,B43,1))-2),IF(AND(MID(Table5[[#This Row],[GL Account]],14,6)<>"696530",MID(Table5[[#This Row],[GL Account]],14,6)<>"696570"),"",IF(MID(Table5[[#This Row],[GL Account]],21,2)="53","Fringe Benefits",VLOOKUP(RIGHT(Table5[[#This Row],[GL Account]],5),Object,2,FALSE))))&IF(RIGHT(Table5[[#This Row],[GL Account]],5)="29599",IF(MID(A43,4,4)="0000",""," "&MID(A43,4,4))&" - "&LEFT(Table5[[#This Row],[ GL Description]],FIND(" : ",Table5[[#This Row],[ GL Description]])),"") -> Misc Revenue | M43: =IF(MID(A43,21,1)="2",0,IF(OR(MID(Table5[[#This Row],[GL Account]],14,6)="696520",AND(MID(A43,14,6)="696530",MID(Table5[[#This Row],[GL Account]],21,1)="4")),0,ROUND(SUMIF(Table5[GL Account],Table5[[#This Row],[GL Account]],Table5[Amount])-SUMIFS(Table2[Amount],Table2[Type],"Activity",Table2[Account Number],GLTB!A43),2))) -> 0 | N43: =IF(Table5[[#This Row],[Difference]]=0,"",IF(ISNA(VLOOKUP(Table5[[#This Row],[0]],Table1[],1,FALSE)),"","X")) -> 
A44: 71-0000-1960-696530-48885 | B44: Gen : Other Stu Fees & Charges : AS-Oper Activities : Stdnt Development/Campus Life : Assoc Students | C44: 2021-07-05 | D44: IV | E44: '0000040038' | F44: MJC Activity Fee | H44: 0 | I44: 10 | J44: -10 | K44: =IF(MID(Table5[[#This Row],[GL Account]],21,1)="2",MID(Table5[[#This Row],[ GL Description]],FIND(":",Table5[[#This Row],[ GL Description]],1)+2,FIND(":",Table5[[#This Row],[ GL Description]],FIND(":",Table5[[#This Row],[ GL Description]],1)+1)-FIND(":",Table5[[#This Row],[ GL Description]],1)-2),VLOOKUP(VALUE(MID(Table5[[#This Row],[GL Account]],14,6)),PgmList,2,FALSE)) -> Operating Activity | L44: =IF(MID(A44,21,1)="2",MID(A44,14,6)&" - "&MID(B44,FIND(":",B44,FIND(K44,B44,1))+2,FIND(":",B44,FIND(":",B44,FIND(K44,B44,1))+1)-FIND(":",B44,FIND(K44,B44,1))-2),IF(AND(MID(Table5[[#This Row],[GL Account]],14,6)<>"696530",MID(Table5[[#This Row],[GL Account]],14,6)<>"696570"),"",IF(MID(Table5[[#This Row],[GL Account]],21,2)="53","Fringe Benefits",VLOOKUP(RIGHT(Table5[[#This Row],[GL Account]],5),Object,2,FALSE))))&IF(RIGHT(Table5[[#This Row],[GL Account]],5)="29599",IF(MID(A44,4,4)="0000",""," "&MID(A44,4,4))&" - "&LEFT(Table5[[#This Row],[ GL Description]],FIND(" : ",Table5[[#This Row],[ GL Description]])),"") -> Misc Revenue | M44: =IF(MID(A44,21,1)="2",0,IF(OR(MID(Table5[[#This Row],[GL Account]],14,6)="696520",AND(MID(A44,14,6)="696530",MID(Table5[[#This Row],[GL Account]],21,1)="4")),0,ROUND(SUMIF(Table5[GL Account],Table5[[#This Row],[GL Account]],Table5[Amount])-SUMIFS(Table2[Amount],Table2[Type],"Activity",Table2[Account Number],GLTB!A44),2))) -> 0 | N44: =IF(Table5[[#This Row],[Difference]]=0,"",IF(ISNA(VLOOKUP(Table5[[#This Row],[0]],Table1[],1,FALSE)),"","X")) -> 
A45: 71-0000-1960-696530-48885 | B45: Gen : Other Stu Fees & Charges : AS-Oper Activities : Stdnt Development/Campus Life : Assoc Students | C45: 2021-07-06 | D45: IV | E45: '0000040044' | F45: MJC Activity Fee | H45: 0 | I45: 1250 | J45: -1250 | K45: =IF(MID(Table5[[#This Row],[GL Account]],21,1)="2",MID(Table5[[#This Row],[ GL Description]],FIND(":",Table5[[#This Row],[ GL Description]],1)+2,FIND(":",Table5[[#This Row],[ GL Description]],FIND(":",Table5[[#This Row],[ GL Description]],1)+1)-FIND(":",Table5[[#This Row],[ GL Description]],1)-2),VLOOKUP(VALUE(MID(Table5[[#This Row],[GL Account]],14,6)),PgmList,2,FALSE)) -> Operating Activity | L45: =IF(MID(A45,21,1)="2",MID(A45,14,6)&" - "&MID(B45,FIND(":",B45,FIND(K45,B45,1))+2,FIND(":",B45,FIND(":",B45,FIND(K45,B45,1))+1)-FIND(":",B45,FIND(K45,B45,1))-2),IF(AND(MID(Table5[[#This Row],[GL Account]],14,6)<>"696530",MID(Table5[[#This Row],[GL Account]],14,6)<>"696570"),"",IF(MID(Table5[[#This Row],[GL Account]],21,2)="53","Fringe Benefits",VLOOKUP(RIGHT(Table5[[#This Row],[GL Account]],5),Object,2,FALSE))))&IF(RIGHT(Table5[[#This Row],[GL Account]],5)="29599",IF(MID(A45,4,4)="0000",""," "&MID(A45,4,4))&" - "&LEFT(Table5[[#This Row],[ GL Description]],FIND(" : ",Table5[[#This Row],[ GL Description]])),"") -> Misc Revenue | M45: =IF(MID(A45,21,1)="2",0,IF(OR(MID(Table5[[#This Row],[GL Account]],14,6)="696520",AND(MID(A45,14,6)="696530",MID(Table5[[#This Row],[GL Account]],21,1)="4")),0,ROUND(SUMIF(Table5[GL Account],Table5[[#This Row],[GL Account]],Table5[Amount])-SUMIFS(Table2[Amount],Table2[Type],"Activity",Table2[Account Number],GLTB!A45),2))) -> 0 | N45: =IF(Table5[[#This Row],[Difference]]=0,"",IF(ISNA(VLOOKUP(Table5[[#This Row],[0]],Table1[],1,FALSE)),"","X")) -> 
A46: 71-0000-1960-696530-48885 | B46: Gen : Other Stu Fees & Charges : AS-Oper Activities : Stdnt Development/Campus Life : Assoc Students | C46: 2021-07-06 | D46: IV | E46: '0000040045' | F46: MJC Activity Fee | H46: 30 | I46: 0 | J46: 30 | K46: =IF(MID(Table5[[#This Row],[GL Account]],21,1)="2",MID(Table5[[#This Row],[ GL Description]],FIND(":",Table5[[#This Row],[ GL Description]],1)+2,FIND(":",Table5[[#This Row],[ GL Description]],FIND(":",Table5[[#This Row],[ GL Description]],1)+1)-FIND(":",Table5[[#This Row],[ GL Description]],1)-2),VLOOKUP(VALUE(MID(Table5[[#This Row],[GL Account]],14,6)),PgmList,2,FALSE)) -> Operating Activity | L46: =IF(MID(A46,21,1)="2",MID(A46,14,6)&" - "&MID(B46,FIND(":",B46,FIND(K46,B46,1))+2,FIND(":",B46,FIND(":",B46,FIND(K46,B46,1))+1)-FIND(":",B46,FIND(K46,B46,1))-2),IF(AND(MID(Table5[[#This Row],[GL Account]],14,6)<>"696530",MID(Table5[[#This Row],[GL Account]],14,6)<>"696570"),"",IF(MID(Table5[[#This Row],[GL Account]],21,2)="53","Fringe Benefits",VLOOKUP(RIGHT(Table5[[#This Row],[GL Account]],5),Object,2,FALSE))))&IF(RIGHT(Table5[[#This Row],[GL Account]],5)="29599",IF(MID(A46,4,4)="0000",""," "&MID(A46,4,4))&" - "&LEFT(Table5[[#This Row],[ GL Description]],FIND(" : ",Table5[[#This Row],[ GL Description]])),"") -> Misc Revenue | M46: =IF(MID(A46,21,1)="2",0,IF(OR(MID(Table5[[#This Row],[GL Account]],14,6)="696520",AND(MID(A46,14,6)="696530",MID(Table5[[#This Row],[GL Account]],21,1)="4")),0,ROUND(SUMIF(Table5[GL Account],Table5[[#This Row],[GL Account]],Table5[Amount])-SUMIFS(Table2[Amount],Table2[Type],"Activity",Table2[Account Number],GLTB!A46),2))) -> 0 | N46: =IF(Table5[[#This Row],[Difference]]=0,"",IF(ISNA(VLOOKUP(Table5[[#This Row],[0]],Table1[],1,FALSE)),"","X")) -> 
A47: 71-0000-1960-696530-48885 | B47: Gen : Other Stu Fees & Charges : AS-Oper Activities : Stdnt Development/Campus Life : Assoc Students | C47: 2021-07-07 | D47: IV | E47: '0000040049' | F47: MJC Activity Fee | H47: 0 | I47: 1100 | J47: -1100 | K47: =IF(MID(Table5[[#This Row],[GL Account]],21,1)="2",MID(Table5[[#This Row],[ GL Description]],FIND(":",Table5[[#This Row],[ GL Description]],1)+2,FIND(":",Table5[[#This Row],[ GL Description]],FIND(":",Table5[[#This Row],[ GL Description]],1)+1)-FIND(":",Table5[[#This Row],[ GL Description]],1)-2),VLOOKUP(VALUE(MID(Table5[[#This Row],[GL Account]],14,6)),PgmList,2,FALSE)) -> Operating Activity | L47: =IF(MID(A47,21,1)="2",MID(A47,14,6)&" - "&MID(B47,FIND(":",B47,FIND(K47,B47,1))+2,FIND(":",B47,FIND(":",B47,FIND(K47,B47,1))+1)-FIND(":",B47,FIND(K47,B47,1))-2),IF(AND(MID(Table5[[#This Row],[GL Account]],14,6)<>"696530",MID(Table5[[#This Row],[GL Account]],14,6)<>"696570"),"",IF(MID(Table5[[#This Row],[GL Account]],21,2)="53","Fringe Benefits",VLOOKUP(RIGHT(Table5[[#This Row],[GL Account]],5),Object,2,FALSE))))&IF(RIGHT(Table5[[#This Row],[GL Account]],5)="29599",IF(MID(A47,4,4)="0000",""," "&MID(A47,4,4))&" - "&LEFT(Table5[[#This Row],[ GL Description]],FIND(" : ",Table5[[#This Row],[ GL Description]])),"") -> Misc Revenue | M47: =IF(MID(A47,21,1)="2",0,IF(OR(MID(Table5[[#This Row],[GL Account]],14,6)="696520",AND(MID(A47,14,6)="696530",MID(Table5[[#This Row],[GL Account]],21,1)="4")),0,ROUND(SUMIF(Table5[GL Account],Table5[[#This Row],[GL Account]],Table5[Amount])-SUMIFS(Table2[Amount],Table2[Type],"Activity",Table2[Account Number],GLTB!A47),2))) -> 0 | N47: =IF(Table5[[#This Row],[Difference]]=0,"",IF(ISNA(VLOOKUP(Table5[[#This Row],[0]],Table1[],1,FALSE)),"","X")) -> 
A48: 71-0000-1960-696530-48885 | B48: Gen : Other Stu Fees & Charges : AS-Oper Activities : Stdnt Development/Campus Life : Assoc Students | C48: 2021-07-08 | D48: IV | E48: '0000040055' | F48: MJC Activity Fee | H48: 0 | I48: 1070 | J48: -1070 | K48: =IF(MID(Table5[[#This Row],[GL Account]],21,1)="2",MID(Table5[[#This Row],[ GL Description]],FIND(":",Table5[[#This Row],[ GL Description]],1)+2,FIND(":",Table5[[#This Row],[ GL Description]],FIND(":",Table5[[#This Row],[ GL Description]],1)+1)-FIND(":",Table5[[#This Row],[ GL Description]],1)-2),VLOOKUP(VALUE(MID(Table5[[#This Row],[GL Account]],14,6)),PgmList,2,FALSE)) -> Operating Activity | L48: =IF(MID(A48,21,1)="2",MID(A48,14,6)&" - "&MID(B48,FIND(":",B48,FIND(K48,B48,1))+2,FIND(":",B48,FIND(":",B48,FIND(K48,B48,1))+1)-FIND(":",B48,FIND(K48,B48,1))-2),IF(AND(MID(Table5[[#This Row],[GL Account]],14,6)<>"696530",MID(Table5[[#This Row],[GL Account]],14,6)<>"696570"),"",IF(MID(Table5[[#This Row],[GL Account]],21,2)="53","Fringe Benefits",VLOOKUP(RIGHT(Table5[[#This Row],[GL Account]],5),Object,2,FALSE))))&IF(RIGHT(Table5[[#This Row],[GL Account]],5)="29599",IF(MID(A48,4,4)="0000",""," "&MID(A48,4,4))&" - "&LEFT(Table5[[#This Row],[ GL Description]],FIND(" : ",Table5[[#This Row],[ GL Description]])),"") -> Misc Revenue | M48: =IF(MID(A48,21,1)="2",0,IF(OR(MID(Table5[[#This Row],[GL Account]],14,6)="696520",AND(MID(A48,14,6)="696530",MID(Table5[[#This Row],[GL Account]],21,1)="4")),0,ROUND(SUMIF(Table5[GL Account],Table5[[#This Row],[GL Account]],Table5[Amount])-SUMIFS(Table2[Amount],Table2[Type],"Activity",Table2[Account Number],GLTB!A48),2))) -> 0 | N48: =IF(Table5[[#This Row],[Difference]]=0,"",IF(ISNA(VLOOKUP(Table5[[#This Row],[0]],Table1[],1,FALSE)),"","X")) -> 
A49: 71-0000-1960-696530-48885 | B49: Gen : Other Stu Fees & Charges : AS-Oper Activities : Stdnt Development/Campus Life : Assoc Students | C49: 2021-07-08 | D49: IV | E49: '0000040056' | F49: MJC Activity Fee | H49: 0 | I49: 10 | J49: -10 | K49: =IF(MID(Table5[[#This Row],[GL Account]],21,1)="2",MID(Table5[[#This Row],[ GL Description]],FIND(":",Table5[[#This Row],[ GL Description]],1)+2,FIND(":",Table5[[#This Row],[ GL Description]],FIND(":",Table5[[#This Row],[ GL Description]],1)+1)-FIND(":",Table5[[#This Row],[ GL Description]],1)-2),VLOOKUP(VALUE(MID(Table5[[#This Row],[GL Account]],14,6)),PgmList,2,FALSE)) -> Operating Activity | L49: =IF(MID(A49,21,1)="2",MID(A49,14,6)&" - "&MID(B49,FIND(":",B49,FIND(K49,B49,1))+2,FIND(":",B49,FIND(":",B49,FIND(K49,B49,1))+1)-FIND(":",B49,FIND(K49,B49,1))-2),IF(AND(MID(Table5[[#This Row],[GL Account]],14,6)<>"696530",MID(Table5[[#This Row],[GL Account]],14,6)<>"696570"),"",IF(MID(Table5[[#This Row],[GL Account]],21,2)="53","Fringe Benefits",VLOOKUP(RIGHT(Table5[[#This Row],[GL Account]],5),Object,2,FALSE))))&IF(RIGHT(Table5[[#This Row],[GL Account]],5)="29599",IF(MID(A49,4,4)="0000",""," "&MID(A49,4,4))&" - "&LEFT(Table5[[#This Row],[ GL Description]],FIND(" : ",Table5[[#This Row],[ GL Description]])),"") -> Misc Revenue | M49: =IF(MID(A49,21,1)="2",0,IF(OR(MID(Table5[[#This Row],[GL Account]],14,6)="696520",AND(MID(A49,14,6)="696530",MID(Table5[[#This Row],[GL Account]],21,1)="4")),0,ROUND(SUMIF(Table5[GL Account],Table5[[#This Row],[GL Account]],Table5[Amount])-SUMIFS(Table2[Amount],Table2[Type],"Activity",Table2[Account Number],GLTB!A49),2))) -> 0 | N49: =IF(Table5[[#This Row],[Difference]]=0,"",IF(ISNA(VLOOKUP(Table5[[#This Row],[0]],Table1[],1,FALSE)),"","X")) -> 
A50: 71-0000-1960-696530-48885 | B50: Gen : Other Stu Fees & Charges : AS-Oper Activities : Stdnt Development/Campus Life : Assoc Students | C50: 2021-07-09 | D50: IV | E50: '0000040059' | F50: MJC Activity Fee | H50: 0 | I50: 640 | J50: -640 | K50: =IF(MID(Table5[[#This Row],[GL Account]],21,1)="2",MID(Table5[[#This Row],[ GL Description]],FIND(":",Table5[[#This Row],[ GL Description]],1)+2,FIND(":",Table5[[#This Row],[ GL Description]],FIND(":",Table5[[#This Row],[ GL Description]],1)+1)-FIND(":",Table5[[#This Row],[ GL Description]],1)-2),VLOOKUP(VALUE(MID(Table5[[#This Row],[GL Account]],14,6)),PgmList,2,FALSE)) -> Operating Activity | L50: =IF(MID(A50,21,1)="2",MID(A50,14,6)&" - "&MID(B50,FIND(":",B50,FIND(K50,B50,1))+2,FIND(":",B50,FIND(":",B50,FIND(K50,B50,1))+1)-FIND(":",B50,FIND(K50,B50,1))-2),IF(AND(MID(Table5[[#This Row],[GL Account]],14,6)<>"696530",MID(Table5[[#This Row],[GL Account]],14,6)<>"696570"),"",IF(MID(Table5[[#This Row],[GL Account]],21,2)="53","Fringe Benefits",VLOOKUP(RIGHT(Table5[[#This Row],[GL Account]],5),Object,2,FALSE))))&IF(RIGHT(Table5[[#This Row],[GL Account]],5)="29599",IF(MID(A50,4,4)="0000",""," "&MID(A50,4,4))&" - "&LEFT(Table5[[#This Row],[ GL Description]],FIND(" : ",Table5[[#This Row],[ GL Description]])),"") -> Misc Revenue | M50: =IF(MID(A50,21,1)="2",0,IF(OR(MID(Table5[[#This Row],[GL Account]],14,6)="696520",AND(MID(A50,14,6)="696530",MID(Table5[[#This Row],[GL Account]],21,1)="4")),0,ROUND(SUMIF(Table5[GL Account],Table5[[#This Row],[GL Account]],Table5[Amount])-SUMIFS(Table2[Amount],Table2[Type],"Activity",Table2[Account Number],GLTB!A50),2))) -> 0 | N50: =IF(Table5[[#This Row],[Difference]]=0,"",IF(ISNA(VLOOKUP(Table5[[#This Row],[0]],Table1[],1,FALSE)),"","X")) -> 
A51: 71-0000-1960-696530-48885 | B51: Gen : Other Stu Fees & Charges : AS-Oper Activities : Stdnt Development/Campus Life : Assoc Students | C51: 2021-07-10 | D51: IV | E51: '0000040063' | F51: MJC Activity Fee | H51: 0 | I51: 300 | J51: -300 | K51: =IF(MID(Table5[[#This Row],[GL Account]],21,1)="2",MID(Table5[[#This Row],[ GL Description]],FIND(":",Table5[[#This Row],[ GL Description]],1)+2,FIND(":",Table5[[#This Row],[ GL Description]],FIND(":",Table5[[#This Row],[ GL Description]],1)+1)-FIND(":",Table5[[#This Row],[ GL Description]],1)-2),VLOOKUP(VALUE(MID(Table5[[#This Row],[GL Account]],14,6)),PgmList,2,FALSE)) -> Operating Activity | L51: =IF(MID(A51,21,1)="2",MID(A51,14,6)&" - "&MID(B51,FIND(":",B51,FIND(K51,B51,1))+2,FIND(":",B51,FIND(":",B51,FIND(K51,B51,1))+1)-FIND(":",B51,FIND(K51,B51,1))-2),IF(AND(MID(Table5[[#This Row],[GL Account]],14,6)<>"696530",MID(Table5[[#This Row],[GL Account]],14,6)<>"696570"),"",IF(MID(Table5[[#This Row],[GL Account]],21,2)="53","Fringe Benefits",VLOOKUP(RIGHT(Table5[[#This Row],[GL Account]],5),Object,2,FALSE))))&IF(RIGHT(Table5[[#This Row],[GL Account]],5)="29599",IF(MID(A51,4,4)="0000",""," "&MID(A51,4,4))&" - "&LEFT(Table5[[#This Row],[ GL Description]],FIND(" : ",Table5[[#This Row],[ GL Description]])),"") -> Misc Revenue | M51: =IF(MID(A51,21,1)="2",0,IF(OR(MID(Table5[[#This Row],[GL Account]],14,6)="696520",AND(MID(A51,14,6)="696530",MID(Table5[[#This Row],[GL Account]],21,1)="4")),0,ROUND(SUMIF(Table5[GL Account],Table5[[#This Row],[GL Account]],Table5[Amount])-SUMIFS(Table2[Amount],Table2[Type],"Activity",Table2[Account Number],GLTB!A51),2))) -> 0 | N51: =IF(Table5[[#This Row],[Difference]]=0,"",IF(ISNA(VLOOKUP(Table5[[#This Row],[0]],Table1[],1,FALSE)),"","X")) -> 
A52: 71-0000-1960-696530-48885 | B52: Gen : Other Stu Fees & Charges : AS-Oper Activities : Stdnt Development/Campus Life : Assoc Students | C52: 2021-07-10 | D52: IV | E52: '0000040064' | F52: MJC Activity Fee | H52: 20 | I52: 0 | J52: 20 | K52: =IF(MID(Table5[[#This Row],[GL Account]],21,1)="2",MID(Table5[[#This Row],[ GL Description]],FIND(":",Table5[[#This Row],[ GL Description]],1)+2,FIND(":",Table5[[#This Row],[ GL Description]],FIND(":",Table5[[#This Row],[ GL Description]],1)+1)-FIND(":",Table5[[#This Row],[ GL Description]],1)-2),VLOOKUP(VALUE(MID(Table5[[#This Row],[GL Account]],14,6)),PgmList,2,FALSE)) -> Operating Activity | L52: =IF(MID(A52,21,1)="2",MID(A52,14,6)&" - "&MID(B52,FIND(":",B52,FIND(K52,B52,1))+2,FIND(":",B52,FIND(":",B52,FIND(K52,B52,1))+1)-FIND(":",B52,FIND(K52,B52,1))-2),IF(AND(MID(Table5[[#This Row],[GL Account]],14,6)<>"696530",MID(Table5[[#This Row],[GL Account]],14,6)<>"696570"),"",IF(MID(Table5[[#This Row],[GL Account]],21,2)="53","Fringe Benefits",VLOOKUP(RIGHT(Table5[[#This Row],[GL Account]],5),Object,2,FALSE))))&IF(RIGHT(Table5[[#This Row],[GL Account]],5)="29599",IF(MID(A52,4,4)="0000",""," "&MID(A52,4,4))&" - "&LEFT(Table5[[#This Row],[ GL Description]],FIND(" : ",Table5[[#This Row],[ GL Description]])),"") -> Misc Revenue | M52: =IF(MID(A52,21,1)="2",0,IF(OR(MID(Table5[[#This Row],[GL Account]],14,6)="696520",AND(MID(A52,14,6)="696530",MID(Table5[[#This Row],[GL Account]],21,1)="4")),0,ROUND(SUMIF(Table5[GL Account],Table5[[#This Row],[GL Account]],Table5[Amount])-SUMIFS(Table2[Amount],Table2[Type],"Activity",Table2[Account Number],GLTB!A52),2))) -> 0 | N52: =IF(Table5[[#This Row],[Difference]]=0,"",IF(ISNA(VLOOKUP(Table5[[#This Row],[0]],Table1[],1,FALSE)),"","X")) -> 
A53: 71-0000-1960-696530-48885 | B53: Gen : Other Stu Fees & Charges : AS-Oper Activities : Stdnt Development/Campus Life : Assoc Students | C53: 2021-07-11 | D53: IV | E53: '0000040067' | F53: MJC Activity Fee | H53: 0 | I53: 470 | J53: -470 | K53: =IF(MID(Table5[[#This Row],[GL Account]],21,1)="2",MID(Table5[[#This Row],[ GL Description]],FIND(":",Table5[[#This Row],[ GL Description]],1)+2,FIND(":",Table5[[#This Row],[ GL Description]],FIND(":",Table5[[#This Row],[ GL Description]],1)+1)-FIND(":",Table5[[#This Row],[ GL Description]],1)-2),VLOOKUP(VALUE(MID(Table5[[#This Row],[GL Account]],14,6)),PgmList,2,FALSE)) -> Operating Activity | L53: =IF(MID(A53,21,1)="2",MID(A53,14,6)&" - "&MID(B53,FIND(":",B53,FIND(K53,B53,1))+2,FIND(":",B53,FIND(":",B53,FIND(K53,B53,1))+1)-FIND(":",B53,FIND(K53,B53,1))-2),IF(AND(MID(Table5[[#This Row],[GL Account]],14,6)<>"696530",MID(Table5[[#This Row],[GL Account]],14,6)<>"696570"),"",IF(MID(Table5[[#This Row],[GL Account]],21,2)="53","Fringe Benefits",VLOOKUP(RIGHT(Table5[[#This Row],[GL Account]],5),Object,2,FALSE))))&IF(RIGHT(Table5[[#This Row],[GL Account]],5)="29599",IF(MID(A53,4,4)="0000",""," "&MID(A53,4,4))&" - "&LEFT(Table5[[#This Row],[ GL Description]],FIND(" : ",Table5[[#This Row],[ GL Description]])),"") -> Misc Revenue | M53: =IF(MID(A53,21,1)="2",0,IF(OR(MID(Table5[[#This Row],[GL Account]],14,6)="696520",AND(MID(A53,14,6)="696530",MID(Table5[[#This Row],[GL Account]],21,1)="4")),0,ROUND(SUMIF(Table5[GL Account],Table5[[#This Row],[GL Account]],Table5[Amount])-SUMIFS(Table2[Amount],Table2[Type],"Activity",Table2[Account Number],GLTB!A53),2))) -> 0 | N53: =IF(Table5[[#This Row],[Difference]]=0,"",IF(ISNA(VLOOKUP(Table5[[#This Row],[0]],Table1[],1,FALSE)),"","X")) -> 
A54: 71-0000-1960-696530-48885 | B54: Gen : Other Stu Fees & Charges : AS-Oper Activities : Stdnt Development/Campus Life : Assoc Students | C54: 2021-07-11 | D54: IV | E54: '0000040068' | F54: MJC Activity Fee | H54: 10 | I54: 0 | J54: 10 | K54: =IF(MID(Table5[[#This Row],[GL Account]],21,1)="2",MID(Table5[[#This Row],[ GL Description]],FIND(":",Table5[[#This Row],[ GL Description]],1)+2,FIND(":",Table5[[#This Row],[ GL Description]],FIND(":",Table5[[#This Row],[ GL Description]],1)+1)-FIND(":",Table5[[#This Row],[ GL Description]],1)-2),VLOOKUP(VALUE(MID(Table5[[#This Row],[GL Account]],14,6)),PgmList,2,FALSE)) -> Operating Activity | L54: =IF(MID(A54,21,1)="2",MID(A54,14,6)&" - "&MID(B54,FIND(":",B54,FIND(K54,B54,1))+2,FIND(":",B54,FIND(":",B54,FIND(K54,B54,1))+1)-FIND(":",B54,FIND(K54,B54,1))-2),IF(AND(MID(Table5[[#This Row],[GL Account]],14,6)<>"696530",MID(Table5[[#This Row],[GL Account]],14,6)<>"696570"),"",IF(MID(Table5[[#This Row],[GL Account]],21,2)="53","Fringe Benefits",VLOOKUP(RIGHT(Table5[[#This Row],[GL Account]],5),Object,2,FALSE))))&IF(RIGHT(Table5[[#This Row],[GL Account]],5)="29599",IF(MID(A54,4,4)="0000",""," "&MID(A54,4,4))&" - "&LEFT(Table5[[#This Row],[ GL Description]],FIND(" : ",Table5[[#This Row],[ GL Description]])),"") -> Misc Revenue | M54: =IF(MID(A54,21,1)="2",0,IF(OR(MID(Table5[[#This Row],[GL Account]],14,6)="696520",AND(MID(A54,14,6)="696530",MID(Table5[[#This Row],[GL Account]],21,1)="4")),0,ROUND(SUMIF(Table5[GL Account],Table5[[#This Row],[GL Account]],Table5[Amount])-SUMIFS(Table2[Amount],Table2[Type],"Activity",Table2[Account Number],GLTB!A54),2))) -> 0 | N54: =IF(Table5[[#This Row],[Difference]]=0,"",IF(ISNA(VLOOKUP(Table5[[#This Row],[0]],Table1[],1,FALSE)),"","X")) -> 
A55: 71-0000-1960-696530-48885 | B55: Gen : Other Stu Fees & Charges : AS-Oper Activities : Stdnt Development/Campus Life : Assoc Students | C55: 2021-07-11 | D55: IV | E55: '0000040069' | F55: MJC Activity Fee | H55: 0 | I55: 10 | J55: -10 | K55: =IF(MID(Table5[[#This Row],[GL Account]],21,1)="2",MID(Table5[[#This Row],[ GL Description]],FIND(":",Table5[[#This Row],[ GL Description]],1)+2,FIND(":",Table5[[#This Row],[ GL Description]],FIND(":",Table5[[#This Row],[ GL Description]],1)+1)-FIND(":",Table5[[#This Row],[ GL Description]],1)-2),VLOOKUP(VALUE(MID(Table5[[#This Row],[GL Account]],14,6)),PgmList,2,FALSE)) -> Operating Activity | L55: =IF(MID(A55,21,1)="2",MID(A55,14,6)&" - "&MID(B55,FIND(":",B55,FIND(K55,B55,1))+2,FIND(":",B55,FIND(":",B55,FIND(K55,B55,1))+1)-FIND(":",B55,FIND(K55,B55,1))-2),IF(AND(MID(Table5[[#This Row],[GL Account]],14,6)<>"696530",MID(Table5[[#This Row],[GL Account]],14,6)<>"696570"),"",IF(MID(Table5[[#This Row],[GL Account]],21,2)="53","Fringe Benefits",VLOOKUP(RIGHT(Table5[[#This Row],[GL Account]],5),Object,2,FALSE))))&IF(RIGHT(Table5[[#This Row],[GL Account]],5)="29599",IF(MID(A55,4,4)="0000",""," "&MID(A55,4,4))&" - "&LEFT(Table5[[#This Row],[ GL Description]],FIND(" : ",Table5[[#This Row],[ GL Description]])),"") -> Misc Revenue | M55: =IF(MID(A55,21,1)="2",0,IF(OR(MID(Table5[[#This Row],[GL Account]],14,6)="696520",AND(MID(A55,14,6)="696530",MID(Table5[[#This Row],[GL Account]],21,1)="4")),0,ROUND(SUMIF(Table5[GL Account],Table5[[#This Row],[GL Account]],Table5[Amount])-SUMIFS(Table2[Amount],Table2[Type],"Activity",Table2[Account Number],GLTB!A55),2))) -> 0 | N55: =IF(Table5[[#This Row],[Difference]]=0,"",IF(ISNA(VLOOKUP(Table5[[#This Row],[0]],Table1[],1,FALSE)),"","X")) -> 
A56: 71-0000-1960-696530-48885 | B56: Gen : Other Stu Fees & Charges : AS-Oper Activities : Stdnt Development/Campus Life : Assoc Students | C56: 2021-07-12 | D56: IV | E56: '0000040073' | F56: MJC Activity Fee | H56: 0 | I56: 1180 | J56: -1180 | K56: =IF(MID(Table5[[#This Row],[GL Account]],21,1)="2",MID(Table5[[#This Row],[ GL Description]],FIND(":",Table5[[#This Row],[ GL Description]],1)+2,FIND(":",Table5[[#This Row],[ GL Description]],FIND(":",Table5[[#This Row],[ GL Description]],1)+1)-FIND(":",Table5[[#This Row],[ GL Description]],1)-2),VLOOKUP(VALUE(MID(Table5[[#This Row],[GL Account]],14,6)),PgmList,2,FALSE)) -> Operating Activity | L56: =IF(MID(A56,21,1)="2",MID(A56,14,6)&" - "&MID(B56,FIND(":",B56,FIND(K56,B56,1))+2,FIND(":",B56,FIND(":",B56,FIND(K56,B56,1))+1)-FIND(":",B56,FIND(K56,B56,1))-2),IF(AND(MID(Table5[[#This Row],[GL Account]],14,6)<>"696530",MID(Table5[[#This Row],[GL Account]],14,6)<>"696570"),"",IF(MID(Table5[[#This Row],[GL Account]],21,2)="53","Fringe Benefits",VLOOKUP(RIGHT(Table5[[#This Row],[GL Account]],5),Object,2,FALSE))))&IF(RIGHT(Table5[[#This Row],[GL Account]],5)="29599",IF(MID(A56,4,4)="0000",""," "&MID(A56,4,4))&" - "&LEFT(Table5[[#This Row],[ GL Description]],FIND(" : ",Table5[[#This Row],[ GL Description]])),"") -> Misc Revenue | M56: =IF(MID(A56,21,1)="2",0,IF(OR(MID(Table5[[#This Row],[GL Account]],14,6)="696520",AND(MID(A56,14,6)="696530",MID(Table5[[#This Row],[GL Account]],21,1)="4")),0,ROUND(SUMIF(Table5[GL Account],Table5[[#This Row],[GL Account]],Table5[Amount])-SUMIFS(Table2[Amount],Table2[Type],"Activity",Table2[Account Number],GLTB!A56),2))) -> 0 | N56: =IF(Table5[[#This Row],[Difference]]=0,"",IF(ISNA(VLOOKUP(Table5[[#This Row],[0]],Table1[],1,FALSE)),"","X")) -> 
A57: 71-0000-1960-696530-48885 | B57: Gen : Other Stu Fees & Charges : AS-Oper Activities : Stdnt Development/Campus Life : Assoc Students | C57: 2021-07-12 | D57: IV | E57: '0000040075' | F57: MJC Activity Fee | H57: 0 | I57: 170 | J57: -170 | K57: =IF(MID(Table5[[#This Row],[GL Account]],21,1)="2",MID(Table5[[#This Row],[ GL Description]],FIND(":",Table5[[#This Row],[ GL Description]],1)+2,FIND(":",Table5[[#This Row],[ GL Description]],FIND(":",Table5[[#This Row],[ GL Description]],1)+1)-FIND(":",Table5[[#This Row],[ GL Description]],1)-2),VLOOKUP(VALUE(MID(Table5[[#This Row],[GL Account]],14,6)),PgmList,2,FALSE)) -> Operating Activity | L57: =IF(MID(A57,21,1)="2",MID(A57,14,6)&" - "&MID(B57,FIND(":",B57,FIND(K57,B57,1))+2,FIND(":",B57,FIND(":",B57,FIND(K57,B57,1))+1)-FIND(":",B57,FIND(K57,B57,1))-2),IF(AND(MID(Table5[[#This Row],[GL Account]],14,6)<>"696530",MID(Table5[[#This Row],[GL Account]],14,6)<>"696570"),"",IF(MID(Table5[[#This Row],[GL Account]],21,2)="53","Fringe Benefits",VLOOKUP(RIGHT(Table5[[#This Row],[GL Account]],5),Object,2,FALSE))))&IF(RIGHT(Table5[[#This Row],[GL Account]],5)="29599",IF(MID(A57,4,4)="0000",""," "&MID(A57,4,4))&" - "&LEFT(Table5[[#This Row],[ GL Description]],FIND(" : ",Table5[[#This Row],[ GL Description]])),"") -> Misc Revenue | M57: =IF(MID(A57,21,1)="2",0,IF(OR(MID(Table5[[#This Row],[GL Account]],14,6)="696520",AND(MID(A57,14,6)="696530",MID(Table5[[#This Row],[GL Account]],21,1)="4")),0,ROUND(SUMIF(Table5[GL Account],Table5[[#This Row],[GL Account]],Table5[Amount])-SUMIFS(Table2[Amount],Table2[Type],"Activity",Table2[Account Number],GLTB!A57),2))) -> 0 | N57: =IF(Table5[[#This Row],[Difference]]=0,"",IF(ISNA(VLOOKUP(Table5[[#This Row],[0]],Table1[],1,FALSE)),"","X")) -> 
A58: 71-0000-1960-696530-48885 | B58: Gen : Other Stu Fees & Charges : AS-Oper Activities : Stdnt Development/Campus Life : Assoc Students | C58: 2021-07-13 | D58: IV | E58: '0000040080' | F58: MJC Activity Fee | H58: 0 | I58: 900 | J58: -900 | K58: =IF(MID(Table5[[#This Row],[GL Account]],21,1)="2",MID(Table5[[#This Row],[ GL Description]],FIND(":",Table5[[#This Row],[ GL Description]],1)+2,FIND(":",Table5[[#This Row],[ GL Description]],FIND(":",Table5[[#This Row],[ GL Description]],1)+1)-FIND(":",Table5[[#This Row],[ GL Description]],1)-2),VLOOKUP(VALUE(MID(Table5[[#This Row],[GL Account]],14,6)),PgmList,2,FALSE)) -> Operating Activity | L58: =IF(MID(A58,21,1)="2",MID(A58,14,6)&" - "&MID(B58,FIND(":",B58,FIND(K58,B58,1))+2,FIND(":",B58,FIND(":",B58,FIND(K58,B58,1))+1)-FIND(":",B58,FIND(K58,B58,1))-2),IF(AND(MID(Table5[[#This Row],[GL Account]],14,6)<>"696530",MID(Table5[[#This Row],[GL Account]],14,6)<>"696570"),"",IF(MID(Table5[[#This Row],[GL Account]],21,2)="53","Fringe Benefits",VLOOKUP(RIGHT(Table5[[#This Row],[GL Account]],5),Object,2,FALSE))))&IF(RIGHT(Table5[[#This Row],[GL Account]],5)="29599",IF(MID(A58,4,4)="0000",""," "&MID(A58,4,4))&" - "&LEFT(Table5[[#This Row],[ GL Description]],FIND(" : ",Table5[[#This Row],[ GL Description]])),"") -> Misc Revenue | M58: =IF(MID(A58,21,1)="2",0,IF(OR(MID(Table5[[#This Row],[GL Account]],14,6)="696520",AND(MID(A58,14,6)="696530",MID(Table5[[#This Row],[GL Account]],21,1)="4")),0,ROUND(SUMIF(Table5[GL Account],Table5[[#This Row],[GL Account]],Table5[Amount])-SUMIFS(Table2[Amount],Table2[Type],"Activity",Table2[Account Number],GLTB!A58),2))) -> 0 | N58: =IF(Table5[[#This Row],[Difference]]=0,"",IF(ISNA(VLOOKUP(Table5[[#This Row],[0]],Table1[],1,FALSE)),"","X")) -> 
A59: 71-0000-1960-696530-48885 | B59: Gen : Other Stu Fees & Charges : AS-Oper Activities : Stdnt Development/Campus Life : Assoc Students | C59: 2021-07-13 | D59: IV | E59: '0000040081' | F59: MJC Activity Fee | H59: 0 | I59: 70 | J59: -70 | K59: =IF(MID(Table5[[#This Row],[GL Account]],21,1)="2",MID(Table5[[#This Row],[ GL Description]],FIND(":",Table5[[#This Row],[ GL Description]],1)+2,FIND(":",Table5[[#This Row],[ GL Description]],FIND(":",Table5[[#This Row],[ GL Description]],1)+1)-FIND(":",Table5[[#This Row],[ GL Description]],1)-2),VLOOKUP(VALUE(MID(Table5[[#This Row],[GL Account]],14,6)),PgmList,2,FALSE)) -> Operating Activity | L59: =IF(MID(A59,21,1)="2",MID(A59,14,6)&" - "&MID(B59,FIND(":",B59,FIND(K59,B59,1))+2,FIND(":",B59,FIND(":",B59,FIND(K59,B59,1))+1)-FIND(":",B59,FIND(K59,B59,1))-2),IF(AND(MID(Table5[[#This Row],[GL Account]],14,6)<>"696530",MID(Table5[[#This Row],[GL Account]],14,6)<>"696570"),"",IF(MID(Table5[[#This Row],[GL Account]],21,2)="53","Fringe Benefits",VLOOKUP(RIGHT(Table5[[#This Row],[GL Account]],5),Object,2,FALSE))))&IF(RIGHT(Table5[[#This Row],[GL Account]],5)="29599",IF(MID(A59,4,4)="0000",""," "&MID(A59,4,4))&" - "&LEFT(Table5[[#This Row],[ GL Description]],FIND(" : ",Table5[[#This Row],[ GL Description]])),"") -> Misc Revenue | M59: =IF(MID(A59,21,1)="2",0,IF(OR(MID(Table5[[#This Row],[GL Account]],14,6)="696520",AND(MID(A59,14,6)="696530",MID(Table5[[#This Row],[GL Account]],21,1)="4")),0,ROUND(SUMIF(Table5[GL Account],Table5[[#This Row],[GL Account]],Table5[Amount])-SUMIFS(Table2[Amount],Table2[Type],"Activity",Table2[Account Number],GLTB!A59),2))) -> 0 | N59: =IF(Table5[[#This Row],[Difference]]=0,"",IF(ISNA(VLOOKUP(Table5[[#This Row],[0]],Table1[],1,FALSE)),"","X")) -> 
A60: 71-0000-1960-696530-48885 | B60: Gen : Other Stu Fees & Charges : AS-Oper Activities : Stdnt Development/Campus Life : Assoc Students | C60: 2021-07-14 | D60: IV | E60: '0000040087' | F60: MJC Activity Fee | H60: 0 | I60: 1140 | J60: -1140 | K60: =IF(MID(Table5[[#This Row],[GL Account]],21,1)="2",MID(Table5[[#This Row],[ GL Description]],FIND(":",Table5[[#This Row],[ GL Description]],1)+2,FIND(":",Table5[[#This Row],[ GL Description]],FIND(":",Table5[[#This Row],[ GL Description]],1)+1)-FIND(":",Table5[[#This Row],[ GL Description]],1)-2),VLOOKUP(VALUE(MID(Table5[[#This Row],[GL Account]],14,6)),PgmList,2,FALSE)) -> Operating Activity | L60: =IF(MID(A60,21,1)="2",MID(A60,14,6)&" - "&MID(B60,FIND(":",B60,FIND(K60,B60,1))+2,FIND(":",B60,FIND(":",B60,FIND(K60,B60,1))+1)-FIND(":",B60,FIND(K60,B60,1))-2),IF(AND(MID(Table5[[#This Row],[GL Account]],14,6)<>"696530",MID(Table5[[#This Row],[GL Account]],14,6)<>"696570"),"",IF(MID(Table5[[#This Row],[GL Account]],21,2)="53","Fringe Benefits",VLOOKUP(RIGHT(Table5[[#This Row],[GL Account]],5),Object,2,FALSE))))&IF(RIGHT(Table5[[#This Row],[GL Account]],5)="29599",IF(MID(A60,4,4)="0000",""," "&MID(A60,4,4))&" - "&LEFT(Table5[[#This Row],[ GL Description]],FIND(" : ",Table5[[#This Row],[ GL Description]])),"") -> Misc Revenue | M60: =IF(MID(A60,21,1)="2",0,IF(OR(MID(Table5[[#This Row],[GL Account]],14,6)="696520",AND(MID(A60,14,6)="696530",MID(Table5[[#This Row],[GL Account]],21,1)="4")),0,ROUND(SUMIF(Table5[GL Account],Table5[[#This Row],[GL Account]],Table5[Amount])-SUMIFS(Table2[Amount],Table2[Type],"Activity",Table2[Account Number],GLTB!A60),2))) -> 0 | N60: =IF(Table5[[#This Row],[Difference]]=0,"",IF(ISNA(VLOOKUP(Table5[[#This Row],[0]],Table1[],1,FALSE)),"","X")) -> 
A61: 71-0000-1960-696530-48885 | B61: Gen : Other Stu Fees & Charges : AS-Oper Activities : Stdnt Development/Campus Life : Assoc Students | C61: 2021-07-15 | D61: IV | E61: '0000040093' | F61: MJC Activity Fee | H61: 0 | I61: 1220 | J61: -1220 | K61: =IF(MID(Table5[[#This Row],[GL Account]],21,1)="2",MID(Table5[[#This Row],[ GL Description]],FIND(":",Table5[[#This Row],[ GL Description]],1)+2,FIND(":",Table5[[#This Row],[ GL Description]],FIND(":",Table5[[#This Row],[ GL Description]],1)+1)-FIND(":",Table5[[#This Row],[ GL Description]],1)-2),VLOOKUP(VALUE(MID(Table5[[#This Row],[GL Account]],14,6)),PgmList,2,FALSE)) -> Operating Activity | L61: =IF(MID(A61,21,1)="2",MID(A61,14,6)&" - "&MID(B61,FIND(":",B61,FIND(K61,B61,1))+2,FIND(":",B61,FIND(":",B61,FIND(K61,B61,1))+1)-FIND(":",B61,FIND(K61,B61,1))-2),IF(AND(MID(Table5[[#This Row],[GL Account]],14,6)<>"696530",MID(Table5[[#This Row],[GL Account]],14,6)<>"696570"),"",IF(MID(Table5[[#This Row],[GL Account]],21,2)="53","Fringe Benefits",VLOOKUP(RIGHT(Table5[[#This Row],[GL Account]],5),Object,2,FALSE))))&IF(RIGHT(Table5[[#This Row],[GL Account]],5)="29599",IF(MID(A61,4,4)="0000",""," "&MID(A61,4,4))&" - "&LEFT(Table5[[#This Row],[ GL Description]],FIND(" : ",Table5[[#This Row],[ GL Description]])),"") -> Misc Revenue | M61: =IF(MID(A61,21,1)="2",0,IF(OR(MID(Table5[[#This Row],[GL Account]],14,6)="696520",AND(MID(A61,14,6)="696530",MID(Table5[[#This Row],[GL Account]],21,1)="4")),0,ROUND(SUMIF(Table5[GL Account],Table5[[#This Row],[GL Account]],Table5[Amount])-SUMIFS(Table2[Amount],Table2[Type],"Activity",Table2[Account Number],GLTB!A61),2))) -> 0 | N61: =IF(Table5[[#This Row],[Difference]]=0,"",IF(ISNA(VLOOKUP(Table5[[#This Row],[0]],Table1[],1,FALSE)),"","X")) -> 
A62: 71-0000-1960-696530-48885 | B62: Gen : Other Stu Fees & Charges : AS-Oper Activities : Stdnt Development/Campus Life : Assoc Students | C62: 2021-07-15 | D62: IV | E62: '0000040095' | F62: MJC Activity Fee | H62: 170 | I62: 0 | J62: 170 | K62: =IF(MID(Table5[[#This Row],[GL Account]],21,1)="2",MID(Table5[[#This Row],[ GL Description]],FIND(":",Table5[[#This Row],[ GL Description]],1)+2,FIND(":",Table5[[#This Row],[ GL Description]],FIND(":",Table5[[#This Row],[ GL Description]],1)+1)-FIND(":",Table5[[#This Row],[ GL Description]],1)-2),VLOOKUP(VALUE(MID(Table5[[#This Row],[GL Account]],14,6)),PgmList,2,FALSE)) -> Operating Activity | L62: =IF(MID(A62,21,1)="2",MID(A62,14,6)&" - "&MID(B62,FIND(":",B62,FIND(K62,B62,1))+2,FIND(":",B62,FIND(":",B62,FIND(K62,B62,1))+1)-FIND(":",B62,FIND(K62,B62,1))-2),IF(AND(MID(Table5[[#This Row],[GL Account]],14,6)<>"696530",MID(Table5[[#This Row],[GL Account]],14,6)<>"696570"),"",IF(MID(Table5[[#This Row],[GL Account]],21,2)="53","Fringe Benefits",VLOOKUP(RIGHT(Table5[[#This Row],[GL Account]],5),Object,2,FALSE))))&IF(RIGHT(Table5[[#This Row],[GL Account]],5)="29599",IF(MID(A62,4,4)="0000",""," "&MID(A62,4,4))&" - "&LEFT(Table5[[#This Row],[ GL Description]],FIND(" : ",Table5[[#This Row],[ GL Description]])),"") -> Misc Revenue | M62: =IF(MID(A62,21,1)="2",0,IF(OR(MID(Table5[[#This Row],[GL Account]],14,6)="696520",AND(MID(A62,14,6)="696530",MID(Table5[[#This Row],[GL Account]],21,1)="4")),0,ROUND(SUMIF(Table5[GL Account],Table5[[#This Row],[GL Account]],Table5[Amount])-SUMIFS(Table2[Amount],Table2[Type],"Activity",Table2[Account Number],GLTB!A62),2))) -> 0 | N62: =IF(Table5[[#This Row],[Difference]]=0,"",IF(ISNA(VLOOKUP(Table5[[#This Row],[0]],Table1[],1,FALSE)),"","X")) -> 
A63: 71-0000-1960-696530-48885 | B63: Gen : Other Stu Fees & Charges : AS-Oper Activities : Stdnt Development/Campus Life : Assoc Students | C63: 2021-07-16 | D63: IV | E63: '0000040098' | F63: MJC Activity Fee | H63: 0 | I63: 700 | J63: -700 | K63: =IF(MID(Table5[[#This Row],[GL Account]],21,1)="2",MID(Table5[[#This Row],[ GL Description]],FIND(":",Table5[[#This Row],[ GL Description]],1)+2,FIND(":",Table5[[#This Row],[ GL Description]],FIND(":",Table5[[#This Row],[ GL Description]],1)+1)-FIND(":",Table5[[#This Row],[ GL Description]],1)-2),VLOOKUP(VALUE(MID(Table5[[#This Row],[GL Account]],14,6)),PgmList,2,FALSE)) -> Operating Activity | L63: =IF(MID(A63,21,1)="2",MID(A63,14,6)&" - "&MID(B63,FIND(":",B63,FIND(K63,B63,1))+2,FIND(":",B63,FIND(":",B63,FIND(K63,B63,1))+1)-FIND(":",B63,FIND(K63,B63,1))-2),IF(AND(MID(Table5[[#This Row],[GL Account]],14,6)<>"696530",MID(Table5[[#This Row],[GL Account]],14,6)<>"696570"),"",IF(MID(Table5[[#This Row],[GL Account]],21,2)="53","Fringe Benefits",VLOOKUP(RIGHT(Table5[[#This Row],[GL Account]],5),Object,2,FALSE))))&IF(RIGHT(Table5[[#This Row],[GL Account]],5)="29599",IF(MID(A63,4,4)="0000",""," "&MID(A63,4,4))&" - "&LEFT(Table5[[#This Row],[ GL Description]],FIND(" : ",Table5[[#This Row],[ GL Description]])),"") -> Misc Revenue | M63: =IF(MID(A63,21,1)="2",0,IF(OR(MID(Table5[[#This Row],[GL Account]],14,6)="696520",AND(MID(A63,14,6)="696530",MID(Table5[[#This Row],[GL Account]],21,1)="4")),0,ROUND(SUMIF(Table5[GL Account],Table5[[#This Row],[GL Account]],Table5[Amount])-SUMIFS(Table2[Amount],Table2[Type],"Activity",Table2[Account Number],GLTB!A63),2))) -> 0 | N63: =IF(Table5[[#This Row],[Difference]]=0,"",IF(ISNA(VLOOKUP(Table5[[#This Row],[0]],Table1[],1,FALSE)),"","X")) -> 
A64: 71-0000-1960-696530-48885 | B64: Gen : Other Stu Fees & Charges : AS-Oper Activities : Stdnt Development/Campus Life : Assoc Students | C64: 2021-07-17 | D64: IV | E64: '0000040101' | F64: MJC Activity Fee | H64: 0 | I64: 420 | J64: =IF(MID(A64,21,1)="2",-G64-H64+I64,IF(SUM(H64:I64)>0,H64-I64,"")) -> -420 | K64: =IF(MID(Table5[[#This Row],[GL Account]],21,1)="2",MID(Table5[[#This Row],[ GL Description]],FIND(":",Table5[[#This Row],[ GL Description]],1)+2,FIND(":",Table5[[#This Row],[ GL Description]],FIND(":",Table5[[#This Row],[ GL Description]],1)+1)-FIND(":",Table5[[#This Row],[ GL Description]],1)-2),VLOOKUP(VALUE(MID(Table5[[#This Row],[GL Account]],14,6)),PgmList,2,FALSE)) -> Operating Activity | L64: =IF(MID(A64,21,1)="2",MID(A64,14,6)&" - "&MID(B64,FIND(":",B64,FIND(K64,B64,1))+2,FIND(":",B64,FIND(":",B64,FIND(K64,B64,1))+1)-FIND(":",B64,FIND(K64,B64,1))-2),IF(AND(MID(Table5[[#This Row],[GL Account]],14,6)<>"696530",MID(Table5[[#This Row],[GL Account]],14,6)<>"696570"),"",IF(MID(Table5[[#This Row],[GL Account]],21,2)="53","Fringe Benefits",VLOOKUP(RIGHT(Table5[[#This Row],[GL Account]],5),Object,2,FALSE))))&IF(RIGHT(Table5[[#This Row],[GL Account]],5)="29599",IF(MID(A64,4,4)="0000",""," "&MID(A64,4,4))&" - "&LEFT(Table5[[#This Row],[ GL Description]],FIND(" : ",Table5[[#This Row],[ GL Description]])),"") -> Misc Revenue | M64: =IF(MID(A64,21,1)="2",0,IF(OR(MID(Table5[[#This Row],[GL Account]],14,6)="696520",AND(MID(A64,14,6)="696530",MID(Table5[[#This Row],[GL Account]],21,1)="4")),0,ROUND(SUMIF(Table5[GL Account],Table5[[#This Row],[GL Account]],Table5[Amount])-SUMIFS(Table2[Amount],Table2[Type],"Activity",Table2[Account Number],GLTB!A64),2))) -> 0 | N64: =IF(Table5[[#This Row],[Difference]]=0,"",IF(ISNA(VLOOKUP(Table5[[#This Row],[0]],Table1[],1,FALSE)),"","X")) -> 
A65: 71-0000-1960-696530-48885 | B65: Gen : Other Stu Fees & Charges : AS-Oper Activities : Stdnt Development/Campus Life : Assoc Students | C65: 2021-07-18 | D65: IV | E65: '0000040103' | F65: MJC Activity Fee | H65: 0 | I65: 370 | J65: -370 | K65: =IF(MID(Table5[[#This Row],[GL Account]],21,1)="2",MID(Table5[[#This Row],[ GL Description]],FIND(":",Table5[[#This Row],[ GL Description]],1)+2,FIND(":",Table5[[#This Row],[ GL Description]],FIND(":",Table5[[#This Row],[ GL Description]],1)+1)-FIND(":",Table5[[#This Row],[ GL Description]],1)-2),VLOOKUP(VALUE(MID(Table5[[#This Row],[GL Account]],14,6)),PgmList,2,FALSE)) -> Operating Activity | L65: =IF(MID(A65,21,1)="2",MID(A65,14,6)&" - "&MID(B65,FIND(":",B65,FIND(K65,B65,1))+2,FIND(":",B65,FIND(":",B65,FIND(K65,B65,1))+1)-FIND(":",B65,FIND(K65,B65,1))-2),IF(AND(MID(Table5[[#This Row],[GL Account]],14,6)<>"696530",MID(Table5[[#This Row],[GL Account]],14,6)<>"696570"),"",IF(MID(Table5[[#This Row],[GL Account]],21,2)="53","Fringe Benefits",VLOOKUP(RIGHT(Table5[[#This Row],[GL Account]],5),Object,2,FALSE))))&IF(RIGHT(Table5[[#This Row],[GL Account]],5)="29599",IF(MID(A65,4,4)="0000",""," "&MID(A65,4,4))&" - "&LEFT(Table5[[#This Row],[ GL Description]],FIND(" : ",Table5[[#This Row],[ GL Description]])),"") -> Misc Revenue | M65: =IF(MID(A65,21,1)="2",0,IF(OR(MID(Table5[[#This Row],[GL Account]],14,6)="696520",AND(MID(A65,14,6)="696530",MID(Table5[[#This Row],[GL Account]],21,1)="4")),0,ROUND(SUMIF(Table5[GL Account],Table5[[#This Row],[GL Account]],Table5[Amount])-SUMIFS(Table2[Amount],Table2[Type],"Activity",Table2[Account Number],GLTB!A65),2))) -> 0 | N65: =IF(Table5[[#This Row],[Difference]]=0,"",IF(ISNA(VLOOKUP(Table5[[#This Row],[0]],Table1[],1,FALSE)),"","X")) -> 
A66: 71-0000-1960-696530-48885 | B66: Gen : Other Stu Fees & Charges : AS-Oper Activities : Stdnt Development/Campus Life : Assoc Students | C66: 2021-07-18 | D66: IV | E66: '0000040104' | F66: MJC Activity Fee | H66: 0 | I66: 10 | J66: -10 | K66: =IF(MID(Table5[[#This Row],[GL Account]],21,1)="2",MID(Table5[[#This Row],[ GL Description]],FIND(":",Table5[[#This Row],[ GL Description]],1)+2,FIND(":",Table5[[#This Row],[ GL Description]],FIND(":",Table5[[#This Row],[ GL Description]],1)+1)-FIND(":",Table5[[#This Row],[ GL Description]],1)-2),VLOOKUP(VALUE(MID(Table5[[#This Row],[GL Account]],14,6)),PgmList,2,FALSE)) -> Operating Activity | L66: =IF(MID(A66,21,1)="2",MID(A66,14,6)&" - "&MID(B66,FIND(":",B66,FIND(K66,B66,1))+2,FIND(":",B66,FIND(":",B66,FIND(K66,B66,1))+1)-FIND(":",B66,FIND(K66,B66,1))-2),IF(AND(MID(Table5[[#This Row],[GL Account]],14,6)<>"696530",MID(Table5[[#This Row],[GL Account]],14,6)<>"696570"),"",IF(MID(Table5[[#This Row],[GL Account]],21,2)="53","Fringe Benefits",VLOOKUP(RIGHT(Table5[[#This Row],[GL Account]],5),Object,2,FALSE))))&IF(RIGHT(Table5[[#This Row],[GL Account]],5)="29599",IF(MID(A66,4,4)="0000",""," "&MID(A66,4,4))&" - "&LEFT(Table5[[#This Row],[ GL Description]],FIND(" : ",Table5[[#This Row],[ GL Description]])),"") -> Misc Revenue | M66: =IF(MID(A66,21,1)="2",0,IF(OR(MID(Table5[[#This Row],[GL Account]],14,6)="696520",AND(MID(A66,14,6)="696530",MID(Table5[[#This Row],[GL Account]],21,1)="4")),0,ROUND(SUMIF(Table5[GL Account],Table5[[#This Row],[GL Account]],Table5[Amount])-SUMIFS(Table2[Amount],Table2[Type],"Activity",Table2[Account Number],GLTB!A66),2))) -> 0 | N66: =IF(Table5[[#This Row],[Difference]]=0,"",IF(ISNA(VLOOKUP(Table5[[#This Row],[0]],Table1[],1,FALSE)),"","X")) -> 
A67: 71-0000-1960-696530-48885 | B67: Gen : Other Stu Fees & Charges : AS-Oper Activities : Stdnt Development/Campus Life : Assoc Students | C67: 2021-07-19 | D67: IV | E67: '0000040109' | F67: MJC Activity Fee | H67: 0 | I67: 920 | J67: -920 | K67: =IF(MID(Table5[[#This Row],[GL Account]],21,1)="2",MID(Table5[[#This Row],[ GL Description]],FIND(":",Table5[[#This Row],[ GL Description]],1)+2,FIND(":",Table5[[#This Row],[ GL Description]],FIND(":",Table5[[#This Row],[ GL Description]],1)+1)-FIND(":",Table5[[#This Row],[ GL Description]],1)-2),VLOOKUP(VALUE(MID(Table5[[#This Row],[GL Account]],14,6)),PgmList,2,FALSE)) -> Operating Activity | L67: =IF(MID(A67,21,1)="2",MID(A67,14,6)&" - "&MID(B67,FIND(":",B67,FIND(K67,B67,1))+2,FIND(":",B67,FIND(":",B67,FIND(K67,B67,1))+1)-FIND(":",B67,FIND(K67,B67,1))-2),IF(AND(MID(Table5[[#This Row],[GL Account]],14,6)<>"696530",MID(Table5[[#This Row],[GL Account]],14,6)<>"696570"),"",IF(MID(Table5[[#This Row],[GL Account]],21,2)="53","Fringe Benefits",VLOOKUP(RIGHT(Table5[[#This Row],[GL Account]],5),Object,2,FALSE))))&IF(RIGHT(Table5[[#This Row],[GL Account]],5)="29599",IF(MID(A67,4,4)="0000",""," "&MID(A67,4,4))&" - "&LEFT(Table5[[#This Row],[ GL Description]],FIND(" : ",Table5[[#This Row],[ GL Description]])),"") -> Misc Revenue | M67: =IF(MID(A67,21,1)="2",0,IF(OR(MID(Table5[[#This Row],[GL Account]],14,6)="696520",AND(MID(A67,14,6)="696530",MID(Table5[[#This Row],[GL Account]],21,1)="4")),0,ROUND(SUMIF(Table5[GL Account],Table5[[#This Row],[GL Account]],Table5[Amount])-SUMIFS(Table2[Amount],Table2[Type],"Activity",Table2[Account Number],GLTB!A67),2))) -> 0 | N67: =IF(Table5[[#This Row],[Difference]]=0,"",IF(ISNA(VLOOKUP(Table5[[#This Row],[0]],Table1[],1,FALSE)),"","X")) -> 
A68: 71-0000-1960-696530-48885 | B68: Gen : Other Stu Fees & Charges : AS-Oper Activities : Stdnt Development/Campus Life : Assoc Students | C68: 2021-07-19 | D68: IV | E68: '0000040110' | F68: MJC Activity Fee | H68: 0 | I68: 20 | J68: -20 | K68: =IF(MID(Table5[[#This Row],[GL Account]],21,1)="2",MID(Table5[[#This Row],[ GL Description]],FIND(":",Table5[[#This Row],[ GL Description]],1)+2,FIND(":",Table5[[#This Row],[ GL Description]],FIND(":",Table5[[#This Row],[ GL Description]],1)+1)-FIND(":",Table5[[#This Row],[ GL Description]],1)-2),VLOOKUP(VALUE(MID(Table5[[#This Row],[GL Account]],14,6)),PgmList,2,FALSE)) -> Operating Activity | L68: =IF(MID(A68,21,1)="2",MID(A68,14,6)&" - "&MID(B68,FIND(":",B68,FIND(K68,B68,1))+2,FIND(":",B68,FIND(":",B68,FIND(K68,B68,1))+1)-FIND(":",B68,FIND(K68,B68,1))-2),IF(AND(MID(Table5[[#This Row],[GL Account]],14,6)<>"696530",MID(Table5[[#This Row],[GL Account]],14,6)<>"696570"),"",IF(MID(Table5[[#This Row],[GL Account]],21,2)="53","Fringe Benefits",VLOOKUP(RIGHT(Table5[[#This Row],[GL Account]],5),Object,2,FALSE))))&IF(RIGHT(Table5[[#This Row],[GL Account]],5)="29599",IF(MID(A68,4,4)="0000",""," "&MID(A68,4,4))&" - "&LEFT(Table5[[#This Row],[ GL Description]],FIND(" : ",Table5[[#This Row],[ GL Description]])),"") -> Misc Revenue | M68: =IF(MID(A68,21,1)="2",0,IF(OR(MID(Table5[[#This Row],[GL Account]],14,6)="696520",AND(MID(A68,14,6)="696530",MID(Table5[[#This Row],[GL Account]],21,1)="4")),0,ROUND(SUMIF(Table5[GL Account],Table5[[#This Row],[GL Account]],Table5[Amount])-SUMIFS(Table2[Amount],Table2[Type],"Activity",Table2[Account Number],GLTB!A68),2))) -> 0 | N68: =IF(Table5[[#This Row],[Difference]]=0,"",IF(ISNA(VLOOKUP(Table5[[#This Row],[0]],Table1[],1,FALSE)),"","X")) -> 
A69: 71-0000-1960-696530-48885 | B69: Gen : Other Stu Fees & Charges : AS-Oper Activities : Stdnt Development/Campus Life : Assoc Students | C69: 2021-07-20 | D69: IV | E69: '0000040115' | F69: MJC Activity Fee | H69: 0 | I69: 1010 | J69: -1010 | K69: =IF(MID(Table5[[#This Row],[GL Account]],21,1)="2",MID(Table5[[#This Row],[ GL Description]],FIND(":",Table5[[#This Row],[ GL Description]],1)+2,FIND(":",Table5[[#This Row],[ GL Description]],FIND(":",Table5[[#This Row],[ GL Description]],1)+1)-FIND(":",Table5[[#This Row],[ GL Description]],1)-2),VLOOKUP(VALUE(MID(Table5[[#This Row],[GL Account]],14,6)),PgmList,2,FALSE)) -> Operating Activity | L69: =IF(MID(A69,21,1)="2",MID(A69,14,6)&" - "&MID(B69,FIND(":",B69,FIND(K69,B69,1))+2,FIND(":",B69,FIND(":",B69,FIND(K69,B69,1))+1)-FIND(":",B69,FIND(K69,B69,1))-2),IF(AND(MID(Table5[[#This Row],[GL Account]],14,6)<>"696530",MID(Table5[[#This Row],[GL Account]],14,6)<>"696570"),"",IF(MID(Table5[[#This Row],[GL Account]],21,2)="53","Fringe Benefits",VLOOKUP(RIGHT(Table5[[#This Row],[GL Account]],5),Object,2,FALSE))))&IF(RIGHT(Table5[[#This Row],[GL Account]],5)="29599",IF(MID(A69,4,4)="0000",""," "&MID(A69,4,4))&" - "&LEFT(Table5[[#This Row],[ GL Description]],FIND(" : ",Table5[[#This Row],[ GL Description]])),"") -> Misc Revenue | M69: =IF(MID(A69,21,1)="2",0,IF(OR(MID(Table5[[#This Row],[GL Account]],14,6)="696520",AND(MID(A69,14,6)="696530",MID(Table5[[#This Row],[GL Account]],21,1)="4")),0,ROUND(SUMIF(Table5[GL Account],Table5[[#This Row],[GL Account]],Table5[Amount])-SUMIFS(Table2[Amount],Table2[Type],"Activity",Table2[Account Number],GLTB!A69),2))) -> 0 | N69: =IF(Table5[[#This Row],[Difference]]=0,"",IF(ISNA(VLOOKUP(Table5[[#This Row],[0]],Table1[],1,FALSE)),"","X")) -> 
A70: 71-0000-1960-696530-48885 | B70: Gen : Other Stu Fees & Charges : AS-Oper Activities : Stdnt Development/Campus Life : Assoc Students | C70: 2021-07-20 | D70: IV | E70: '0000040116' | F70: MJC Activity Fee | H70: 0 | I70: 30 | J70: -30 | K70: =IF(MID(Table5[[#This Row],[GL Account]],21,1)="2",MID(Table5[[#This Row],[ GL Description]],FIND(":",Table5[[#This Row],[ GL Description]],1)+2,FIND(":",Table5[[#This Row],[ GL Description]],FIND(":",Table5[[#This Row],[ GL Description]],1)+1)-FIND(":",Table5[[#This Row],[ GL Description]],1)-2),VLOOKUP(VALUE(MID(Table5[[#This Row],[GL Account]],14,6)),PgmList,2,FALSE)) -> Operating Activity | L70: =IF(MID(A70,21,1)="2",MID(A70,14,6)&" - "&MID(B70,FIND(":",B70,FIND(K70,B70,1))+2,FIND(":",B70,FIND(":",B70,FIND(K70,B70,1))+1)-FIND(":",B70,FIND(K70,B70,1))-2),IF(AND(MID(Table5[[#This Row],[GL Account]],14,6)<>"696530",MID(Table5[[#This Row],[GL Account]],14,6)<>"696570"),"",IF(MID(Table5[[#This Row],[GL Account]],21,2)="53","Fringe Benefits",VLOOKUP(RIGHT(Table5[[#This Row],[GL Account]],5),Object,2,FALSE))))&IF(RIGHT(Table5[[#This Row],[GL Account]],5)="29599",IF(MID(A70,4,4)="0000",""," "&MID(A70,4,4))&" - "&LEFT(Table5[[#This Row],[ GL Description]],FIND(" : ",Table5[[#This Row],[ GL Description]])),"") -> Misc Revenue | M70: =IF(MID(A70,21,1)="2",0,IF(OR(MID(Table5[[#This Row],[GL Account]],14,6)="696520",AND(MID(A70,14,6)="696530",MID(Table5[[#This Row],[GL Account]],21,1)="4")),0,ROUND(SUMIF(Table5[GL Account],Table5[[#This Row],[GL Account]],Table5[Amount])-SUMIFS(Table2[Amount],Table2[Type],"Activity",Table2[Account Number],GLTB!A70),2))) -> 0 | N70: =IF(Table5[[#This Row],[Difference]]=0,"",IF(ISNA(VLOOKUP(Table5[[#This Row],[0]],Table1[],1,FALSE)),"","X")) -> 
A71: 71-0000-1960-696530-48885 | B71: Gen : Other Stu Fees & Charges : AS-Oper Activities : Stdnt Development/Campus Life : Assoc Students | C71: 2021-07-21 | D71: IV | E71: '0000040121' | F71: MJC Activity Fee | H71: 0 | I71: 1170 | J71: -1170 | K71: =IF(MID(Table5[[#This Row],[GL Account]],21,1)="2",MID(Table5[[#This Row],[ GL Description]],FIND(":",Table5[[#This Row],[ GL Description]],1)+2,FIND(":",Table5[[#This Row],[ GL Description]],FIND(":",Table5[[#This Row],[ GL Description]],1)+1)-FIND(":",Table5[[#This Row],[ GL Description]],1)-2),VLOOKUP(VALUE(MID(Table5[[#This Row],[GL Account]],14,6)),PgmList,2,FALSE)) -> Operating Activity | L71: =IF(MID(A71,21,1)="2",MID(A71,14,6)&" - "&MID(B71,FIND(":",B71,FIND(K71,B71,1))+2,FIND(":",B71,FIND(":",B71,FIND(K71,B71,1))+1)-FIND(":",B71,FIND(K71,B71,1))-2),IF(AND(MID(Table5[[#This Row],[GL Account]],14,6)<>"696530",MID(Table5[[#This Row],[GL Account]],14,6)<>"696570"),"",IF(MID(Table5[[#This Row],[GL Account]],21,2)="53","Fringe Benefits",VLOOKUP(RIGHT(Table5[[#This Row],[GL Account]],5),Object,2,FALSE))))&IF(RIGHT(Table5[[#This Row],[GL Account]],5)="29599",IF(MID(A71,4,4)="0000",""," "&MID(A71,4,4))&" - "&LEFT(Table5[[#This Row],[ GL Description]],FIND(" : ",Table5[[#This Row],[ GL Description]])),"") -> Misc Revenue | M71: =IF(MID(A71,21,1)="2",0,IF(OR(MID(Table5[[#This Row],[GL Account]],14,6)="696520",AND(MID(A71,14,6)="696530",MID(Table5[[#This Row],[GL Account]],21,1)="4")),0,ROUND(SUMIF(Table5[GL Account],Table5[[#This Row],[GL Account]],Table5[Amount])-SUMIFS(Table2[Amount],Table2[Type],"Activity",Table2[Account Number],GLTB!A71),2))) -> 0 | N71: =IF(Table5[[#This Row],[Difference]]=0,"",IF(ISNA(VLOOKUP(Table5[[#This Row],[0]],Table1[],1,FALSE)),"","X")) -> 
A72: 71-0000-1960-696530-48885 | B72: Gen : Other Stu Fees & Charges : AS-Oper Activities : Stdnt Development/Campus Life : Assoc Students | C72: 2021-07-22 | D72: IV | E72: '0000040129' | F72: MJC Activity Fee | H72: 0 | I72: 1020 | J72: -1020 | K72: =IF(MID(Table5[[#This Row],[GL Account]],21,1)="2",MID(Table5[[#This Row],[ GL Description]],FIND(":",Table5[[#This Row],[ GL Description]],1)+2,FIND(":",Table5[[#This Row],[ GL Description]],FIND(":",Table5[[#This Row],[ GL Description]],1)+1)-FIND(":",Table5[[#This Row],[ GL Description]],1)-2),VLOOKUP(VALUE(MID(Table5[[#This Row],[GL Account]],14,6)),PgmList,2,FALSE)) -> Operating Activity | L72: =IF(MID(A72,21,1)="2",MID(A72,14,6)&" - "&MID(B72,FIND(":",B72,FIND(K72,B72,1))+2,FIND(":",B72,FIND(":",B72,FIND(K72,B72,1))+1)-FIND(":",B72,FIND(K72,B72,1))-2),IF(AND(MID(Table5[[#This Row],[GL Account]],14,6)<>"696530",MID(Table5[[#This Row],[GL Account]],14,6)<>"696570"),"",IF(MID(Table5[[#This Row],[GL Account]],21,2)="53","Fringe Benefits",VLOOKUP(RIGHT(Table5[[#This Row],[GL Account]],5),Object,2,FALSE))))&IF(RIGHT(Table5[[#This Row],[GL Account]],5)="29599",IF(MID(A72,4,4)="0000",""," "&MID(A72,4,4))&" - "&LEFT(Table5[[#This Row],[ GL Description]],FIND(" : ",Table5[[#This Row],[ GL Description]])),"") -> Misc Revenue | M72: =IF(MID(A72,21,1)="2",0,IF(OR(MID(Table5[[#This Row],[GL Account]],14,6)="696520",AND(MID(A72,14,6)="696530",MID(Table5[[#This Row],[GL Account]],21,1)="4")),0,ROUND(SUMIF(Table5[GL Account],Table5[[#This Row],[GL Account]],Table5[Amount])-SUMIFS(Table2[Amount],Table2[Type],"Activity",Table2[Account Number],GLTB!A72),2))) -> 0 | N72: =IF(Table5[[#This Row],[Difference]]=0,"",IF(ISNA(VLOOKUP(Table5[[#This Row],[0]],Table1[],1,FALSE)),"","X")) -> 
A73: 71-0000-1960-696530-48885 | B73: Gen : Other Stu Fees & Charges : AS-Oper Activities : Stdnt Development/Campus Life : Assoc Students | C73: 2021-07-22 | D73: IV | E73: '0000040131' | F73: MJC Activity Fee | H73: 0 | I73: 40 | J73: -40 | K73: =IF(MID(Table5[[#This Row],[GL Account]],21,1)="2",MID(Table5[[#This Row],[ GL Description]],FIND(":",Table5[[#This Row],[ GL Description]],1)+2,FIND(":",Table5[[#This Row],[ GL Description]],FIND(":",Table5[[#This Row],[ GL Description]],1)+1)-FIND(":",Table5[[#This Row],[ GL Description]],1)-2),VLOOKUP(VALUE(MID(Table5[[#This Row],[GL Account]],14,6)),PgmList,2,FALSE)) -> Operating Activity | L73: =IF(MID(A73,21,1)="2",MID(A73,14,6)&" - "&MID(B73,FIND(":",B73,FIND(K73,B73,1))+2,FIND(":",B73,FIND(":",B73,FIND(K73,B73,1))+1)-FIND(":",B73,FIND(K73,B73,1))-2),IF(AND(MID(Table5[[#This Row],[GL Account]],14,6)<>"696530",MID(Table5[[#This Row],[GL Account]],14,6)<>"696570"),"",IF(MID(Table5[[#This Row],[GL Account]],21,2)="53","Fringe Benefits",VLOOKUP(RIGHT(Table5[[#This Row],[GL Account]],5),Object,2,FALSE))))&IF(RIGHT(Table5[[#This Row],[GL Account]],5)="29599",IF(MID(A73,4,4)="0000",""," "&MID(A73,4,4))&" - "&LEFT(Table5[[#This Row],[ GL Description]],FIND(" : ",Table5[[#This Row],[ GL Description]])),"") -> Misc Revenue | M73: =IF(MID(A73,21,1)="2",0,IF(OR(MID(Table5[[#This Row],[GL Account]],14,6)="696520",AND(MID(A73,14,6)="696530",MID(Table5[[#This Row],[GL Account]],21,1)="4")),0,ROUND(SUMIF(Table5[GL Account],Table5[[#This Row],[GL Account]],Table5[Amount])-SUMIFS(Table2[Amount],Table2[Type],"Activity",Table2[Account Number],GLTB!A73),2))) -> 0 | N73: =IF(Table5[[#This Row],[Difference]]=0,"",IF(ISNA(VLOOKUP(Table5[[#This Row],[0]],Table1[],1,FALSE)),"","X")) -> 
A74: 71-0000-1960-696530-48885 | B74: Gen : Other Stu Fees & Charges : AS-Oper Activities : Stdnt Development/Campus Life : Assoc Students | C74: 2021-07-23 | D74: IV | E74: '0000040134' | F74: MJC Activity Fee | H74: 0 | I74: 520 | J74: -520 | K74: =IF(MID(Table5[[#This Row],[GL Account]],21,1)="2",MID(Table5[[#This Row],[ GL Description]],FIND(":",Table5[[#This Row],[ GL Description]],1)+2,FIND(":",Table5[[#This Row],[ GL Description]],FIND(":",Table5[[#This Row],[ GL Description]],1)+1)-FIND(":",Table5[[#This Row],[ GL Description]],1)-2),VLOOKUP(VALUE(MID(Table5[[#This Row],[GL Account]],14,6)),PgmList,2,FALSE)) -> Operating Activity | L74: =IF(MID(A74,21,1)="2",MID(A74,14,6)&" - "&MID(B74,FIND(":",B74,FIND(K74,B74,1))+2,FIND(":",B74,FIND(":",B74,FIND(K74,B74,1))+1)-FIND(":",B74,FIND(K74,B74,1))-2),IF(AND(MID(Table5[[#This Row],[GL Account]],14,6)<>"696530",MID(Table5[[#This Row],[GL Account]],14,6)<>"696570"),"",IF(MID(Table5[[#This Row],[GL Account]],21,2)="53","Fringe Benefits",VLOOKUP(RIGHT(Table5[[#This Row],[GL Account]],5),Object,2,FALSE))))&IF(RIGHT(Table5[[#This Row],[GL Account]],5)="29599",IF(MID(A74,4,4)="0000",""," "&MID(A74,4,4))&" - "&LEFT(Table5[[#This Row],[ GL Description]],FIND(" : ",Table5[[#This Row],[ GL Description]])),"") -> Misc Revenue | M74: =IF(MID(A74,21,1)="2",0,IF(OR(MID(Table5[[#This Row],[GL Account]],14,6)="696520",AND(MID(A74,14,6)="696530",MID(Table5[[#This Row],[GL Account]],21,1)="4")),0,ROUND(SUMIF(Table5[GL Account],Table5[[#This Row],[GL Account]],Table5[Amount])-SUMIFS(Table2[Amount],Table2[Type],"Activity",Table2[Account Number],GLTB!A74),2))) -> 0 | N74: =IF(Table5[[#This Row],[Difference]]=0,"",IF(ISNA(VLOOKUP(Table5[[#This Row],[0]],Table1[],1,FALSE)),"","X")) -> 
A75: 71-0000-1960-696530-48885 | B75: Gen : Other Stu Fees & Charges : AS-Oper Activities : Stdnt Development/Campus Life : Assoc Students | C75: 2021-07-23 | D75: IV | E75: '0000040135' | F75: MJC Activity Fee | H75: 0 | I75: 10 | J75: -10 | K75: =IF(MID(Table5[[#This Row],[GL Account]],21,1)="2",MID(Table5[[#This Row],[ GL Description]],FIND(":",Table5[[#This Row],[ GL Description]],1)+2,FIND(":",Table5[[#This Row],[ GL Description]],FIND(":",Table5[[#This Row],[ GL Description]],1)+1)-FIND(":",Table5[[#This Row],[ GL Description]],1)-2),VLOOKUP(VALUE(MID(Table5[[#This Row],[GL Account]],14,6)),PgmList,2,FALSE)) -> Operating Activity | L75: =IF(MID(A75,21,1)="2",MID(A75,14,6)&" - "&MID(B75,FIND(":",B75,FIND(K75,B75,1))+2,FIND(":",B75,FIND(":",B75,FIND(K75,B75,1))+1)-FIND(":",B75,FIND(K75,B75,1))-2),IF(AND(MID(Table5[[#This Row],[GL Account]],14,6)<>"696530",MID(Table5[[#This Row],[GL Account]],14,6)<>"696570"),"",IF(MID(Table5[[#This Row],[GL Account]],21,2)="53","Fringe Benefits",VLOOKUP(RIGHT(Table5[[#This Row],[GL Account]],5),Object,2,FALSE))))&IF(RIGHT(Table5[[#This Row],[GL Account]],5)="29599",IF(MID(A75,4,4)="0000",""," "&MID(A75,4,4))&" - "&LEFT(Table5[[#This Row],[ GL Description]],FIND(" : ",Table5[[#This Row],[ GL Description]])),"") -> Misc Revenue | M75: =IF(MID(A75,21,1)="2",0,IF(OR(MID(Table5[[#This Row],[GL Account]],14,6)="696520",AND(MID(A75,14,6)="696530",MID(Table5[[#This Row],[GL Account]],21,1)="4")),0,ROUND(SUMIF(Table5[GL Account],Table5[[#This Row],[GL Account]],Table5[Amount])-SUMIFS(Table2[Amount],Table2[Type],"Activity",Table2[Account Number],GLTB!A75),2))) -> 0 | N75: =IF(Table5[[#This Row],[Difference]]=0,"",IF(ISNA(VLOOKUP(Table5[[#This Row],[0]],Table1[],1,FALSE)),"","X")) -> 
A76: 71-0000-1960-696530-48885 | B76: Gen : Other Stu Fees & Charges : AS-Oper Activities : Stdnt Development/Campus Life : Assoc Students | C76: 2021-07-24 | D76: IV | E76: '0000040137' | F76: MJC Activity Fee | H76: 0 | I76: 320 | J76: -320 | K76: =IF(MID(Table5[[#This Row],[GL Account]],21,1)="2",MID(Table5[[#This Row],[ GL Description]],FIND(":",Table5[[#This Row],[ GL Description]],1)+2,FIND(":",Table5[[#This Row],[ GL Description]],FIND(":",Table5[[#This Row],[ GL Description]],1)+1)-FIND(":",Table5[[#This Row],[ GL Description]],1)-2),VLOOKUP(VALUE(MID(Table5[[#This Row],[GL Account]],14,6)),PgmList,2,FALSE)) -> Operating Activity | L76: =IF(MID(A76,21,1)="2",MID(A76,14,6)&" - "&MID(B76,FIND(":",B76,FIND(K76,B76,1))+2,FIND(":",B76,FIND(":",B76,FIND(K76,B76,1))+1)-FIND(":",B76,FIND(K76,B76,1))-2),IF(AND(MID(Table5[[#This Row],[GL Account]],14,6)<>"696530",MID(Table5[[#This Row],[GL Account]],14,6)<>"696570"),"",IF(MID(Table5[[#This Row],[GL Account]],21,2)="53","Fringe Benefits",VLOOKUP(RIGHT(Table5[[#This Row],[GL Account]],5),Object,2,FALSE))))&IF(RIGHT(Table5[[#This Row],[GL Account]],5)="29599",IF(MID(A76,4,4)="0000",""," "&MID(A76,4,4))&" - "&LEFT(Table5[[#This Row],[ GL Description]],FIND(" : ",Table5[[#This Row],[ GL Description]])),"") -> Misc Revenue | M76: =IF(MID(A76,21,1)="2",0,IF(OR(MID(Table5[[#This Row],[GL Account]],14,6)="696520",AND(MID(A76,14,6)="696530",MID(Table5[[#This Row],[GL Account]],21,1)="4")),0,ROUND(SUMIF(Table5[GL Account],Table5[[#This Row],[GL Account]],Table5[Amount])-SUMIFS(Table2[Amount],Table2[Type],"Activity",Table2[Account Number],GLTB!A76),2))) -> 0 | N76: =IF(Table5[[#This Row],[Difference]]=0,"",IF(ISNA(VLOOKUP(Table5[[#This Row],[0]],Table1[],1,FALSE)),"","X")) -> 
A77: 71-0000-1960-696530-48885 | B77: Gen : Other Stu Fees & Charges : AS-Oper Activities : Stdnt Development/Campus Life : Assoc Students | C77: 2021-07-25 | D77: IV | E77: '0000040140' | F77: MJC Activity Fee | H77: 0 | I77: 510 | J77: -510 | K77: =IF(MID(Table5[[#This Row],[GL Account]],21,1)="2",MID(Table5[[#This Row],[ GL Description]],FIND(":",Table5[[#This Row],[ GL Description]],1)+2,FIND(":",Table5[[#This Row],[ GL Description]],FIND(":",Table5[[#This Row],[ GL Description]],1)+1)-FIND(":",Table5[[#This Row],[ GL Description]],1)-2),VLOOKUP(VALUE(MID(Table5[[#This Row],[GL Account]],14,6)),PgmList,2,FALSE)) -> Operating Activity | L77: =IF(MID(A77,21,1)="2",MID(A77,14,6)&" - "&MID(B77,FIND(":",B77,FIND(K77,B77,1))+2,FIND(":",B77,FIND(":",B77,FIND(K77,B77,1))+1)-FIND(":",B77,FIND(K77,B77,1))-2),IF(AND(MID(Table5[[#This Row],[GL Account]],14,6)<>"696530",MID(Table5[[#This Row],[GL Account]],14,6)<>"696570"),"",IF(MID(Table5[[#This Row],[GL Account]],21,2)="53","Fringe Benefits",VLOOKUP(RIGHT(Table5[[#This Row],[GL Account]],5),Object,2,FALSE))))&IF(RIGHT(Table5[[#This Row],[GL Account]],5)="29599",IF(MID(A77,4,4)="0000",""," "&MID(A77,4,4))&" - "&LEFT(Table5[[#This Row],[ GL Description]],FIND(" : ",Table5[[#This Row],[ GL Description]])),"") -> Misc Revenue | M77: =IF(MID(A77,21,1)="2",0,IF(OR(MID(Table5[[#This Row],[GL Account]],14,6)="696520",AND(MID(A77,14,6)="696530",MID(Table5[[#This Row],[GL Account]],21,1)="4")),0,ROUND(SUMIF(Table5[GL Account],Table5[[#This Row],[GL Account]],Table5[Amount])-SUMIFS(Table2[Amount],Table2[Type],"Activity",Table2[Account Number],GLTB!A77),2))) -> 0 | N77: =IF(Table5[[#This Row],[Difference]]=0,"",IF(ISNA(VLOOKUP(Table5[[#This Row],[0]],Table1[],1,FALSE)),"","X")) -> 
A78: 71-0000-1960-696530-48885 | B78: Gen : Other Stu Fees & Charges : AS-Oper Activities : Stdnt Development/Campus Life : Assoc Students | C78: 2021-07-25 | D78: IV | E78: '0000040141' | F78: MJC Activity Fee | H78: 0 | I78: 10 | J78: -10 | K78: =IF(MID(Table5[[#This Row],[GL Account]],21,1)="2",MID(Table5[[#This Row],[ GL Description]],FIND(":",Table5[[#This Row],[ GL Description]],1)+2,FIND(":",Table5[[#This Row],[ GL Description]],FIND(":",Table5[[#This Row],[ GL Description]],1)+1)-FIND(":",Table5[[#This Row],[ GL Description]],1)-2),VLOOKUP(VALUE(MID(Table5[[#This Row],[GL Account]],14,6)),PgmList,2,FALSE)) -> Operating Activity | L78: =IF(MID(A78,21,1)="2",MID(A78,14,6)&" - "&MID(B78,FIND(":",B78,FIND(K78,B78,1))+2,FIND(":",B78,FIND(":",B78,FIND(K78,B78,1))+1)-FIND(":",B78,FIND(K78,B78,1))-2),IF(AND(MID(Table5[[#This Row],[GL Account]],14,6)<>"696530",MID(Table5[[#This Row],[GL Account]],14,6)<>"696570"),"",IF(MID(Table5[[#This Row],[GL Account]],21,2)="53","Fringe Benefits",VLOOKUP(RIGHT(Table5[[#This Row],[GL Account]],5),Object,2,FALSE))))&IF(RIGHT(Table5[[#This Row],[GL Account]],5)="29599",IF(MID(A78,4,4)="0000",""," "&MID(A78,4,4))&" - "&LEFT(Table5[[#This Row],[ GL Description]],FIND(" : ",Table5[[#This Row],[ GL Description]])),"") -> Misc Revenue | M78: =IF(MID(A78,21,1)="2",0,IF(OR(MID(Table5[[#This Row],[GL Account]],14,6)="696520",AND(MID(A78,14,6)="696530",MID(Table5[[#This Row],[GL Account]],21,1)="4")),0,ROUND(SUMIF(Table5[GL Account],Table5[[#This Row],[GL Account]],Table5[Amount])-SUMIFS(Table2[Amount],Table2[Type],"Activity",Table2[Account Number],GLTB!A78),2))) -> 0 | N78: =IF(Table5[[#This Row],[Difference]]=0,"",IF(ISNA(VLOOKUP(Table5[[#This Row],[0]],Table1[],1,FALSE)),"","X")) -> 
A79: 71-0000-1960-696530-48885 | B79: Gen : Other Stu Fees & Charges : AS-Oper Activities : Stdnt Development/Campus Life : Assoc Students | C79: 2021-07-26 | D79: IV | E79: '0000040148' | F79: MJC Activity Fee | H79: 0 | I79: 1030 | J79: -1030 | K79: =IF(MID(Table5[[#This Row],[GL Account]],21,1)="2",MID(Table5[[#This Row],[ GL Description]],FIND(":",Table5[[#This Row],[ GL Description]],1)+2,FIND(":",Table5[[#This Row],[ GL Description]],FIND(":",Table5[[#This Row],[ GL Description]],1)+1)-FIND(":",Table5[[#This Row],[ GL Description]],1)-2),VLOOKUP(VALUE(MID(Table5[[#This Row],[GL Account]],14,6)),PgmList,2,FALSE)) -> Operating Activity | L79: =IF(MID(A79,21,1)="2",MID(A79,14,6)&" - "&MID(B79,FIND(":",B79,FIND(K79,B79,1))+2,FIND(":",B79,FIND(":",B79,FIND(K79,B79,1))+1)-FIND(":",B79,FIND(K79,B79,1))-2),IF(AND(MID(Table5[[#This Row],[GL Account]],14,6)<>"696530",MID(Table5[[#This Row],[GL Account]],14,6)<>"696570"),"",IF(MID(Table5[[#This Row],[GL Account]],21,2)="53","Fringe Benefits",VLOOKUP(RIGHT(Table5[[#This Row],[GL Account]],5),Object,2,FALSE))))&IF(RIGHT(Table5[[#This Row],[GL Account]],5)="29599",IF(MID(A79,4,4)="0000",""," "&MID(A79,4,4))&" - "&LEFT(Table5[[#This Row],[ GL Description]],FIND(" : ",Table5[[#This Row],[ GL Description]])),"") -> Misc Revenue | M79: =IF(MID(A79,21,1)="2",0,IF(OR(MID(Table5[[#This Row],[GL Account]],14,6)="696520",AND(MID(A79,14,6)="696530",MID(Table5[[#This Row],[GL Account]],21,1)="4")),0,ROUND(SUMIF(Table5[GL Account],Table5[[#This Row],[GL Account]],Table5[Amount])-SUMIFS(Table2[Amount],Table2[Type],"Activity",Table2[Account Number],GLTB!A79),2))) -> 0 | N79: =IF(Table5[[#This Row],[Difference]]=0,"",IF(ISNA(VLOOKUP(Table5[[#This Row],[0]],Table1[],1,FALSE)),"","X")) -> 
A80: 71-0000-1960-696530-48885 | B80: Gen : Other Stu Fees & Charges : AS-Oper Activities : Stdnt Development/Campus Life : Assoc Students | C80: 2021-07-26 | D80: IV | E80: '0000040150' | F80: MJC Activity Fee | H80: 0 | I80: 20 | J80: -20 | K80: =IF(MID(Table5[[#This Row],[GL Account]],21,1)="2",MID(Table5[[#This Row],[ GL Description]],FIND(":",Table5[[#This Row],[ GL Description]],1)+2,FIND(":",Table5[[#This Row],[ GL Description]],FIND(":",Table5[[#This Row],[ GL Description]],1)+1)-FIND(":",Table5[[#This Row],[ GL Description]],1)-2),VLOOKUP(VALUE(MID(Table5[[#This Row],[GL Account]],14,6)),PgmList,2,FALSE)) -> Operating Activity | L80: =IF(MID(A80,21,1)="2",MID(A80,14,6)&" - "&MID(B80,FIND(":",B80,FIND(K80,B80,1))+2,FIND(":",B80,FIND(":",B80,FIND(K80,B80,1))+1)-FIND(":",B80,FIND(K80,B80,1))-2),IF(AND(MID(Table5[[#This Row],[GL Account]],14,6)<>"696530",MID(Table5[[#This Row],[GL Account]],14,6)<>"696570"),"",IF(MID(Table5[[#This Row],[GL Account]],21,2)="53","Fringe Benefits",VLOOKUP(RIGHT(Table5[[#This Row],[GL Account]],5),Object,2,FALSE))))&IF(RIGHT(Table5[[#This Row],[GL Account]],5)="29599",IF(MID(A80,4,4)="0000",""," "&MID(A80,4,4))&" - "&LEFT(Table5[[#This Row],[ GL Description]],FIND(" : ",Table5[[#This Row],[ GL Description]])),"") -> Misc Revenue | M80: =IF(MID(A80,21,1)="2",0,IF(OR(MID(Table5[[#This Row],[GL Account]],14,6)="696520",AND(MID(A80,14,6)="696530",MID(Table5[[#This Row],[GL Account]],21,1)="4")),0,ROUND(SUMIF(Table5[GL Account],Table5[[#This Row],[GL Account]],Table5[Amount])-SUMIFS(Table2[Amount],Table2[Type],"Activity",Table2[Account Number],GLTB!A80),2))) -> 0 | N80: =IF(Table5[[#This Row],[Difference]]=0,"",IF(ISNA(VLOOKUP(Table5[[#This Row],[0]],Table1[],1,FALSE)),"","X")) -> 
A81: 71-0000-1960-696530-48885 | B81: Gen : Other Stu Fees & Charges : AS-Oper Activities : Stdnt Development/Campus Life : Assoc Students | C81: 2021-07-27 | D81: IV | E81: '0000040154' | F81: MJC Activity Fee | H81: 0 | I81: 1080 | J81: -1080 | K81: =IF(MID(Table5[[#This Row],[GL Account]],21,1)="2",MID(Table5[[#This Row],[ GL Description]],FIND(":",Table5[[#This Row],[ GL Description]],1)+2,FIND(":",Table5[[#This Row],[ GL Description]],FIND(":",Table5[[#This Row],[ GL Description]],1)+1)-FIND(":",Table5[[#This Row],[ GL Description]],1)-2),VLOOKUP(VALUE(MID(Table5[[#This Row],[GL Account]],14,6)),PgmList,2,FALSE)) -> Operating Activity | L81: =IF(MID(A81,21,1)="2",MID(A81,14,6)&" - "&MID(B81,FIND(":",B81,FIND(K81,B81,1))+2,FIND(":",B81,FIND(":",B81,FIND(K81,B81,1))+1)-FIND(":",B81,FIND(K81,B81,1))-2),IF(AND(MID(Table5[[#This Row],[GL Account]],14,6)<>"696530",MID(Table5[[#This Row],[GL Account]],14,6)<>"696570"),"",IF(MID(Table5[[#This Row],[GL Account]],21,2)="53","Fringe Benefits",VLOOKUP(RIGHT(Table5[[#This Row],[GL Account]],5),Object,2,FALSE))))&IF(RIGHT(Table5[[#This Row],[GL Account]],5)="29599",IF(MID(A81,4,4)="0000",""," "&MID(A81,4,4))&" - "&LEFT(Table5[[#This Row],[ GL Description]],FIND(" : ",Table5[[#This Row],[ GL Description]])),"") -> Misc Revenue | M81: =IF(MID(A81,21,1)="2",0,IF(OR(MID(Table5[[#This Row],[GL Account]],14,6)="696520",AND(MID(A81,14,6)="696530",MID(Table5[[#This Row],[GL Account]],21,1)="4")),0,ROUND(SUMIF(Table5[GL Account],Table5[[#This Row],[GL Account]],Table5[Amount])-SUMIFS(Table2[Amount],Table2[Type],"Activity",Table2[Account Number],GLTB!A81),2))) -> 0 | N81: =IF(Table5[[#This Row],[Difference]]=0,"",IF(ISNA(VLOOKUP(Table5[[#This Row],[0]],Table1[],1,FALSE)),"","X")) -> 
A82: 71-0000-1960-696530-48885 | B82: Gen : Other Stu Fees & Charges : AS-Oper Activities : Stdnt Development/Campus Life : Assoc Students | C82: 2021-07-27 | D82: IV | E82: '0000040155' | F82: MJC Activity Fee | H82: 0 | I82: 10 | J82: -10 | K82: =IF(MID(Table5[[#This Row],[GL Account]],21,1)="2",MID(Table5[[#This Row],[ GL Description]],FIND(":",Table5[[#This Row],[ GL Description]],1)+2,FIND(":",Table5[[#This Row],[ GL Description]],FIND(":",Table5[[#This Row],[ GL Description]],1)+1)-FIND(":",Table5[[#This Row],[ GL Description]],1)-2),VLOOKUP(VALUE(MID(Table5[[#This Row],[GL Account]],14,6)),PgmList,2,FALSE)) -> Operating Activity | L82: =IF(MID(A82,21,1)="2",MID(A82,14,6)&" - "&MID(B82,FIND(":",B82,FIND(K82,B82,1))+2,FIND(":",B82,FIND(":",B82,FIND(K82,B82,1))+1)-FIND(":",B82,FIND(K82,B82,1))-2),IF(AND(MID(Table5[[#This Row],[GL Account]],14,6)<>"696530",MID(Table5[[#This Row],[GL Account]],14,6)<>"696570"),"",IF(MID(Table5[[#This Row],[GL Account]],21,2)="53","Fringe Benefits",VLOOKUP(RIGHT(Table5[[#This Row],[GL Account]],5),Object,2,FALSE))))&IF(RIGHT(Table5[[#This Row],[GL Account]],5)="29599",IF(MID(A82,4,4)="0000",""," "&MID(A82,4,4))&" - "&LEFT(Table5[[#This Row],[ GL Description]],FIND(" : ",Table5[[#This Row],[ GL Description]])),"") -> Misc Revenue | M82: =IF(MID(A82,21,1)="2",0,IF(OR(MID(Table5[[#This Row],[GL Account]],14,6)="696520",AND(MID(A82,14,6)="696530",MID(Table5[[#This Row],[GL Account]],21,1)="4")),0,ROUND(SUMIF(Table5[GL Account],Table5[[#This Row],[GL Account]],Table5[Amount])-SUMIFS(Table2[Amount],Table2[Type],"Activity",Table2[Account Number],GLTB!A82),2))) -> 0 | N82: =IF(Table5[[#This Row],[Difference]]=0,"",IF(ISNA(VLOOKUP(Table5[[#This Row],[0]],Table1[],1,FALSE)),"","X")) -> 
A83: 71-0000-1960-696530-48885 | B83: Gen : Other Stu Fees & Charges : AS-Oper Activities : Stdnt Development/Campus Life : Assoc Students | C83: 2021-07-28 | D83: IV | E83: '0000040159' | F83: MJC Activity Fee | H83: 0 | I83: 1000 | J83: -1000 | K83: =IF(MID(Table5[[#This Row],[GL Account]],21,1)="2",MID(Table5[[#This Row],[ GL Description]],FIND(":",Table5[[#This Row],[ GL Description]],1)+2,FIND(":",Table5[[#This Row],[ GL Description]],FIND(":",Table5[[#This Row],[ GL Description]],1)+1)-FIND(":",Table5[[#This Row],[ GL Description]],1)-2),VLOOKUP(VALUE(MID(Table5[[#This Row],[GL Account]],14,6)),PgmList,2,FALSE)) -> Operating Activity | L83: =IF(MID(A83,21,1)="2",MID(A83,14,6)&" - "&MID(B83,FIND(":",B83,FIND(K83,B83,1))+2,FIND(":",B83,FIND(":",B83,FIND(K83,B83,1))+1)-FIND(":",B83,FIND(K83,B83,1))-2),IF(AND(MID(Table5[[#This Row],[GL Account]],14,6)<>"696530",MID(Table5[[#This Row],[GL Account]],14,6)<>"696570"),"",IF(MID(Table5[[#This Row],[GL Account]],21,2)="53","Fringe Benefits",VLOOKUP(RIGHT(Table5[[#This Row],[GL Account]],5),Object,2,FALSE))))&IF(RIGHT(Table5[[#This Row],[GL Account]],5)="29599",IF(MID(A83,4,4)="0000",""," "&MID(A83,4,4))&" - "&LEFT(Table5[[#This Row],[ GL Description]],FIND(" : ",Table5[[#This Row],[ GL Description]])),"") -> Misc Revenue | M83: =IF(MID(A83,21,1)="2",0,IF(OR(MID(Table5[[#This Row],[GL Account]],14,6)="696520",AND(MID(A83,14,6)="696530",MID(Table5[[#This Row],[GL Account]],21,1)="4")),0,ROUND(SUMIF(Table5[GL Account],Table5[[#This Row],[GL Account]],Table5[Amount])-SUMIFS(Table2[Amount],Table2[Type],"Activity",Table2[Account Number],GLTB!A83),2))) -> 0 | N83: =IF(Table5[[#This Row],[Difference]]=0,"",IF(ISNA(VLOOKUP(Table5[[#This Row],[0]],Table1[],1,FALSE)),"","X")) -> 
A84: 71-0000-1960-696530-48885 | B84: Gen : Other Stu Fees & Charges : AS-Oper Activities : Stdnt Development/Campus Life : Assoc Students | C84: 2021-07-29 | D84: IV | E84: '0000040165' | F84: MJC Activity Fee | H84: 0 | I84: 1210 | J84: -1210 | K84: =IF(MID(Table5[[#This Row],[GL Account]],21,1)="2",MID(Table5[[#This Row],[ GL Description]],FIND(":",Table5[[#This Row],[ GL Description]],1)+2,FIND(":",Table5[[#This Row],[ GL Description]],FIND(":",Table5[[#This Row],[ GL Description]],1)+1)-FIND(":",Table5[[#This Row],[ GL Description]],1)-2),VLOOKUP(VALUE(MID(Table5[[#This Row],[GL Account]],14,6)),PgmList,2,FALSE)) -> Operating Activity | L84: =IF(MID(A84,21,1)="2",MID(A84,14,6)&" - "&MID(B84,FIND(":",B84,FIND(K84,B84,1))+2,FIND(":",B84,FIND(":",B84,FIND(K84,B84,1))+1)-FIND(":",B84,FIND(K84,B84,1))-2),IF(AND(MID(Table5[[#This Row],[GL Account]],14,6)<>"696530",MID(Table5[[#This Row],[GL Account]],14,6)<>"696570"),"",IF(MID(Table5[[#This Row],[GL Account]],21,2)="53","Fringe Benefits",VLOOKUP(RIGHT(Table5[[#This Row],[GL Account]],5),Object,2,FALSE))))&IF(RIGHT(Table5[[#This Row],[GL Account]],5)="29599",IF(MID(A84,4,4)="0000",""," "&MID(A84,4,4))&" - "&LEFT(Table5[[#This Row],[ GL Description]],FIND(" : ",Table5[[#This Row],[ GL Description]])),"") -> Misc Revenue | M84: =IF(MID(A84,21,1)="2",0,IF(OR(MID(Table5[[#This Row],[GL Account]],14,6)="696520",AND(MID(A84,14,6)="696530",MID(Table5[[#This Row],[GL Account]],21,1)="4")),0,ROUND(SUMIF(Table5[GL Account],Table5[[#This Row],[GL Account]],Table5[Amount])-SUMIFS(Table2[Amount],Table2[Type],"Activity",Table2[Account Number],GLTB!A84),2))) -> 0 | N84: =IF(Table5[[#This Row],[Difference]]=0,"",IF(ISNA(VLOOKUP(Table5[[#This Row],[0]],Table1[],1,FALSE)),"","X")) -> 
A85: 71-0000-1960-696530-48885 | B85: Gen : Other Stu Fees & Charges : AS-Oper Activities : Stdnt Development/Campus Life : Assoc Students | C85: 2021-07-29 | D85: IV | E85: '0000040166' | F85: MJC Activity Fee | H85: 10 | I85: 0 | J85: 10 | K85: =IF(MID(Table5[[#This Row],[GL Account]],21,1)="2",MID(Table5[[#This Row],[ GL Description]],FIND(":",Table5[[#This Row],[ GL Description]],1)+2,FIND(":",Table5[[#This Row],[ GL Description]],FIND(":",Table5[[#This Row],[ GL Description]],1)+1)-FIND(":",Table5[[#This Row],[ GL Description]],1)-2),VLOOKUP(VALUE(MID(Table5[[#This Row],[GL Account]],14,6)),PgmList,2,FALSE)) -> Operating Activity | L85: =IF(MID(A85,21,1)="2",MID(A85,14,6)&" - "&MID(B85,FIND(":",B85,FIND(K85,B85,1))+2,FIND(":",B85,FIND(":",B85,FIND(K85,B85,1))+1)-FIND(":",B85,FIND(K85,B85,1))-2),IF(AND(MID(Table5[[#This Row],[GL Account]],14,6)<>"696530",MID(Table5[[#This Row],[GL Account]],14,6)<>"696570"),"",IF(MID(Table5[[#This Row],[GL Account]],21,2)="53","Fringe Benefits",VLOOKUP(RIGHT(Table5[[#This Row],[GL Account]],5),Object,2,FALSE))))&IF(RIGHT(Table5[[#This Row],[GL Account]],5)="29599",IF(MID(A85,4,4)="0000",""," "&MID(A85,4,4))&" - "&LEFT(Table5[[#This Row],[ GL Description]],FIND(" : ",Table5[[#This Row],[ GL Description]])),"") -> Misc Revenue | M85: =IF(MID(A85,21,1)="2",0,IF(OR(MID(Table5[[#This Row],[GL Account]],14,6)="696520",AND(MID(A85,14,6)="696530",MID(Table5[[#This Row],[GL Account]],21,1)="4")),0,ROUND(SUMIF(Table5[GL Account],Table5[[#This Row],[GL Account]],Table5[Amount])-SUMIFS(Table2[Amount],Table2[Type],"Activity",Table2[Account Number],GLTB!A85),2))) -> 0 | N85: =IF(Table5[[#This Row],[Difference]]=0,"",IF(ISNA(VLOOKUP(Table5[[#This Row],[0]],Table1[],1,FALSE)),"","X")) -> 
A86: 71-0000-1960-696530-48885 | B86: Gen : Other Stu Fees & Charges : AS-Oper Activities : Stdnt Development/Campus Life : Assoc Students | C86: 2021-07-29 | D86: IV | E86: '0000040167' | F86: MJC Activity Fee | H86: 10 | I86: 0 | J86: 10 | K86: =IF(MID(Table5[[#This Row],[GL Account]],21,1)="2",MID(Table5[[#This Row],[ GL Description]],FIND(":",Table5[[#This Row],[ GL Description]],1)+2,FIND(":",Table5[[#This Row],[ GL Description]],FIND(":",Table5[[#This Row],[ GL Description]],1)+1)-FIND(":",Table5[[#This Row],[ GL Description]],1)-2),VLOOKUP(VALUE(MID(Table5[[#This Row],[GL Account]],14,6)),PgmList,2,FALSE)) -> Operating Activity | L86: =IF(MID(A86,21,1)="2",MID(A86,14,6)&" - "&MID(B86,FIND(":",B86,FIND(K86,B86,1))+2,FIND(":",B86,FIND(":",B86,FIND(K86,B86,1))+1)-FIND(":",B86,FIND(K86,B86,1))-2),IF(AND(MID(Table5[[#This Row],[GL Account]],14,6)<>"696530",MID(Table5[[#This Row],[GL Account]],14,6)<>"696570"),"",IF(MID(Table5[[#This Row],[GL Account]],21,2)="53","Fringe Benefits",VLOOKUP(RIGHT(Table5[[#This Row],[GL Account]],5),Object,2,FALSE))))&IF(RIGHT(Table5[[#This Row],[GL Account]],5)="29599",IF(MID(A86,4,4)="0000",""," "&MID(A86,4,4))&" - "&LEFT(Table5[[#This Row],[ GL Description]],FIND(" : ",Table5[[#This Row],[ GL Description]])),"") -> Misc Revenue | M86: =IF(MID(A86,21,1)="2",0,IF(OR(MID(Table5[[#This Row],[GL Account]],14,6)="696520",AND(MID(A86,14,6)="696530",MID(Table5[[#This Row],[GL Account]],21,1)="4")),0,ROUND(SUMIF(Table5[GL Account],Table5[[#This Row],[GL Account]],Table5[Amount])-SUMIFS(Table2[Amount],Table2[Type],"Activity",Table2[Account Number],GLTB!A86),2))) -> 0 | N86: =IF(Table5[[#This Row],[Difference]]=0,"",IF(ISNA(VLOOKUP(Table5[[#This Row],[0]],Table1[],1,FALSE)),"","X")) -> 
A87: 71-0000-1960-696530-48885 | B87: Gen : Other Stu Fees & Charges : AS-Oper Activities : Stdnt Development/Campus Life : Assoc Students | C87: 2021-07-30 | D87: IV | E87: '0000040169' | F87: MJC Activity Fee | H87: 0 | I87: 610 | J87: -610 | K87: =IF(MID(Table5[[#This Row],[GL Account]],21,1)="2",MID(Table5[[#This Row],[ GL Description]],FIND(":",Table5[[#This Row],[ GL Description]],1)+2,FIND(":",Table5[[#This Row],[ GL Description]],FIND(":",Table5[[#This Row],[ GL Description]],1)+1)-FIND(":",Table5[[#This Row],[ GL Description]],1)-2),VLOOKUP(VALUE(MID(Table5[[#This Row],[GL Account]],14,6)),PgmList,2,FALSE)) -> Operating Activity | L87: =IF(MID(A87,21,1)="2",MID(A87,14,6)&" - "&MID(B87,FIND(":",B87,FIND(K87,B87,1))+2,FIND(":",B87,FIND(":",B87,FIND(K87,B87,1))+1)-FIND(":",B87,FIND(K87,B87,1))-2),IF(AND(MID(Table5[[#This Row],[GL Account]],14,6)<>"696530",MID(Table5[[#This Row],[GL Account]],14,6)<>"696570"),"",IF(MID(Table5[[#This Row],[GL Account]],21,2)="53","Fringe Benefits",VLOOKUP(RIGHT(Table5[[#This Row],[GL Account]],5),Object,2,FALSE))))&IF(RIGHT(Table5[[#This Row],[GL Account]],5)="29599",IF(MID(A87,4,4)="0000",""," "&MID(A87,4,4))&" - "&LEFT(Table5[[#This Row],[ GL Description]],FIND(" : ",Table5[[#This Row],[ GL Description]])),"") -> Misc Revenue | M87: =IF(MID(A87,21,1)="2",0,IF(OR(MID(Table5[[#This Row],[GL Account]],14,6)="696520",AND(MID(A87,14,6)="696530",MID(Table5[[#This Row],[GL Account]],21,1)="4")),0,ROUND(SUMIF(Table5[GL Account],Table5[[#This Row],[GL Account]],Table5[Amount])-SUMIFS(Table2[Amount],Table2[Type],"Activity",Table2[Account Number],GLTB!A87),2))) -> 0 | N87: =IF(Table5[[#This Row],[Difference]]=0,"",IF(ISNA(VLOOKUP(Table5[[#This Row],[0]],Table1[],1,FALSE)),"","X")) -> 
A88: 71-0000-1960-696530-48885 | B88: Gen : Other Stu Fees & Charges : AS-Oper Activities : Stdnt Development/Campus Life : Assoc Students | C88: 2021-07-31 | D88: IV | E88: '0000040171' | F88: MJC Activity Fee | H88: 0 | I88: 270 | J88: -270 | K88: =IF(MID(Table5[[#This Row],[GL Account]],21,1)="2",MID(Table5[[#This Row],[ GL Description]],FIND(":",Table5[[#This Row],[ GL Description]],1)+2,FIND(":",Table5[[#This Row],[ GL Description]],FIND(":",Table5[[#This Row],[ GL Description]],1)+1)-FIND(":",Table5[[#This Row],[ GL Description]],1)-2),VLOOKUP(VALUE(MID(Table5[[#This Row],[GL Account]],14,6)),PgmList,2,FALSE)) -> Operating Activity | L88: =IF(MID(A88,21,1)="2",MID(A88,14,6)&" - "&MID(B88,FIND(":",B88,FIND(K88,B88,1))+2,FIND(":",B88,FIND(":",B88,FIND(K88,B88,1))+1)-FIND(":",B88,FIND(K88,B88,1))-2),IF(AND(MID(Table5[[#This Row],[GL Account]],14,6)<>"696530",MID(Table5[[#This Row],[GL Account]],14,6)<>"696570"),"",IF(MID(Table5[[#This Row],[GL Account]],21,2)="53","Fringe Benefits",VLOOKUP(RIGHT(Table5[[#This Row],[GL Account]],5),Object,2,FALSE))))&IF(RIGHT(Table5[[#This Row],[GL Account]],5)="29599",IF(MID(A88,4,4)="0000",""," "&MID(A88,4,4))&" - "&LEFT(Table5[[#This Row],[ GL Description]],FIND(" : ",Table5[[#This Row],[ GL Description]])),"") -> Misc Revenue | M88: =IF(MID(A88,21,1)="2",0,IF(OR(MID(Table5[[#This Row],[GL Account]],14,6)="696520",AND(MID(A88,14,6)="696530",MID(Table5[[#This Row],[GL Account]],21,1)="4")),0,ROUND(SUMIF(Table5[GL Account],Table5[[#This Row],[GL Account]],Table5[Amount])-SUMIFS(Table2[Amount],Table2[Type],"Activity",Table2[Account Number],GLTB!A88),2))) -> 0 | N88: =IF(Table5[[#This Row],[Difference]]=0,"",IF(ISNA(VLOOKUP(Table5[[#This Row],[0]],Table1[],1,FALSE)),"","X")) -> 
A89: 71-0000-1960-696530-48885 | B89: Gen : Other Stu Fees & Charges : AS-Oper Activities : Stdnt Development/Campus Life : Assoc Students | C89: 2021-08-01 | D89: IV | E89: '0000040175' | F89: MJC Activity Fee | H89: 0 | I89: 370 | J89: -370 | K89: =IF(MID(Table5[[#This Row],[GL Account]],21,1)="2",MID(Table5[[#This Row],[ GL Description]],FIND(":",Table5[[#This Row],[ GL Description]],1)+2,FIND(":",Table5[[#This Row],[ GL Description]],FIND(":",Table5[[#This Row],[ GL Description]],1)+1)-FIND(":",Table5[[#This Row],[ GL Description]],1)-2),VLOOKUP(VALUE(MID(Table5[[#This Row],[GL Account]],14,6)),PgmList,2,FALSE)) -> Operating Activity | L89: =IF(MID(A89,21,1)="2",MID(A89,14,6)&" - "&MID(B89,FIND(":",B89,FIND(K89,B89,1))+2,FIND(":",B89,FIND(":",B89,FIND(K89,B89,1))+1)-FIND(":",B89,FIND(K89,B89,1))-2),IF(AND(MID(Table5[[#This Row],[GL Account]],14,6)<>"696530",MID(Table5[[#This Row],[GL Account]],14,6)<>"696570"),"",IF(MID(Table5[[#This Row],[GL Account]],21,2)="53","Fringe Benefits",VLOOKUP(RIGHT(Table5[[#This Row],[GL Account]],5),Object,2,FALSE))))&IF(RIGHT(Table5[[#This Row],[GL Account]],5)="29599",IF(MID(A89,4,4)="0000",""," "&MID(A89,4,4))&" - "&LEFT(Table5[[#This Row],[ GL Description]],FIND(" : ",Table5[[#This Row],[ GL Description]])),"") -> Misc Revenue | M89: =IF(MID(A89,21,1)="2",0,IF(OR(MID(Table5[[#This Row],[GL Account]],14,6)="696520",AND(MID(A89,14,6)="696530",MID(Table5[[#This Row],[GL Account]],21,1)="4")),0,ROUND(SUMIF(Table5[GL Account],Table5[[#This Row],[GL Account]],Table5[Amount])-SUMIFS(Table2[Amount],Table2[Type],"Activity",Table2[Account Number],GLTB!A89),2))) -> 0 | N89: =IF(Table5[[#This Row],[Difference]]=0,"",IF(ISNA(VLOOKUP(Table5[[#This Row],[0]],Table1[],1,FALSE)),"","X")) -> 
A90: 71-0000-1960-696530-48885 | B90: Gen : Other Stu Fees & Charges : AS-Oper Activities : Stdnt Development/Campus Life : Assoc Students | C90: 2021-08-02 | D90: IV | E90: '0000040181' | F90: MJC Activity Fee | H90: 0 | I90: 1320 | J90: -1320 | K90: =IF(MID(Table5[[#This Row],[GL Account]],21,1)="2",MID(Table5[[#This Row],[ GL Description]],FIND(":",Table5[[#This Row],[ GL Description]],1)+2,FIND(":",Table5[[#This Row],[ GL Description]],FIND(":",Table5[[#This Row],[ GL Description]],1)+1)-FIND(":",Table5[[#This Row],[ GL Description]],1)-2),VLOOKUP(VALUE(MID(Table5[[#This Row],[GL Account]],14,6)),PgmList,2,FALSE)) -> Operating Activity | L90: =IF(MID(A90,21,1)="2",MID(A90,14,6)&" - "&MID(B90,FIND(":",B90,FIND(K90,B90,1))+2,FIND(":",B90,FIND(":",B90,FIND(K90,B90,1))+1)-FIND(":",B90,FIND(K90,B90,1))-2),IF(AND(MID(Table5[[#This Row],[GL Account]],14,6)<>"696530",MID(Table5[[#This Row],[GL Account]],14,6)<>"696570"),"",IF(MID(Table5[[#This Row],[GL Account]],21,2)="53","Fringe Benefits",VLOOKUP(RIGHT(Table5[[#This Row],[GL Account]],5),Object,2,FALSE))))&IF(RIGHT(Table5[[#This Row],[GL Account]],5)="29599",IF(MID(A90,4,4)="0000",""," "&MID(A90,4,4))&" - "&LEFT(Table5[[#This Row],[ GL Description]],FIND(" : ",Table5[[#This Row],[ GL Description]])),"") -> Misc Revenue | M90: =IF(MID(A90,21,1)="2",0,IF(OR(MID(Table5[[#This Row],[GL Account]],14,6)="696520",AND(MID(A90,14,6)="696530",MID(Table5[[#This Row],[GL Account]],21,1)="4")),0,ROUND(SUMIF(Table5[GL Account],Table5[[#This Row],[GL Account]],Table5[Amount])-SUMIFS(Table2[Amount],Table2[Type],"Activity",Table2[Account Number],GLTB!A90),2))) -> 0 | N90: =IF(Table5[[#This Row],[Difference]]=0,"",IF(ISNA(VLOOKUP(Table5[[#This Row],[0]],Table1[],1,FALSE)),"","X")) -> 
A91: 71-0000-1960-696530-48885 | B91: Gen : Other Stu Fees & Charges : AS-Oper Activities : Stdnt Development/Campus Life : Assoc Students | C91: 2021-08-02 | D91: IV | E91: '0000040182' | F91: MJC Activity Fee | H91: 0 | I91: 10 | J91: -10 | K91: =IF(MID(Table5[[#This Row],[GL Account]],21,1)="2",MID(Table5[[#This Row],[ GL Description]],FIND(":",Table5[[#This Row],[ GL Description]],1)+2,FIND(":",Table5[[#This Row],[ GL Description]],FIND(":",Table5[[#This Row],[ GL Description]],1)+1)-FIND(":",Table5[[#This Row],[ GL Description]],1)-2),VLOOKUP(VALUE(MID(Table5[[#This Row],[GL Account]],14,6)),PgmList,2,FALSE)) -> Operating Activity | L91: =IF(MID(A91,21,1)="2",MID(A91,14,6)&" - "&MID(B91,FIND(":",B91,FIND(K91,B91,1))+2,FIND(":",B91,FIND(":",B91,FIND(K91,B91,1))+1)-FIND(":",B91,FIND(K91,B91,1))-2),IF(AND(MID(Table5[[#This Row],[GL Account]],14,6)<>"696530",MID(Table5[[#This Row],[GL Account]],14,6)<>"696570"),"",IF(MID(Table5[[#This Row],[GL Account]],21,2)="53","Fringe Benefits",VLOOKUP(RIGHT(Table5[[#This Row],[GL Account]],5),Object,2,FALSE))))&IF(RIGHT(Table5[[#This Row],[GL Account]],5)="29599",IF(MID(A91,4,4)="0000",""," "&MID(A91,4,4))&" - "&LEFT(Table5[[#This Row],[ GL Description]],FIND(" : ",Table5[[#This Row],[ GL Description]])),"") -> Misc Revenue | M91: =IF(MID(A91,21,1)="2",0,IF(OR(MID(Table5[[#This Row],[GL Account]],14,6)="696520",AND(MID(A91,14,6)="696530",MID(Table5[[#This Row],[GL Account]],21,1)="4")),0,ROUND(SUMIF(Table5[GL Account],Table5[[#This Row],[GL Account]],Table5[Amount])-SUMIFS(Table2[Amount],Table2[Type],"Activity",Table2[Account Number],GLTB!A91),2))) -> 0 | N91: =IF(Table5[[#This Row],[Difference]]=0,"",IF(ISNA(VLOOKUP(Table5[[#This Row],[0]],Table1[],1,FALSE)),"","X")) -> 
A92: 71-0000-1960-696530-48885 | B92: Gen : Other Stu Fees & Charges : AS-Oper Activities : Stdnt Development/Campus Life : Assoc Students | C92: 2021-08-03 | D92: IV | E92: '0000040187' | F92: MJC Activity Fee | H92: 0 | I92: 1600 | J92: -1600 | K92: =IF(MID(Table5[[#This Row],[GL Account]],21,1)="2",MID(Table5[[#This Row],[ GL Description]],FIND(":",Table5[[#This Row],[ GL Description]],1)+2,FIND(":",Table5[[#This Row],[ GL Description]],FIND(":",Table5[[#This Row],[ GL Description]],1)+1)-FIND(":",Table5[[#This Row],[ GL Description]],1)-2),VLOOKUP(VALUE(MID(Table5[[#This Row],[GL Account]],14,6)),PgmList,2,FALSE)) -> Operating Activity | L92: =IF(MID(A92,21,1)="2",MID(A92,14,6)&" - "&MID(B92,FIND(":",B92,FIND(K92,B92,1))+2,FIND(":",B92,FIND(":",B92,FIND(K92,B92,1))+1)-FIND(":",B92,FIND(K92,B92,1))-2),IF(AND(MID(Table5[[#This Row],[GL Account]],14,6)<>"696530",MID(Table5[[#This Row],[GL Account]],14,6)<>"696570"),"",IF(MID(Table5[[#This Row],[GL Account]],21,2)="53","Fringe Benefits",VLOOKUP(RIGHT(Table5[[#This Row],[GL Account]],5),Object,2,FALSE))))&IF(RIGHT(Table5[[#This Row],[GL Account]],5)="29599",IF(MID(A92,4,4)="0000",""," "&MID(A92,4,4))&" - "&LEFT(Table5[[#This Row],[ GL Description]],FIND(" : ",Table5[[#This Row],[ GL Description]])),"") -> Misc Revenue | M92: =IF(MID(A92,21,1)="2",0,IF(OR(MID(Table5[[#This Row],[GL Account]],14,6)="696520",AND(MID(A92,14,6)="696530",MID(Table5[[#This Row],[GL Account]],21,1)="4")),0,ROUND(SUMIF(Table5[GL Account],Table5[[#This Row],[GL Account]],Table5[Amount])-SUMIFS(Table2[Amount],Table2[Type],"Activity",Table2[Account Number],GLTB!A92),2))) -> 0 | N92: =IF(Table5[[#This Row],[Difference]]=0,"",IF(ISNA(VLOOKUP(Table5[[#This Row],[0]],Table1[],1,FALSE)),"","X")) -> 
A93: 71-0000-1960-696530-48885 | B93: Gen : Other Stu Fees & Charges : AS-Oper Activities : Stdnt Development/Campus Life : Assoc Students | C93: 2021-08-04 | D93: IV | E93: '0000040193' | F93: MJC Activity Fee | H93: 0 | I93: 1310 | J93: -1310 | K93: =IF(MID(Table5[[#This Row],[GL Account]],21,1)="2",MID(Table5[[#This Row],[ GL Description]],FIND(":",Table5[[#This Row],[ GL Description]],1)+2,FIND(":",Table5[[#This Row],[ GL Description]],FIND(":",Table5[[#This Row],[ GL Description]],1)+1)-FIND(":",Table5[[#This Row],[ GL Description]],1)-2),VLOOKUP(VALUE(MID(Table5[[#This Row],[GL Account]],14,6)),PgmList,2,FALSE)) -> Operating Activity | L93: =IF(MID(A93,21,1)="2",MID(A93,14,6)&" - "&MID(B93,FIND(":",B93,FIND(K93,B93,1))+2,FIND(":",B93,FIND(":",B93,FIND(K93,B93,1))+1)-FIND(":",B93,FIND(K93,B93,1))-2),IF(AND(MID(Table5[[#This Row],[GL Account]],14,6)<>"696530",MID(Table5[[#This Row],[GL Account]],14,6)<>"696570"),"",IF(MID(Table5[[#This Row],[GL Account]],21,2)="53","Fringe Benefits",VLOOKUP(RIGHT(Table5[[#This Row],[GL Account]],5),Object,2,FALSE))))&IF(RIGHT(Table5[[#This Row],[GL Account]],5)="29599",IF(MID(A93,4,4)="0000",""," "&MID(A93,4,4))&" - "&LEFT(Table5[[#This Row],[ GL Description]],FIND(" : ",Table5[[#This Row],[ GL Description]])),"") -> Misc Revenue | M93: =IF(MID(A93,21,1)="2",0,IF(OR(MID(Table5[[#This Row],[GL Account]],14,6)="696520",AND(MID(A93,14,6)="696530",MID(Table5[[#This Row],[GL Account]],21,1)="4")),0,ROUND(SUMIF(Table5[GL Account],Table5[[#This Row],[GL Account]],Table5[Amount])-SUMIFS(Table2[Amount],Table2[Type],"Activity",Table2[Account Number],GLTB!A93),2))) -> 0 | N93: =IF(Table5[[#This Row],[Difference]]=0,"",IF(ISNA(VLOOKUP(Table5[[#This Row],[0]],Table1[],1,FALSE)),"","X")) -> 
A94: 71-0000-1960-696530-48885 | B94: Gen : Other Stu Fees & Charges : AS-Oper Activities : Stdnt Development/Campus Life : Assoc Students | C94: 2021-08-05 | D94: IV | E94: '0000040197' | F94: MJC Activity Fee | H94: 0 | I94: 1180 | J94: -1180 | K94: =IF(MID(Table5[[#This Row],[GL Account]],21,1)="2",MID(Table5[[#This Row],[ GL Description]],FIND(":",Table5[[#This Row],[ GL Description]],1)+2,FIND(":",Table5[[#This Row],[ GL Description]],FIND(":",Table5[[#This Row],[ GL Description]],1)+1)-FIND(":",Table5[[#This Row],[ GL Description]],1)-2),VLOOKUP(VALUE(MID(Table5[[#This Row],[GL Account]],14,6)),PgmList,2,FALSE)) -> Operating Activity | L94: =IF(MID(A94,21,1)="2",MID(A94,14,6)&" - "&MID(B94,FIND(":",B94,FIND(K94,B94,1))+2,FIND(":",B94,FIND(":",B94,FIND(K94,B94,1))+1)-FIND(":",B94,FIND(K94,B94,1))-2),IF(AND(MID(Table5[[#This Row],[GL Account]],14,6)<>"696530",MID(Table5[[#This Row],[GL Account]],14,6)<>"696570"),"",IF(MID(Table5[[#This Row],[GL Account]],21,2)="53","Fringe Benefits",VLOOKUP(RIGHT(Table5[[#This Row],[GL Account]],5),Object,2,FALSE))))&IF(RIGHT(Table5[[#This Row],[GL Account]],5)="29599",IF(MID(A94,4,4)="0000",""," "&MID(A94,4,4))&" - "&LEFT(Table5[[#This Row],[ GL Description]],FIND(" : ",Table5[[#This Row],[ GL Description]])),"") -> Misc Revenue | M94: =IF(MID(A94,21,1)="2",0,IF(OR(MID(Table5[[#This Row],[GL Account]],14,6)="696520",AND(MID(A94,14,6)="696530",MID(Table5[[#This Row],[GL Account]],21,1)="4")),0,ROUND(SUMIF(Table5[GL Account],Table5[[#This Row],[GL Account]],Table5[Amount])-SUMIFS(Table2[Amount],Table2[Type],"Activity",Table2[Account Number],GLTB!A94),2))) -> 0 | N94: =IF(Table5[[#This Row],[Difference]]=0,"",IF(ISNA(VLOOKUP(Table5[[#This Row],[0]],Table1[],1,FALSE)),"","X")) -> 
A95: 71-0000-1960-696530-48885 | B95: Gen : Other Stu Fees & Charges : AS-Oper Activities : Stdnt Development/Campus Life : Assoc Students | C95: 2021-08-06 | D95: IV | E95: '0000040201' | F95: MJC Activity Fee | H95: 0 | I95: 560 | J95: -560 | K95: =IF(MID(Table5[[#This Row],[GL Account]],21,1)="2",MID(Table5[[#This Row],[ GL Description]],FIND(":",Table5[[#This Row],[ GL Description]],1)+2,FIND(":",Table5[[#This Row],[ GL Description]],FIND(":",Table5[[#This Row],[ GL Description]],1)+1)-FIND(":",Table5[[#This Row],[ GL Description]],1)-2),VLOOKUP(VALUE(MID(Table5[[#This Row],[GL Account]],14,6)),PgmList,2,FALSE)) -> Operating Activity | L95: =IF(MID(A95,21,1)="2",MID(A95,14,6)&" - "&MID(B95,FIND(":",B95,FIND(K95,B95,1))+2,FIND(":",B95,FIND(":",B95,FIND(K95,B95,1))+1)-FIND(":",B95,FIND(K95,B95,1))-2),IF(AND(MID(Table5[[#This Row],[GL Account]],14,6)<>"696530",MID(Table5[[#This Row],[GL Account]],14,6)<>"696570"),"",IF(MID(Table5[[#This Row],[GL Account]],21,2)="53","Fringe Benefits",VLOOKUP(RIGHT(Table5[[#This Row],[GL Account]],5),Object,2,FALSE))))&IF(RIGHT(Table5[[#This Row],[GL Account]],5)="29599",IF(MID(A95,4,4)="0000",""," "&MID(A95,4,4))&" - "&LEFT(Table5[[#This Row],[ GL Description]],FIND(" : ",Table5[[#This Row],[ GL Description]])),"") -> Misc Revenue | M95: =IF(MID(A95,21,1)="2",0,IF(OR(MID(Table5[[#This Row],[GL Account]],14,6)="696520",AND(MID(A95,14,6)="696530",MID(Table5[[#This Row],[GL Account]],21,1)="4")),0,ROUND(SUMIF(Table5[GL Account],Table5[[#This Row],[GL Account]],Table5[Amount])-SUMIFS(Table2[Amount],Table2[Type],"Activity",Table2[Account Number],GLTB!A95),2))) -> 0 | N95: =IF(Table5[[#This Row],[Difference]]=0,"",IF(ISNA(VLOOKUP(Table5[[#This Row],[0]],Table1[],1,FALSE)),"","X")) -> 
A96: 71-0000-1960-696530-48885 | B96: Gen : Other Stu Fees & Charges : AS-Oper Activities : Stdnt Development/Campus Life : Assoc Students | C96: 2021-08-06 | D96: IV | E96: '0000040202' | F96: MJC Activity Fee | H96: 10 | I96: 0 | J96: 10 | K96: =IF(MID(Table5[[#This Row],[GL Account]],21,1)="2",MID(Table5[[#This Row],[ GL Description]],FIND(":",Table5[[#This Row],[ GL Description]],1)+2,FIND(":",Table5[[#This Row],[ GL Description]],FIND(":",Table5[[#This Row],[ GL Description]],1)+1)-FIND(":",Table5[[#This Row],[ GL Description]],1)-2),VLOOKUP(VALUE(MID(Table5[[#This Row],[GL Account]],14,6)),PgmList,2,FALSE)) -> Operating Activity | L96: =IF(MID(A96,21,1)="2",MID(A96,14,6)&" - "&MID(B96,FIND(":",B96,FIND(K96,B96,1))+2,FIND(":",B96,FIND(":",B96,FIND(K96,B96,1))+1)-FIND(":",B96,FIND(K96,B96,1))-2),IF(AND(MID(Table5[[#This Row],[GL Account]],14,6)<>"696530",MID(Table5[[#This Row],[GL Account]],14,6)<>"696570"),"",IF(MID(Table5[[#This Row],[GL Account]],21,2)="53","Fringe Benefits",VLOOKUP(RIGHT(Table5[[#This Row],[GL Account]],5),Object,2,FALSE))))&IF(RIGHT(Table5[[#This Row],[GL Account]],5)="29599",IF(MID(A96,4,4)="0000",""," "&MID(A96,4,4))&" - "&LEFT(Table5[[#This Row],[ GL Description]],FIND(" : ",Table5[[#This Row],[ GL Description]])),"") -> Misc Revenue | M96: =IF(MID(A96,21,1)="2",0,IF(OR(MID(Table5[[#This Row],[GL Account]],14,6)="696520",AND(MID(A96,14,6)="696530",MID(Table5[[#This Row],[GL Account]],21,1)="4")),0,ROUND(SUMIF(Table5[GL Account],Table5[[#This Row],[GL Account]],Table5[Amount])-SUMIFS(Table2[Amount],Table2[Type],"Activity",Table2[Account Number],GLTB!A96),2))) -> 0 | N96: =IF(Table5[[#This Row],[Difference]]=0,"",IF(ISNA(VLOOKUP(Table5[[#This Row],[0]],Table1[],1,FALSE)),"","X")) -> 
A97: 71-0000-1960-696530-48885 | B97: Gen : Other Stu Fees & Charges : AS-Oper Activities : Stdnt Development/Campus Life : Assoc Students | C97: 2021-08-07 | D97: IV | E97: '0000040204' | F97: MJC Activity Fee | H97: 0 | I97: 400 | J97: -400 | K97: =IF(MID(Table5[[#This Row],[GL Account]],21,1)="2",MID(Table5[[#This Row],[ GL Description]],FIND(":",Table5[[#This Row],[ GL Description]],1)+2,FIND(":",Table5[[#This Row],[ GL Description]],FIND(":",Table5[[#This Row],[ GL Description]],1)+1)-FIND(":",Table5[[#This Row],[ GL Description]],1)-2),VLOOKUP(VALUE(MID(Table5[[#This Row],[GL Account]],14,6)),PgmList,2,FALSE)) -> Operating Activity | L97: =IF(MID(A97,21,1)="2",MID(A97,14,6)&" - "&MID(B97,FIND(":",B97,FIND(K97,B97,1))+2,FIND(":",B97,FIND(":",B97,FIND(K97,B97,1))+1)-FIND(":",B97,FIND(K97,B97,1))-2),IF(AND(MID(Table5[[#This Row],[GL Account]],14,6)<>"696530",MID(Table5[[#This Row],[GL Account]],14,6)<>"696570"),"",IF(MID(Table5[[#This Row],[GL Account]],21,2)="53","Fringe Benefits",VLOOKUP(RIGHT(Table5[[#This Row],[GL Account]],5),Object,2,FALSE))))&IF(RIGHT(Table5[[#This Row],[GL Account]],5)="29599",IF(MID(A97,4,4)="0000",""," "&MID(A97,4,4))&" - "&LEFT(Table5[[#This Row],[ GL Description]],FIND(" : ",Table5[[#This Row],[ GL Description]])),"") -> Misc Revenue | M97: =IF(MID(A97,21,1)="2",0,IF(OR(MID(Table5[[#This Row],[GL Account]],14,6)="696520",AND(MID(A97,14,6)="696530",MID(Table5[[#This Row],[GL Account]],21,1)="4")),0,ROUND(SUMIF(Table5[GL Account],Table5[[#This Row],[GL Account]],Table5[Amount])-SUMIFS(Table2[Amount],Table2[Type],"Activity",Table2[Account Number],GLTB!A97),2))) -> 0 | N97: =IF(Table5[[#This Row],[Difference]]=0,"",IF(ISNA(VLOOKUP(Table5[[#This Row],[0]],Table1[],1,FALSE)),"","X")) -> 
A98: 71-0000-1960-696530-48885 | B98: Gen : Other Stu Fees & Charges : AS-Oper Activities : Stdnt Development/Campus Life : Assoc Students | C98: 2021-08-08 | D98: IV | E98: '0000040207' | F98: MJC Activity Fee | H98: 0 | I98: 240 | J98: -240 | K98: =IF(MID(Table5[[#This Row],[GL Account]],21,1)="2",MID(Table5[[#This Row],[ GL Description]],FIND(":",Table5[[#This Row],[ GL Description]],1)+2,FIND(":",Table5[[#This Row],[ GL Description]],FIND(":",Table5[[#This Row],[ GL Description]],1)+1)-FIND(":",Table5[[#This Row],[ GL Description]],1)-2),VLOOKUP(VALUE(MID(Table5[[#This Row],[GL Account]],14,6)),PgmList,2,FALSE)) -> Operating Activity | L98: =IF(MID(A98,21,1)="2",MID(A98,14,6)&" - "&MID(B98,FIND(":",B98,FIND(K98,B98,1))+2,FIND(":",B98,FIND(":",B98,FIND(K98,B98,1))+1)-FIND(":",B98,FIND(K98,B98,1))-2),IF(AND(MID(Table5[[#This Row],[GL Account]],14,6)<>"696530",MID(Table5[[#This Row],[GL Account]],14,6)<>"696570"),"",IF(MID(Table5[[#This Row],[GL Account]],21,2)="53","Fringe Benefits",VLOOKUP(RIGHT(Table5[[#This Row],[GL Account]],5),Object,2,FALSE))))&IF(RIGHT(Table5[[#This Row],[GL Account]],5)="29599",IF(MID(A98,4,4)="0000",""," "&MID(A98,4,4))&" - "&LEFT(Table5[[#This Row],[ GL Description]],FIND(" : ",Table5[[#This Row],[ GL Description]])),"") -> Misc Revenue | M98: =IF(MID(A98,21,1)="2",0,IF(OR(MID(Table5[[#This Row],[GL Account]],14,6)="696520",AND(MID(A98,14,6)="696530",MID(Table5[[#This Row],[GL Account]],21,1)="4")),0,ROUND(SUMIF(Table5[GL Account],Table5[[#This Row],[GL Account]],Table5[Amount])-SUMIFS(Table2[Amount],Table2[Type],"Activity",Table2[Account Number],GLTB!A98),2))) -> 0 | N98: =IF(Table5[[#This Row],[Difference]]=0,"",IF(ISNA(VLOOKUP(Table5[[#This Row],[0]],Table1[],1,FALSE)),"","X")) -> 
A99: 71-0000-1960-696530-48885 | B99: Gen : Other Stu Fees & Charges : AS-Oper Activities : Stdnt Development/Campus Life : Assoc Students | C99: 2021-08-09 | D99: IV | E99: '0000040213' | F99: MJC Activity Fee | H99: 0 | I99: 1100 | J99: -1100 | K99: =IF(MID(Table5[[#This Row],[GL Account]],21,1)="2",MID(Table5[[#This Row],[ GL Description]],FIND(":",Table5[[#This Row],[ GL Description]],1)+2,FIND(":",Table5[[#This Row],[ GL Description]],FIND(":",Table5[[#This Row],[ GL Description]],1)+1)-FIND(":",Table5[[#This Row],[ GL Description]],1)-2),VLOOKUP(VALUE(MID(Table5[[#This Row],[GL Account]],14,6)),PgmList,2,FALSE)) -> Operating Activity | L99: =IF(MID(A99,21,1)="2",MID(A99,14,6)&" - "&MID(B99,FIND(":",B99,FIND(K99,B99,1))+2,FIND(":",B99,FIND(":",B99,FIND(K99,B99,1))+1)-FIND(":",B99,FIND(K99,B99,1))-2),IF(AND(MID(Table5[[#This Row],[GL Account]],14,6)<>"696530",MID(Table5[[#This Row],[GL Account]],14,6)<>"696570"),"",IF(MID(Table5[[#This Row],[GL Account]],21,2)="53","Fringe Benefits",VLOOKUP(RIGHT(Table5[[#This Row],[GL Account]],5),Object,2,FALSE))))&IF(RIGHT(Table5[[#This Row],[GL Account]],5)="29599",IF(MID(A99,4,4)="0000",""," "&MID(A99,4,4))&" - "&LEFT(Table5[[#This Row],[ GL Description]],FIND(" : ",Table5[[#This Row],[ GL Description]])),"") -> Misc Revenue | M99: =IF(MID(A99,21,1)="2",0,IF(OR(MID(Table5[[#This Row],[GL Account]],14,6)="696520",AND(MID(A99,14,6)="696530",MID(Table5[[#This Row],[GL Account]],21,1)="4")),0,ROUND(SUMIF(Table5[GL Account],Table5[[#This Row],[GL Account]],Table5[Amount])-SUMIFS(Table2[Amount],Table2[Type],"Activity",Table2[Account Number],GLTB!A99),2))) -> 0 | N99: =IF(Table5[[#This Row],[Difference]]=0,"",IF(ISNA(VLOOKUP(Table5[[#This Row],[0]],Table1[],1,FALSE)),"","X")) -> 
A100: 71-0000-1960-696530-48885 | B100: Gen : Other Stu Fees & Charges : AS-Oper Activities : Stdnt Development/Campus Life : Assoc Students | C100: 2021-08-09 | D100: IV | E100: '0000040214' | F100: MJC Activity Fee | H100: 30 | I100: 0 | J100: 30 | K100: =IF(MID(Table5[[#This Row],[GL Account]],21,1)="2",MID(Table5[[#This Row],[ GL Description]],FIND(":",Table5[[#This Row],[ GL Description]],1)+2,FIND(":",Table5[[#This Row],[ GL Description]],FIND(":",Table5[[#This Row],[ GL Description]],1)+1)-FIND(":",Table5[[#This Row],[ GL Description]],1)-2),VLOOKUP(VALUE(MID(Table5[[#This Row],[GL Account]],14,6)),PgmList,2,FALSE)) -> Operating Activity | L100: =IF(MID(A100,21,1)="2",MID(A100,14,6)&" - "&MID(B100,FIND(":",B100,FIND(K100,B100,1))+2,FIND(":",B100,FIND(":",B100,FIND(K100,B100,1))+1)-FIND(":",B100,FIND(K100,B100,1))-2),IF(AND(MID(Table5[[#This Row],[GL Account]],14,6)<>"696530",MID(Table5[[#This Row],[GL Account]],14,6)<>"696570"),"",IF(MID(Table5[[#This Row],[GL Account]],21,2)="53","Fringe Benefits",VLOOKUP(RIGHT(Table5[[#This Row],[GL Account]],5),Object,2,FALSE))))&IF(RIGHT(Table5[[#This Row],[GL Account]],5)="29599",IF(MID(A100,4,4)="0000",""," "&MID(A100,4,4))&" - "&LEFT(Table5[[#This Row],[ GL Description]],FIND(" : ",Table5[[#This Row],[ GL Description]])),"") -> Misc Revenue | M100: =IF(MID(A100,21,1)="2",0,IF(OR(MID(Table5[[#This Row],[GL Account]],14,6)="696520",AND(MID(A100,14,6)="696530",MID(Table5[[#This Row],[GL Account]],21,1)="4")),0,ROUND(SUMIF(Table5[GL Account],Table5[[#This Row],[GL Account]],Table5[Amount])-SUMIFS(Table2[Amount],Table2[Type],"Activity",Table2[Account Number],GLTB!A100),2))) -> 0 | N100: =IF(Table5[[#This Row],[Difference]]=0,"",IF(ISNA(VLOOKUP(Table5[[#This Row],[0]],Table1[],1,FALSE)),"","X")) -> 
A101: 71-0000-1960-696530-48885 | B101: Gen : Other Stu Fees & Charges : AS-Oper Activities : Stdnt Development/Campus Life : Assoc Students | C101: 2021-08-10 | D101: IV | E101: '0000040219' | F101: MJC Activity Fee | H101: 0 | I101: 1130 | J101: -1130 | K101: =IF(MID(Table5[[#This Row],[GL Account]],21,1)="2",MID(Table5[[#This Row],[ GL Description]],FIND(":",Table5[[#This Row],[ GL Description]],1)+2,FIND(":",Table5[[#This Row],[ GL Description]],FIND(":",Table5[[#This Row],[ GL Description]],1)+1)-FIND(":",Table5[[#This Row],[ GL Description]],1)-2),VLOOKUP(VALUE(MID(Table5[[#This Row],[GL Account]],14,6)),PgmList,2,FALSE)) -> Operating Activity | L101: =IF(MID(A101,21,1)="2",MID(A101,14,6)&" - "&MID(B101,FIND(":",B101,FIND(K101,B101,1))+2,FIND(":",B101,FIND(":",B101,FIND(K101,B101,1))+1)-FIND(":",B101,FIND(K101,B101,1))-2),IF(AND(MID(Table5[[#This Row],[GL Account]],14,6)<>"696530",MID(Table5[[#This Row],[GL Account]],14,6)<>"696570"),"",IF(MID(Table5[[#This Row],[GL Account]],21,2)="53","Fringe Benefits",VLOOKUP(RIGHT(Table5[[#This Row],[GL Account]],5),Object,2,FALSE))))&IF(RIGHT(Table5[[#This Row],[GL Account]],5)="29599",IF(MID(A101,4,4)="0000",""," "&MID(A101,4,4))&" - "&LEFT(Table5[[#This Row],[ GL Description]],FIND(" : ",Table5[[#This Row],[ GL Description]])),"") -> Misc Revenue | M101: =IF(MID(A101,21,1)="2",0,IF(OR(MID(Table5[[#This Row],[GL Account]],14,6)="696520",AND(MID(A101,14,6)="696530",MID(Table5[[#This Row],[GL Account]],21,1)="4")),0,ROUND(SUMIF(Table5[GL Account],Table5[[#This Row],[GL Account]],Table5[Amount])-SUMIFS(Table2[Amount],Table2[Type],"Activity",Table2[Account Number],GLTB!A101),2))) -> 0 | N101: =IF(Table5[[#This Row],[Difference]]=0,"",IF(ISNA(VLOOKUP(Table5[[#This Row],[0]],Table1[],1,FALSE)),"","X")) -> 
A102: 71-0000-1960-696530-48885 | B102: Gen : Other Stu Fees & Charges : AS-Oper Activities : Stdnt Development/Campus Life : Assoc Students | C102: 2021-08-10 | D102: IV | E102: '0000040220' | F102: MJC Activity Fee | H102: 10 | I102: 0 | J102: 10 | K102: =IF(MID(Table5[[#This Row],[GL Account]],21,1)="2",MID(Table5[[#This Row],[ GL Description]],FIND(":",Table5[[#This Row],[ GL Description]],1)+2,FIND(":",Table5[[#This Row],[ GL Description]],FIND(":",Table5[[#This Row],[ GL Description]],1)+1)-FIND(":",Table5[[#This Row],[ GL Description]],1)-2),VLOOKUP(VALUE(MID(Table5[[#This Row],[GL Account]],14,6)),PgmList,2,FALSE)) -> Operating Activity | L102: =IF(MID(A102,21,1)="2",MID(A102,14,6)&" - "&MID(B102,FIND(":",B102,FIND(K102,B102,1))+2,FIND(":",B102,FIND(":",B102,FIND(K102,B102,1))+1)-FIND(":",B102,FIND(K102,B102,1))-2),IF(AND(MID(Table5[[#This Row],[GL Account]],14,6)<>"696530",MID(Table5[[#This Row],[GL Account]],14,6)<>"696570"),"",IF(MID(Table5[[#This Row],[GL Account]],21,2)="53","Fringe Benefits",VLOOKUP(RIGHT(Table5[[#This Row],[GL Account]],5),Object,2,FALSE))))&IF(RIGHT(Table5[[#This Row],[GL Account]],5)="29599",IF(MID(A102,4,4)="0000",""," "&MID(A102,4,4))&" - "&LEFT(Table5[[#This Row],[ GL Description]],FIND(" : ",Table5[[#This Row],[ GL Description]])),"") -> Misc Revenue | M102: =IF(MID(A102,21,1)="2",0,IF(OR(MID(Table5[[#This Row],[GL Account]],14,6)="696520",AND(MID(A102,14,6)="696530",MID(Table5[[#This Row],[GL Account]],21,1)="4")),0,ROUND(SUMIF(Table5[GL Account],Table5[[#This Row],[GL Account]],Table5[Amount])-SUMIFS(Table2[Amount],Table2[Type],"Activity",Table2[Account Number],GLTB!A102),2))) -> 0 | N102: =IF(Table5[[#This Row],[Difference]]=0,"",IF(ISNA(VLOOKUP(Table5[[#This Row],[0]],Table1[],1,FALSE)),"","X")) -> 
A103: 71-0000-1960-696530-48885 | B103: Gen : Other Stu Fees & Charges : AS-Oper Activities : Stdnt Development/Campus Life : Assoc Students | C103: 2021-08-11 | D103: IV | E103: '0000040223' | F103: MJC Activity Fee | H103: 0 | I103: 1200 | J103: -1200 | K103: =IF(MID(Table5[[#This Row],[GL Account]],21,1)="2",MID(Table5[[#This Row],[ GL Description]],FIND(":",Table5[[#This Row],[ GL Description]],1)+2,FIND(":",Table5[[#This Row],[ GL Description]],FIND(":",Table5[[#This Row],[ GL Description]],1)+1)-FIND(":",Table5[[#This Row],[ GL Description]],1)-2),VLOOKUP(VALUE(MID(Table5[[#This Row],[GL Account]],14,6)),PgmList,2,FALSE)) -> Operating Activity | L103: =IF(MID(A103,21,1)="2",MID(A103,14,6)&" - "&MID(B103,FIND(":",B103,FIND(K103,B103,1))+2,FIND(":",B103,FIND(":",B103,FIND(K103,B103,1))+1)-FIND(":",B103,FIND(K103,B103,1))-2),IF(AND(MID(Table5[[#This Row],[GL Account]],14,6)<>"696530",MID(Table5[[#This Row],[GL Account]],14,6)<>"696570"),"",IF(MID(Table5[[#This Row],[GL Account]],21,2)="53","Fringe Benefits",VLOOKUP(RIGHT(Table5[[#This Row],[GL Account]],5),Object,2,FALSE))))&IF(RIGHT(Table5[[#This Row],[GL Account]],5)="29599",IF(MID(A103,4,4)="0000",""," "&MID(A103,4,4))&" - "&LEFT(Table5[[#This Row],[ GL Description]],FIND(" : ",Table5[[#This Row],[ GL Description]])),"") -> Misc Revenue | M103: =IF(MID(A103,21,1)="2",0,IF(OR(MID(Table5[[#This Row],[GL Account]],14,6)="696520",AND(MID(A103,14,6)="696530",MID(Table5[[#This Row],[GL Account]],21,1)="4")),0,ROUND(SUMIF(Table5[GL Account],Table5[[#This Row],[GL Account]],Table5[Amount])-SUMIFS(Table2[Amount],Table2[Type],"Activity",Table2[Account Number],GLTB!A103),2))) -> 0 | N103: =IF(Table5[[#This Row],[Difference]]=0,"",IF(ISNA(VLOOKUP(Table5[[#This Row],[0]],Table1[],1,FALSE)),"","X")) -> 
A104: 71-0000-1960-696530-48885 | B104: Gen : Other Stu Fees & Charges : AS-Oper Activities : Stdnt Development/Campus Life : Assoc Students | C104: 2021-08-11 | D104: IV | E104: '0000040224' | F104: MJC Activity Fee | H104: 10 | I104: 0 | J104: 10 | K104: =IF(MID(Table5[[#This Row],[GL Account]],21,1)="2",MID(Table5[[#This Row],[ GL Description]],FIND(":",Table5[[#This Row],[ GL Description]],1)+2,FIND(":",Table5[[#This Row],[ GL Description]],FIND(":",Table5[[#This Row],[ GL Description]],1)+1)-FIND(":",Table5[[#This Row],[ GL Description]],1)-2),VLOOKUP(VALUE(MID(Table5[[#This Row],[GL Account]],14,6)),PgmList,2,FALSE)) -> Operating Activity | L104: =IF(MID(A104,21,1)="2",MID(A104,14,6)&" - "&MID(B104,FIND(":",B104,FIND(K104,B104,1))+2,FIND(":",B104,FIND(":",B104,FIND(K104,B104,1))+1)-FIND(":",B104,FIND(K104,B104,1))-2),IF(AND(MID(Table5[[#This Row],[GL Account]],14,6)<>"696530",MID(Table5[[#This Row],[GL Account]],14,6)<>"696570"),"",IF(MID(Table5[[#This Row],[GL Account]],21,2)="53","Fringe Benefits",VLOOKUP(RIGHT(Table5[[#This Row],[GL Account]],5),Object,2,FALSE))))&IF(RIGHT(Table5[[#This Row],[GL Account]],5)="29599",IF(MID(A104,4,4)="0000",""," "&MID(A104,4,4))&" - "&LEFT(Table5[[#This Row],[ GL Description]],FIND(" : ",Table5[[#This Row],[ GL Description]])),"") -> Misc Revenue | M104: =IF(MID(A104,21,1)="2",0,IF(OR(MID(Table5[[#This Row],[GL Account]],14,6)="696520",AND(MID(A104,14,6)="696530",MID(Table5[[#This Row],[GL Account]],21,1)="4")),0,ROUND(SUMIF(Table5[GL Account],Table5[[#This Row],[GL Account]],Table5[Amount])-SUMIFS(Table2[Amount],Table2[Type],"Activity",Table2[Account Number],GLTB!A104),2))) -> 0 | N104: =IF(Table5[[#This Row],[Difference]]=0,"",IF(ISNA(VLOOKUP(Table5[[#This Row],[0]],Table1[],1,FALSE)),"","X")) -> 
A105: 71-0000-1960-696530-48885 | B105: Gen : Other Stu Fees & Charges : AS-Oper Activities : Stdnt Development/Campus Life : Assoc Students | C105: 2021-08-12 | D105: IV | E105: '0000040228' | F105: MJC Activity Fee | H105: 0 | I105: 1660 | J105: -1660 | K105: =IF(MID(Table5[[#This Row],[GL Account]],21,1)="2",MID(Table5[[#This Row],[ GL Description]],FIND(":",Table5[[#This Row],[ GL Description]],1)+2,FIND(":",Table5[[#This Row],[ GL Description]],FIND(":",Table5[[#This Row],[ GL Description]],1)+1)-FIND(":",Table5[[#This Row],[ GL Description]],1)-2),VLOOKUP(VALUE(MID(Table5[[#This Row],[GL Account]],14,6)),PgmList,2,FALSE)) -> Operating Activity | L105: =IF(MID(A105,21,1)="2",MID(A105,14,6)&" - "&MID(B105,FIND(":",B105,FIND(K105,B105,1))+2,FIND(":",B105,FIND(":",B105,FIND(K105,B105,1))+1)-FIND(":",B105,FIND(K105,B105,1))-2),IF(AND(MID(Table5[[#This Row],[GL Account]],14,6)<>"696530",MID(Table5[[#This Row],[GL Account]],14,6)<>"696570"),"",IF(MID(Table5[[#This Row],[GL Account]],21,2)="53","Fringe Benefits",VLOOKUP(RIGHT(Table5[[#This Row],[GL Account]],5),Object,2,FALSE))))&IF(RIGHT(Table5[[#This Row],[GL Account]],5)="29599",IF(MID(A105,4,4)="0000",""," "&MID(A105,4,4))&" - "&LEFT(Table5[[#This Row],[ GL Description]],FIND(" : ",Table5[[#This Row],[ GL Description]])),"") -> Misc Revenue | M105: =IF(MID(A105,21,1)="2",0,IF(OR(MID(Table5[[#This Row],[GL Account]],14,6)="696520",AND(MID(A105,14,6)="696530",MID(Table5[[#This Row],[GL Account]],21,1)="4")),0,ROUND(SUMIF(Table5[GL Account],Table5[[#This Row],[GL Account]],Table5[Amount])-SUMIFS(Table2[Amount],Table2[Type],"Activity",Table2[Account Number],GLTB!A105),2))) -> 0 | N105: =IF(Table5[[#This Row],[Difference]]=0,"",IF(ISNA(VLOOKUP(Table5[[#This Row],[0]],Table1[],1,FALSE)),"","X")) -> 
A106: 71-0000-1960-696530-48885 | B106: Gen : Other Stu Fees & Charges : AS-Oper Activities : Stdnt Development/Campus Life : Assoc Students | C106: 2021-08-12 | D106: IV | E106: '0000040229' | F106: MJC Activity Fee | H106: 10 | I106: 0 | J106: 10 | K106: =IF(MID(Table5[[#This Row],[GL Account]],21,1)="2",MID(Table5[[#This Row],[ GL Description]],FIND(":",Table5[[#This Row],[ GL Description]],1)+2,FIND(":",Table5[[#This Row],[ GL Description]],FIND(":",Table5[[#This Row],[ GL Description]],1)+1)-FIND(":",Table5[[#This Row],[ GL Description]],1)-2),VLOOKUP(VALUE(MID(Table5[[#This Row],[GL Account]],14,6)),PgmList,2,FALSE)) -> Operating Activity | L106: =IF(MID(A106,21,1)="2",MID(A106,14,6)&" - "&MID(B106,FIND(":",B106,FIND(K106,B106,1))+2,FIND(":",B106,FIND(":",B106,FIND(K106,B106,1))+1)-FIND(":",B106,FIND(K106,B106,1))-2),IF(AND(MID(Table5[[#This Row],[GL Account]],14,6)<>"696530",MID(Table5[[#This Row],[GL Account]],14,6)<>"696570"),"",IF(MID(Table5[[#This Row],[GL Account]],21,2)="53","Fringe Benefits",VLOOKUP(RIGHT(Table5[[#This Row],[GL Account]],5),Object,2,FALSE))))&IF(RIGHT(Table5[[#This Row],[GL Account]],5)="29599",IF(MID(A106,4,4)="0000",""," "&MID(A106,4,4))&" - "&LEFT(Table5[[#This Row],[ GL Description]],FIND(" : ",Table5[[#This Row],[ GL Description]])),"") -> Misc Revenue | M106: =IF(MID(A106,21,1)="2",0,IF(OR(MID(Table5[[#This Row],[GL Account]],14,6)="696520",AND(MID(A106,14,6)="696530",MID(Table5[[#This Row],[GL Account]],21,1)="4")),0,ROUND(SUMIF(Table5[GL Account],Table5[[#This Row],[GL Account]],Table5[Amount])-SUMIFS(Table2[Amount],Table2[Type],"Activity",Table2[Account Number],GLTB!A106),2))) -> 0 | N106: =IF(Table5[[#This Row],[Difference]]=0,"",IF(ISNA(VLOOKUP(Table5[[#This Row],[0]],Table1[],1,FALSE)),"","X")) -> 
A107: 71-0000-1960-696530-48885 | B107: Gen : Other Stu Fees & Charges : AS-Oper Activities : Stdnt Development/Campus Life : Assoc Students | C107: 2021-08-13 | D107: IV | E107: '0000040232' | F107: MJC Activity Fee | H107: 0 | I107: 790 | J107: -790 | K107: =IF(MID(Table5[[#This Row],[GL Account]],21,1)="2",MID(Table5[[#This Row],[ GL Description]],FIND(":",Table5[[#This Row],[ GL Description]],1)+2,FIND(":",Table5[[#This Row],[ GL Description]],FIND(":",Table5[[#This Row],[ GL Description]],1)+1)-FIND(":",Table5[[#This Row],[ GL Description]],1)-2),VLOOKUP(VALUE(MID(Table5[[#This Row],[GL Account]],14,6)),PgmList,2,FALSE)) -> Operating Activity | L107: =IF(MID(A107,21,1)="2",MID(A107,14,6)&" - "&MID(B107,FIND(":",B107,FIND(K107,B107,1))+2,FIND(":",B107,FIND(":",B107,FIND(K107,B107,1))+1)-FIND(":",B107,FIND(K107,B107,1))-2),IF(AND(MID(Table5[[#This Row],[GL Account]],14,6)<>"696530",MID(Table5[[#This Row],[GL Account]],14,6)<>"696570"),"",IF(MID(Table5[[#This Row],[GL Account]],21,2)="53","Fringe Benefits",VLOOKUP(RIGHT(Table5[[#This Row],[GL Account]],5),Object,2,FALSE))))&IF(RIGHT(Table5[[#This Row],[GL Account]],5)="29599",IF(MID(A107,4,4)="0000",""," "&MID(A107,4,4))&" - "&LEFT(Table5[[#This Row],[ GL Description]],FIND(" : ",Table5[[#This Row],[ GL Description]])),"") -> Misc Revenue | M107: =IF(MID(A107,21,1)="2",0,IF(OR(MID(Table5[[#This Row],[GL Account]],14,6)="696520",AND(MID(A107,14,6)="696530",MID(Table5[[#This Row],[GL Account]],21,1)="4")),0,ROUND(SUMIF(Table5[GL Account],Table5[[#This Row],[GL Account]],Table5[Amount])-SUMIFS(Table2[Amount],Table2[Type],"Activity",Table2[Account Number],GLTB!A107),2))) -> 0 | N107: =IF(Table5[[#This Row],[Difference]]=0,"",IF(ISNA(VLOOKUP(Table5[[#This Row],[0]],Table1[],1,FALSE)),"","X")) -> 
A108: 71-0000-1960-696530-48885 | B108: Gen : Other Stu Fees & Charges : AS-Oper Activities : Stdnt Development/Campus Life : Assoc Students | C108: 2021-08-14 | D108: IV | E108: '0000040235' | F108: MJC Activity Fee | H108: 0 | I108: 410 | J108: -410 | K108: =IF(MID(Table5[[#This Row],[GL Account]],21,1)="2",MID(Table5[[#This Row],[ GL Description]],FIND(":",Table5[[#This Row],[ GL Description]],1)+2,FIND(":",Table5[[#This Row],[ GL Description]],FIND(":",Table5[[#This Row],[ GL Description]],1)+1)-FIND(":",Table5[[#This Row],[ GL Description]],1)-2),VLOOKUP(VALUE(MID(Table5[[#This Row],[GL Account]],14,6)),PgmList,2,FALSE)) -> Operating Activity | L108: =IF(MID(A108,21,1)="2",MID(A108,14,6)&" - "&MID(B108,FIND(":",B108,FIND(K108,B108,1))+2,FIND(":",B108,FIND(":",B108,FIND(K108,B108,1))+1)-FIND(":",B108,FIND(K108,B108,1))-2),IF(AND(MID(Table5[[#This Row],[GL Account]],14,6)<>"696530",MID(Table5[[#This Row],[GL Account]],14,6)<>"696570"),"",IF(MID(Table5[[#This Row],[GL Account]],21,2)="53","Fringe Benefits",VLOOKUP(RIGHT(Table5[[#This Row],[GL Account]],5),Object,2,FALSE))))&IF(RIGHT(Table5[[#This Row],[GL Account]],5)="29599",IF(MID(A108,4,4)="0000",""," "&MID(A108,4,4))&" - "&LEFT(Table5[[#This Row],[ GL Description]],FIND(" : ",Table5[[#This Row],[ GL Description]])),"") -> Misc Revenue | M108: =IF(MID(A108,21,1)="2",0,IF(OR(MID(Table5[[#This Row],[GL Account]],14,6)="696520",AND(MID(A108,14,6)="696530",MID(Table5[[#This Row],[GL Account]],21,1)="4")),0,ROUND(SUMIF(Table5[GL Account],Table5[[#This Row],[GL Account]],Table5[Amount])-SUMIFS(Table2[Amount],Table2[Type],"Activity",Table2[Account Number],GLTB!A108),2))) -> 0 | N108: =IF(Table5[[#This Row],[Difference]]=0,"",IF(ISNA(VLOOKUP(Table5[[#This Row],[0]],Table1[],1,FALSE)),"","X")) -> 
A109: 71-0000-1960-696530-48885 | B109: Gen : Other Stu Fees & Charges : AS-Oper Activities : Stdnt Development/Campus Life : Assoc Students | C109: 2021-08-15 | D109: IV | E109: '0000040238' | F109: MJC Activity Fee | H109: 0 | I109: 190 | J109: -190 | K109: =IF(MID(Table5[[#This Row],[GL Account]],21,1)="2",MID(Table5[[#This Row],[ GL Description]],FIND(":",Table5[[#This Row],[ GL Description]],1)+2,FIND(":",Table5[[#This Row],[ GL Description]],FIND(":",Table5[[#This Row],[ GL Description]],1)+1)-FIND(":",Table5[[#This Row],[ GL Description]],1)-2),VLOOKUP(VALUE(MID(Table5[[#This Row],[GL Account]],14,6)),PgmList,2,FALSE)) -> Operating Activity | L109: =IF(MID(A109,21,1)="2",MID(A109,14,6)&" - "&MID(B109,FIND(":",B109,FIND(K109,B109,1))+2,FIND(":",B109,FIND(":",B109,FIND(K109,B109,1))+1)-FIND(":",B109,FIND(K109,B109,1))-2),IF(AND(MID(Table5[[#This Row],[GL Account]],14,6)<>"696530",MID(Table5[[#This Row],[GL Account]],14,6)<>"696570"),"",IF(MID(Table5[[#This Row],[GL Account]],21,2)="53","Fringe Benefits",VLOOKUP(RIGHT(Table5[[#This Row],[GL Account]],5),Object,2,FALSE))))&IF(RIGHT(Table5[[#This Row],[GL Account]],5)="29599",IF(MID(A109,4,4)="0000",""," "&MID(A109,4,4))&" - "&LEFT(Table5[[#This Row],[ GL Description]],FIND(" : ",Table5[[#This Row],[ GL Description]])),"") -> Misc Revenue | M109: =IF(MID(A109,21,1)="2",0,IF(OR(MID(Table5[[#This Row],[GL Account]],14,6)="696520",AND(MID(A109,14,6)="696530",MID(Table5[[#This Row],[GL Account]],21,1)="4")),0,ROUND(SUMIF(Table5[GL Account],Table5[[#This Row],[GL Account]],Table5[Amount])-SUMIFS(Table2[Amount],Table2[Type],"Activity",Table2[Account Number],GLTB!A109),2))) -> 0 | N109: =IF(Table5[[#This Row],[Difference]]=0,"",IF(ISNA(VLOOKUP(Table5[[#This Row],[0]],Table1[],1,FALSE)),"","X")) -> 
A110: 71-0000-1960-696530-48885 | B110: Gen : Other Stu Fees & Charges : AS-Oper Activities : Stdnt Development/Campus Life : Assoc Students | C110: 2021-08-16 | D110: IV | E110: '0000040244' | F110: MJC Activity Fee | H110: 0 | I110: 1110 | J110: -1110 | K110: =IF(MID(Table5[[#This Row],[GL Account]],21,1)="2",MID(Table5[[#This Row],[ GL Description]],FIND(":",Table5[[#This Row],[ GL Description]],1)+2,FIND(":",Table5[[#This Row],[ GL Description]],FIND(":",Table5[[#This Row],[ GL Description]],1)+1)-FIND(":",Table5[[#This Row],[ GL Description]],1)-2),VLOOKUP(VALUE(MID(Table5[[#This Row],[GL Account]],14,6)),PgmList,2,FALSE)) -> Operating Activity | L110: =IF(MID(A110,21,1)="2",MID(A110,14,6)&" - "&MID(B110,FIND(":",B110,FIND(K110,B110,1))+2,FIND(":",B110,FIND(":",B110,FIND(K110,B110,1))+1)-FIND(":",B110,FIND(K110,B110,1))-2),IF(AND(MID(Table5[[#This Row],[GL Account]],14,6)<>"696530",MID(Table5[[#This Row],[GL Account]],14,6)<>"696570"),"",IF(MID(Table5[[#This Row],[GL Account]],21,2)="53","Fringe Benefits",VLOOKUP(RIGHT(Table5[[#This Row],[GL Account]],5),Object,2,FALSE))))&IF(RIGHT(Table5[[#This Row],[GL Account]],5)="29599",IF(MID(A110,4,4)="0000",""," "&MID(A110,4,4))&" - "&LEFT(Table5[[#This Row],[ GL Description]],FIND(" : ",Table5[[#This Row],[ GL Description]])),"") -> Misc Revenue | M110: =IF(MID(A110,21,1)="2",0,IF(OR(MID(Table5[[#This Row],[GL Account]],14,6)="696520",AND(MID(A110,14,6)="696530",MID(Table5[[#This Row],[GL Account]],21,1)="4")),0,ROUND(SUMIF(Table5[GL Account],Table5[[#This Row],[GL Account]],Table5[Amount])-SUMIFS(Table2[Amount],Table2[Type],"Activity",Table2[Account Number],GLTB!A110),2))) -> 0 | N110: =IF(Table5[[#This Row],[Difference]]=0,"",IF(ISNA(VLOOKUP(Table5[[#This Row],[0]],Table1[],1,FALSE)),"","X")) -> 
A111: 71-0000-1960-696530-52110 | B111: Gen : NonInstuc-Reg : AS-Oper Activities : Stdnt Development/Campus Life : Assoc Students | C111: 2021-07-29 | D111: PR | E111: '000923' | F111: PRD END: 07/31/21 RC Earnings | H111: 2814 | J111: 2814 | K111: =IF(MID(Table5[[#This Row],[GL Account]],21,1)="2",MID(Table5[[#This Row],[ GL Description]],FIND(":",Table5[[#This Row],[ GL Description]],1)+2,FIND(":",Table5[[#This Row],[ GL Description]],FIND(":",Table5[[#This Row],[ GL Description]],1)+1)-FIND(":",Table5[[#This Row],[ GL Description]],1)-2),VLOOKUP(VALUE(MID(Table5[[#This Row],[GL Account]],14,6)),PgmList,2,FALSE)) -> Operating Activity | L111: =IF(MID(A111,21,1)="2",MID(A111,14,6)&" - "&MID(B111,FIND(":",B111,FIND(K111,B111,1))+2,FIND(":",B111,FIND(":",B111,FIND(K111,B111,1))+1)-FIND(":",B111,FIND(K111,B111,1))-2),IF(AND(MID(Table5[[#This Row],[GL Account]],14,6)<>"696530",MID(Table5[[#This Row],[GL Account]],14,6)<>"696570"),"",IF(MID(Table5[[#This Row],[GL Account]],21,2)="53","Fringe Benefits",VLOOKUP(RIGHT(Table5[[#This Row],[GL Account]],5),Object,2,FALSE))))&IF(RIGHT(Table5[[#This Row],[GL Account]],5)="29599",IF(MID(A111,4,4)="0000",""," "&MID(A111,4,4))&" - "&LEFT(Table5[[#This Row],[ GL Description]],FIND(" : ",Table5[[#This Row],[ GL Description]])),"") -> NonInstuc-Reg | M111: =IF(MID(A111,21,1)="2",0,IF(OR(MID(Table5[[#This Row],[GL Account]],14,6)="696520",AND(MID(A111,14,6)="696530",MID(Table5[[#This Row],[GL Account]],21,1)="4")),0,ROUND(SUMIF(Table5[GL Account],Table5[[#This Row],[GL Account]],Table5[Amount])-SUMIFS(Table2[Amount],Table2[Type],"Activity",Table2[Account Number],GLTB!A111),2))) -> 0 | N111: =IF(Table5[[#This Row],[Difference]]=0,"",IF(ISNA(VLOOKUP(Table5[[#This Row],[0]],Table1[],1,FALSE)),"","X")) -> 
A112: 71-0000-1960-696530-53203 | B112: Gen : PERS-Classif Non Class : AS-Oper Activities : Stdnt Development/Campus Life : Assoc Students | C112: 2021-07-29 | D112: PR | E112: '000923' | F112: PRD END: 07/31/21 RC Employer Cont | H112: 644.68 | J112: 644.68 | K112: =IF(MID(Table5[[#This Row],[GL Account]],21,1)="2",MID(Table5[[#This Row],[ GL Description]],FIND(":",Table5[[#This Row],[ GL Description]],1)+2,FIND(":",Table5[[#This Row],[ GL Description]],FIND(":",Table5[[#This Row],[ GL Description]],1)+1)-FIND(":",Table5[[#This Row],[ GL Description]],1)-2),VLOOKUP(VALUE(MID(Table5[[#This Row],[GL Account]],14,6)),PgmList,2,FALSE)) -> Operating Activity | L112: =IF(MID(A112,21,1)="2",MID(A112,14,6)&" - "&MID(B112,FIND(":",B112,FIND(K112,B112,1))+2,FIND(":",B112,FIND(":",B112,FIND(K112,B112,1))+1)-FIND(":",B112,FIND(K112,B112,1))-2),IF(AND(MID(Table5[[#This Row],[GL Account]],14,6)<>"696530",MID(Table5[[#This Row],[GL Account]],14,6)<>"696570"),"",IF(MID(Table5[[#This Row],[GL Account]],21,2)="53","Fringe Benefits",VLOOKUP(RIGHT(Table5[[#This Row],[GL Account]],5),Object,2,FALSE))))&IF(RIGHT(Table5[[#This Row],[GL Account]],5)="29599",IF(MID(A112,4,4)="0000",""," "&MID(A112,4,4))&" - "&LEFT(Table5[[#This Row],[ GL Description]],FIND(" : ",Table5[[#This Row],[ GL Description]])),"") -> Fringe Benefits | M112: =IF(MID(A112,21,1)="2",0,IF(OR(MID(Table5[[#This Row],[GL Account]],14,6)="696520",AND(MID(A112,14,6)="696530",MID(Table5[[#This Row],[GL Account]],21,1)="4")),0,ROUND(SUMIF(Table5[GL Account],Table5[[#This Row],[GL Account]],Table5[Amount])-SUMIFS(Table2[Amount],Table2[Type],"Activity",Table2[Account Number],GLTB!A112),2))) -> 0 | N112: =IF(Table5[[#This Row],[Difference]]=0,"",IF(ISNA(VLOOKUP(Table5[[#This Row],[0]],Table1[],1,FALSE)),"","X")) -> 
A113: 71-0000-1960-696530-53303 | B113: Gen : OASDI-Classif Non Class : AS-Oper Activities : Stdnt Development/Campus Life : Assoc Students | C113: 2021-07-29 | D113: PR | E113: '000923' | F113: PRD END: 07/31/21 RC Employer Cont | H113: 174.47 | J113: 174.47 | K113: =IF(MID(Table5[[#This Row],[GL Account]],21,1)="2",MID(Table5[[#This Row],[ GL Description]],FIND(":",Table5[[#This Row],[ GL Description]],1)+2,FIND(":",Table5[[#This Row],[ GL Description]],FIND(":",Table5[[#This Row],[ GL Description]],1)+1)-FIND(":",Table5[[#This Row],[ GL Description]],1)-2),VLOOKUP(VALUE(MID(Table5[[#This Row],[GL Account]],14,6)),PgmList,2,FALSE)) -> Operating Activity | L113: =IF(MID(A113,21,1)="2",MID(A113,14,6)&" - "&MID(B113,FIND(":",B113,FIND(K113,B113,1))+2,FIND(":",B113,FIND(":",B113,FIND(K113,B113,1))+1)-FIND(":",B113,FIND(K113,B113,1))-2),IF(AND(MID(Table5[[#This Row],[GL Account]],14,6)<>"696530",MID(Table5[[#This Row],[GL Account]],14,6)<>"696570"),"",IF(MID(Table5[[#This Row],[GL Account]],21,2)="53","Fringe Benefits",VLOOKUP(RIGHT(Table5[[#This Row],[GL Account]],5),Object,2,FALSE))))&IF(RIGHT(Table5[[#This Row],[GL Account]],5)="29599",IF(MID(A113,4,4)="0000",""," "&MID(A113,4,4))&" - "&LEFT(Table5[[#This Row],[ GL Description]],FIND(" : ",Table5[[#This Row],[ GL Description]])),"") -> Fringe Benefits | M113: =IF(MID(A113,21,1)="2",0,IF(OR(MID(Table5[[#This Row],[GL Account]],14,6)="696520",AND(MID(A113,14,6)="696530",MID(Table5[[#This Row],[GL Account]],21,1)="4")),0,ROUND(SUMIF(Table5[GL Account],Table5[[#This Row],[GL Account]],Table5[Amount])-SUMIFS(Table2[Amount],Table2[Type],"Activity",Table2[Account Number],GLTB!A113),2))) -> 0 | N113: =IF(Table5[[#This Row],[Difference]]=0,"",IF(ISNA(VLOOKUP(Table5[[#This Row],[0]],Table1[],1,FALSE)),"","X")) -> 
A114: 71-0000-1960-696530-53313 | B114: Gen : Medicare-Classif Non Class : AS-Oper Activities : Stdnt Development/Campus Life : Assoc Students | C114: 2021-07-29 | D114: PR | E114: '000923' | F114: PRD END: 07/31/21 RC Employer Cont | H114: 40.8 | J114: 40.8 | K114: =IF(MID(Table5[[#This Row],[GL Account]],21,1)="2",MID(Table5[[#This Row],[ GL Description]],FIND(":",Table5[[#This Row],[ GL Description]],1)+2,FIND(":",Table5[[#This Row],[ GL Description]],FIND(":",Table5[[#This Row],[ GL Description]],1)+1)-FIND(":",Table5[[#This Row],[ GL Description]],1)-2),VLOOKUP(VALUE(MID(Table5[[#This Row],[GL Account]],14,6)),PgmList,2,FALSE)) -> Operating Activity | L114: =IF(MID(A114,21,1)="2",MID(A114,14,6)&" - "&MID(B114,FIND(":",B114,FIND(K114,B114,1))+2,FIND(":",B114,FIND(":",B114,FIND(K114,B114,1))+1)-FIND(":",B114,FIND(K114,B114,1))-2),IF(AND(MID(Table5[[#This Row],[GL Account]],14,6)<>"696530",MID(Table5[[#This Row],[GL Account]],14,6)<>"696570"),"",IF(MID(Table5[[#This Row],[GL Account]],21,2)="53","Fringe Benefits",VLOOKUP(RIGHT(Table5[[#This Row],[GL Account]],5),Object,2,FALSE))))&IF(RIGHT(Table5[[#This Row],[GL Account]],5)="29599",IF(MID(A114,4,4)="0000",""," "&MID(A114,4,4))&" - "&LEFT(Table5[[#This Row],[ GL Description]],FIND(" : ",Table5[[#This Row],[ GL Description]])),"") -> Fringe Benefits | M114: =IF(MID(A114,21,1)="2",0,IF(OR(MID(Table5[[#This Row],[GL Account]],14,6)="696520",AND(MID(A114,14,6)="696530",MID(Table5[[#This Row],[GL Account]],21,1)="4")),0,ROUND(SUMIF(Table5[GL Account],Table5[[#This Row],[GL Account]],Table5[Amount])-SUMIFS(Table2[Amount],Table2[Type],"Activity",Table2[Account Number],GLTB!A114),2))) -> 0 | N114: =IF(Table5[[#This Row],[Difference]]=0,"",IF(ISNA(VLOOKUP(Table5[[#This Row],[0]],Table1[],1,FALSE)),"","X")) -> 
A115: 71-0000-1960-696530-53403 | B115: Gen : Health-Classif Non Class : AS-Oper Activities : Stdnt Development/Campus Life : Assoc Students | C115: 2021-07-29 | D115: PR | E115: '000923' | F115: PRD END: 07/31/21 RC Employer Cont | H115: 768.5 | J115: 768.5 | K115: =IF(MID(Table5[[#This Row],[GL Account]],21,1)="2",MID(Table5[[#This Row],[ GL Description]],FIND(":",Table5[[#This Row],[ GL Description]],1)+2,FIND(":",Table5[[#This Row],[ GL Description]],FIND(":",Table5[[#This Row],[ GL Description]],1)+1)-FIND(":",Table5[[#This Row],[ GL Description]],1)-2),VLOOKUP(VALUE(MID(Table5[[#This Row],[GL Account]],14,6)),PgmList,2,FALSE)) -> Operating Activity | L115: =IF(MID(A115,21,1)="2",MID(A115,14,6)&" - "&MID(B115,FIND(":",B115,FIND(K115,B115,1))+2,FIND(":",B115,FIND(":",B115,FIND(K115,B115,1))+1)-FIND(":",B115,FIND(K115,B115,1))-2),IF(AND(MID(Table5[[#This Row],[GL Account]],14,6)<>"696530",MID(Table5[[#This Row],[GL Account]],14,6)<>"696570"),"",IF(MID(Table5[[#This Row],[GL Account]],21,2)="53","Fringe Benefits",VLOOKUP(RIGHT(Table5[[#This Row],[GL Account]],5),Object,2,FALSE))))&IF(RIGHT(Table5[[#This Row],[GL Account]],5)="29599",IF(MID(A115,4,4)="0000",""," "&MID(A115,4,4))&" - "&LEFT(Table5[[#This Row],[ GL Description]],FIND(" : ",Table5[[#This Row],[ GL Description]])),"") -> Fringe Benefits | M115: =IF(MID(A115,21,1)="2",0,IF(OR(MID(Table5[[#This Row],[GL Account]],14,6)="696520",AND(MID(A115,14,6)="696530",MID(Table5[[#This Row],[GL Account]],21,1)="4")),0,ROUND(SUMIF(Table5[GL Account],Table5[[#This Row],[GL Account]],Table5[Amount])-SUMIFS(Table2[Amount],Table2[Type],"Activity",Table2[Account Number],GLTB!A115),2))) -> 0 | N115: =IF(Table5[[#This Row],[Difference]]=0,"",IF(ISNA(VLOOKUP(Table5[[#This Row],[0]],Table1[],1,FALSE)),"","X")) -> 
A116: 71-0000-1960-696530-53453 | B116: Gen : Dental-Classif Non Class : AS-Oper Activities : Stdnt Development/Campus Life : Assoc Students | C116: 2021-07-29 | D116: PR | E116: '000923' | F116: PRD END: 07/31/21 RC Employer Cont | H116: 55.15 | J116: 55.15 | K116: =IF(MID(Table5[[#This Row],[GL Account]],21,1)="2",MID(Table5[[#This Row],[ GL Description]],FIND(":",Table5[[#This Row],[ GL Description]],1)+2,FIND(":",Table5[[#This Row],[ GL Description]],FIND(":",Table5[[#This Row],[ GL Description]],1)+1)-FIND(":",Table5[[#This Row],[ GL Description]],1)-2),VLOOKUP(VALUE(MID(Table5[[#This Row],[GL Account]],14,6)),PgmList,2,FALSE)) -> Operating Activity | L116: =IF(MID(A116,21,1)="2",MID(A116,14,6)&" - "&MID(B116,FIND(":",B116,FIND(K116,B116,1))+2,FIND(":",B116,FIND(":",B116,FIND(K116,B116,1))+1)-FIND(":",B116,FIND(K116,B116,1))-2),IF(AND(MID(Table5[[#This Row],[GL Account]],14,6)<>"696530",MID(Table5[[#This Row],[GL Account]],14,6)<>"696570"),"",IF(MID(Table5[[#This Row],[GL Account]],21,2)="53","Fringe Benefits",VLOOKUP(RIGHT(Table5[[#This Row],[GL Account]],5),Object,2,FALSE))))&IF(RIGHT(Table5[[#This Row],[GL Account]],5)="29599",IF(MID(A116,4,4)="0000",""," "&MID(A116,4,4))&" - "&LEFT(Table5[[#This Row],[ GL Description]],FIND(" : ",Table5[[#This Row],[ GL Description]])),"") -> Fringe Benefits | M116: =IF(MID(A116,21,1)="2",0,IF(OR(MID(Table5[[#This Row],[GL Account]],14,6)="696520",AND(MID(A116,14,6)="696530",MID(Table5[[#This Row],[GL Account]],21,1)="4")),0,ROUND(SUMIF(Table5[GL Account],Table5[[#This Row],[GL Account]],Table5[Amount])-SUMIFS(Table2[Amount],Table2[Type],"Activity",Table2[Account Number],GLTB!A116),2))) -> 0 | N116: =IF(Table5[[#This Row],[Difference]]=0,"",IF(ISNA(VLOOKUP(Table5[[#This Row],[0]],Table1[],1,FALSE)),"","X")) -> 
A117: 71-0000-1960-696530-53463 | B117: Gen : Vision-Classif Non Class : AS-Oper Activities : Stdnt Development/Campus Life : Assoc Students | C117: 2021-07-29 | D117: PR | E117: '000923' | F117: PRD END: 07/31/21 RC Employer Cont | H117: 11.05 | J117: 11.05 | K117: =IF(MID(Table5[[#This Row],[GL Account]],21,1)="2",MID(Table5[[#This Row],[ GL Description]],FIND(":",Table5[[#This Row],[ GL Description]],1)+2,FIND(":",Table5[[#This Row],[ GL Description]],FIND(":",Table5[[#This Row],[ GL Description]],1)+1)-FIND(":",Table5[[#This Row],[ GL Description]],1)-2),VLOOKUP(VALUE(MID(Table5[[#This Row],[GL Account]],14,6)),PgmList,2,FALSE)) -> Operating Activity | L117: =IF(MID(A117,21,1)="2",MID(A117,14,6)&" - "&MID(B117,FIND(":",B117,FIND(K117,B117,1))+2,FIND(":",B117,FIND(":",B117,FIND(K117,B117,1))+1)-FIND(":",B117,FIND(K117,B117,1))-2),IF(AND(MID(Table5[[#This Row],[GL Account]],14,6)<>"696530",MID(Table5[[#This Row],[GL Account]],14,6)<>"696570"),"",IF(MID(Table5[[#This Row],[GL Account]],21,2)="53","Fringe Benefits",VLOOKUP(RIGHT(Table5[[#This Row],[GL Account]],5),Object,2,FALSE))))&IF(RIGHT(Table5[[#This Row],[GL Account]],5)="29599",IF(MID(A117,4,4)="0000",""," "&MID(A117,4,4))&" - "&LEFT(Table5[[#This Row],[ GL Description]],FIND(" : ",Table5[[#This Row],[ GL Description]])),"") -> Fringe Benefits | M117: =IF(MID(A117,21,1)="2",0,IF(OR(MID(Table5[[#This Row],[GL Account]],14,6)="696520",AND(MID(A117,14,6)="696530",MID(Table5[[#This Row],[GL Account]],21,1)="4")),0,ROUND(SUMIF(Table5[GL Account],Table5[[#This Row],[GL Account]],Table5[Amount])-SUMIFS(Table2[Amount],Table2[Type],"Activity",Table2[Account Number],GLTB!A117),2))) -> 0 | N117: =IF(Table5[[#This Row],[Difference]]=0,"",IF(ISNA(VLOOKUP(Table5[[#This Row],[0]],Table1[],1,FALSE)),"","X")) -> 
A118: 71-0000-1960-696530-53473 | B118: Gen : LTD-Classif Non Class : AS-Oper Activities : Stdnt Development/Campus Life : Assoc Students | C118: 2021-07-29 | D118: PR | E118: '000923' | F118: PRD END: 07/31/21 RC Employer Cont | H118: 2.3 | J118: 2.3 | K118: =IF(MID(Table5[[#This Row],[GL Account]],21,1)="2",MID(Table5[[#This Row],[ GL Description]],FIND(":",Table5[[#This Row],[ GL Description]],1)+2,FIND(":",Table5[[#This Row],[ GL Description]],FIND(":",Table5[[#This Row],[ GL Description]],1)+1)-FIND(":",Table5[[#This Row],[ GL Description]],1)-2),VLOOKUP(VALUE(MID(Table5[[#This Row],[GL Account]],14,6)),PgmList,2,FALSE)) -> Operating Activity | L118: =IF(MID(A118,21,1)="2",MID(A118,14,6)&" - "&MID(B118,FIND(":",B118,FIND(K118,B118,1))+2,FIND(":",B118,FIND(":",B118,FIND(K118,B118,1))+1)-FIND(":",B118,FIND(K118,B118,1))-2),IF(AND(MID(Table5[[#This Row],[GL Account]],14,6)<>"696530",MID(Table5[[#This Row],[GL Account]],14,6)<>"696570"),"",IF(MID(Table5[[#This Row],[GL Account]],21,2)="53","Fringe Benefits",VLOOKUP(RIGHT(Table5[[#This Row],[GL Account]],5),Object,2,FALSE))))&IF(RIGHT(Table5[[#This Row],[GL Account]],5)="29599",IF(MID(A118,4,4)="0000",""," "&MID(A118,4,4))&" - "&LEFT(Table5[[#This Row],[ GL Description]],FIND(" : ",Table5[[#This Row],[ GL Description]])),"") -> Fringe Benefits | M118: =IF(MID(A118,21,1)="2",0,IF(OR(MID(Table5[[#This Row],[GL Account]],14,6)="696520",AND(MID(A118,14,6)="696530",MID(Table5[[#This Row],[GL Account]],21,1)="4")),0,ROUND(SUMIF(Table5[GL Account],Table5[[#This Row],[GL Account]],Table5[Amount])-SUMIFS(Table2[Amount],Table2[Type],"Activity",Table2[Account Number],GLTB!A118),2))) -> 0 | N118: =IF(Table5[[#This Row],[Difference]]=0,"",IF(ISNA(VLOOKUP(Table5[[#This Row],[0]],Table1[],1,FALSE)),"","X")) -> 
A119: 71-0000-1960-696530-53473 | B119: Gen : LTD-Classif Non Class : AS-Oper Activities : Stdnt Development/Campus Life : Assoc Students | C119: 2021-07-29 | D119: PR | E119: '000923' | F119: PRD END: 07/31/21 RC Employer Cont | H119: 3.6 | J119: 3.6 | K119: =IF(MID(Table5[[#This Row],[GL Account]],21,1)="2",MID(Table5[[#This Row],[ GL Description]],FIND(":",Table5[[#This Row],[ GL Description]],1)+2,FIND(":",Table5[[#This Row],[ GL Description]],FIND(":",Table5[[#This Row],[ GL Description]],1)+1)-FIND(":",Table5[[#This Row],[ GL Description]],1)-2),VLOOKUP(VALUE(MID(Table5[[#This Row],[GL Account]],14,6)),PgmList,2,FALSE)) -> Operating Activity | L119: =IF(MID(A119,21,1)="2",MID(A119,14,6)&" - "&MID(B119,FIND(":",B119,FIND(K119,B119,1))+2,FIND(":",B119,FIND(":",B119,FIND(K119,B119,1))+1)-FIND(":",B119,FIND(K119,B119,1))-2),IF(AND(MID(Table5[[#This Row],[GL Account]],14,6)<>"696530",MID(Table5[[#This Row],[GL Account]],14,6)<>"696570"),"",IF(MID(Table5[[#This Row],[GL Account]],21,2)="53","Fringe Benefits",VLOOKUP(RIGHT(Table5[[#This Row],[GL Account]],5),Object,2,FALSE))))&IF(RIGHT(Table5[[#This Row],[GL Account]],5)="29599",IF(MID(A119,4,4)="0000",""," "&MID(A119,4,4))&" - "&LEFT(Table5[[#This Row],[ GL Description]],FIND(" : ",Table5[[#This Row],[ GL Description]])),"") -> Fringe Benefits | M119: =IF(MID(A119,21,1)="2",0,IF(OR(MID(Table5[[#This Row],[GL Account]],14,6)="696520",AND(MID(A119,14,6)="696530",MID(Table5[[#This Row],[GL Account]],21,1)="4")),0,ROUND(SUMIF(Table5[GL Account],Table5[[#This Row],[GL Account]],Table5[Amount])-SUMIFS(Table2[Amount],Table2[Type],"Activity",Table2[Account Number],GLTB!A119),2))) -> 0 | N119: =IF(Table5[[#This Row],[Difference]]=0,"",IF(ISNA(VLOOKUP(Table5[[#This Row],[0]],Table1[],1,FALSE)),"","X")) -> 
A120: 71-0000-1960-696530-53493 | B120: Gen : Ret Hlth Liab-Class Non Class : AS-Oper Activities : Stdnt Development/Campus Life : Assoc Students | C120: 2021-07-29 | D120: PR | E120: '000923' | F120: PRD END: 07/31/21 RC Employer Cont | H120: 64.87 | J120: 64.87 | K120: =IF(MID(Table5[[#This Row],[GL Account]],21,1)="2",MID(Table5[[#This Row],[ GL Description]],FIND(":",Table5[[#This Row],[ GL Description]],1)+2,FIND(":",Table5[[#This Row],[ GL Description]],FIND(":",Table5[[#This Row],[ GL Description]],1)+1)-FIND(":",Table5[[#This Row],[ GL Description]],1)-2),VLOOKUP(VALUE(MID(Table5[[#This Row],[GL Account]],14,6)),PgmList,2,FALSE)) -> Operating Activity | L120: =IF(MID(A120,21,1)="2",MID(A120,14,6)&" - "&MID(B120,FIND(":",B120,FIND(K120,B120,1))+2,FIND(":",B120,FIND(":",B120,FIND(K120,B120,1))+1)-FIND(":",B120,FIND(K120,B120,1))-2),IF(AND(MID(Table5[[#This Row],[GL Account]],14,6)<>"696530",MID(Table5[[#This Row],[GL Account]],14,6)<>"696570"),"",IF(MID(Table5[[#This Row],[GL Account]],21,2)="53","Fringe Benefits",VLOOKUP(RIGHT(Table5[[#This Row],[GL Account]],5),Object,2,FALSE))))&IF(RIGHT(Table5[[#This Row],[GL Account]],5)="29599",IF(MID(A120,4,4)="0000",""," "&MID(A120,4,4))&" - "&LEFT(Table5[[#This Row],[ GL Description]],FIND(" : ",Table5[[#This Row],[ GL Description]])),"") -> Fringe Benefits | M120: =IF(MID(A120,21,1)="2",0,IF(OR(MID(Table5[[#This Row],[GL Account]],14,6)="696520",AND(MID(A120,14,6)="696530",MID(Table5[[#This Row],[GL Account]],21,1)="4")),0,ROUND(SUMIF(Table5[GL Account],Table5[[#This Row],[GL Account]],Table5[Amount])-SUMIFS(Table2[Amount],Table2[Type],"Activity",Table2[Account Number],GLTB!A120),2))) -> 0 | N120: =IF(Table5[[#This Row],[Difference]]=0,"",IF(ISNA(VLOOKUP(Table5[[#This Row],[0]],Table1[],1,FALSE)),"","X")) -> 
A121: 71-0000-1960-696530-53503 | B121: Gen : St Unempl-Classif Non Class : AS-Oper Activities : Stdnt Development/Campus Life : Assoc Students | C121: 2021-07-29 | D121: PR | E121: '000923' | F121: PRD END: 07/31/21 RC Employer Cont | H121: 16.18 | J121: 16.18 | K121: =IF(MID(Table5[[#This Row],[GL Account]],21,1)="2",MID(Table5[[#This Row],[ GL Description]],FIND(":",Table5[[#This Row],[ GL Description]],1)+2,FIND(":",Table5[[#This Row],[ GL Description]],FIND(":",Table5[[#This Row],[ GL Description]],1)+1)-FIND(":",Table5[[#This Row],[ GL Description]],1)-2),VLOOKUP(VALUE(MID(Table5[[#This Row],[GL Account]],14,6)),PgmList,2,FALSE)) -> Operating Activity | L121: =IF(MID(A121,21,1)="2",MID(A121,14,6)&" - "&MID(B121,FIND(":",B121,FIND(K121,B121,1))+2,FIND(":",B121,FIND(":",B121,FIND(K121,B121,1))+1)-FIND(":",B121,FIND(K121,B121,1))-2),IF(AND(MID(Table5[[#This Row],[GL Account]],14,6)<>"696530",MID(Table5[[#This Row],[GL Account]],14,6)<>"696570"),"",IF(MID(Table5[[#This Row],[GL Account]],21,2)="53","Fringe Benefits",VLOOKUP(RIGHT(Table5[[#This Row],[GL Account]],5),Object,2,FALSE))))&IF(RIGHT(Table5[[#This Row],[GL Account]],5)="29599",IF(MID(A121,4,4)="0000",""," "&MID(A121,4,4))&" - "&LEFT(Table5[[#This Row],[ GL Description]],FIND(" : ",Table5[[#This Row],[ GL Description]])),"") -> Fringe Benefits | M121: =IF(MID(A121,21,1)="2",0,IF(OR(MID(Table5[[#This Row],[GL Account]],14,6)="696520",AND(MID(A121,14,6)="696530",MID(Table5[[#This Row],[GL Account]],21,1)="4")),0,ROUND(SUMIF(Table5[GL Account],Table5[[#This Row],[GL Account]],Table5[Amount])-SUMIFS(Table2[Amount],Table2[Type],"Activity",Table2[Account Number],GLTB!A121),2))) -> 0 | N121: =IF(Table5[[#This Row],[Difference]]=0,"",IF(ISNA(VLOOKUP(Table5[[#This Row],[0]],Table1[],1,FALSE)),"","X")) -> 
A122: 71-0000-1960-696530-53603 | B122: Gen : WC-Classif Non Class : AS-Oper Activities : Stdnt Development/Campus Life : Assoc Students | C122: 2021-07-29 | D122: PR | E122: '000923' | F122: PRD END: 07/31/21 RC Employer Cont | H122: 41.22 | J122: 41.22 | K122: =IF(MID(Table5[[#This Row],[GL Account]],21,1)="2",MID(Table5[[#This Row],[ GL Description]],FIND(":",Table5[[#This Row],[ GL Description]],1)+2,FIND(":",Table5[[#This Row],[ GL Description]],FIND(":",Table5[[#This Row],[ GL Description]],1)+1)-FIND(":",Table5[[#This Row],[ GL Description]],1)-2),VLOOKUP(VALUE(MID(Table5[[#This Row],[GL Account]],14,6)),PgmList,2,FALSE)) -> Operating Activity | L122: =IF(MID(A122,21,1)="2",MID(A122,14,6)&" - "&MID(B122,FIND(":",B122,FIND(K122,B122,1))+2,FIND(":",B122,FIND(":",B122,FIND(K122,B122,1))+1)-FIND(":",B122,FIND(K122,B122,1))-2),IF(AND(MID(Table5[[#This Row],[GL Account]],14,6)<>"696530",MID(Table5[[#This Row],[GL Account]],14,6)<>"696570"),"",IF(MID(Table5[[#This Row],[GL Account]],21,2)="53","Fringe Benefits",VLOOKUP(RIGHT(Table5[[#This Row],[GL Account]],5),Object,2,FALSE))))&IF(RIGHT(Table5[[#This Row],[GL Account]],5)="29599",IF(MID(A122,4,4)="0000",""," "&MID(A122,4,4))&" - "&LEFT(Table5[[#This Row],[ GL Description]],FIND(" : ",Table5[[#This Row],[ GL Description]])),"") -> Fringe Benefits | M122: =IF(MID(A122,21,1)="2",0,IF(OR(MID(Table5[[#This Row],[GL Account]],14,6)="696520",AND(MID(A122,14,6)="696530",MID(Table5[[#This Row],[GL Account]],21,1)="4")),0,ROUND(SUMIF(Table5[GL Account],Table5[[#This Row],[GL Account]],Table5[Amount])-SUMIFS(Table2[Amount],Table2[Type],"Activity",Table2[Account Number],GLTB!A122),2))) -> 0 | N122: =IF(Table5[[#This Row],[Difference]]=0,"",IF(ISNA(VLOOKUP(Table5[[#This Row],[0]],Table1[],1,FALSE)),"","X")) -> 
A123: 71-0000-1960-696530-53903 | B123: Gen : Life-Class Non Class : AS-Oper Activities : Stdnt Development/Campus Life : Assoc Students | C123: 2021-07-29 | D123: PR | E123: '000923' | F123: PRD END: 07/31/21 RC Employer Cont | H123: 2.92 | J123: 2.92 | K123: =IF(MID(Table5[[#This Row],[GL Account]],21,1)="2",MID(Table5[[#This Row],[ GL Description]],FIND(":",Table5[[#This Row],[ GL Description]],1)+2,FIND(":",Table5[[#This Row],[ GL Description]],FIND(":",Table5[[#This Row],[ GL Description]],1)+1)-FIND(":",Table5[[#This Row],[ GL Description]],1)-2),VLOOKUP(VALUE(MID(Table5[[#This Row],[GL Account]],14,6)),PgmList,2,FALSE)) -> Operating Activity | L123: =IF(MID(A123,21,1)="2",MID(A123,14,6)&" - "&MID(B123,FIND(":",B123,FIND(K123,B123,1))+2,FIND(":",B123,FIND(":",B123,FIND(K123,B123,1))+1)-FIND(":",B123,FIND(K123,B123,1))-2),IF(AND(MID(Table5[[#This Row],[GL Account]],14,6)<>"696530",MID(Table5[[#This Row],[GL Account]],14,6)<>"696570"),"",IF(MID(Table5[[#This Row],[GL Account]],21,2)="53","Fringe Benefits",VLOOKUP(RIGHT(Table5[[#This Row],[GL Account]],5),Object,2,FALSE))))&IF(RIGHT(Table5[[#This Row],[GL Account]],5)="29599",IF(MID(A123,4,4)="0000",""," "&MID(A123,4,4))&" - "&LEFT(Table5[[#This Row],[ GL Description]],FIND(" : ",Table5[[#This Row],[ GL Description]])),"") -> Fringe Benefits | M123: =IF(MID(A123,21,1)="2",0,IF(OR(MID(Table5[[#This Row],[GL Account]],14,6)="696520",AND(MID(A123,14,6)="696530",MID(Table5[[#This Row],[GL Account]],21,1)="4")),0,ROUND(SUMIF(Table5[GL Account],Table5[[#This Row],[GL Account]],Table5[Amount])-SUMIFS(Table2[Amount],Table2[Type],"Activity",Table2[Account Number],GLTB!A123),2))) -> 0 | N123: =IF(Table5[[#This Row],[Difference]]=0,"",IF(ISNA(VLOOKUP(Table5[[#This Row],[0]],Table1[],1,FALSE)),"","X")) -> 
A124: 71-0000-1960-696530-55446 | B124: Gen : Services-Repair/Maintenance : AS-Oper Activities : Stdnt Development/Campus Life : Assoc Students | C124: 2021-08-18 | D124: PJ | E124: 'V1270756' | F124: US Bank Equipment Finance | H124: 80.13 | J124: 80.13 | K124: =IF(MID(Table5[[#This Row],[GL Account]],21,1)="2",MID(Table5[[#This Row],[ GL Description]],FIND(":",Table5[[#This Row],[ GL Description]],1)+2,FIND(":",Table5[[#This Row],[ GL Description]],FIND(":",Table5[[#This Row],[ GL Description]],1)+1)-FIND(":",Table5[[#This Row],[ GL Description]],1)-2),VLOOKUP(VALUE(MID(Table5[[#This Row],[GL Account]],14,6)),PgmList,2,FALSE)) -> Operating Activity | L124: =IF(MID(A124,21,1)="2",MID(A124,14,6)&" - "&MID(B124,FIND(":",B124,FIND(K124,B124,1))+2,FIND(":",B124,FIND(":",B124,FIND(K124,B124,1))+1)-FIND(":",B124,FIND(K124,B124,1))-2),IF(AND(MID(Table5[[#This Row],[GL Account]],14,6)<>"696530",MID(Table5[[#This Row],[GL Account]],14,6)<>"696570"),"",IF(MID(Table5[[#This Row],[GL Account]],21,2)="53","Fringe Benefits",VLOOKUP(RIGHT(Table5[[#This Row],[GL Account]],5),Object,2,FALSE))))&IF(RIGHT(Table5[[#This Row],[GL Account]],5)="29599",IF(MID(A124,4,4)="0000",""," "&MID(A124,4,4))&" - "&LEFT(Table5[[#This Row],[ GL Description]],FIND(" : ",Table5[[#This Row],[ GL Description]])),"") -> Services-Repair/Maintenance | M124: =IF(MID(A124,21,1)="2",0,IF(OR(MID(Table5[[#This Row],[GL Account]],14,6)="696520",AND(MID(A124,14,6)="696530",MID(Table5[[#This Row],[GL Account]],21,1)="4")),0,ROUND(SUMIF(Table5[GL Account],Table5[[#This Row],[GL Account]],Table5[Amount])-SUMIFS(Table2[Amount],Table2[Type],"Activity",Table2[Account Number],GLTB!A124),2))) -> 0 | N124: =IF(Table5[[#This Row],[Difference]]=0,"",IF(ISNA(VLOOKUP(Table5[[#This Row],[0]],Table1[],1,FALSE)),"","X")) -> 
A125: 71-0000-1960-696530-55771 | B125: Gen : Rentals-Equipment : AS-Oper Activities : Stdnt Development/Campus Life : Assoc Students | C125: 2021-07-13 | D125: JE | E125: 'J044219' | F125: Redwood Real Est #2-July 21 | H125: 125 | J125: 125 | K125: =IF(MID(Table5[[#This Row],[GL Account]],21,1)="2",MID(Table5[[#This Row],[ GL Description]],FIND(":",Table5[[#This Row],[ GL Description]],1)+2,FIND(":",Table5[[#This Row],[ GL Description]],FIND(":",Table5[[#This Row],[ GL Description]],1)+1)-FIND(":",Table5[[#This Row],[ GL Description]],1)-2),VLOOKUP(VALUE(MID(Table5[[#This Row],[GL Account]],14,6)),PgmList,2,FALSE)) -> Operating Activity | L125: =IF(MID(A125,21,1)="2",MID(A125,14,6)&" - "&MID(B125,FIND(":",B125,FIND(K125,B125,1))+2,FIND(":",B125,FIND(":",B125,FIND(K125,B125,1))+1)-FIND(":",B125,FIND(K125,B125,1))-2),IF(AND(MID(Table5[[#This Row],[GL Account]],14,6)<>"696530",MID(Table5[[#This Row],[GL Account]],14,6)<>"696570"),"",IF(MID(Table5[[#This Row],[GL Account]],21,2)="53","Fringe Benefits",VLOOKUP(RIGHT(Table5[[#This Row],[GL Account]],5),Object,2,FALSE))))&IF(RIGHT(Table5[[#This Row],[GL Account]],5)="29599",IF(MID(A125,4,4)="0000",""," "&MID(A125,4,4))&" - "&LEFT(Table5[[#This Row],[ GL Description]],FIND(" : ",Table5[[#This Row],[ GL Description]])),"") -> Rentals-Equipment | M125: =IF(MID(A125,21,1)="2",0,IF(OR(MID(Table5[[#This Row],[GL Account]],14,6)="696520",AND(MID(A125,14,6)="696530",MID(Table5[[#This Row],[GL Account]],21,1)="4")),0,ROUND(SUMIF(Table5[GL Account],Table5[[#This Row],[GL Account]],Table5[Amount])-SUMIFS(Table2[Amount],Table2[Type],"Activity",Table2[Account Number],GLTB!A125),2))) -> 0 | N125: =IF(Table5[[#This Row],[Difference]]=0,"",IF(ISNA(VLOOKUP(Table5[[#This Row],[0]],Table1[],1,FALSE)),"","X")) -> 
A126: 71-0000-1960-696530-55771 | B126: Gen : Rentals-Equipment : AS-Oper Activities : Stdnt Development/Campus Life : Assoc Students | C126: 2021-07-13 | D126: PJ | E126: 'V1269413' | F126: United Site Services | H126: 137.8 | J126: 137.8 | K126: =IF(MID(Table5[[#This Row],[GL Account]],21,1)="2",MID(Table5[[#This Row],[ GL Description]],FIND(":",Table5[[#This Row],[ GL Description]],1)+2,FIND(":",Table5[[#This Row],[ GL Description]],FIND(":",Table5[[#This Row],[ GL Description]],1)+1)-FIND(":",Table5[[#This Row],[ GL Description]],1)-2),VLOOKUP(VALUE(MID(Table5[[#This Row],[GL Account]],14,6)),PgmList,2,FALSE)) -> Operating Activity | L126: =IF(MID(A126,21,1)="2",MID(A126,14,6)&" - "&MID(B126,FIND(":",B126,FIND(K126,B126,1))+2,FIND(":",B126,FIND(":",B126,FIND(K126,B126,1))+1)-FIND(":",B126,FIND(K126,B126,1))-2),IF(AND(MID(Table5[[#This Row],[GL Account]],14,6)<>"696530",MID(Table5[[#This Row],[GL Account]],14,6)<>"696570"),"",IF(MID(Table5[[#This Row],[GL Account]],21,2)="53","Fringe Benefits",VLOOKUP(RIGHT(Table5[[#This Row],[GL Account]],5),Object,2,FALSE))))&IF(RIGHT(Table5[[#This Row],[GL Account]],5)="29599",IF(MID(A126,4,4)="0000",""," "&MID(A126,4,4))&" - "&LEFT(Table5[[#This Row],[ GL Description]],FIND(" : ",Table5[[#This Row],[ GL Description]])),"") -> Rentals-Equipment | M126: =IF(MID(A126,21,1)="2",0,IF(OR(MID(Table5[[#This Row],[GL Account]],14,6)="696520",AND(MID(A126,14,6)="696530",MID(Table5[[#This Row],[GL Account]],21,1)="4")),0,ROUND(SUMIF(Table5[GL Account],Table5[[#This Row],[GL Account]],Table5[Amount])-SUMIFS(Table2[Amount],Table2[Type],"Activity",Table2[Account Number],GLTB!A126),2))) -> 0 | N126: =IF(Table5[[#This Row],[Difference]]=0,"",IF(ISNA(VLOOKUP(Table5[[#This Row],[0]],Table1[],1,FALSE)),"","X")) -> 
A127: 71-0000-1960-696530-55771 | B127: Gen : Rentals-Equipment : AS-Oper Activities : Stdnt Development/Campus Life : Assoc Students | C127: 2021-08-03 | D127: JE | E127: 'J044324' | F127: Redwood Real Est #2 Aug 21 | H127: 125 | J127: 125 | K127: =IF(MID(Table5[[#This Row],[GL Account]],21,1)="2",MID(Table5[[#This Row],[ GL Description]],FIND(":",Table5[[#This Row],[ GL Description]],1)+2,FIND(":",Table5[[#This Row],[ GL Description]],FIND(":",Table5[[#This Row],[ GL Description]],1)+1)-FIND(":",Table5[[#This Row],[ GL Description]],1)-2),VLOOKUP(VALUE(MID(Table5[[#This Row],[GL Account]],14,6)),PgmList,2,FALSE)) -> Operating Activity | L127: =IF(MID(A127,21,1)="2",MID(A127,14,6)&" - "&MID(B127,FIND(":",B127,FIND(K127,B127,1))+2,FIND(":",B127,FIND(":",B127,FIND(K127,B127,1))+1)-FIND(":",B127,FIND(K127,B127,1))-2),IF(AND(MID(Table5[[#This Row],[GL Account]],14,6)<>"696530",MID(Table5[[#This Row],[GL Account]],14,6)<>"696570"),"",IF(MID(Table5[[#This Row],[GL Account]],21,2)="53","Fringe Benefits",VLOOKUP(RIGHT(Table5[[#This Row],[GL Account]],5),Object,2,FALSE))))&IF(RIGHT(Table5[[#This Row],[GL Account]],5)="29599",IF(MID(A127,4,4)="0000",""," "&MID(A127,4,4))&" - "&LEFT(Table5[[#This Row],[ GL Description]],FIND(" : ",Table5[[#This Row],[ GL Description]])),"") -> Rentals-Equipment | M127: =IF(MID(A127,21,1)="2",0,IF(OR(MID(Table5[[#This Row],[GL Account]],14,6)="696520",AND(MID(A127,14,6)="696530",MID(Table5[[#This Row],[GL Account]],21,1)="4")),0,ROUND(SUMIF(Table5[GL Account],Table5[[#This Row],[GL Account]],Table5[Amount])-SUMIFS(Table2[Amount],Table2[Type],"Activity",Table2[Account Number],GLTB!A127),2))) -> 0 | N127: =IF(Table5[[#This Row],[Difference]]=0,"",IF(ISNA(VLOOKUP(Table5[[#This Row],[0]],Table1[],1,FALSE)),"","X")) -> 
A128: 71-0000-1960-696530-55771 | B128: Gen : Rentals-Equipment : AS-Oper Activities : Stdnt Development/Campus Life : Assoc Students | C128: 2021-08-10 | D128: PJ | E128: 'V1270672' | F128: United Site Services | H128: 137.8 | J128: =IF(MID(A128,21,1)="2",-G128-H128+I128,IF(SUM(H128:I128)>0,H128-I128,"")) -> 137.8 | K128: =IF(MID(Table5[[#This Row],[GL Account]],21,1)="2",MID(Table5[[#This Row],[ GL Description]],FIND(":",Table5[[#This Row],[ GL Description]],1)+2,FIND(":",Table5[[#This Row],[ GL Description]],FIND(":",Table5[[#This Row],[ GL Description]],1)+1)-FIND(":",Table5[[#This Row],[ GL Description]],1)-2),VLOOKUP(VALUE(MID(Table5[[#This Row],[GL Account]],14,6)),PgmList,2,FALSE)) -> Operating Activity | L128: =IF(MID(A128,21,1)="2",MID(A128,14,6)&" - "&MID(B128,FIND(":",B128,FIND(K128,B128,1))+2,FIND(":",B128,FIND(":",B128,FIND(K128,B128,1))+1)-FIND(":",B128,FIND(K128,B128,1))-2),IF(AND(MID(Table5[[#This Row],[GL Account]],14,6)<>"696530",MID(Table5[[#This Row],[GL Account]],14,6)<>"696570"),"",IF(MID(Table5[[#This Row],[GL Account]],21,2)="53","Fringe Benefits",VLOOKUP(RIGHT(Table5[[#This Row],[GL Account]],5),Object,2,FALSE))))&IF(RIGHT(Table5[[#This Row],[GL Account]],5)="29599",IF(MID(A128,4,4)="0000",""," "&MID(A128,4,4))&" - "&LEFT(Table5[[#This Row],[ GL Description]],FIND(" : ",Table5[[#This Row],[ GL Description]])),"") -> Rentals-Equipment | M128: =IF(MID(A128,21,1)="2",0,IF(OR(MID(Table5[[#This Row],[GL Account]],14,6)="696520",AND(MID(A128,14,6)="696530",MID(Table5[[#This Row],[GL Account]],21,1)="4")),0,ROUND(SUMIF(Table5[GL Account],Table5[[#This Row],[GL Account]],Table5[Amount])-SUMIFS(Table2[Amount],Table2[Type],"Activity",Table2[Account Number],GLTB!A128),2))) -> 0 | N128: =IF(Table5[[#This Row],[Difference]]=0,"",IF(ISNA(VLOOKUP(Table5[[#This Row],[0]],Table1[],1,FALSE)),"","X")) -> 
A129: 71-0000-1960-696546-55991 | B129: Gen : Other-Unrest : AS-FLOW : Stdnt Development/Campus Life : Assoc Students | C129: 2021-07-01 | D129: PJ | E129: 'V1266758' | F129: Winco Foods, Llc | H129: 30078.06 | J129: 30078.06 | K129: =IF(MID(Table5[[#This Row],[GL Account]],21,1)="2",MID(Table5[[#This Row],[ GL Description]],FIND(":",Table5[[#This Row],[ GL Description]],1)+2,FIND(":",Table5[[#This Row],[ GL Description]],FIND(":",Table5[[#This Row],[ GL Description]],1)+1)-FIND(":",Table5[[#This Row],[ GL Description]],1)-2),VLOOKUP(VALUE(MID(Table5[[#This Row],[GL Account]],14,6)),PgmList,2,FALSE)) -> FLOW | L129: =IF(MID(A129,21,1)="2",MID(A129,14,6)&" - "&MID(B129,FIND(":",B129,FIND(K129,B129,1))+2,FIND(":",B129,FIND(":",B129,FIND(K129,B129,1))+1)-FIND(":",B129,FIND(K129,B129,1))-2),IF(AND(MID(Table5[[#This Row],[GL Account]],14,6)<>"696530",MID(Table5[[#This Row],[GL Account]],14,6)<>"696570"),"",IF(MID(Table5[[#This Row],[GL Account]],21,2)="53","Fringe Benefits",VLOOKUP(RIGHT(Table5[[#This Row],[GL Account]],5),Object,2,FALSE))))&IF(RIGHT(Table5[[#This Row],[GL Account]],5)="29599",IF(MID(A129,4,4)="0000",""," "&MID(A129,4,4))&" - "&LEFT(Table5[[#This Row],[ GL Description]],FIND(" : ",Table5[[#This Row],[ GL Description]])),"") ->  | M129: =IF(MID(A129,21,1)="2",0,IF(OR(MID(Table5[[#This Row],[GL Account]],14,6)="696520",AND(MID(A129,14,6)="696530",MID(Table5[[#This Row],[GL Account]],21,1)="4")),0,ROUND(SUMIF(Table5[GL Account],Table5[[#This Row],[GL Account]],Table5[Amount])-SUMIFS(Table2[Amount],Table2[Type],"Activity",Table2[Account Number],GLTB!A129),2))) -> 0 | N129: =IF(Table5[[#This Row],[Difference]]=0,"",IF(ISNA(VLOOKUP(Table5[[#This Row],[0]],Table1[],1,FALSE)),"","X")) -> 
A130: 71-0000-1960-696222-29590 | B130: Gen : Other Custodials : AS-A/P-Region V CALSACC : Stdnt Development/Campus Life : Assoc Students | C130: 2020-07-01 | D130: AA | E130: '*YE-OB*' | F130: Opening Balance | G130: -3185.58 | J130: =IF(MID(A130,21,1)="2",-G130-H130+I130,IF(SUM(H130:I130)>0,H130-I130,"")) -> 3185.58 | K130: =IF(MID(Table5[[#This Row],[GL Account]],21,1)="2",MID(Table5[[#This Row],[ GL Description]],FIND(":",Table5[[#This Row],[ GL Description]],1)+2,FIND(":",Table5[[#This Row],[ GL Description]],FIND(":",Table5[[#This Row],[ GL Description]],1)+1)-FIND(":",Table5[[#This Row],[ GL Description]],1)-2),VLOOKUP(VALUE(MID(Table5[[#This Row],[GL Account]],14,6)),PgmList,2,FALSE)) -> Other Custodials | L130: =IF(MID(A130,21,1)="2",MID(A130,14,6)&" - "&MID(B130,FIND(":",B130,FIND(K130,B130,1))+2,FIND(":",B130,FIND(":",B130,FIND(K130,B130,1))+1)-FIND(":",B130,FIND(K130,B130,1))-2),IF(AND(MID(Table5[[#This Row],[GL Account]],14,6)<>"696530",MID(Table5[[#This Row],[GL Account]],14,6)<>"696570"),"",IF(MID(Table5[[#This Row],[GL Account]],21,2)="53","Fringe Benefits",VLOOKUP(RIGHT(Table5[[#This Row],[GL Account]],5),Object,2,FALSE))))&IF(RIGHT(Table5[[#This Row],[GL Account]],5)="29599",IF(MID(A130,4,4)="0000",""," "&MID(A130,4,4))&" - "&LEFT(Table5[[#This Row],[ GL Description]],FIND(" : ",Table5[[#This Row],[ GL Description]])),"") -> 696222 - AS-A/P-Region V CALSACC | M130: =IF(MID(A130,21,1)="2",0,IF(OR(MID(Table5[[#This Row],[GL Account]],14,6)="696520",AND(MID(A130,14,6)="696530",MID(Table5[[#This Row],[GL Account]],21,1)="4")),0,ROUND(SUMIF(Table5[GL Account],Table5[[#This Row],[GL Account]],Table5[Amount])-SUMIFS(Table2[Amount],Table2[Type],"Activity",Table2[Account Number],GLTB!A130),2))) -> 0 | N130: =IF(Table5[[#This Row],[Difference]]=0,"",IF(ISNA(VLOOKUP(Table5[[#This Row],[0]],Table1[],1,FALSE)),"","X")) -> 
A131: 71-0000-1960-696223-29590 | B131: Gen : Other Custodials : AS-A/P-Nursing Reunion : Stdnt Development/Campus Life : Assoc Students | C131: 2020-07-01 | D131: AA | E131: '*YE-OB*' | F131: Opening Balance | G131: -759.93 | J131: 759.93 | K131: =IF(MID(Table5[[#This Row],[GL Account]],21,1)="2",MID(Table5[[#This Row],[ GL Description]],FIND(":",Table5[[#This Row],[ GL Description]],1)+2,FIND(":",Table5[[#This Row],[ GL Description]],FIND(":",Table5[[#This Row],[ GL Description]],1)+1)-FIND(":",Table5[[#This Row],[ GL Description]],1)-2),VLOOKUP(VALUE(MID(Table5[[#This Row],[GL Account]],14,6)),PgmList,2,FALSE)) -> Other Custodials | L131: =IF(MID(A131,21,1)="2",MID(A131,14,6)&" - "&MID(B131,FIND(":",B131,FIND(K131,B131,1))+2,FIND(":",B131,FIND(":",B131,FIND(K131,B131,1))+1)-FIND(":",B131,FIND(K131,B131,1))-2),IF(AND(MID(Table5[[#This Row],[GL Account]],14,6)<>"696530",MID(Table5[[#This Row],[GL Account]],14,6)<>"696570"),"",IF(MID(Table5[[#This Row],[GL Account]],21,2)="53","Fringe Benefits",VLOOKUP(RIGHT(Table5[[#This Row],[GL Account]],5),Object,2,FALSE))))&IF(RIGHT(Table5[[#This Row],[GL Account]],5)="29599",IF(MID(A131,4,4)="0000",""," "&MID(A131,4,4))&" - "&LEFT(Table5[[#This Row],[ GL Description]],FIND(" : ",Table5[[#This Row],[ GL Description]])),"") -> 696223 - AS-A/P-Nursing Reunion | M131: =IF(MID(A131,21,1)="2",0,IF(OR(MID(Table5[[#This Row],[GL Account]],14,6)="696520",AND(MID(A131,14,6)="696530",MID(Table5[[#This Row],[GL Account]],21,1)="4")),0,ROUND(SUMIF(Table5[GL Account],Table5[[#This Row],[GL Account]],Table5[Amount])-SUMIFS(Table2[Amount],Table2[Type],"Activity",Table2[Account Number],GLTB!A131),2))) -> 0 | N131: =IF(Table5[[#This Row],[Difference]]=0,"",IF(ISNA(VLOOKUP(Table5[[#This Row],[0]],Table1[],1,FALSE)),"","X")) -> 
A132: 71-0000-1960-696230-29599 | B132: Gen : Stdnt Trust Accts : AS-Freedom Forum : Stdnt Development/Campus Life : Assoc Students | C132: 2020-07-01 | D132: AA | E132: '*YE-OB*' | F132: Opening Balance | G132: -2582.87 | J132: 2582.87 | K132: =IF(MID(Table5[[#This Row],[GL Account]],21,1)="2",MID(Table5[[#This Row],[ GL Description]],FIND(":",Table5[[#This Row],[ GL Description]],1)+2,FIND(":",Table5[[#This Row],[ GL Description]],FIND(":",Table5[[#This Row],[ GL Description]],1)+1)-FIND(":",Table5[[#This Row],[ GL Description]],1)-2),VLOOKUP(VALUE(MID(Table5[[#This Row],[GL Account]],14,6)),PgmList,2,FALSE)) -> Stdnt Trust Accts | L132: =IF(MID(A132,21,1)="2",MID(A132,14,6)&" - "&MID(B132,FIND(":",B132,FIND(K132,B132,1))+2,FIND(":",B132,FIND(":",B132,FIND(K132,B132,1))+1)-FIND(":",B132,FIND(K132,B132,1))-2),IF(AND(MID(Table5[[#This Row],[GL Account]],14,6)<>"696530",MID(Table5[[#This Row],[GL Account]],14,6)<>"696570"),"",IF(MID(Table5[[#This Row],[GL Account]],21,2)="53","Fringe Benefits",VLOOKUP(RIGHT(Table5[[#This Row],[GL Account]],5),Object,2,FALSE))))&IF(RIGHT(Table5[[#This Row],[GL Account]],5)="29599",IF(MID(A132,4,4)="0000",""," "&MID(A132,4,4))&" - "&LEFT(Table5[[#This Row],[ GL Description]],FIND(" : ",Table5[[#This Row],[ GL Description]])),"") -> 696230 - AS-Freedom Forum - Gen | M132: =IF(MID(A132,21,1)="2",0,IF(OR(MID(Table5[[#This Row],[GL Account]],14,6)="696520",AND(MID(A132,14,6)="696530",MID(Table5[[#This Row],[GL Account]],21,1)="4")),0,ROUND(SUMIF(Table5[GL Account],Table5[[#This Row],[GL Account]],Table5[Amount])-SUMIFS(Table2[Amount],Table2[Type],"Activity",Table2[Account Number],GLTB!A132),2))) -> 0 | N132: =IF(Table5[[#This Row],[Difference]]=0,"",IF(ISNA(VLOOKUP(Table5[[#This Row],[0]],Table1[],1,FALSE)),"","X")) -> 
A133: 71-0000-1960-696231-29599 | B133: Gen : Stdnt Trust Accts : AS-Historical Colloquial Socie : Stdnt Development/Campus Life : Assoc Students | C133: 2020-07-01 | D133: AA | E133: '*YE-OB*' | F133: Opening Balance | G133: -311.61 | J133: 311.61 | K133: =IF(MID(Table5[[#This Row],[GL Account]],21,1)="2",MID(Table5[[#This Row],[ GL Description]],FIND(":",Table5[[#This Row],[ GL Description]],1)+2,FIND(":",Table5[[#This Row],[ GL Description]],FIND(":",Table5[[#This Row],[ GL Description]],1)+1)-FIND(":",Table5[[#This Row],[ GL Description]],1)-2),VLOOKUP(VALUE(MID(Table5[[#This Row],[GL Account]],14,6)),PgmList,2,FALSE)) -> Stdnt Trust Accts | L133: =IF(MID(A133,21,1)="2",MID(A133,14,6)&" - "&MID(B133,FIND(":",B133,FIND(K133,B133,1))+2,FIND(":",B133,FIND(":",B133,FIND(K133,B133,1))+1)-FIND(":",B133,FIND(K133,B133,1))-2),IF(AND(MID(Table5[[#This Row],[GL Account]],14,6)<>"696530",MID(Table5[[#This Row],[GL Account]],14,6)<>"696570"),"",IF(MID(Table5[[#This Row],[GL Account]],21,2)="53","Fringe Benefits",VLOOKUP(RIGHT(Table5[[#This Row],[GL Account]],5),Object,2,FALSE))))&IF(RIGHT(Table5[[#This Row],[GL Account]],5)="29599",IF(MID(A133,4,4)="0000",""," "&MID(A133,4,4))&" - "&LEFT(Table5[[#This Row],[ GL Description]],FIND(" : ",Table5[[#This Row],[ GL Description]])),"") -> 696231 - AS-Historical Colloquial Socie - Gen | M133: =IF(MID(A133,21,1)="2",0,IF(OR(MID(Table5[[#This Row],[GL Account]],14,6)="696520",AND(MID(A133,14,6)="696530",MID(Table5[[#This Row],[GL Account]],21,1)="4")),0,ROUND(SUMIF(Table5[GL Account],Table5[[#This Row],[GL Account]],Table5[Amount])-SUMIFS(Table2[Amount],Table2[Type],"Activity",Table2[Account Number],GLTB!A133),2))) -> 0 | N133: =IF(Table5[[#This Row],[Difference]]=0,"",IF(ISNA(VLOOKUP(Table5[[#This Row],[0]],Table1[],1,FALSE)),"","X")) -> 
A134: 71-0000-1960-696232-29599 | B134: Gen : Stdnt Trust Accts : AS-Visual Arts Club : Stdnt Development/Campus Life : Assoc Students | C134: 2020-07-01 | D134: AA | E134: '*YE-OB*' | F134: Opening Balance | G134: -2138.91 | J134: 2138.91 | K134: =IF(MID(Table5[[#This Row],[GL Account]],21,1)="2",MID(Table5[[#This Row],[ GL Description]],FIND(":",Table5[[#This Row],[ GL Description]],1)+2,FIND(":",Table5[[#This Row],[ GL Description]],FIND(":",Table5[[#This Row],[ GL Description]],1)+1)-FIND(":",Table5[[#This Row],[ GL Description]],1)-2),VLOOKUP(VALUE(MID(Table5[[#This Row],[GL Account]],14,6)),PgmList,2,FALSE)) -> Stdnt Trust Accts | L134: =IF(MID(A134,21,1)="2",MID(A134,14,6)&" - "&MID(B134,FIND(":",B134,FIND(K134,B134,1))+2,FIND(":",B134,FIND(":",B134,FIND(K134,B134,1))+1)-FIND(":",B134,FIND(K134,B134,1))-2),IF(AND(MID(Table5[[#This Row],[GL Account]],14,6)<>"696530",MID(Table5[[#This Row],[GL Account]],14,6)<>"696570"),"",IF(MID(Table5[[#This Row],[GL Account]],21,2)="53","Fringe Benefits",VLOOKUP(RIGHT(Table5[[#This Row],[GL Account]],5),Object,2,FALSE))))&IF(RIGHT(Table5[[#This Row],[GL Account]],5)="29599",IF(MID(A134,4,4)="0000",""," "&MID(A134,4,4))&" - "&LEFT(Table5[[#This Row],[ GL Description]],FIND(" : ",Table5[[#This Row],[ GL Description]])),"") -> 696232 - AS-Visual Arts Club - Gen | M134: =IF(MID(A134,21,1)="2",0,IF(OR(MID(Table5[[#This Row],[GL Account]],14,6)="696520",AND(MID(A134,14,6)="696530",MID(Table5[[#This Row],[GL Account]],21,1)="4")),0,ROUND(SUMIF(Table5[GL Account],Table5[[#This Row],[GL Account]],Table5[Amount])-SUMIFS(Table2[Amount],Table2[Type],"Activity",Table2[Account Number],GLTB!A134),2))) -> 0 | N134: =IF(Table5[[#This Row],[Difference]]=0,"",IF(ISNA(VLOOKUP(Table5[[#This Row],[0]],Table1[],1,FALSE)),"","X")) -> 
A135: 71-0000-1960-696233-29599 | B135: Gen : Stdnt Trust Accts : AS-Alpha Gamma Sigma : Stdnt Development/Campus Life : Assoc Students | C135: 2020-07-01 | D135: AA | E135: '*YE-OB*' | F135: Opening Balance | G135: -3834.72 | J135: 3834.72 | K135: =IF(MID(Table5[[#This Row],[GL Account]],21,1)="2",MID(Table5[[#This Row],[ GL Description]],FIND(":",Table5[[#This Row],[ GL Description]],1)+2,FIND(":",Table5[[#This Row],[ GL Description]],FIND(":",Table5[[#This Row],[ GL Description]],1)+1)-FIND(":",Table5[[#This Row],[ GL Description]],1)-2),VLOOKUP(VALUE(MID(Table5[[#This Row],[GL Account]],14,6)),PgmList,2,FALSE)) -> Stdnt Trust Accts | L135: =IF(MID(A135,21,1)="2",MID(A135,14,6)&" - "&MID(B135,FIND(":",B135,FIND(K135,B135,1))+2,FIND(":",B135,FIND(":",B135,FIND(K135,B135,1))+1)-FIND(":",B135,FIND(K135,B135,1))-2),IF(AND(MID(Table5[[#This Row],[GL Account]],14,6)<>"696530",MID(Table5[[#This Row],[GL Account]],14,6)<>"696570"),"",IF(MID(Table5[[#This Row],[GL Account]],21,2)="53","Fringe Benefits",VLOOKUP(RIGHT(Table5[[#This Row],[GL Account]],5),Object,2,FALSE))))&IF(RIGHT(Table5[[#This Row],[GL Account]],5)="29599",IF(MID(A135,4,4)="0000",""," "&MID(A135,4,4))&" - "&LEFT(Table5[[#This Row],[ GL Description]],FIND(" : ",Table5[[#This Row],[ GL Description]])),"") -> 696233 - AS-Alpha Gamma Sigma - Gen | M135: =IF(MID(A135,21,1)="2",0,IF(OR(MID(Table5[[#This Row],[GL Account]],14,6)="696520",AND(MID(A135,14,6)="696530",MID(Table5[[#This Row],[GL Account]],21,1)="4")),0,ROUND(SUMIF(Table5[GL Account],Table5[[#This Row],[GL Account]],Table5[Amount])-SUMIFS(Table2[Amount],Table2[Type],"Activity",Table2[Account Number],GLTB!A135),2))) -> 0 | N135: =IF(Table5[[#This Row],[Difference]]=0,"",IF(ISNA(VLOOKUP(Table5[[#This Row],[0]],Table1[],1,FALSE)),"","X")) -> 
A136: 71-0000-1960-696234-29599 | B136: Gen : Stdnt Trust Accts : AS-Gaming Club : Stdnt Development/Campus Life : Assoc Students | C136: 2020-07-01 | D136: AA | E136: '*YE-OB*' | F136: Opening Balance | G136: -631.86 | J136: 631.86 | K136: =IF(MID(Table5[[#This Row],[GL Account]],21,1)="2",MID(Table5[[#This Row],[ GL Description]],FIND(":",Table5[[#This Row],[ GL Description]],1)+2,FIND(":",Table5[[#This Row],[ GL Description]],FIND(":",Table5[[#This Row],[ GL Description]],1)+1)-FIND(":",Table5[[#This Row],[ GL Description]],1)-2),VLOOKUP(VALUE(MID(Table5[[#This Row],[GL Account]],14,6)),PgmList,2,FALSE)) -> Stdnt Trust Accts | L136: =IF(MID(A136,21,1)="2",MID(A136,14,6)&" - "&MID(B136,FIND(":",B136,FIND(K136,B136,1))+2,FIND(":",B136,FIND(":",B136,FIND(K136,B136,1))+1)-FIND(":",B136,FIND(K136,B136,1))-2),IF(AND(MID(Table5[[#This Row],[GL Account]],14,6)<>"696530",MID(Table5[[#This Row],[GL Account]],14,6)<>"696570"),"",IF(MID(Table5[[#This Row],[GL Account]],21,2)="53","Fringe Benefits",VLOOKUP(RIGHT(Table5[[#This Row],[GL Account]],5),Object,2,FALSE))))&IF(RIGHT(Table5[[#This Row],[GL Account]],5)="29599",IF(MID(A136,4,4)="0000",""," "&MID(A136,4,4))&" - "&LEFT(Table5[[#This Row],[ GL Description]],FIND(" : ",Table5[[#This Row],[ GL Description]])),"") -> 696234 - AS-Gaming Club - Gen | M136: =IF(MID(A136,21,1)="2",0,IF(OR(MID(Table5[[#This Row],[GL Account]],14,6)="696520",AND(MID(A136,14,6)="696530",MID(Table5[[#This Row],[GL Account]],21,1)="4")),0,ROUND(SUMIF(Table5[GL Account],Table5[[#This Row],[GL Account]],Table5[Amount])-SUMIFS(Table2[Amount],Table2[Type],"Activity",Table2[Account Number],GLTB!A136),2))) -> 0 | N136: =IF(Table5[[#This Row],[Difference]]=0,"",IF(ISNA(VLOOKUP(Table5[[#This Row],[0]],Table1[],1,FALSE)),"","X")) -> 
A137: 71-0000-1960-696235-29599 | B137: Gen : Stdnt Trust Accts : AS-College Republicans : Stdnt Development/Campus Life : Assoc Students | C137: 2020-07-01 | D137: AA | E137: '*YE-OB*' | F137: Opening Balance | G137: -1267.01 | J137: 1267.01 | K137: =IF(MID(Table5[[#This Row],[GL Account]],21,1)="2",MID(Table5[[#This Row],[ GL Description]],FIND(":",Table5[[#This Row],[ GL Description]],1)+2,FIND(":",Table5[[#This Row],[ GL Description]],FIND(":",Table5[[#This Row],[ GL Description]],1)+1)-FIND(":",Table5[[#This Row],[ GL Description]],1)-2),VLOOKUP(VALUE(MID(Table5[[#This Row],[GL Account]],14,6)),PgmList,2,FALSE)) -> Stdnt Trust Accts | L137: =IF(MID(A137,21,1)="2",MID(A137,14,6)&" - "&MID(B137,FIND(":",B137,FIND(K137,B137,1))+2,FIND(":",B137,FIND(":",B137,FIND(K137,B137,1))+1)-FIND(":",B137,FIND(K137,B137,1))-2),IF(AND(MID(Table5[[#This Row],[GL Account]],14,6)<>"696530",MID(Table5[[#This Row],[GL Account]],14,6)<>"696570"),"",IF(MID(Table5[[#This Row],[GL Account]],21,2)="53","Fringe Benefits",VLOOKUP(RIGHT(Table5[[#This Row],[GL Account]],5),Object,2,FALSE))))&IF(RIGHT(Table5[[#This Row],[GL Account]],5)="29599",IF(MID(A137,4,4)="0000",""," "&MID(A137,4,4))&" - "&LEFT(Table5[[#This Row],[ GL Description]],FIND(" : ",Table5[[#This Row],[ GL Description]])),"") -> 696235 - AS-College Republicans - Gen | M137: =IF(MID(A137,21,1)="2",0,IF(OR(MID(Table5[[#This Row],[GL Account]],14,6)="696520",AND(MID(A137,14,6)="696530",MID(Table5[[#This Row],[GL Account]],21,1)="4")),0,ROUND(SUMIF(Table5[GL Account],Table5[[#This Row],[GL Account]],Table5[Amount])-SUMIFS(Table2[Amount],Table2[Type],"Activity",Table2[Account Number],GLTB!A137),2))) -> 0 | N137: =IF(Table5[[#This Row],[Difference]]=0,"",IF(ISNA(VLOOKUP(Table5[[#This Row],[0]],Table1[],1,FALSE)),"","X")) -> 
A138: 71-0000-1960-696236-29599 | B138: Gen : Stdnt Trust Accts : AS-Union of Black Students : Stdnt Development/Campus Life : Assoc Students | C138: 2020-07-01 | D138: AA | E138: '*YE-OB*' | F138: Opening Balance | G138: -1112.24 | J138: 1112.24 | K138: =IF(MID(Table5[[#This Row],[GL Account]],21,1)="2",MID(Table5[[#This Row],[ GL Description]],FIND(":",Table5[[#This Row],[ GL Description]],1)+2,FIND(":",Table5[[#This Row],[ GL Description]],FIND(":",Table5[[#This Row],[ GL Description]],1)+1)-FIND(":",Table5[[#This Row],[ GL Description]],1)-2),VLOOKUP(VALUE(MID(Table5[[#This Row],[GL Account]],14,6)),PgmList,2,FALSE)) -> Stdnt Trust Accts | L138: =IF(MID(A138,21,1)="2",MID(A138,14,6)&" - "&MID(B138,FIND(":",B138,FIND(K138,B138,1))+2,FIND(":",B138,FIND(":",B138,FIND(K138,B138,1))+1)-FIND(":",B138,FIND(K138,B138,1))-2),IF(AND(MID(Table5[[#This Row],[GL Account]],14,6)<>"696530",MID(Table5[[#This Row],[GL Account]],14,6)<>"696570"),"",IF(MID(Table5[[#This Row],[GL Account]],21,2)="53","Fringe Benefits",VLOOKUP(RIGHT(Table5[[#This Row],[GL Account]],5),Object,2,FALSE))))&IF(RIGHT(Table5[[#This Row],[GL Account]],5)="29599",IF(MID(A138,4,4)="0000",""," "&MID(A138,4,4))&" - "&LEFT(Table5[[#This Row],[ GL Description]],FIND(" : ",Table5[[#This Row],[ GL Description]])),"") -> 696236 - AS-Union of Black Students - Gen | M138: =IF(MID(A138,21,1)="2",0,IF(OR(MID(Table5[[#This Row],[GL Account]],14,6)="696520",AND(MID(A138,14,6)="696530",MID(Table5[[#This Row],[GL Account]],21,1)="4")),0,ROUND(SUMIF(Table5[GL Account],Table5[[#This Row],[GL Account]],Table5[Amount])-SUMIFS(Table2[Amount],Table2[Type],"Activity",Table2[Account Number],GLTB!A138),2))) -> 0 | N138: =IF(Table5[[#This Row],[Difference]]=0,"",IF(ISNA(VLOOKUP(Table5[[#This Row],[0]],Table1[],1,FALSE)),"","X")) -> 
A139: 71-0000-1960-696238-29599 | B139: Gen : Stdnt Trust Accts : AS-Aikido : Stdnt Development/Campus Life : Assoc Students | C139: 2020-07-01 | D139: AA | E139: '*YE-OB*' | F139: Opening Balance | G139: -49.79 | J139: 49.79 | K139: =IF(MID(Table5[[#This Row],[GL Account]],21,1)="2",MID(Table5[[#This Row],[ GL Description]],FIND(":",Table5[[#This Row],[ GL Description]],1)+2,FIND(":",Table5[[#This Row],[ GL Description]],FIND(":",Table5[[#This Row],[ GL Description]],1)+1)-FIND(":",Table5[[#This Row],[ GL Description]],1)-2),VLOOKUP(VALUE(MID(Table5[[#This Row],[GL Account]],14,6)),PgmList,2,FALSE)) -> Stdnt Trust Accts | L139: =IF(MID(A139,21,1)="2",MID(A139,14,6)&" - "&MID(B139,FIND(":",B139,FIND(K139,B139,1))+2,FIND(":",B139,FIND(":",B139,FIND(K139,B139,1))+1)-FIND(":",B139,FIND(K139,B139,1))-2),IF(AND(MID(Table5[[#This Row],[GL Account]],14,6)<>"696530",MID(Table5[[#This Row],[GL Account]],14,6)<>"696570"),"",IF(MID(Table5[[#This Row],[GL Account]],21,2)="53","Fringe Benefits",VLOOKUP(RIGHT(Table5[[#This Row],[GL Account]],5),Object,2,FALSE))))&IF(RIGHT(Table5[[#This Row],[GL Account]],5)="29599",IF(MID(A139,4,4)="0000",""," "&MID(A139,4,4))&" - "&LEFT(Table5[[#This Row],[ GL Description]],FIND(" : ",Table5[[#This Row],[ GL Description]])),"") -> 696238 - AS-Aikido - Gen | M139: =IF(MID(A139,21,1)="2",0,IF(OR(MID(Table5[[#This Row],[GL Account]],14,6)="696520",AND(MID(A139,14,6)="696530",MID(Table5[[#This Row],[GL Account]],21,1)="4")),0,ROUND(SUMIF(Table5[GL Account],Table5[[#This Row],[GL Account]],Table5[Amount])-SUMIFS(Table2[Amount],Table2[Type],"Activity",Table2[Account Number],GLTB!A139),2))) -> 0 | N139: =IF(Table5[[#This Row],[Difference]]=0,"",IF(ISNA(VLOOKUP(Table5[[#This Row],[0]],Table1[],1,FALSE)),"","X")) -> 
A140: 71-0000-1960-696239-29599 | B140: Gen : Stdnt Trust Accts : AS-Judo Club : Stdnt Development/Campus Life : Assoc Students | C140: 2020-07-01 | D140: AA | E140: '*YE-OB*' | F140: Opening Balance | G140: -1598.33 | J140: 1598.33 | K140: =IF(MID(Table5[[#This Row],[GL Account]],21,1)="2",MID(Table5[[#This Row],[ GL Description]],FIND(":",Table5[[#This Row],[ GL Description]],1)+2,FIND(":",Table5[[#This Row],[ GL Description]],FIND(":",Table5[[#This Row],[ GL Description]],1)+1)-FIND(":",Table5[[#This Row],[ GL Description]],1)-2),VLOOKUP(VALUE(MID(Table5[[#This Row],[GL Account]],14,6)),PgmList,2,FALSE)) -> Stdnt Trust Accts | L140: =IF(MID(A140,21,1)="2",MID(A140,14,6)&" - "&MID(B140,FIND(":",B140,FIND(K140,B140,1))+2,FIND(":",B140,FIND(":",B140,FIND(K140,B140,1))+1)-FIND(":",B140,FIND(K140,B140,1))-2),IF(AND(MID(Table5[[#This Row],[GL Account]],14,6)<>"696530",MID(Table5[[#This Row],[GL Account]],14,6)<>"696570"),"",IF(MID(Table5[[#This Row],[GL Account]],21,2)="53","Fringe Benefits",VLOOKUP(RIGHT(Table5[[#This Row],[GL Account]],5),Object,2,FALSE))))&IF(RIGHT(Table5[[#This Row],[GL Account]],5)="29599",IF(MID(A140,4,4)="0000",""," "&MID(A140,4,4))&" - "&LEFT(Table5[[#This Row],[ GL Description]],FIND(" : ",Table5[[#This Row],[ GL Description]])),"") -> 696239 - AS-Judo Club - Gen | M140: =IF(MID(A140,21,1)="2",0,IF(OR(MID(Table5[[#This Row],[GL Account]],14,6)="696520",AND(MID(A140,14,6)="696530",MID(Table5[[#This Row],[GL Account]],21,1)="4")),0,ROUND(SUMIF(Table5[GL Account],Table5[[#This Row],[GL Account]],Table5[Amount])-SUMIFS(Table2[Amount],Table2[Type],"Activity",Table2[Account Number],GLTB!A140),2))) -> 0 | N140: =IF(Table5[[#This Row],[Difference]]=0,"",IF(ISNA(VLOOKUP(Table5[[#This Row],[0]],Table1[],1,FALSE)),"","X")) -> 
A141: 71-0000-1960-696241-29599 | B141: Gen : Stdnt Trust Accts : AS-Geology Club : Stdnt Development/Campus Life : Assoc Students | C141: 2020-07-01 | D141: AA | E141: '*YE-OB*' | F141: Opening Balance | G141: -253.67 | J141: 253.67 | K141: =IF(MID(Table5[[#This Row],[GL Account]],21,1)="2",MID(Table5[[#This Row],[ GL Description]],FIND(":",Table5[[#This Row],[ GL Description]],1)+2,FIND(":",Table5[[#This Row],[ GL Description]],FIND(":",Table5[[#This Row],[ GL Description]],1)+1)-FIND(":",Table5[[#This Row],[ GL Description]],1)-2),VLOOKUP(VALUE(MID(Table5[[#This Row],[GL Account]],14,6)),PgmList,2,FALSE)) -> Stdnt Trust Accts | L141: =IF(MID(A141,21,1)="2",MID(A141,14,6)&" - "&MID(B141,FIND(":",B141,FIND(K141,B141,1))+2,FIND(":",B141,FIND(":",B141,FIND(K141,B141,1))+1)-FIND(":",B141,FIND(K141,B141,1))-2),IF(AND(MID(Table5[[#This Row],[GL Account]],14,6)<>"696530",MID(Table5[[#This Row],[GL Account]],14,6)<>"696570"),"",IF(MID(Table5[[#This Row],[GL Account]],21,2)="53","Fringe Benefits",VLOOKUP(RIGHT(Table5[[#This Row],[GL Account]],5),Object,2,FALSE))))&IF(RIGHT(Table5[[#This Row],[GL Account]],5)="29599",IF(MID(A141,4,4)="0000",""," "&MID(A141,4,4))&" - "&LEFT(Table5[[#This Row],[ GL Description]],FIND(" : ",Table5[[#This Row],[ GL Description]])),"") -> 696241 - AS-Geology Club - Gen | M141: =IF(MID(A141,21,1)="2",0,IF(OR(MID(Table5[[#This Row],[GL Account]],14,6)="696520",AND(MID(A141,14,6)="696530",MID(Table5[[#This Row],[GL Account]],21,1)="4")),0,ROUND(SUMIF(Table5[GL Account],Table5[[#This Row],[GL Account]],Table5[Amount])-SUMIFS(Table2[Amount],Table2[Type],"Activity",Table2[Account Number],GLTB!A141),2))) -> 0 | N141: =IF(Table5[[#This Row],[Difference]]=0,"",IF(ISNA(VLOOKUP(Table5[[#This Row],[0]],Table1[],1,FALSE)),"","X")) -> 
A142: 71-0000-1960-696244-29599 | B142: Gen : Stdnt Trust Accts : AS-International Club : Stdnt Development/Campus Life : Assoc Students | C142: 2020-07-01 | D142: AA | E142: '*YE-OB*' | F142: Opening Balance | G142: -3333.91 | J142: 3333.91 | K142: =IF(MID(Table5[[#This Row],[GL Account]],21,1)="2",MID(Table5[[#This Row],[ GL Description]],FIND(":",Table5[[#This Row],[ GL Description]],1)+2,FIND(":",Table5[[#This Row],[ GL Description]],FIND(":",Table5[[#This Row],[ GL Description]],1)+1)-FIND(":",Table5[[#This Row],[ GL Description]],1)-2),VLOOKUP(VALUE(MID(Table5[[#This Row],[GL Account]],14,6)),PgmList,2,FALSE)) -> Stdnt Trust Accts | L142: =IF(MID(A142,21,1)="2",MID(A142,14,6)&" - "&MID(B142,FIND(":",B142,FIND(K142,B142,1))+2,FIND(":",B142,FIND(":",B142,FIND(K142,B142,1))+1)-FIND(":",B142,FIND(K142,B142,1))-2),IF(AND(MID(Table5[[#This Row],[GL Account]],14,6)<>"696530",MID(Table5[[#This Row],[GL Account]],14,6)<>"696570"),"",IF(MID(Table5[[#This Row],[GL Account]],21,2)="53","Fringe Benefits",VLOOKUP(RIGHT(Table5[[#This Row],[GL Account]],5),Object,2,FALSE))))&IF(RIGHT(Table5[[#This Row],[GL Account]],5)="29599",IF(MID(A142,4,4)="0000",""," "&MID(A142,4,4))&" - "&LEFT(Table5[[#This Row],[ GL Description]],FIND(" : ",Table5[[#This Row],[ GL Description]])),"") -> 696244 - AS-International Club - Gen | M142: =IF(MID(A142,21,1)="2",0,IF(OR(MID(Table5[[#This Row],[GL Account]],14,6)="696520",AND(MID(A142,14,6)="696530",MID(Table5[[#This Row],[GL Account]],21,1)="4")),0,ROUND(SUMIF(Table5[GL Account],Table5[[#This Row],[GL Account]],Table5[Amount])-SUMIFS(Table2[Amount],Table2[Type],"Activity",Table2[Account Number],GLTB!A142),2))) -> 0 | N142: =IF(Table5[[#This Row],[Difference]]=0,"",IF(ISNA(VLOOKUP(Table5[[#This Row],[0]],Table1[],1,FALSE)),"","X")) -> 
A143: 71-0000-1960-696246-29599 | B143: Gen : Stdnt Trust Accts : AS-Chi Alpha : Stdnt Development/Campus Life : Assoc Students | C143: 2020-07-01 | D143: AA | E143: '*YE-OB*' | F143: Opening Balance | G143: -18.36 | J143: 18.36 | K143: =IF(MID(Table5[[#This Row],[GL Account]],21,1)="2",MID(Table5[[#This Row],[ GL Description]],FIND(":",Table5[[#This Row],[ GL Description]],1)+2,FIND(":",Table5[[#This Row],[ GL Description]],FIND(":",Table5[[#This Row],[ GL Description]],1)+1)-FIND(":",Table5[[#This Row],[ GL Description]],1)-2),VLOOKUP(VALUE(MID(Table5[[#This Row],[GL Account]],14,6)),PgmList,2,FALSE)) -> Stdnt Trust Accts | L143: =IF(MID(A143,21,1)="2",MID(A143,14,6)&" - "&MID(B143,FIND(":",B143,FIND(K143,B143,1))+2,FIND(":",B143,FIND(":",B143,FIND(K143,B143,1))+1)-FIND(":",B143,FIND(K143,B143,1))-2),IF(AND(MID(Table5[[#This Row],[GL Account]],14,6)<>"696530",MID(Table5[[#This Row],[GL Account]],14,6)<>"696570"),"",IF(MID(Table5[[#This Row],[GL Account]],21,2)="53","Fringe Benefits",VLOOKUP(RIGHT(Table5[[#This Row],[GL Account]],5),Object,2,FALSE))))&IF(RIGHT(Table5[[#This Row],[GL Account]],5)="29599",IF(MID(A143,4,4)="0000",""," "&MID(A143,4,4))&" - "&LEFT(Table5[[#This Row],[ GL Description]],FIND(" : ",Table5[[#This Row],[ GL Description]])),"") -> 696246 - AS-Chi Alpha - Gen | M143: =IF(MID(A143,21,1)="2",0,IF(OR(MID(Table5[[#This Row],[GL Account]],14,6)="696520",AND(MID(A143,14,6)="696530",MID(Table5[[#This Row],[GL Account]],21,1)="4")),0,ROUND(SUMIF(Table5[GL Account],Table5[[#This Row],[GL Account]],Table5[Amount])-SUMIFS(Table2[Amount],Table2[Type],"Activity",Table2[Account Number],GLTB!A143),2))) -> 0 | N143: =IF(Table5[[#This Row],[Difference]]=0,"",IF(ISNA(VLOOKUP(Table5[[#This Row],[0]],Table1[],1,FALSE)),"","X")) -> 
A144: 71-0000-1960-696247-29599 | B144: Gen : Stdnt Trust Accts : AS-Mecha : Stdnt Development/Campus Life : Assoc Students | C144: 2020-07-01 | D144: AA | E144: '*YE-OB*' | F144: Opening Balance | G144: -1139.31 | J144: 1139.31 | K144: =IF(MID(Table5[[#This Row],[GL Account]],21,1)="2",MID(Table5[[#This Row],[ GL Description]],FIND(":",Table5[[#This Row],[ GL Description]],1)+2,FIND(":",Table5[[#This Row],[ GL Description]],FIND(":",Table5[[#This Row],[ GL Description]],1)+1)-FIND(":",Table5[[#This Row],[ GL Description]],1)-2),VLOOKUP(VALUE(MID(Table5[[#This Row],[GL Account]],14,6)),PgmList,2,FALSE)) -> Stdnt Trust Accts | L144: =IF(MID(A144,21,1)="2",MID(A144,14,6)&" - "&MID(B144,FIND(":",B144,FIND(K144,B144,1))+2,FIND(":",B144,FIND(":",B144,FIND(K144,B144,1))+1)-FIND(":",B144,FIND(K144,B144,1))-2),IF(AND(MID(Table5[[#This Row],[GL Account]],14,6)<>"696530",MID(Table5[[#This Row],[GL Account]],14,6)<>"696570"),"",IF(MID(Table5[[#This Row],[GL Account]],21,2)="53","Fringe Benefits",VLOOKUP(RIGHT(Table5[[#This Row],[GL Account]],5),Object,2,FALSE))))&IF(RIGHT(Table5[[#This Row],[GL Account]],5)="29599",IF(MID(A144,4,4)="0000",""," "&MID(A144,4,4))&" - "&LEFT(Table5[[#This Row],[ GL Description]],FIND(" : ",Table5[[#This Row],[ GL Description]])),"") -> 696247 - AS-Mecha - Gen | M144: =IF(MID(A144,21,1)="2",0,IF(OR(MID(Table5[[#This Row],[GL Account]],14,6)="696520",AND(MID(A144,14,6)="696530",MID(Table5[[#This Row],[GL Account]],21,1)="4")),0,ROUND(SUMIF(Table5[GL Account],Table5[[#This Row],[GL Account]],Table5[Amount])-SUMIFS(Table2[Amount],Table2[Type],"Activity",Table2[Account Number],GLTB!A144),2))) -> 0 | N144: =IF(Table5[[#This Row],[Difference]]=0,"",IF(ISNA(VLOOKUP(Table5[[#This Row],[0]],Table1[],1,FALSE)),"","X")) -> 
A145: 71-0000-1960-696248-29599 | B145: Gen : Stdnt Trust Accts : AS-Psychology Club : Stdnt Development/Campus Life : Assoc Students | C145: 2020-07-01 | D145: AA | E145: '*YE-OB*' | F145: Opening Balance | G145: -324.16 | J145: 324.16 | K145: =IF(MID(Table5[[#This Row],[GL Account]],21,1)="2",MID(Table5[[#This Row],[ GL Description]],FIND(":",Table5[[#This Row],[ GL Description]],1)+2,FIND(":",Table5[[#This Row],[ GL Description]],FIND(":",Table5[[#This Row],[ GL Description]],1)+1)-FIND(":",Table5[[#This Row],[ GL Description]],1)-2),VLOOKUP(VALUE(MID(Table5[[#This Row],[GL Account]],14,6)),PgmList,2,FALSE)) -> Stdnt Trust Accts | L145: =IF(MID(A145,21,1)="2",MID(A145,14,6)&" - "&MID(B145,FIND(":",B145,FIND(K145,B145,1))+2,FIND(":",B145,FIND(":",B145,FIND(K145,B145,1))+1)-FIND(":",B145,FIND(K145,B145,1))-2),IF(AND(MID(Table5[[#This Row],[GL Account]],14,6)<>"696530",MID(Table5[[#This Row],[GL Account]],14,6)<>"696570"),"",IF(MID(Table5[[#This Row],[GL Account]],21,2)="53","Fringe Benefits",VLOOKUP(RIGHT(Table5[[#This Row],[GL Account]],5),Object,2,FALSE))))&IF(RIGHT(Table5[[#This Row],[GL Account]],5)="29599",IF(MID(A145,4,4)="0000",""," "&MID(A145,4,4))&" - "&LEFT(Table5[[#This Row],[ GL Description]],FIND(" : ",Table5[[#This Row],[ GL Description]])),"") -> 696248 - AS-Psychology Club - Gen | M145: =IF(MID(A145,21,1)="2",0,IF(OR(MID(Table5[[#This Row],[GL Account]],14,6)="696520",AND(MID(A145,14,6)="696530",MID(Table5[[#This Row],[GL Account]],21,1)="4")),0,ROUND(SUMIF(Table5[GL Account],Table5[[#This Row],[GL Account]],Table5[Amount])-SUMIFS(Table2[Amount],Table2[Type],"Activity",Table2[Account Number],GLTB!A145),2))) -> 0 | N145: =IF(Table5[[#This Row],[Difference]]=0,"",IF(ISNA(VLOOKUP(Table5[[#This Row],[0]],Table1[],1,FALSE)),"","X")) -> 
